Workbook

Sheet Versiebeheer
A1: VERSIEBEHEER
E4: Versie 2.0 | G4: Publicatiedatum: 26-11-2021
E6: Omschrijving
E7: Aanpassingen gemaakt door Berenschot in overleg met het Expertise Centrum Warmte
E9: Wijzigingen ten opzichte van versie 1.1
E10: 0 | F10: Algemene wijzigingen
F11: a | G11: Splitsing van grootverbruik in 'Collectief' en 'Utiliteit'.
G12: In de hieronder genoemde tabbladen zijn alle noodzakelijke invoervelden en berekeningen toegevoegd om ook utiliteiten in de businesscase op te nemen.
E14: 1 | F14: Wijzigingen in tabblad 'Uitgangspunten' (voorheen 'Invoer')
F15: a | G15: Wijziging van de naam van het tabblad van 'Invoer' naar 'Uitgangspunten'.
G16: Reden: in de nieuwe versie worden aantallen aansluitingen en de fasering hiervan op een apart tabblad ('Aantallen en Fasering') gemaakt.
G17: Dit tabblad bevat dus uitsluitend de algemene uitgangspunten van de businesscase.
F18: b | G18: Onder 'Algemeen': toevoeging van de vennootschapsbelasting, en de optie om wel/niet te rekenen volgens de regels voor verliesverrekening per 1 januari 2022.
G19: https://www.rendement.nl/vpb/nieuws/onbeperkte-verliesverrekening-kan-in-2022-van-start.html
G20: Toevoeging van de optie om de restwaarde mee te nemen in de resultatenrekening.
G21: Toevoeging van Autonome vraagreductie op basis van de Klimaat- en Energieverkenning (KEV) 2021.
F22: c | G22: Onder 'Tarieven en eenmalige bijdragen': Mogelijkheid om de kostendekkingsbijdrage uit te splitsen naar grondgebonden en gestapeld bezit, op basis van verhouding.
F23: d | G23: Onder 'Energievraag en -inkoop': uitsplitsing van 'Variabele component warmte inkoop' in een dal- en piektarief,
G24: plus een invoerveld voor het percentage volgens piektarief.
G25: Verwijdering van de velden voor het aantal aansluitingen (grondgebonden, gestapeld, collectief),
G26: warmteverbruiken (grondgebonden, gestapeld, collectief) en aansluitvermogen (collectief).
G27: Verplaatsing van de regel voor Vennootschapsbelasting naar 'Algemeen'.
G28: Hernoeming naar 'Aansluitvermogen en inkoop'.
F29: e | G29: Toevoeging van de optie om een bijdrage op te nemen voor eerder gemaakte investeringen.
G30: Mogelijkheid om dit op te nemen als bedrag in termijnen of als bedrag per kW bij het aansluiten.
F31: f | G31: Onder 'Timing & Scenario's: verplaatsing van exlploitatieduur, startjaar, economische levensduur en fasering, timing exploitatie naar het tabblad 'Aantallen & Fasering'.
G32: Verwijdering van de velden 'Fasering AB voor collectief' en 'Fasering KDB en AB voor KV'.
G33: Hernoeming naar 'Indexatie'.
E35: 2 | F35: Toevoeging van het tabblad 'Aantallen en Fasering'
F36: a | G36: Default voor 'Timing exploitatie' voor onderdelen van de businesscase gelijkgesteld aan de algehele exploitatieduur.
G37: Mogelijkheid om hiervan af te wijken door een waarde in kolom F in te vullen.
F38: b | G38: Toevoeging van invoertabel voor individuele woningen, waarbij per tranche het aantal woningen uitgesplitst kan worden naar particulier en max. 3 corporaties.
G39: Daarnaast dient hier per tranche het aansluitjaar, de aansluitsnelheid, warmteverbruik en participatiegraad aangegeven te worden.
G40: Mogelijkheid toegevoegd om te kiezen tussen een berekende fasering, op basis van een gemiddelde aansluitsnelheid, en handmatige invoer van de fasering.
G41: Toevoeging van switches om tranches/corporaties aan of uit te zetten.
F42: c | G42: Toevoeging van invoertabel voor collectieve woningen en utiliteiten.
G43: Hier dient per aansluiting het aansluitjaar, aansluitbijdrage, aansluitkosten, warmteverbruik en vermogen van de aansluiting te worden ingevuld.
G44: Toevoeging van switches om losse aansluitingen of 'Collectief'/'Utiliteit' als geheel aan of uit te zetten.
F45: d | G45: Fasering en Economische levensduur' wordt hier opgenomen, in plaats van op het tabblad 'Uitgangspunten'.
G46: Toevoeging van een automatische berekening voor herinvesteringen wanneer de levensduur van een asset is verstreken.
E48: 3 | F48: Op het tabblad 'Overzicht Invoer'
F49: a | G49: Samenvoeging van de invoervelden op de tabbladen 'Uitgangspunten' en 'Aantallen & Fasering'.
F50: b | G50: Herschikking van de regels volgens de volgorde op de twee invoertabbladen.
F51: c | G51: Berekening voor het toepassen van de aangegeven autonome vraagreductie op de berekende warmtevraag.
E53: 4 | F53: Op het tabblad 'Rekenoverzicht'
F54: a | G54: Toevoeging van de bijdrage voor eerder gemaakte investeringen onder '1. CAPEX'.
F55: b | G55: Verandering van de berekening voor CAPEX bij de aansluiting.
G56: Deze verwijst nu direct naar het aantal woningen dat per jaar wordt aangesloten, zoals berekend wordt op 'Aantallen & Fasering'.
F57: c | G57: Toepassing van de fasering en herinvestering voor warmtewisselaars en meters
F58: d | G58: Toevoeging van een berekening voor de restwaarde bij iedere post onder '2. AFSCHRIJVINGEN'.
F59: e | G59: Correctie voor vaste component warmte-inkoop: deze werd voorheen ook nog gerekend in de jaren ná de exploitatie.
G60: Nu wordt deze vermenigvuldigd met de timing exploitatie.
F61: f | G61: Koppeling van berekeningen voor OPEX met de fasering van de CAPEX zoals aangegeven bij 'Fasering en Economische levensduur'.
F62: g | G62: Toepassing van de regels voor verliesverrekening in de belastingberekening. Wanneer er niet gekozen is voor verliesverrekening volgens de regels vanaf 1 januari 2022,
G63: wordt standaard gerekend met het vpb-percentage maal de EBT.
E65: 5 | F65: Op het tabblad 'Financial Statement'
F66: a | G66: Toevoeging van de restwaarde op de Profit & Loss.
E68: 6 | F68: Toevoeging van het tabblad 'Onrendabele top'
F69: a | G69: Verdeling van de kosten en opbrengsten in de businesscase naar soort aansluiting.
G70: Verdeling van de totale kosten en de kosten per aansluiting.
G71: Algemene kosten zijn in deze berekening verdeeld op basis van aantal aansluitingen, aangesloten vermogen,
G72: totale leidingmeters per soort aansluiting of warmtevraag.
G73: Visualisatie van deze kosten en opbrengsten.
F74: b | G74: Berekening van de marge per aansluiting voor iedere soort aansluitingen.
G75: Op basis hiervan wordt een verdeelsleutel voor de BAK berekend voor grondgebonden en gestapeld bezit.
G76: De verdeelsleutel wordt teruggekoppeld als default verdeelsleutel voor de BAK in het tabblad 'Uitgangspunten'.
E78: 7 | F78: Toevoegingen op het blad 'Resultaten'
F79: a | G79: Toevoeging van een grafiek met de fasering van het aantal aansluitingen.
F80: b | G80: Toevoeging van een watervalgrafiek voor de kosten en opbrengsten van het project.
E83: Versie 1.1 | G83: Publicatiedatum: 28-05-2020
E85: Omschrijving
E86: Enkele aanpassingen op basis van feedback
E88: Wijzigingen ten opzichte van versie 1.0
E89: 1 | F89: Wijzigingen in tabblad 'Rekenoverzicht'
F90: a | G90: M260 week af van de overige cellen in R260, aangepast.
F91: b | G91: R260 en R265: warmteverlies werd verrekend met leegstand, terwijl dit (bijna altijd) onafhankelijk is van leegstand. Gecorrigeerd.
E93: Versie 1.0 | G93: Publicatiedatum: 19-05-2020
E95: Omschrijving
E96: Verbeterde versie met toelichting en default-waarden die samen met een praktische handleiding is gepubliceerd.
E98: Wijzigingen ten opzichte van versie 0.8
E99: 1 | F99: Tabblad 'versiebeheer' toegevoegd
E100: 2 | F100: Naam van voormalig tabblad 'handleiding' gewijzigd in 'toelichting' (vanwege het separaat opgestelde document met de naam handleiding)
E101: 3 | F101: Diverse aanpassingen in het tabblad 'Toelichting':
F102: a | G102: Disclaimer mbt default waarden toegevoegd (4e bullit)
F103: b | G103: Hoofdstukken 3, 4 en 5 van de toelichting bevatte veel dubbelingen met de handleiding. Toelichtingen opgeschoond,
G104: een aantal toelichtingen voor invoer gehandhaafd.
E106: 4 | F106: Tabblad invoer is voorzien van toelichtingen en invultips bij de invulwaarden. Deze worden zichtbaar als het invoerveld wordt geselecteerd.
E107: 5 | F107: Tabblad Invoer is voorzien van default waarden en kolom J met daarin met bron van de default waarde
E109: 6 | F109: Diverse wijzigingen in tablad invoer (van boven naar beneden)
F110: a | G110: Warmteverliezen gebundeld tot één percentage voor individuele en één voor collectieve aansluitingen i.p.v. uitsplitsting over allerlei onderdelen.
G111: Reden: gebruiksvriendelijkheid, gegevens niet altijd bekend en uitsplitsing is niet relevant voor het doel van de template.
G112: Verwijzingen in tabblad 'overzicht invoer' F28 en F29 bijgewerkt.
F113: b | G113: Naam kopje 'WACC invoer' gewijzigd in 'discontovoet'
F114: c | G114: Onder Discontovoet de volgorde van invoervelden projectrendement en WACC omgewisseld.
G115: Reden: nu krijgt de gebruiker als eerste de vraag of hij wil rekenen met een projectrendement.
F116: d | G116: Tarieven en eenmalige bijdragen: veld KDB grijs gemaakt, omdat dit een uitkomst is.
F117: e | G117: Kosteninvoer OPEX: de aparte opvoer van administratieve lasten per traceonderdeel is verborgen.
G118: Dit kan als totaal worden ingevoerd in het veld 'OPEX overig'
F119: f | G119: Naam kopje 'Energiekosten' gewijzigd in 'Energievraag en -inkoop'
F120: g | G120: Onder 'Energievraag en -inkoop' generieke invoervelden gemaakt, die worden gekopieerd in de invoercellen per jaartal.
G121: Reden: gebruiksvriendelijkheid, handmatige aanpassing blijft mogelijk, koppeling met default waarden eenvoudiger
G122: Risico: onderschatting tijdfactor. Aangegeven bij toelichting van de cellen dat dit nog steeds serieuze aandacht behoeft.
F123: h | G123: Timing en Scenario's: indexatie warmte gesplitst in indexatie voor gebruikstarief en inkoop van warmte. Ook indexatie
G124: voor de vaste component van warmte-inkoop toegevoegd. Doorgevoerd in de verdere berekeningen van het model.
F125: i | G125: Timing en Scenario's: veld met individuele waarden voor indexatie is grijs gemaakt (in principe geen invoervelden).
G126: Het is nog wel mogelijk deze waarden handmatig aan te passen in geval van een specifieke uitzondering.
F127: j | G127: Aanpassing in de formule voor de 'checks' bij de fasering, deze gaven niet de gewenste uitkomst
F128: k | G128: Een aantal onderdelen voor Timing (r. 161 - 163) waren al gekoppeld aan de fasering van aansluitingen, deze rijen verborgen.
E130: 7 | F130: Wijzigingen in tablad rekenoverzicht:
F131: a | G131: Verwijzingen naar aantal collectieve aansluitingen in cellen F59, F72, F90, F97 en F104, F203 klopte niet, gecorrigeerd.
F132: b | G132: Verwijzingen naar 'individuele aansluitingen' in plaats van 'gestapeld' op rij 297 en 373 gecorrigeerd
F133: c | G133: In de berekening van de BAK (R201 en R208) werd verwezen naar het aantal aansluitingen in het betreffende jaar, terwijl dit
G134: het maximale aantal aansluitingen moet zijn (BAK-fasering wordt separaat in percentages opgegeven). Verwijzingen gecorrigeerd.
F135: d | G135: In de berekening van het leegstands- en debiteurenrisico (R330 - R339) werd gestapelde bouw niet meegerekend. Verwijzing gecorrigeerd
G136: naar totale inkomsten kleinverbruik (R306 en R307) i.p.v. alleen individueel kleinverbruik
F137: e | G137: Fasering EIA (R234) verwijst naar fasering hoofddistributiesysteem. Gecorrigeerd, verwijst nu naar R36 - R40, waarbij de fasering
G138: gebaseerd wordt op het percentage van de totale investering in een bepaald jaar.
F139: f | G139: In de berekening van CAPEX warmtewisselaars was geen indexatie megenomen, gecorrigeerd in R66 en R67. In R79 - R81 was
G140: de indexatie op de som (R81) toegepast, voor de eenduidigheid gewijzigd naar indexatie op de individuele posten (R79, R80).
F141: g | G141: Verwijzing Economische levensduur en fasering Capex Overig (F138) klopte niet (verwees naar fasering aansluitingen), gecorrigeerd
F142: h | G142: R207 verwees naar indexatie KDB+ AB (overzicht invoer R102), gecorrigeerd naar Indexatie AB Collectief (overzicht invoer R103)
F143: i | G143: R276, vaste component inkoop warmte: hierbij was geen indexatie meegenomen. Aparte indexatie voor
F144: j | G144: R381, onderhoud en beheer collectief: hierbij werd verwezen naar het totale aantal aansluitingen, gewijzigd in het gefaseerde aantal.
F145: k | G145: R390; onderhoud en beheer overig werd niet geindexeerd. Deze post opgeteld bij Onderhoud en Beheer Overig in de Woning
F146: l | G146: R166; afschrijving collectieve afleverset; berekening gelijkgetrokken aan andere onderdelen
E148: 8 | F148: Wijzigingen in tablad Resultaten:
F149: a | G149: Term 'NPV' gewijzigd in 'NCW'
F150: b | G150: Inkomsten collectief en individueel (tabel inkomsten per aansluiting) gewijzigd in totale inkomsten per aansluiting.
G151: Reden: in de vorige versie werden de inkomsten van individuele danwel collectieve aansluitingen gedeeld op alle aansluitingen,
G152: dit gaf verwarring in de interpretatie van deze waarden.
F153: c | G153: Berekening bruto investering (Cel I10): in de verwijzing ontbrak de post 'overige investeringen'. Eerste deel verwijzing
G154: aangepast naar 'Overzicht Invoer'!F37:F40'
F155: d | G155: Berekening bruto investering (Cel I10): in de bereiken ontbraken de laatste twee jaren. Bereiken gecorrigeerd.
F156: e | G156: Totaal Opex toegevoegd aan bedragen per aansluiting (L20:O20)
E158: Versie 0.8 | G158: Publicatiedatum: 22-04-2020
E160: Omschrijving
E161: De eerste (kale) versie van de template

Sheet Toelichting
A1: TOELICHTING
B3: 1. Disclaimers
C4: * | E4: Aan de Template Business cases Warmtenetten kunnen geen rechten worden ontleend. ECW /rvo kan geen enkele aansprakelijkheid aanvaarden
E5: voor schade als gevolg van eventuele onjuistheden en/of uitvoering of gebruik van de template.
C7: * | E7: De template geeft een eerste voorstel en is louter bedoeld voor discussie om deze daarna aan te scherpen en te verbeteren.
E8: Het template is een vereenvoudigde weergave van de werkelijkheid. Dit kan resulteren in foutieve interpretatie van de resultaten.
C10: * | E10: Deze template is nadrukkelijk niet bedoeld om de cijfers te bespreken maar om een werkbaar model te bouwen dat kan bijdragen
E11: aan vruchtbare gesprekken op projectniveau tussen woningcorporaties en warmtebedrijven.
C13: * | E13: De weergegeven Default-waarden zijn bedoeld om gevoel te geven bij de ordegrootte van de invoerwaarden. Vanwege projectspecifieke
E14: omstandigheden kunnen werkelijke waarden hier sterk van afwijken.
C16: * | E16: De template moet bijdragen aan kennis over de business case, transparantie en sturingsmogelijkheden.
E17: Voor dat laatste is de template zo gebouwd dat 'gespeeld' kan worden met de cijfers in de tab 'Input'.
E18: Met de 'sensitivities' wordt in 1 oogopslag zichtbaar wat effecten zijn van bepaalde afwijkingen/variaties.
C20: * | E20: In deze template zijn niet alle relevante kosten meegenomen, omdat dit soms moeilijk te alloceren valt aan individuele projecten:
E21: o | F21: In een individuele business case wordt bestaande netwerk en bestaande organisatie, overhead en devex niet toegerekend.
E22: o | F22: Op de verwachte schaal van groei benodigd voor de warmtetransitie moeten ook forse aanvullende infra en organisatie investeringen gedaan worden.
F23: Dat zit niet in het model.
E24: o | F24: Met het rendement op commerciële projecten dek je ook de kosten van 'must-do' en compliance projecten (bijv. slimme meters, asbest, verleggingen etc.).
C26: * | E26: Deze template is afgestemd met de warmtebedrijven, maar project-specifieke omstandigheden kunnen vragen om afwijking/wijzingen.
C28: * | E28: Met deze template wordt een voor commerciële bedrijven ongebruikelijke grote stap gezet qua transparantie over vertrouwelijke gegevens,
E29: indien deze zou worden gevuld met de data van projecten.
C31: * | E31: Let op: de impact op AB + KDB in de sensitivity-analyse is weergegeven bepaald op jaar 1
E32: Dit betekent dat de het getoonde verschil (zowel een positief als een negatief bedrag) in jaar 1 ontvangen moet worden.
E33: Omdat in praktijk woningen gefaseerd worden aangesloten, en de AB + KDB ontvangsten ook daaraan gekoppeld is,
E34: zou de sensitiviteit inclusief de tijdsimpact in de praktijk afwijken. Dit heeft te maken met tijdwaarde van geld.
C36: * | E36: Collectieve aansluitingen: kan worden meegenomen met het model, maar er zijn geen standaard kentallen beschikbaar
E37: Op verzoek van Aedes is de optie collectieve aansluitingen eraan toegevoegd. Hier zijn echter geen gemiddelde
E38: kentallen van. Uit de praktijk blijkt dat de variatie in collectieve aansluitingen zeer groot is.
E39: De kentallen van deze projecten zullen per project bekeken en ingevoerd moeten worden.
B41: 2. Handleiding bij deze template
E42: Voor het gebruik van deze template is een aparte handleiding geschreven, 'handleiding businesscases warmtenetten', dd. …...
E43: Deze is te downloaden op www.expertisecentrumwarmte.nl
E44: Het is aanbevolen deze handleiding door te nemen voor gebruik van deze template.
B46: 3. Begrippenlijst / Afkortingslijst
E48: KDB | F48: = | G48: Kostendekkingsbijdrage. Deze bijdrage wordt verondersteld nog nodig te zijn in het geval van een onrendabele top.
E49: AB | F49: = | G49: Aansluit bijdrage. De bijdrage van per individuele of collectieve aansluiting aan de kosten van de aansluiting.
E50: KV | F50: = | G50: Kleinverbruik (ofwel individuele aansluitingen)
E51: Coll | F51: = | G51: Collectieve aansluitingen
E52: Aansl | F52: = | G52: Aansluiting
E53: EIA | F53: = | G53: Energie-investeringsafstrek
E54: VPB | F54: = | G54: vennootschapsbelasting
B56: 4. Algemene instructie doorrekenen model
E58: Het model staat in de basis op Handmatig doorrekenen.
E59: Dit betekent dat als input parameters gewijzigd worden, het model niet automatisch doorrekent. Druk op toets F9 om de nieuwe input door te rekenen.
E60: Het voordeel hiervan is dat de oude waarde / resultaat zichtbaar blijft totdat met F9 het model wordt doorgerekend, waardoor de impact van de wijzigingen zichtbaar wordt.
E61: Mocht je niet van deze optie gebruik willen maken, ga naar de werkbalk | M61: Formulas --> Calculation Options --> Automatic om automatisch doorrekenen in te schakelen.
M62: Formules --> Berekeningsopties --> Automatisch
F64: = | G64: Invoercellen --> alleen deze cellen wijzigen
F65: = | G65: Output cellen --> nooit deleten en nooit wijzigen!!
E67: Negatieve waarden worden in het model tussen haakjes aangegeven.
E69: Nadat de invoerparameters zijn ingevuld wordt in het tabblad 'Resultaten' de uitkomst weergegeven.
E70: Met de knop 'bereken KDB' wordt de Kostendekkingsbijdrage (KDB) bepaald, in dit model de sluitpost van de business case. De uitkomst (hoogte KDB)
E71: wordt daarna ook ingevuld in het invoerblad.
E72: Door verschillende invoerparameters te varieren (snelheid volloop, investeringen, kostenvoet, etc.) kan het effect op de KDB worden bepaald.

Sheet Uitgangspunten
CI1: Vast bedrag | CJ1: Volledige verrekening
A2: REKENMODEL BUSINESS CASE WARMTENETTEN - INVOER | CI2: Bedrag per kW | CJ2: Verrekening binnen project
B3: LEES DE HANDLEIDING VOOR GEBRUIK MODEL | CI3: Geen
A4: INVOER
B6: Algemeen | G6: Waarde | H6: Eenheid | I6: Default | J6: Bron | K6: Afwijking default | L6: Opmerkingen | S6: ='Aantallen & Fasering'!$F$10 -> 2022 | T6: =S6 + 1 -> 2023 | U6: 2024 | V6: 2025 | W6: 2026 | X6: 2027 | Y6: 2028 | Z6: 2029 | AA6: 2030 | AB6: 2031 | AC6: 2032 | AD6: 2033 | AE6: 2034 | AF6: 2035 | AG6: 2036 | AH6: 2037 | AI6: 2038 | AJ6: 2039 | AK6: 2040 | AL6: 2041 | AM6: 2042 | AN6: 2043 | AO6: 2044 | AP6: 2045 | AQ6: 2046 | AR6: 2047 | AS6: 2048 | AT6: 2049 | AU6: 2050 | AV6: 2051 | AW6: 2052 | AX6: 2053 | AY6: 2054 | AZ6: =AY6 + 1 -> 2055 | BA6: 2056 | BB6: 2057 | BC6: 2058 | BD6: 2059 | BE6: 2060 | BF6: 2061 | BG6: 2062 | BH6: 2063 | BI6: 2064 | BJ6: 2065 | BK6: 2066 | BL6: 2067 | BM6: 2068 | BN6: 2069 | BO6: 2070 | BP6: 2071 | BQ6: 2072 | BR6: 2073 | BS6: 2074 | BT6: 2075 | BU6: 2076 | BV6: 2077 | BW6: 2078 | BX6: 2079 | BY6: 2080 | BZ6: 2081
C7: Risico
E8: Debiteurenrisico | H8: factor
E9: Leegstand individuele kleinverbruikers | G9: 0.014 | H9: factor | I9: 0.014 | J9: CBS, landelijke monitor Leegstand, 2020 | K9: =G9-I9 -> 0
E10: Leegstand Collectief | G10: 0.014 | H10: factor | I10: 0.014 | J10: CBS, landelijke monitor Leegstand, 2020 | K10: =G10-I10 -> 0 | CE10: ja
E11: Leegstand Utiliteit
C12: EIA (toelichting) | CE12: nee
E13: Rekenen met de EIA in deze berekening? | G13: nee
E14: EIA | G14: 0.455 | H14: factor | I14: 0.455 | J14: www.rvo.nl/eia | K14: =G14-I14 -> 0
E15: EIA-gerechtigde investering | H15: €
C16: Belastingen
E17: Vennootschapsbelasting | G17: 0.258 | H17: factor | I17: 0.258 | J17: VBP per 2022 | K17: =G17-I17 -> 0 | S17: =$G17 -> 0.258 | T17: 0.258 | U17: 0.258 | V17: 0.258 | W17: 0.258 | X17: 0.258 | Y17: 0.258 | Z17: 0.258 | AA17: 0.258 | AB17: 0.258 | AC17: 0.258 | AD17: 0.258 | AE17: 0.258 | AF17: 0.258 | AG17: 0.258 | AH17: 0.258 | AI17: 0.258 | AJ17: 0.258 | AK17: 0.258 | AL17: 0.258 | AM17: 0.258 | AN17: 0.258 | AO17: 0.258 | AP17: 0.258 | AQ17: 0.258 | AR17: 0.258 | AS17: 0.258 | AT17: 0.258 | AU17: 0.258 | AV17: 0.258 | AW17: 0.258 | AX17: 0.258 | AY17: =$G17 -> 0.258 | AZ17: 0.258 | BA17: 0.258 | BB17: 0.258 | BC17: 0.258 | BD17: 0.258 | BE17: 0.258 | BF17: 0.258 | BG17: 0.258 | BH17: 0.258 | BI17: 0.258 | BJ17: 0.258 | BK17: 0.258 | BL17: 0.258 | BM17: 0.258 | BN17: 0.258 | BO17: 0.258 | BP17: 0.258 | BQ17: 0.258 | BR17: 0.258 | BS17: 0.258 | BT17: 0.258 | BU17: 0.258 | BV17: 0.258 | BW17: 0.258 | BX17: 0.258 | BY17: 0.258 | BZ17: 0.258
E18: Volledige belastingverrekening of verliesverrekening binnen project | G18: Volledige verrekening | I18: =$CJ$1 -> Volledige verrekening
C19: Restwaarde
E20: Restwaarde opnemen in resultatenrekening? | G20: ja | I20: ja
C21: Lengte net
E22: lengte hoofddistributietracé: | H22: km | K22: =G22-I22 -> 0
E23: lengte primaire leidingnetten: | G23: 0.65 | H23: km | I23: =I24/20 -> 0.325 | J23: Op basis van 1/20 * meter leiding secundair | K23: 0.325
E24: lengte secundaire leidingnetten: | G24: 13 | H24: km | I24: =((8*'Aantallen & Fasering'!K54+5*'Aantallen & Fasering'!K58+50*(SUM('Aantallen & Fasering'!K96)+SUM('Aantallen & Fasering'!K112)))/1000) -> 6.5 | J24: Op basis van 8m/grondgebonden woning, 5m/gestapelde woning, 50m/collectieve aansluiting | K24: 6.5
C25: Warmteverliezen (toelichting)
E26: Leidingverliezen individueel kleinverbruik | G26: 0.23 | H26: % | I26: 0.23 | J26: Functioneel ontwerp Vesta Mais 4.0: 20% - 36%, Deens energieagentschap 12% - 32% | K26: =G26-I26 -> 0
E27: Leidingverliezen collectieve aansluitingen | G27: 0.23 | H27: % | I27: 0.23 | J27: Functioneel ontwerp Vesta Mais 4.0: 20% - 36%, Deens energieagentschap 12% - 32% | K27: =G27-I27 -> 0
E28: Leidingverliezen utiliteit | G28: 0.23 | H28: % | I28: 0.23 | J28: Functioneel ontwerp Vesta Mais 4.0: 20% - 36%, Deens energieagentschap 12% - 32% | K28: =G28-I28 -> 0
C29: Autonome warmtevraag reductie
E30: Percentuele reductie van de ruimteverwarming | G30: 0.0035 | H30: [%/jr] | I30: 0.0035 | J30: Klimaat en EnergieVerkenning 2021 pagina 142 | K30: =G30-I30 -> 0
E31: Verondersteld aandeel tapwater woningen van totale warmtevraag | G31: 0.22 | H31: % | I31: 0.22 | J31: O.b.v. de Warmtemonitor 2019 | K31: =G31-I31 -> 0
E32: Verondersteld aandeel tapwater utiliteit van totale warmtevraag | H32: % | J32: Sterk afhankelijk van type utiliteit. Zie Achtergronddocument Startanalyse PBL voor kentallen. | K32: =G32-I32 -> 0
B34: Discontovoet | G34: Waarde | H34: Eenheid | I34: Default | J34: Bron | K34: Afwijking default | L34: Opmerkingen
E36: Rekenen met een projectrendement? | G36: nee
E37: Projectrendement invoer (rendementseis) | H37: % | K37: =G37-I37 -> 0
E39: Gearing | G39: 0.7 | H39: factor | I39: 0.7 | J39: PBL, Eindadvies Basisbedragen SDE++ 2020
E40: Kostenvoet EV | G40: 0.12 | H40: % | I40: 0.12 | J40: Idem, gemiddelde tussen projecten met hoog (15%) en laag (9%) risico | K40: =G40-I40 -> 0
E41: Kostenvoet VV | G41: 0.02 | H41: % | I41: 0.02 | J41: Idem | K41: =G41-I41 -> 0
E42: Risico-opslag bovenop de WACC | H42: % | K42: =G42-I42 -> 0
B44: Tarieven en eenmalige bijdragen | G44: Waarde | H44: Eenheid | I44: Default | J44: Bron | K44: Afwijking default | L44: Opmerkingen
C45: Inkomsten uit individueel kleinverbruik aansluitingen
E46: Gediferentieerde (KDB) voor grongebonden en gestapelde woningen | G46: ja | I46: nee | L46: =IF('Financial Statement'!F59='Financial Statement'!F65,TRUE,"Bereken juiste KDB middels knop in tabblad ""Resultaten") -> Bereken juiste KDB middels knop in tabblad "Resultaten
E47: Kostendekkingsbijdrage (KDB) | G47: -13217.20618 | H47: [€/#] | K47: =G47-I47 -> -13217.20618 | L47: excl BTW
E48: Kostendekkingsbijdrage (KDB) Grondgebonden | G48: =IF(G46="nee",KDB,IF(ISBLANK(G50),I50,G50)*KDB) -> 0
E49: Kostendekkingsbijdrage (KDB) Gestapeld | G49: =IF(G46="nee",KDB,IF(ISBLANK(G50),I51,G51)*KDB) -> -13217.20618 | H49: [€/#]
E50: Verdeling (KDB) Grondgebonden | H50: factor | I50: ='Onrendabele top'!Y30 -> 0
E51: Verdeling (KDB) Gestapeld | G51: =IF(ISBLANK(G50),I51,1-G50) -> 1 | H51: factor | I51: =1-I50 -> 1
E52: Aansluitbijdrage individuele kleinverbruikers | G52: 4098 | H52: [€/#] | I52: 4098.46 | J52: ACM max 2022 (excl. meerlengte) | K52: =G52-I52 -> -0.46 | L52: excl BTW
E53: Vastrecht + Meettarief | G53: 408.74 | H53: [€/jr] | I53: 408.74 | J53: ACM max 2022. NB daadwerkelijke tarieven in 2022 zijn lager bij de meeste warmeleveranciers | K53: =G53-I53 -> 0 | L53: excl BTW
E54: Vergoeding afleverstation | G54: 108.4 | H54: [€/jr] | I54: 108.4 | J54: ACM max 2020. CW4, ruimteverwarming en tapwater. | K54: =G54-I54 -> 0 | L54: excl BTW
E55: Verbruikstarief kleinverbruik | G55: =I55 -> 44.59 | H55: [€/GJ] | I55: 44.59 | J55: ACM max 2022. NB daadwerkelijke tarieven in 2022 zijn lager bij de meeste warmteleveranciers | K55: =G55-I55 -> 0 | L55: excl BTW
C56: Inkomsten uit collectieve aansluitingen
E57: Aansluitbijdrage Collectief | G57: 95 | H57: [€/kW] | I57: 95.4 | J57: Gebaseerd op ACM max 2022 categorie 100 - 1.250kW voor een referentie van 500kW. | K57: =G57-I57 -> -0.4 | L57: excl BTW
E58: Vastrecht + Meettarief | G58: 4.4 | H58: [€/kW/jr] | I58: 4.4 | J58: Onderhoud 3% + vastrecht gasaansluiting | K58: =G58-I58 -> 0 | L58: excl BTW
E59: Vergoeding afleverstation | G59: 4131 | H59: [€/jr] | I59: 4131 | J59: ACM max 2022 o.b.v. 500kW referentie. | K59: =G59-I59 -> 0 | L59: excl BTW
E60: Verbruikstarief Collectief | G60: 44.59 | H60: [€/GJ] | I60: 44.59 | J60: ACM max 2022. NB daadwerkelijke tarieven in 2022 zijn lager bij de meeste warmteleveranciers | K60: =G60-I60 -> 0 | L60: excl BTW
C61: Inkomsten uit utiliteiten
E62: Aansluitbijdrage Utiliteit | G62: 95 | H62: [€/kW] | I62: 95.4 | J62: Gebaseerd op ACM max 2022 categorie 100 - 1.250kW voor een referentie van 500kW). | K62: =G62-I62 -> -0.4 | L62: excl BTW
E63: Vastrecht + Meettarief | G63: 4.4 | H63: [€/kW/jr] | I63: 4.4 | J63: Onderhoud 3% + vastrecht gasaansluiting , 250kW referentie | K63: =G63-I63 -> 0 | L63: excl BTW
E64: Vergoeding afleverstation | G64: 4131 | H64: [€/jr] | I64: 4131 | J64: ACM max 2022 o.b.v. 500kW referentie. | K64: =G64-I64 -> 0 | L64: excl BTW
E65: Verbruikstarief Utiliteit | G65: 44.59 | H65: [€/GJ] | I65: 44.59 | J65: ACM max 2022. NB daadwerkelijke tarieven in 2022 zijn lager bij de meeste warmteleveranciers | K65: =G65-I65 -> 0 | L65: excl BTW
B68: Kosteninvoer CAPEX | G68: Waarde | H68: Eenheid | I68: Default | J68: Bron | K68: Afwijking default | L68: Opmerkingen
C69: CAPEX Hoofddistributietracé (toelichting)
E70: Voorbereidingskosten hoofddistributietracé | H70: €/km | I70: 1736000 | J70: Functioneel ontwerp Vesta Mais 5.0 (op basis van 20MW (DN300), gemiddelde open - gesloten verharding) | K70: =(G70+G71+G72+G73)-I70 -> 0 | L70: excl BTW
E71: Kosten buizen hoofddistributietracé | H71: €/km | L71: excl BTW
E72: Kosten aanleg hoofddistributietracé | G72: 1736000 | H72: €/km | L72: excl BTW
E73: Kosten van aanvullende installaties hoofddistributietracé | H73: € | L73: excl BTW
E74: Gemiddelde kosten onderstations hoofddistributietracé | G74: 111375 | H74: €/stuk | I74: 111375 | J74: Functioneel ontwerp Vesta Mais 4.0 (€135 per kW, o.b.v. 825 per stuk) | K74: =G74-I74 -> 0 | L74: excl BTW
E75: aantal onderstations | H75: [#] | K75: =G75-I75 -> 0
C76: CAPEX Primaire Leidingnetten (toelichting)
E77: Voorbereidingskosten primaire leidingnetten | H77: €/km | I77: 936000 | J77: Functioneel ontwerp Vesta Mais 5.0 (op basis van 2,5MW (DN100), gemiddelde open - gesloten verharding) | K77: =(G77+G78+G79+G80)-I77 -> 0 | L77: excl BTW
E78: Kosten buizen primaire leidingnetten | H78: €/km | L78: excl BTW
E79: Kosten aanleg primaire leidingnetten | G79: 936000 | H79: €/km | L79: excl BTW
E80: Kosten van aanvullende installaties primaire leidingnetten | H80: € | L80: excl BTW
E81: Kosten onderstations primaire leidingnetten | G81: 111375 | H81: €/stuk | I81: 111375 | J81: Functioneel ontwerp Vesta Mais 5.0 (€135 per kW, o.b.v. 825 per stuk) | K81: =G81-I81 -> 0 | L81: excl BTW
E82: aantal onderstations | G82: 8 | H82: [#] | I82: =ROUND(('Aantallen & Fasering'!K54+'Aantallen & Fasering'!K58)/250,0) -> 4 | J82: O.b.v. 250 aansluitingen per onderstation. | K82: =G82-I82 -> 4
C83: CAPEX Secundaire Leidingnetten (toelichting)
E84: Voorbereidingskosten secundaire leidingnetten | H84: €/km | I84: 723000 | J84: Functioneel ontwerp Vesta Mais 5.0 (op basis van 400kW (DN40), gemiddelde open - gesloten verharding) | K84: =(G84+G85+G86+G87)-I84 -> 0 | L84: excl BTW
E85: Kosten buizen secundaire leidingnetten | H85: €/km | L85: excl BTW
E86: Kosten aanleg secundaire leidingnetten | G86: 723000 | H86: €/km | L86: excl BTW
E87: Kosten van aanvullende installaties secundaire leidingnetten | H87: € | L87: excl BTW
E88: Kosten onderstations secundaire leidingnetten | H88: €/stuk | K88: =G88-I88 -> 0 | L88: excl BTW
E89: aantal onderstations | H89: [#] | K89: =G89-I89 -> 0
C90: CAPEX bij de aansluiting
E91: Aansluitingen grondgebonden woning | G91: 6200 | H91: €/stuk | I91: 6200 | J91: Functioneel ontwerp Vesta Mais 5.0 (inclusief inpandige kosten t/m afleverset; op basis van 8m aansluitleiding, open verharding; inpandige aansluitkosten van €2.500 + ongeriefvergoeding en projectmanagement) | K91: =G91-I91 -> 0 | L91: excl BTW
E92: Aansluitingen gestapelde woning | G92: 1920 | H92: €/stuk | I92: 1920 | J92: Functioneel ontwerp Vesta Mais 5.0: inpandige aansluitkosten van €1.500 per aansluiting + projectmanagement + ongeriefvergoeding | K92: 0 | L92: excl BTW
E93: Gemiddelde kosten grootverbruiksaansluitingen | H93: €/stuk | J93: Default ondergebracht bij 'kosten warmtewisselaar / afleversets (…)' | K93: 0 | L93: excl BTW
E94: Kosten warmtewisselaar / afleversets bij een grondgebonden woning | G94: 973 | H94: €/stuk | I94: 973 | J94: ACM, tarievenbesluit 2022, CW4 | K94: 0 | L94: excl BTW
E95: Kosten warmtewisselaar / afleversets bij een gestapelde woning | G95: 973 | H95: €/stuk | I95: 973 | J95: ACM, tarievenbesluit 2022, CW4 | K95: 0 | L95: excl BTW
E96: Kosten warmtewisselaar / afleversets collectieve aansluitingen | G96: 50232 | H96: €/stuk | I96: 50232 | J96: ACM, tarievenbesluit 2022, o.b.v. afkoopsom huur collectieve afleversets, 500 kW | K96: 0 | L96: excl BTW
E97: Kosten warmtewisselaar / afleversets utiliteit | G97: 50232 | H97: €/stuk | I97: 50232 | J97: ACM, tarievenbesluit 2022, o.b.v. afkoopsom huur collectieve afleversets, 500 kW | K97: =G97-I97 -> 0 | L97: excl BTW
E98: Kosten warmtemeter grondgebonden woning | G98: 0 | H98: €/stuk | I98: 0 | J98: uitgangspunt default: investering inbegrepen bij afleverset | K98: 0 | L98: excl BTW
E99: Kosten warmtemeter gestapelde woning | G99: 0 | H99: €/stuk | I99: 0 | J99: uitgangspunt default: investering inbegrepen bij afleverset | K99: 0 | L99: excl BTW
E100: Kosten warmtemeter collectieve aansluitingen | G100: 0 | H100: €/stuk | I100: 0 | J100: uitgangspunt default: investering inbegrepen bij afleverset | K100: 0 | L100: excl BTW
E101: Kosten warmtemeter utiliteit | H101: €/stuk | J101: uitgangspunt default: investering inbegrepen bij afleverset | K101: =G101-I101 -> 0 | L101: excl BTW
C102: CAPEX Overig
E103: CAPEX omschakeling gestapelde bouw en/of woningen | H103: €/woning | K103: =G103-I103 -> 0 | L103: excl BTW
E104: Voorbereidingskosten voor opslag, indien aanwezig | H104: € | K104: =G104-I104 -> 0 | L104: excl BTW
E105: Kosten opslag, indien aanwezig | H105: € | K105: =G105-I105 -> 0 | L105: excl BTW
E106: Kosten aanleg opslag, indien aanwezig | H106: € | K106: =G106-I106 -> 0 | L106: excl BTW
B108: Kosteninvoer OPEX | G108: Waarde | H108: Eenheid | I108: Default | J108: Bron | K108: Afwijking default | L108: Opmerkingen
C109: OPEX hoofddistributietracé
E110: Onderhoudskosten buizen hoofddistributietracé | G110: 0.01 | H110: % van capex | I110: 0.01 | J110: Functioneel ontwerp Vesta 3.0, p.65 | K110: =G110-I110 -> 0 | L110: excl BTW
E111: Onderhoudskosten installaties hoofddistributietracé | G111: 0.01 | H111: % van capex | I111: 0.01 | J111: Idem | K111: =G111-I111 -> 0 | L111: excl BTW
E112: Onderhoudskosten onderstations hoofddistributietracé | G112: 0.03 | H112: % van capex | I112: 0.03 | J112: Idem | K112: =G112-I112 -> 0 | L112: excl BTW
E113: Administratieve kosten | H113: €/jaar | K113: =G113-I113 -> 0 | L113: excl BTW
C114: OPEX Primaire Leidingnetten
E115: Onderhoudskosten buizen primaire leidingnetten | G115: 0.01 | H115: % van capex | I115: 0.01 | J115: Functioneel ontwerp Vesta 3.0, p.65 | K115: =G115-I115 -> 0 | L115: excl BTW
E116: Onderhoudskosten installaties primaire leidingnetten | G116: 0.01 | H116: % van capex | I116: 0.01 | J116: Idem | K116: =G116-I116 -> 0 | L116: excl BTW
E117: Onderhoudskosten onderstations primaire leidingnetten | G117: 0.03 | H117: % van capex | I117: 0.03 | J117: Idem | K117: =G117-I117 -> 0 | L117: excl BTW
E118: Administratieve kosten | H118: €/jaar | K118: =G118-I118 -> 0 | L118: excl BTW
C119: OPEX Secundaire Leidingnetten
E120: Onderhoudskosten buizen secundaire leidingnetten | G120: 0.01 | H120: % van capex | I120: 0.01 | J120: Functioneel ontwerp Vesta 3.0, p.65 | K120: =G120-I120 -> 0 | L120: excl BTW
E121: Onderhoudskosten installaties secundaire leidingnetten | G121: 0.01 | H121: % van capex | I121: 0.01 | J121: Idem | K121: =G121-I121 -> 0 | L121: excl BTW
E122: Onderhoudskosten onderstations secundaire leidingnetten | G122: 0.03 | H122: % van capex | I122: 0.03 | J122: Idem | K122: =G122-I122 -> 0 | L122: excl BTW
E123: Administratieve kosten | H123: €/jaar | K123: =G123-I123 -> 0 | L123: excl BTW
C124: OPEX bij de aansluiting
E125: Onderhoudskosten aansluitingen grondgebonden woning | G125: 0.025 | H125: % van capex | I125: 0.025 | J125: Functioneel ontwerp Vesta 3.0, p.65 | K125: =G125-I125 -> 0 | L125: excl BTW
E126: Onderhoudskosten aansluitingen gestapelde woning | G126: 0.025 | H126: % van capex | I126: 0.025 | J126: Idem | K126: 0 | L126: excl BTW
E127: Onderhoudskosten aansluitingen collectief | G127: 0.025 | H127: % van capex | I127: 0.025 | J127: Idem | K127: 0 | L127: excl BTW
E128: Onderhoudskosten aansluitingen utiliteit | G128: 0.025 | H128: % van capex | I128: 0.025 | J128: Idem | K128: =G128-I128 -> 0 | L128: excl BTW
E129: Onderhoudskosten Afleversets | G129: 0.026 | H129: % van capex | I129: 0.026 | J129: ACM berekening tarief afleversets | K129: 0 | L129: excl BTW
E130: Onderhoudskosten Meetapparatuur | G130: 0.025 | H130: % van capex | I130: 0.025 | J130: Functioneel ontwerp Vesta 3.0, p.65 | K130: 0 | L130: excl BTW
E131: Administratieve lasten (meterstanden, boekhouding, etc.) | H131: €/jaar/aansluiting | K131: 0 | L131: excl BTW
E132: Overige kosten in de woning | H132: €/jaar | K132: 0 | L132: excl BTW
C133: OPEX Overig
E134: OPEX overig | H134: €/jaar | K134: =G134-I134 -> 0 | L134: excl BTW
B136: Bijdrage eerder gemaakte (systeem)investeringen | G136: Waarde | H136: Eenheid | I136: Default | J136: Bron | K136: Afwijking default | L136: Opmerkingen | S136: =Uitgangspunten!$S$161 -> 2022 | T136: =S136 + 1 -> 2023 | U136: 2024 | V136: 2025 | W136: 2026 | X136: 2027 | Y136: 2028 | Z136: 2029 | AA136: 2030 | AB136: 2031 | AC136: 2032 | AD136: 2033 | AE136: 2034 | AF136: 2035 | AG136: 2036 | AH136: 2037 | AI136: 2038 | AJ136: 2039 | AK136: 2040 | AL136: 2041 | AM136: 2042 | AN136: 2043 | AO136: 2044 | AP136: 2045 | AQ136: 2046 | AR136: 2047 | AS136: 2048 | AT136: 2049 | AU136: 2050 | AV136: 2051 | AW136: 2052 | AX136: 2053 | AY136: 2054 | AZ136: =AY136 + 1 -> 2055 | BA136: 2056 | BB136: 2057 | BC136: 2058 | BD136: 2059 | BE136: 2060 | BF136: 2061 | BG136: 2062 | BH136: 2063 | BI136: 2064 | BJ136: 2065 | BK136: 2066 | BL136: 2067 | BM136: 2068 | BN136: 2069 | BO136: 2070 | BP136: 2071 | BQ136: 2072 | BR136: 2073 | BS136: 2074 | BT136: 2075 | BU136: 2076 | BV136: 2077 | BW136: 2078 | BX136: 2079 | BY136: 2080 | BZ136: 2081
C137: Bijdrage bestaande netten of eerder gemaakte investering
E138: Optie bijdrage | G138: Geen | I138: Geen | S138: =($G$138='Aantallen & Fasering'!$CI$1)*S141+($G$138='Aantallen & Fasering'!$CI$2)*S145 -> 0 | T138: =($G$138='Aantallen & Fasering'!$CI$1)*T141+($G$138='Aantallen & Fasering'!$CI$2)*T145 -> 0 | U138: =($G$138='Aantallen & Fasering'!$CI$1)*U141+($G$138='Aantallen & Fasering'!$CI$2)*U145 -> 0 | V138: =($G$138='Aantallen & Fasering'!$CI$1)*V141+($G$138='Aantallen & Fasering'!$CI$2)*V145 -> 0 | W138: =($G$138='Aantallen & Fasering'!$CI$1)*W141+($G$138='Aantallen & Fasering'!$CI$2)*W145 -> 0 | X138: =($G$138='Aantallen & Fasering'!$CI$1)*X141+($G$138='Aantallen & Fasering'!$CI$2)*X145 -> 0 | Y138: =($G$138='Aantallen & Fasering'!$CI$1)*Y141+($G$138='Aantallen & Fasering'!$CI$2)*Y145 -> 0 | Z138: =($G$138='Aantallen & Fasering'!$CI$1)*Z141+($G$138='Aantallen & Fasering'!$CI$2)*Z145 -> 0 | AA138: =($G$138='Aantallen & Fasering'!$CI$1)*AA141+($G$138='Aantallen & Fasering'!$CI$2)*AA145 -> 0 | AB138: =($G$138='Aantallen & Fasering'!$CI$1)*AB141+($G$138='Aantallen & Fasering'!$CI$2)*AB145 -> 0 | AC138: =($G$138='Aantallen & Fasering'!$CI$1)*AC141+($G$138='Aantallen & Fasering'!$CI$2)*AC145 -> 0 | AD138: =($G$138='Aantallen & Fasering'!$CI$1)*AD141+($G$138='Aantallen & Fasering'!$CI$2)*AD145 -> 0 | AE138: =($G$138='Aantallen & Fasering'!$CI$1)*AE141+($G$138='Aantallen & Fasering'!$CI$2)*AE145 -> 0 | AF138: =($G$138='Aantallen & Fasering'!$CI$1)*AF141+($G$138='Aantallen & Fasering'!$CI$2)*AF145 -> 0 | AG138: =($G$138='Aantallen & Fasering'!$CI$1)*AG141+($G$138='Aantallen & Fasering'!$CI$2)*AG145 -> 0 | AH138: =($G$138='Aantallen & Fasering'!$CI$1)*AH141+($G$138='Aantallen & Fasering'!$CI$2)*AH145 -> 0 | AI138: =($G$138='Aantallen & Fasering'!$CI$1)*AI141+($G$138='Aantallen & Fasering'!$CI$2)*AI145 -> 0 | AJ138: =($G$138='Aantallen & Fasering'!$CI$1)*AJ141+($G$138='Aantallen & Fasering'!$CI$2)*AJ145 -> 0 | AK138: =($G$138='Aantallen & Fasering'!$CI$1)*AK141+($G$138='Aantallen & Fasering'!$CI$2)*AK145 -> 0 | AL138: =($G$138='Aantallen & Fasering'!$CI$1)*AL141+($G$138='Aantallen & Fasering'!$CI$2)*AL145 -> 0 | AM138: =($G$138='Aantallen & Fasering'!$CI$1)*AM141+($G$138='Aantallen & Fasering'!$CI$2)*AM145 -> 0 | AN138: =($G$138='Aantallen & Fasering'!$CI$1)*AN141+($G$138='Aantallen & Fasering'!$CI$2)*AN145 -> 0 | AO138: =($G$138='Aantallen & Fasering'!$CI$1)*AO141+($G$138='Aantallen & Fasering'!$CI$2)*AO145 -> 0 | AP138: =($G$138='Aantallen & Fasering'!$CI$1)*AP141+($G$138='Aantallen & Fasering'!$CI$2)*AP145 -> 0 | AQ138: =($G$138='Aantallen & Fasering'!$CI$1)*AQ141+($G$138='Aantallen & Fasering'!$CI$2)*AQ145 -> 0 | AR138: =($G$138='Aantallen & Fasering'!$CI$1)*AR141+($G$138='Aantallen & Fasering'!$CI$2)*AR145 -> 0 | AS138: =($G$138='Aantallen & Fasering'!$CI$1)*AS141+($G$138='Aantallen & Fasering'!$CI$2)*AS145 -> 0 | AT138: =($G$138='Aantallen & Fasering'!$CI$1)*AT141+($G$138='Aantallen & Fasering'!$CI$2)*AT145 -> 0 | AU138: =($G$138='Aantallen & Fasering'!$CI$1)*AU141+($G$138='Aantallen & Fasering'!$CI$2)*AU145 -> 0 | AV138: =($G$138='Aantallen & Fasering'!$CI$1)*AV141+($G$138='Aantallen & Fasering'!$CI$2)*AV145 -> 0 | AW138: =($G$138='Aantallen & Fasering'!$CI$1)*AW141+($G$138='Aantallen & Fasering'!$CI$2)*AW145 -> 0 | AX138: =($G$138='Aantallen & Fasering'!$CI$1)*AX141+($G$138='Aantallen & Fasering'!$CI$2)*AX145 -> 0 | AY138: =($G$138='Aantallen & Fasering'!$CI$1)*AY141+($G$138='Aantallen & Fasering'!$CI$2)*AY145 -> 0 | AZ138: =($G$138='Aantallen & Fasering'!$CI$1)*AZ141+($G$138='Aantallen & Fasering'!$CI$2)*AZ145 -> 0 | BA138: =($G$138='Aantallen & Fasering'!$CI$1)*BA141+($G$138='Aantallen & Fasering'!$CI$2)*BA145 -> 0 | BB138: =($G$138='Aantallen & Fasering'!$CI$1)*BB141+($G$138='Aantallen & Fasering'!$CI$2)*BB145 -> 0 | BC138: =($G$138='Aantallen & Fasering'!$CI$1)*BC141+($G$138='Aantallen & Fasering'!$CI$2)*BC145 -> 0 | BD138: =($G$138='Aantallen & Fasering'!$CI$1)*BD141+($G$138='Aantallen & Fasering'!$CI$2)*BD145 -> 0 | BE138: =($G$138='Aantallen & Fasering'!$CI$1)*BE141+($G$138='Aantallen & Fasering'!$CI$2)*BE145 -> 0 | BF138: =($G$138='Aantallen & Fasering'!$CI$1)*BF141+($G$138='Aantallen & Fasering'!$CI$2)*BF145 -> 0 | BG138: =($G$138='Aantallen & Fasering'!$CI$1)*BG141+($G$138='Aantallen & Fasering'!$CI$2)*BG145 -> 0 | BH138: =($G$138='Aantallen & Fasering'!$CI$1)*BH141+($G$138='Aantallen & Fasering'!$CI$2)*BH145 -> 0 | BI138: =($G$138='Aantallen & Fasering'!$CI$1)*BI141+($G$138='Aantallen & Fasering'!$CI$2)*BI145 -> 0 | BJ138: =($G$138='Aantallen & Fasering'!$CI$1)*BJ141+($G$138='Aantallen & Fasering'!$CI$2)*BJ145 -> 0 | BK138: =($G$138='Aantallen & Fasering'!$CI$1)*BK141+($G$138='Aantallen & Fasering'!$CI$2)*BK145 -> 0 | BL138: =($G$138='Aantallen & Fasering'!$CI$1)*BL141+($G$138='Aantallen & Fasering'!$CI$2)*BL145 -> 0 | BM138: =($G$138='Aantallen & Fasering'!$CI$1)*BM141+($G$138='Aantallen & Fasering'!$CI$2)*BM145 -> 0 | BN138: =($G$138='Aantallen & Fasering'!$CI$1)*BN141+($G$138='Aantallen & Fasering'!$CI$2)*BN145 -> 0 | BO138: =($G$138='Aantallen & Fasering'!$CI$1)*BO141+($G$138='Aantallen & Fasering'!$CI$2)*BO145 -> 0 | BP138: =($G$138='Aantallen & Fasering'!$CI$1)*BP141+($G$138='Aantallen & Fasering'!$CI$2)*BP145 -> 0 | BQ138: =($G$138='Aantallen & Fasering'!$CI$1)*BQ141+($G$138='Aantallen & Fasering'!$CI$2)*BQ145 -> 0 | BR138: =($G$138='Aantallen & Fasering'!$CI$1)*BR141+($G$138='Aantallen & Fasering'!$CI$2)*BR145 -> 0 | BS138: =($G$138='Aantallen & Fasering'!$CI$1)*BS141+($G$138='Aantallen & Fasering'!$CI$2)*BS145 -> 0 | BT138: =($G$138='Aantallen & Fasering'!$CI$1)*BT141+($G$138='Aantallen & Fasering'!$CI$2)*BT145 -> 0 | BU138: =($G$138='Aantallen & Fasering'!$CI$1)*BU141+($G$138='Aantallen & Fasering'!$CI$2)*BU145 -> 0 | BV138: =($G$138='Aantallen & Fasering'!$CI$1)*BV141+($G$138='Aantallen & Fasering'!$CI$2)*BV145 -> 0 | BW138: =($G$138='Aantallen & Fasering'!$CI$1)*BW141+($G$138='Aantallen & Fasering'!$CI$2)*BW145 -> 0 | BX138: =($G$138='Aantallen & Fasering'!$CI$1)*BX141+($G$138='Aantallen & Fasering'!$CI$2)*BX145 -> 0 | BY138: =($G$138='Aantallen & Fasering'!$CI$1)*BY141+($G$138='Aantallen & Fasering'!$CI$2)*BY145 -> 0 | BZ138: =($G$138='Aantallen & Fasering'!$CI$1)*BZ141+($G$138='Aantallen & Fasering'!$CI$2)*BZ145 -> 0
C140: Vast bedrag
E141: Bijdrage (vast) | H141: [€] | K141: =G141-I141 -> 0 | S141: =IFERROR((S136>=$G$142)*(S136<$G$142+$G$143)*$G$141/$G$143,0) -> 0 | T141: 0 | U141: 0 | V141: 0 | W141: 0 | X141: 0 | Y141: 0 | Z141: 0 | AA141: 0 | AB141: 0 | AC141: 0 | AD141: 0 | AE141: 0 | AF141: 0 | AG141: 0 | AH141: 0 | AI141: 0 | AJ141: 0 | AK141: 0 | AL141: 0 | AM141: 0 | AN141: 0 | AO141: 0 | AP141: 0 | AQ141: 0 | AR141: 0 | AS141: 0 | AT141: 0 | AU141: 0 | AV141: 0 | AW141: 0 | AX141: 0 | AY141: =IFERROR((AY136>=$G$142)*(AY136<$G$142+$G$143)*$G$141/$G$143,0) -> 0 | AZ141: 0 | BA141: 0 | BB141: 0 | BC141: 0 | BD141: 0 | BE141: 0 | BF141: 0 | BG141: 0 | BH141: 0 | BI141: 0 | BJ141: 0 | BK141: 0 | BL141: 0 | BM141: 0 | BN141: 0 | BO141: 0 | BP141: 0 | BQ141: 0 | BR141: 0 | BS141: 0 | BT141: 0 | BU141: 0 | BV141: 0 | BW141: 0 | BX141: 0 | BY141: 0 | BZ141: 0
E142: Startjaar bijdrage | H142: jaar | J142: Startjaar | K142: =G142-I142 -> 0
E143: Termijnen bijdrage | H143: jaar | K143: =G143-I143 -> 0
C144: Bedrag per kW aansluitvermogen
E145: Bijdrage (per kW) | H145: [€/kW] | K145: =G145-I145 -> 0 | S145: =('Aantallen & Fasering'!AB54*Uitgangspunten!$G$157 + 'Aantallen & Fasering'!AB58*Uitgangspunten!$G$158 + 'Aantallen & Fasering'!AB99 + 'Aantallen & Fasering'!AB115) * $G$145 -> 0 | T145: =('Aantallen & Fasering'!AC54*Uitgangspunten!$G$157 + 'Aantallen & Fasering'!AC58*Uitgangspunten!$G$158 + 'Aantallen & Fasering'!AC99 + 'Aantallen & Fasering'!AC115) * $G$145 -> 0 | U145: =('Aantallen & Fasering'!AD54*Uitgangspunten!$G$157 + 'Aantallen & Fasering'!AD58*Uitgangspunten!$G$158 + 'Aantallen & Fasering'!AD99 + 'Aantallen & Fasering'!AD115) * $G$145 -> 0 | V145: =('Aantallen & Fasering'!AE54*Uitgangspunten!$G$157 + 'Aantallen & Fasering'!AE58*Uitgangspunten!$G$158 + 'Aantallen & Fasering'!AE99 + 'Aantallen & Fasering'!AE115) * $G$145 -> 0 | W145: =('Aantallen & Fasering'!AF54*Uitgangspunten!$G$157 + 'Aantallen & Fasering'!AF58*Uitgangspunten!$G$158 + 'Aantallen & Fasering'!AF99 + 'Aantallen & Fasering'!AF115) * $G$145 -> 0 | X145: =('Aantallen & Fasering'!AG54*Uitgangspunten!$G$157 + 'Aantallen & Fasering'!AG58*Uitgangspunten!$G$158 + 'Aantallen & Fasering'!AG99 + 'Aantallen & Fasering'!AG115) * $G$145 -> 0 | Y145: =('Aantallen & Fasering'!AH54*Uitgangspunten!$G$157 + 'Aantallen & Fasering'!AH58*Uitgangspunten!$G$158 + 'Aantallen & Fasering'!AH99 + 'Aantallen & Fasering'!AH115) * $G$145 -> 0 | Z145: =('Aantallen & Fasering'!AI54*Uitgangspunten!$G$157 + 'Aantallen & Fasering'!AI58*Uitgangspunten!$G$158 + 'Aantallen & Fasering'!AI99 + 'Aantallen & Fasering'!AI115) * $G$145 -> 0 | AA145: =('Aantallen & Fasering'!AJ54*Uitgangspunten!$G$157 + 'Aantallen & Fasering'!AJ58*Uitgangspunten!$G$158 + 'Aantallen & Fasering'!AJ99 + 'Aantallen & Fasering'!AJ115) * $G$145 -> 0 | AB145: =('Aantallen & Fasering'!AK54*Uitgangspunten!$G$157 + 'Aantallen & Fasering'!AK58*Uitgangspunten!$G$158 + 'Aantallen & Fasering'!AK99 + 'Aantallen & Fasering'!AK115) * $G$145 -> 0 | AC145: =('Aantallen & Fasering'!AL54*Uitgangspunten!$G$157 + 'Aantallen & Fasering'!AL58*Uitgangspunten!$G$158 + 'Aantallen & Fasering'!AL99 + 'Aantallen & Fasering'!AL115) * $G$145 -> 0 | AD145: =('Aantallen & Fasering'!AM54*Uitgangspunten!$G$157 + 'Aantallen & Fasering'!AM58*Uitgangspunten!$G$158 + 'Aantallen & Fasering'!AM99 + 'Aantallen & Fasering'!AM115) * $G$145 -> 0 | AE145: =('Aantallen & Fasering'!AN54*Uitgangspunten!$G$157 + 'Aantallen & Fasering'!AN58*Uitgangspunten!$G$158 + 'Aantallen & Fasering'!AN99 + 'Aantallen & Fasering'!AN115) * $G$145 -> 0 | AF145: =('Aantallen & Fasering'!AO54*Uitgangspunten!$G$157 + 'Aantallen & Fasering'!AO58*Uitgangspunten!$G$158 + 'Aantallen & Fasering'!AO99 + 'Aantallen & Fasering'!AO115) * $G$145 -> 0 | AG145: =('Aantallen & Fasering'!AP54*Uitgangspunten!$G$157 + 'Aantallen & Fasering'!AP58*Uitgangspunten!$G$158 + 'Aantallen & Fasering'!AP99 + 'Aantallen & Fasering'!AP115) * $G$145 -> 0 | AH145: =('Aantallen & Fasering'!AQ54*Uitgangspunten!$G$157 + 'Aantallen & Fasering'!AQ58*Uitgangspunten!$G$158 + 'Aantallen & Fasering'!AQ99 + 'Aantallen & Fasering'!AQ115) * $G$145 -> 0 | AI145: =('Aantallen & Fasering'!AR54*Uitgangspunten!$G$157 + 'Aantallen & Fasering'!AR58*Uitgangspunten!$G$158 + 'Aantallen & Fasering'!AR99 + 'Aantallen & Fasering'!AR115) * $G$145 -> 0 | AJ145: =('Aantallen & Fasering'!AS54*Uitgangspunten!$G$157 + 'Aantallen & Fasering'!AS58*Uitgangspunten!$G$158 + 'Aantallen & Fasering'!AS99 + 'Aantallen & Fasering'!AS115) * $G$145 -> 0 | AK145: =('Aantallen & Fasering'!AT54*Uitgangspunten!$G$157 + 'Aantallen & Fasering'!AT58*Uitgangspunten!$G$158 + 'Aantallen & Fasering'!AT99 + 'Aantallen & Fasering'!AT115) * $G$145 -> 0 | AL145: =('Aantallen & Fasering'!AU54*Uitgangspunten!$G$157 + 'Aantallen & Fasering'!AU58*Uitgangspunten!$G$158 + 'Aantallen & Fasering'!AU99 + 'Aantallen & Fasering'!AU115) * $G$145 -> 0 | AM145: =('Aantallen & Fasering'!AV54*Uitgangspunten!$G$157 + 'Aantallen & Fasering'!AV58*Uitgangspunten!$G$158 + 'Aantallen & Fasering'!AV99 + 'Aantallen & Fasering'!AV115) * $G$145 -> 0 | AN145: =('Aantallen & Fasering'!AW54*Uitgangspunten!$G$157 + 'Aantallen & Fasering'!AW58*Uitgangspunten!$G$158 + 'Aantallen & Fasering'!AW99 + 'Aantallen & Fasering'!AW115) * $G$145 -> 0 | AO145: =('Aantallen & Fasering'!AX54*Uitgangspunten!$G$157 + 'Aantallen & Fasering'!AX58*Uitgangspunten!$G$158 + 'Aantallen & Fasering'!AX99 + 'Aantallen & Fasering'!AX115) * $G$145 -> 0 | AP145: =('Aantallen & Fasering'!AY54*Uitgangspunten!$G$157 + 'Aantallen & Fasering'!AY58*Uitgangspunten!$G$158 + 'Aantallen & Fasering'!AY99 + 'Aantallen & Fasering'!AY115) * $G$145 -> 0 | AQ145: =('Aantallen & Fasering'!AZ54*Uitgangspunten!$G$157 + 'Aantallen & Fasering'!AZ58*Uitgangspunten!$G$158 + 'Aantallen & Fasering'!AZ99 + 'Aantallen & Fasering'!AZ115) * $G$145 -> 0 | AR145: =('Aantallen & Fasering'!BA54*Uitgangspunten!$G$157 + 'Aantallen & Fasering'!BA58*Uitgangspunten!$G$158 + 'Aantallen & Fasering'!BA99 + 'Aantallen & Fasering'!BA115) * $G$145 -> 0 | AS145: =('Aantallen & Fasering'!BB54*Uitgangspunten!$G$157 + 'Aantallen & Fasering'!BB58*Uitgangspunten!$G$158 + 'Aantallen & Fasering'!BB99 + 'Aantallen & Fasering'!BB115) * $G$145 -> 0 | AT145: =('Aantallen & Fasering'!BC54*Uitgangspunten!$G$157 + 'Aantallen & Fasering'!BC58*Uitgangspunten!$G$158 + 'Aantallen & Fasering'!BC99 + 'Aantallen & Fasering'!BC115) * $G$145 -> 0 | AU145: =('Aantallen & Fasering'!BD54*Uitgangspunten!$G$157 + 'Aantallen & Fasering'!BD58*Uitgangspunten!$G$158 + 'Aantallen & Fasering'!BD99 + 'Aantallen & Fasering'!BD115) * $G$145 -> 0 | AV145: =('Aantallen & Fasering'!BE54*Uitgangspunten!$G$157 + 'Aantallen & Fasering'!BE58*Uitgangspunten!$G$158 + 'Aantallen & Fasering'!BE99 + 'Aantallen & Fasering'!BE115) * $G$145 -> 0 | AW145: =('Aantallen & Fasering'!BF54*Uitgangspunten!$G$157 + 'Aantallen & Fasering'!BF58*Uitgangspunten!$G$158 + 'Aantallen & Fasering'!BF99 + 'Aantallen & Fasering'!BF115) * $G$145 -> 0 | AX145: =('Aantallen & Fasering'!BG54*Uitgangspunten!$G$157 + 'Aantallen & Fasering'!BG58*Uitgangspunten!$G$158 + 'Aantallen & Fasering'!BG99 + 'Aantallen & Fasering'!BG115) * $G$145 -> 0 | AY145: =('Aantallen & Fasering'!BH54*Uitgangspunten!$G$157 + 'Aantallen & Fasering'!BH58*Uitgangspunten!$G$158 + 'Aantallen & Fasering'!BH99 + 'Aantallen & Fasering'!BH115) * $G$145 -> 0 | AZ145: =('Aantallen & Fasering'!BI54*Uitgangspunten!$G$157 + 'Aantallen & Fasering'!BI58*Uitgangspunten!$G$158 + 'Aantallen & Fasering'!BI99 + 'Aantallen & Fasering'!BI115) * $G$145 -> 0 | BA145: =('Aantallen & Fasering'!BJ54*Uitgangspunten!$G$157 + 'Aantallen & Fasering'!BJ58*Uitgangspunten!$G$158 + 'Aantallen & Fasering'!BJ99 + 'Aantallen & Fasering'!BJ115) * $G$145 -> 0 | BB145: =('Aantallen & Fasering'!BK54*Uitgangspunten!$G$157 + 'Aantallen & Fasering'!BK58*Uitgangspunten!$G$158 + 'Aantallen & Fasering'!BK99 + 'Aantallen & Fasering'!BK115) * $G$145 -> 0 | BC145: =('Aantallen & Fasering'!BL54*Uitgangspunten!$G$157 + 'Aantallen & Fasering'!BL58*Uitgangspunten!$G$158 + 'Aantallen & Fasering'!BL99 + 'Aantallen & Fasering'!BL115) * $G$145 -> 0 | BD145: =('Aantallen & Fasering'!BM54*Uitgangspunten!$G$157 + 'Aantallen & Fasering'!BM58*Uitgangspunten!$G$158 + 'Aantallen & Fasering'!BM99 + 'Aantallen & Fasering'!BM115) * $G$145 -> 0 | BE145: =('Aantallen & Fasering'!BN54*Uitgangspunten!$G$157 + 'Aantallen & Fasering'!BN58*Uitgangspunten!$G$158 + 'Aantallen & Fasering'!BN99 + 'Aantallen & Fasering'!BN115) * $G$145 -> 0 | BF145: =('Aantallen & Fasering'!BO54*Uitgangspunten!$G$157 + 'Aantallen & Fasering'!BO58*Uitgangspunten!$G$158 + 'Aantallen & Fasering'!BO99 + 'Aantallen & Fasering'!BO115) * $G$145 -> 0 | BG145: =('Aantallen & Fasering'!BP54*Uitgangspunten!$G$157 + 'Aantallen & Fasering'!BP58*Uitgangspunten!$G$158 + 'Aantallen & Fasering'!BP99 + 'Aantallen & Fasering'!BP115) * $G$145 -> 0 | BH145: =('Aantallen & Fasering'!BQ54*Uitgangspunten!$G$157 + 'Aantallen & Fasering'!BQ58*Uitgangspunten!$G$158 + 'Aantallen & Fasering'!BQ99 + 'Aantallen & Fasering'!BQ115) * $G$145 -> 0 | BI145: =('Aantallen & Fasering'!BR54*Uitgangspunten!$G$157 + 'Aantallen & Fasering'!BR58*Uitgangspunten!$G$158 + 'Aantallen & Fasering'!BR99 + 'Aantallen & Fasering'!BR115) * $G$145 -> 0 | BJ145: =('Aantallen & Fasering'!BS54*Uitgangspunten!$G$157 + 'Aantallen & Fasering'!BS58*Uitgangspunten!$G$158 + 'Aantallen & Fasering'!BS99 + 'Aantallen & Fasering'!BS115) * $G$145 -> 0 | BK145: =('Aantallen & Fasering'!BT54*Uitgangspunten!$G$157 + 'Aantallen & Fasering'!BT58*Uitgangspunten!$G$158 + 'Aantallen & Fasering'!BT99 + 'Aantallen & Fasering'!BT115) * $G$145 -> 0 | BL145: =('Aantallen & Fasering'!BU54*Uitgangspunten!$G$157 + 'Aantallen & Fasering'!BU58*Uitgangspunten!$G$158 + 'Aantallen & Fasering'!BU99 + 'Aantallen & Fasering'!BU115) * $G$145 -> 0 | BM145: =('Aantallen & Fasering'!BV54*Uitgangspunten!$G$157 + 'Aantallen & Fasering'!BV58*Uitgangspunten!$G$158 + 'Aantallen & Fasering'!BV99 + 'Aantallen & Fasering'!BV115) * $G$145 -> 0 | BN145: =('Aantallen & Fasering'!BW54*Uitgangspunten!$G$157 + 'Aantallen & Fasering'!BW58*Uitgangspunten!$G$158 + 'Aantallen & Fasering'!BW99 + 'Aantallen & Fasering'!BW115) * $G$145 -> 0 | BO145: =('Aantallen & Fasering'!BX54*Uitgangspunten!$G$157 + 'Aantallen & Fasering'!BX58*Uitgangspunten!$G$158 + 'Aantallen & Fasering'!BX99 + 'Aantallen & Fasering'!BX115) * $G$145 -> 0 | BP145: =('Aantallen & Fasering'!BY54*Uitgangspunten!$G$157 + 'Aantallen & Fasering'!BY58*Uitgangspunten!$G$158 + 'Aantallen & Fasering'!BY99 + 'Aantallen & Fasering'!BY115) * $G$145 -> 0 | BQ145: =('Aantallen & Fasering'!BZ54*Uitgangspunten!$G$157 + 'Aantallen & Fasering'!BZ58*Uitgangspunten!$G$158 + 'Aantallen & Fasering'!BZ99 + 'Aantallen & Fasering'!BZ115) * $G$145 -> 0 | BR145: =('Aantallen & Fasering'!CA54*Uitgangspunten!$G$157 + 'Aantallen & Fasering'!CA58*Uitgangspunten!$G$158 + 'Aantallen & Fasering'!CA99 + 'Aantallen & Fasering'!CA115) * $G$145 -> 0 | BS145: =('Aantallen & Fasering'!CB54*Uitgangspunten!$G$157 + 'Aantallen & Fasering'!CB58*Uitgangspunten!$G$158 + 'Aantallen & Fasering'!CB99 + 'Aantallen & Fasering'!CB115) * $G$145 -> 0 | BT145: =('Aantallen & Fasering'!CC54*Uitgangspunten!$G$157 + 'Aantallen & Fasering'!CC58*Uitgangspunten!$G$158 + 'Aantallen & Fasering'!CC99 + 'Aantallen & Fasering'!CC115) * $G$145 -> 0 | BU145: =('Aantallen & Fasering'!CD54*Uitgangspunten!$G$157 + 'Aantallen & Fasering'!CD58*Uitgangspunten!$G$158 + 'Aantallen & Fasering'!CD99 + 'Aantallen & Fasering'!CD115) * $G$145 -> 0 | BV145: =('Aantallen & Fasering'!CE54*Uitgangspunten!$G$157 + 'Aantallen & Fasering'!CE58*Uitgangspunten!$G$158 + 'Aantallen & Fasering'!CE99 + 'Aantallen & Fasering'!CE115) * $G$145 -> 0 | BW145: =('Aantallen & Fasering'!CF54*Uitgangspunten!$G$157 + 'Aantallen & Fasering'!CF58*Uitgangspunten!$G$158 + 'Aantallen & Fasering'!CF99 + 'Aantallen & Fasering'!CF115) * $G$145 -> 0 | BX145: =('Aantallen & Fasering'!CG54*Uitgangspunten!$G$157 + 'Aantallen & Fasering'!CG58*Uitgangspunten!$G$158 + 'Aantallen & Fasering'!CG99 + 'Aantallen & Fasering'!CG115) * $G$145 -> 0 | BY145: =('Aantallen & Fasering'!CH54*Uitgangspunten!$G$157 + 'Aantallen & Fasering'!CH58*Uitgangspunten!$G$158 + 'Aantallen & Fasering'!CH99 + 'Aantallen & Fasering'!CH115) * $G$145 -> 0 | BZ145: =('Aantallen & Fasering'!CI54*Uitgangspunten!$G$157 + 'Aantallen & Fasering'!CI58*Uitgangspunten!$G$158 + 'Aantallen & Fasering'!CI99 + 'Aantallen & Fasering'!CI115) * $G$145 -> 0
B149: Aansluitvermogen en inkoop | G149: Waarde | H149: Eenheid | I149: Default | J149: Bron | K149: Afwijking default | L149: Opmerkingen | S149: =S6 -> 2022 | T149: 2023 | U149: 2024 | V149: 2025 | W149: 2026 | X149: 2027 | Y149: 2028 | Z149: 2029 | AA149: 2030 | AB149: 2031 | AC149: 2032 | AD149: 2033 | AE149: 2034 | AF149: 2035 | AG149: 2036 | AH149: 2037 | AI149: 2038 | AJ149: 2039 | AK149: 2040 | AL149: 2041 | AM149: 2042 | AN149: 2043 | AO149: 2044 | AP149: 2045 | AQ149: 2046 | AR149: 2047 | AS149: 2048 | AT149: 2049 | AU149: 2050 | AV149: 2051 | AW149: 2052 | AX149: 2053 | AY149: =AY6 -> 2054 | AZ149: 2055 | BA149: 2056 | BB149: 2057 | BC149: 2058 | BD149: 2059 | BE149: 2060 | BF149: 2061 | BG149: 2062 | BH149: 2063 | BI149: 2064 | BJ149: 2065 | BK149: 2066 | BL149: 2067 | BM149: 2068 | BN149: 2069 | BO149: 2070 | BP149: 2071 | BQ149: 2072 | BR149: 2073 | BS149: 2074 | BT149: 2075 | BU149: 2076 | BV149: 2077 | BW149: 2078 | BX149: 2079 | BY149: 2080 | BZ149: 2081
C150: Inkoopprijzen
E151: Variabele component warmte inkoop basislast | G151: 5 | H151: €/GJ | J151: Projectspecifiek. Zie handleiding | K151: =G151-I151 -> 5
E152: Variabele component warmte inkoop pieklast | G152: 12 | H152: €/GJ | J152: Projectspecifiek. Zie handleiding | K152: 12
E153: Aandeel pieklast variabele component warmte inkoop | G153: 0.2 | H153: % | I153: 0.2 | J153: Functioneel ontwerp Vesta Mais 5.0 (Tabel A 5) | K153: 0
E155: Variabele component warmte inkoop | G155: =(G153*G152)+(1-G153)*G151 -> 6.4 | H155: €/GJ | J155: Projectspecifiek. Zie handleiding | K155: =G155-I155 -> 6.4 | S155: =$G155 -> 6.4 | T155: =$G155 -> 6.4 | U155: 6.4 | V155: 6.4 | W155: 6.4 | X155: 6.4 | Y155: 6.4 | Z155: 6.4 | AA155: 6.4 | AB155: 6.4 | AC155: 6.4 | AD155: 6.4 | AE155: 6.4 | AF155: 6.4 | AG155: 6.4 | AH155: 6.4 | AI155: 6.4 | AJ155: 6.4 | AK155: 6.4 | AL155: 6.4 | AM155: 6.4 | AN155: 6.4 | AO155: 6.4 | AP155: 6.4 | AQ155: 6.4 | AR155: 6.4 | AS155: 6.4 | AT155: 6.4 | AU155: 6.4 | AV155: 6.4 | AW155: 6.4 | AX155: 6.4 | AY155: 6.4 | AZ155: 6.4 | BA155: 6.4 | BB155: 6.4 | BC155: 6.4 | BD155: 6.4 | BE155: 6.4 | BF155: 6.4 | BG155: 6.4 | BH155: 6.4 | BI155: 6.4 | BJ155: 6.4 | BK155: 6.4 | BL155: 6.4 | BM155: 6.4 | BN155: 6.4 | BO155: 6.4 | BP155: 6.4 | BQ155: 6.4 | BR155: 6.4 | BS155: 6.4 | BT155: 6.4 | BU155: 6.4 | BV155: 6.4 | BW155: 6.4 | BX155: 6.4 | BY155: 6.4 | BZ155: 6.4
E156: Vaste component warmte inkoop | H156: €/jaar | J156: Projectspecifiek. Zie handleiding | K156: =G156-I156 -> 0 | S156: =$G156 -> 0 | T156: 0 | U156: 0 | V156: 0 | W156: 0 | X156: 0 | Y156: 0 | Z156: 0 | AA156: 0 | AB156: 0 | AC156: 0 | AD156: 0 | AE156: 0 | AF156: 0 | AG156: 0 | AH156: 0 | AI156: 0 | AJ156: 0 | AK156: 0 | AL156: 0 | AM156: 0 | AN156: 0 | AO156: 0 | AP156: 0 | AQ156: 0 | AR156: 0 | AS156: 0 | AT156: 0 | AU156: 0 | AV156: 0 | AW156: 0 | AX156: 0 | AY156: 0 | AZ156: 0 | BA156: 0 | BB156: 0 | BC156: 0 | BD156: 0 | BE156: 0 | BF156: 0 | BG156: 0 | BH156: 0 | BI156: 0 | BJ156: 0 | BK156: 0 | BL156: 0 | BM156: 0 | BN156: 0 | BO156: 0 | BP156: 0 | BQ156: 0 | BR156: 0 | BS156: 0 | BT156: 0 | BU156: 0 | BV156: 0 | BW156: 0 | BX156: 0 | BY156: 0 | BZ156: 0
E157: Aansluitvermogen individueel grondgebonden | G157: 4.18 | H157: [kW/woning] | I157: 4.18 | J157: Functioneel ontwerp Vesta Mais 5.0 (Tabel A.7) inclusief gelijktijdigheid
E158: Aansluitvermogen individueel gestapeld | G158: 2.7 | H158: [kW/woning] | I158: 2.7 | J158: Functioneel ontwerp Vesta Mais 5.0 (Tabel A.7) inclusief gelijktijdigheid
B161: Indexatie | G161: Waarde | H161: Eenheid | I161: Checks | S161: =S6 -> 2022 | T161: 2023 | U161: 2024 | V161: 2025 | W161: 2026 | X161: 2027 | Y161: 2028 | Z161: 2029 | AA161: 2030 | AB161: 2031 | AC161: 2032 | AD161: 2033 | AE161: 2034 | AF161: 2035 | AG161: 2036 | AH161: 2037 | AI161: 2038 | AJ161: 2039 | AK161: 2040 | AL161: 2041 | AM161: 2042 | AN161: 2043 | AO161: 2044 | AP161: 2045 | AQ161: 2046 | AR161: 2047 | AS161: 2048 | AT161: 2049 | AU161: 2050 | AV161: 2051 | AW161: 2052 | AX161: 2053 | AY161: =AY6 -> 2054 | AZ161: 2055 | BA161: 2056 | BB161: 2057 | BC161: 2058 | BD161: 2059 | BE161: 2060 | BF161: 2061 | BG161: 2062 | BH161: 2063 | BI161: 2064 | BJ161: 2065 | BK161: 2066 | BL161: 2067 | BM161: 2068 | BN161: 2069 | BO161: 2070 | BP161: 2071 | BQ161: 2072 | BR161: 2073 | BS161: 2074 | BT161: 2075 | BU161: 2076 | BV161: 2077 | BW161: 2078 | BX161: 2079 | BY161: 2080 | BZ161: 2081
S162: 1 | T162: =S162 + 1 -> 2 | U162: 3 | V162: 4 | W162: 5 | X162: 6 | Y162: 7 | Z162: 8 | AA162: 9 | AB162: 10 | AC162: 11 | AD162: 12 | AE162: 13 | AF162: 14 | AG162: 15 | AH162: 16 | AI162: 17 | AJ162: 18 | AK162: 19 | AL162: 20 | AM162: 21 | AN162: 22 | AO162: 23 | AP162: 24 | AQ162: 25 | AR162: 26 | AS162: 27 | AT162: 28 | AU162: 29 | AV162: 30 | AW162: 31 | AX162: 32 | AY162: 33 | AZ162: =AY162 + 1 -> 34 | BA162: 35 | BB162: 36 | BC162: 37 | BD162: 38 | BE162: 39 | BF162: 40 | BG162: 41 | BH162: 42 | BI162: 43 | BJ162: 44 | BK162: 45 | BL162: 46 | BM162: 47 | BN162: 48 | BO162: 49 | BP162: 50 | BQ162: 51 | BR162: 52 | BS162: 53 | BT162: 54 | BU162: 55 | BV162: 56 | BW162: 57 | BX162: 58 | BY162: 59 | BZ162: 60
C163: Indexatie
E164: Indexatie Capex | G164: 0.02 | H164: flag | S164: =( 1 + $G164) ^ (S$162 - 1) -> 1 | T164: =( 1 + $G164) ^ (T$162 - 1) -> 1.02 | U164: 1.0404 | V164: 1.061208 | W164: 1.08243216 | X164: 1.104080803 | Y164: 1.126162419 | Z164: 1.148685668 | AA164: 1.171659381 | AB164: 1.195092569 | AC164: 1.21899442 | AD164: 1.243374308 | AE164: 1.268241795 | AF164: 1.29360663 | AG164: 1.319478763 | AH164: 1.345868338 | AI164: 1.372785705 | AJ164: 1.400241419 | AK164: 1.428246248 | AL164: 1.456811173 | AM164: 1.485947396 | AN164: 1.515666344 | AO164: 1.545979671 | AP164: 1.576899264 | AQ164: 1.608437249 | AR164: 1.640605994 | AS164: 1.673418114 | AT164: 1.706886477 | AU164: 1.741024206 | AV164: 1.77584469 | AW164: 1.811361584 | AX164: 1.847588816 | AY164: 1.884540592 | AZ164: 1.922231404 | BA164: 1.960676032 | BB164: 1.999889553 | BC164: =( 1 + $G164) ^ (BC$162 - 1) -> 2.039887344 | BD164: 2.080685091 | BE164: 2.122298792 | BF164: 2.164744768 | BG164: 2.208039664 | BH164: 2.252200457 | BI164: 2.297244466 | BJ164: 2.343189355 | BK164: 2.390053142 | BL164: 2.437854205 | BM164: 2.486611289 | BN164: 2.536343515 | BO164: 2.587070385 | BP164: 2.638811793 | BQ164: 2.691588029 | BR164: 2.74541979 | BS164: 2.800328185 | BT164: 2.856334749 | BU164: 2.913461444 | BV164: 2.971730673 | BW164: 3.031165286 | BX164: 3.091788592 | BY164: 3.153624364 | BZ164: 3.216696851
E165: Indexatie Opex | G165: 0.02 | H165: flag | S165: =( 1 + $G165) ^ (S$162 - 1) -> 1 | T165: 1.02 | U165: 1.0404 | V165: 1.061208 | W165: 1.08243216 | X165: 1.104080803 | Y165: 1.126162419 | Z165: 1.148685668 | AA165: 1.171659381 | AB165: 1.195092569 | AC165: 1.21899442 | AD165: 1.243374308 | AE165: 1.268241795 | AF165: 1.29360663 | AG165: 1.319478763 | AH165: 1.345868338 | AI165: 1.372785705 | AJ165: 1.400241419 | AK165: 1.428246248 | AL165: 1.456811173 | AM165: 1.485947396 | AN165: 1.515666344 | AO165: 1.545979671 | AP165: 1.576899264 | AQ165: 1.608437249 | AR165: 1.640605994 | AS165: 1.673418114 | AT165: 1.706886477 | AU165: 1.741024206 | AV165: 1.77584469 | AW165: 1.811361584 | AX165: 1.847588816 | AY165: 1.884540592 | AZ165: 1.922231404 | BA165: 1.960676032 | BB165: 1.999889553 | BC165: 2.039887344 | BD165: 2.080685091 | BE165: 2.122298792 | BF165: 2.164744768 | BG165: 2.208039664 | BH165: 2.252200457 | BI165: 2.297244466 | BJ165: 2.343189355 | BK165: 2.390053142 | BL165: 2.437854205 | BM165: 2.486611289 | BN165: 2.536343515 | BO165: 2.587070385 | BP165: 2.638811793 | BQ165: 2.691588029 | BR165: 2.74541979 | BS165: 2.800328185 | BT165: 2.856334749 | BU165: 2.913461444 | BV165: 2.971730673 | BW165: 3.031165286 | BX165: 3.091788592 | BY165: 3.153624364 | BZ165: 3.216696851
E166: Indexatie KDB+AB | G166: 0.02 | H166: flag | S166: 1 | T166: 1.02 | U166: 1.0404 | V166: 1.061208 | W166: 1.08243216 | X166: 1.104080803 | Y166: 1.126162419 | Z166: 1.148685668 | AA166: 1.171659381 | AB166: 1.195092569 | AC166: 1.21899442 | AD166: 1.243374308 | AE166: 1.268241795 | AF166: 1.29360663 | AG166: 1.319478763 | AH166: 1.345868338 | AI166: 1.372785705 | AJ166: 1.400241419 | AK166: 1.428246248 | AL166: 1.456811173 | AM166: 1.485947396 | AN166: 1.515666344 | AO166: 1.545979671 | AP166: 1.576899264 | AQ166: 1.608437249 | AR166: 1.640605994 | AS166: 1.673418114 | AT166: 1.706886477 | AU166: 1.741024206 | AV166: 1.77584469 | AW166: 1.811361584 | AX166: 1.847588816 | AY166: 1.884540592 | AZ166: 1.922231404 | BA166: 1.960676032 | BB166: 1.999889553 | BC166: 2.039887344 | BD166: 2.080685091 | BE166: 2.122298792 | BF166: 2.164744768 | BG166: 2.208039664 | BH166: 2.252200457 | BI166: 2.297244466 | BJ166: 2.343189355 | BK166: 2.390053142 | BL166: 2.437854205 | BM166: 2.486611289 | BN166: 2.536343515 | BO166: 2.587070385 | BP166: 2.638811793 | BQ166: 2.691588029 | BR166: 2.74541979 | BS166: 2.800328185 | BT166: 2.856334749 | BU166: 2.913461444 | BV166: 2.971730673 | BW166: 3.031165286 | BX166: 3.091788592 | BY166: 3.153624364 | BZ166: 3.216696851
E167: Indexatie AB Collectief | G167: 0.02 | H167: flag | S167: 1 | T167: 1.02 | U167: 1.0404 | V167: 1.061208 | W167: 1.08243216 | X167: 1.104080803 | Y167: 1.126162419 | Z167: 1.148685668 | AA167: 1.171659381 | AB167: 1.195092569 | AC167: 1.21899442 | AD167: 1.243374308 | AE167: 1.268241795 | AF167: 1.29360663 | AG167: 1.319478763 | AH167: 1.345868338 | AI167: 1.372785705 | AJ167: 1.400241419 | AK167: 1.428246248 | AL167: 1.456811173 | AM167: 1.485947396 | AN167: 1.515666344 | AO167: 1.545979671 | AP167: 1.576899264 | AQ167: 1.608437249 | AR167: 1.640605994 | AS167: 1.673418114 | AT167: 1.706886477 | AU167: 1.741024206 | AV167: 1.77584469 | AW167: 1.811361584 | AX167: 1.847588816 | AY167: 1.884540592 | AZ167: 1.922231404 | BA167: 1.960676032 | BB167: 1.999889553 | BC167: 2.039887344 | BD167: 2.080685091 | BE167: 2.122298792 | BF167: 2.164744768 | BG167: 2.208039664 | BH167: 2.252200457 | BI167: 2.297244466 | BJ167: 2.343189355 | BK167: 2.390053142 | BL167: 2.437854205 | BM167: 2.486611289 | BN167: 2.536343515 | BO167: 2.587070385 | BP167: 2.638811793 | BQ167: 2.691588029 | BR167: 2.74541979 | BS167: 2.800328185 | BT167: 2.856334749 | BU167: 2.913461444 | BV167: 2.971730673 | BW167: 3.031165286 | BX167: 3.091788592 | BY167: 3.153624364 | BZ167: 3.216696851
E168: Indexatie AB Utiliteiten | G168: 0.02 | H168: flag | S168: 1 | T168: 1.02 | U168: 1.0404 | V168: 1.061208 | W168: 1.08243216 | X168: 1.104080803 | Y168: 1.126162419 | Z168: 1.148685668 | AA168: 1.171659381 | AB168: 1.195092569 | AC168: 1.21899442 | AD168: 1.243374308 | AE168: 1.268241795 | AF168: 1.29360663 | AG168: 1.319478763 | AH168: 1.345868338 | AI168: 1.372785705 | AJ168: 1.400241419 | AK168: 1.428246248 | AL168: 1.456811173 | AM168: 1.485947396 | AN168: 1.515666344 | AO168: 1.545979671 | AP168: 1.576899264 | AQ168: 1.608437249 | AR168: 1.640605994 | AS168: 1.673418114 | AT168: 1.706886477 | AU168: 1.741024206 | AV168: 1.77584469 | AW168: 1.811361584 | AX168: 1.847588816 | AY168: =( 1 + $G168) ^ (AY$162 - 1) -> 1.884540592 | AZ168: 1.922231404 | BA168: 1.960676032 | BB168: 1.999889553 | BC168: 2.039887344 | BD168: 2.080685091 | BE168: 2.122298792 | BF168: 2.164744768 | BG168: 2.208039664 | BH168: 2.252200457 | BI168: 2.297244466 | BJ168: 2.343189355 | BK168: 2.390053142 | BL168: 2.437854205 | BM168: 2.486611289 | BN168: 2.536343515 | BO168: 2.587070385 | BP168: 2.638811793 | BQ168: 2.691588029 | BR168: 2.74541979 | BS168: 2.800328185 | BT168: 2.856334749 | BU168: 2.913461444 | BV168: 2.971730673 | BW168: 3.031165286 | BX168: 3.091788592 | BY168: 3.153624364 | BZ168: 3.216696851
E169: Indexatie Vastrecht inkomsten | G169: 0.02 | H169: flag | S169: 1 | T169: 1.02 | U169: 1.0404 | V169: 1.061208 | W169: 1.08243216 | X169: 1.104080803 | Y169: 1.126162419 | Z169: 1.148685668 | AA169: 1.171659381 | AB169: 1.195092569 | AC169: 1.21899442 | AD169: 1.243374308 | AE169: 1.268241795 | AF169: 1.29360663 | AG169: 1.319478763 | AH169: 1.345868338 | AI169: 1.372785705 | AJ169: 1.400241419 | AK169: 1.428246248 | AL169: 1.456811173 | AM169: 1.485947396 | AN169: 1.515666344 | AO169: 1.545979671 | AP169: 1.576899264 | AQ169: 1.608437249 | AR169: 1.640605994 | AS169: 1.673418114 | AT169: 1.706886477 | AU169: 1.741024206 | AV169: 1.77584469 | AW169: 1.811361584 | AX169: 1.847588816 | AY169: 1.884540592 | AZ169: 1.922231404 | BA169: 1.960676032 | BB169: 1.999889553 | BC169: 2.039887344 | BD169: 2.080685091 | BE169: 2.122298792 | BF169: 2.164744768 | BG169: 2.208039664 | BH169: 2.252200457 | BI169: 2.297244466 | BJ169: 2.343189355 | BK169: 2.390053142 | BL169: 2.437854205 | BM169: 2.486611289 | BN169: 2.536343515 | BO169: 2.587070385 | BP169: 2.638811793 | BQ169: 2.691588029 | BR169: 2.74541979 | BS169: 2.800328185 | BT169: 2.856334749 | BU169: 2.913461444 | BV169: 2.971730673 | BW169: 3.031165286 | BX169: 3.091788592 | BY169: 3.153624364 | BZ169: 3.216696851
E170: Indexatie Verbruikstarief warmte | G170: 0.02 | H170: flag | S170: =( 1 + $G170) ^ (S$162 - 1) -> 1 | T170: 1.02 | U170: 1.0404 | V170: 1.061208 | W170: 1.08243216 | X170: 1.104080803 | Y170: 1.126162419 | Z170: 1.148685668 | AA170: 1.171659381 | AB170: 1.195092569 | AC170: 1.21899442 | AD170: 1.243374308 | AE170: 1.268241795 | AF170: 1.29360663 | AG170: 1.319478763 | AH170: 1.345868338 | AI170: 1.372785705 | AJ170: 1.400241419 | AK170: 1.428246248 | AL170: 1.456811173 | AM170: 1.485947396 | AN170: 1.515666344 | AO170: 1.545979671 | AP170: 1.576899264 | AQ170: 1.608437249 | AR170: 1.640605994 | AS170: 1.673418114 | AT170: 1.706886477 | AU170: 1.741024206 | AV170: 1.77584469 | AW170: 1.811361584 | AX170: 1.847588816 | AY170: 1.884540592 | AZ170: 1.922231404 | BA170: 1.960676032 | BB170: 1.999889553 | BC170: 2.039887344 | BD170: 2.080685091 | BE170: 2.122298792 | BF170: 2.164744768 | BG170: 2.208039664 | BH170: 2.252200457 | BI170: 2.297244466 | BJ170: 2.343189355 | BK170: 2.390053142 | BL170: 2.437854205 | BM170: 2.486611289 | BN170: 2.536343515 | BO170: 2.587070385 | BP170: 2.638811793 | BQ170: 2.691588029 | BR170: 2.74541979 | BS170: 2.800328185 | BT170: 2.856334749 | BU170: 2.913461444 | BV170: 2.971730673 | BW170: 3.031165286 | BX170: 3.091788592 | BY170: 3.153624364 | BZ170: 3.216696851
E171: Indexatie Variabele component warmte-inkoop | G171: 0.02 | H171: flag | S171: =( 1 + $G171) ^ (S$162 - 1) -> 1 | T171: =( 1 + $G171) ^ (T$162 - 1) -> 1.02 | U171: 1.0404 | V171: 1.061208 | W171: 1.08243216 | X171: 1.104080803 | Y171: 1.126162419 | Z171: 1.148685668 | AA171: 1.171659381 | AB171: 1.195092569 | AC171: 1.21899442 | AD171: 1.243374308 | AE171: 1.268241795 | AF171: 1.29360663 | AG171: 1.319478763 | AH171: 1.345868338 | AI171: 1.372785705 | AJ171: 1.400241419 | AK171: 1.428246248 | AL171: 1.456811173 | AM171: 1.485947396 | AN171: 1.515666344 | AO171: 1.545979671 | AP171: 1.576899264 | AQ171: 1.608437249 | AR171: 1.640605994 | AS171: 1.673418114 | AT171: 1.706886477 | AU171: 1.741024206 | AV171: 1.77584469 | AW171: 1.811361584 | AX171: 1.847588816 | AY171: 1.884540592 | AZ171: 1.922231404 | BA171: 1.960676032 | BB171: 1.999889553 | BC171: 2.039887344 | BD171: 2.080685091 | BE171: 2.122298792 | BF171: 2.164744768 | BG171: 2.208039664 | BH171: 2.252200457 | BI171: 2.297244466 | BJ171: 2.343189355 | BK171: 2.390053142 | BL171: 2.437854205 | BM171: 2.486611289 | BN171: 2.536343515 | BO171: 2.587070385 | BP171: 2.638811793 | BQ171: 2.691588029 | BR171: 2.74541979 | BS171: 2.800328185 | BT171: 2.856334749 | BU171: 2.913461444 | BV171: 2.971730673 | BW171: 3.031165286 | BX171: 3.091788592 | BY171: 3.153624364 | BZ171: 3.216696851
E172: Indexatie Vaste component warmte-inkoop | G172: 0 | H172: flag | S172: =( 1 + $G172) ^ (S$162 - 1) -> 1 | T172: 1 | U172: 1 | V172: 1 | W172: 1 | X172: 1 | Y172: 1 | Z172: 1 | AA172: 1 | AB172: 1 | AC172: 1 | AD172: 1 | AE172: 1 | AF172: 1 | AG172: 1 | AH172: 1 | AI172: 1 | AJ172: 1 | AK172: 1 | AL172: 1 | AM172: 1 | AN172: 1 | AO172: 1 | AP172: 1 | AQ172: 1 | AR172: 1 | AS172: 1 | AT172: 1 | AU172: 1 | AV172: 1 | AW172: 1 | AX172: 1 | AY172: =( 1 + $G172) ^ (AY$162 - 1) -> 1 | AZ172: 1 | BA172: 1 | BB172: 1 | BC172: 1 | BD172: 1 | BE172: 1 | BF172: 1 | BG172: 1 | BH172: 1 | BI172: 1 | BJ172: 1 | BK172: 1 | BL172: 1 | BM172: 1 | BN172: 1 | BO172: 1 | BP172: 1 | BQ172: 1 | BR172: 1 | BS172: 1 | BT172: 1 | BU172: 1 | BV172: 1 | BW172: 1 | BX172: 1 | BY172: 1 | BZ172: 1

Sheet Aantallen & Fasering
CF1: Aan | CG1: ja | CH1: berekend | CI1: Vast bedrag | CJ1: Verder invullen
A2: REKENMODEL BUSINESS CASE WARMTENETTEN - FASERING | CF2: Uit | CG2: nee | CH2: handmatig | CI2: Bedrag per kW
B3: LEES DE HANDLEIDING VOOR GEBRUIK MODEL | CI3: Geen
A4: TIMING
B7: Timing | F7: Waarde | G7: Eenheid | H7: Default | I7: Bron | K7: Afwijking default | L7: Opmerkingen | M7: Gekozen waarde | AB7: =$F$10 -> 2022 | AC7: =AB7 + 1 -> 2023 | AD7: 2024 | AE7: 2025 | AF7: 2026 | AG7: 2027 | AH7: 2028 | AI7: 2029 | AJ7: 2030 | AK7: 2031 | AL7: 2032 | AM7: 2033 | AN7: 2034 | AO7: 2035 | AP7: 2036 | AQ7: 2037 | AR7: 2038 | AS7: 2039 | AT7: 2040 | AU7: 2041 | AV7: 2042 | AW7: 2043 | AX7: 2044 | AY7: 2045 | AZ7: 2046 | BA7: 2047 | BB7: 2048 | BC7: 2049 | BD7: 2050 | BE7: 2051 | BF7: 2052 | BG7: 2053 | BH7: 2054 | BI7: =BH7 + 1 -> 2055 | BJ7: 2056 | BK7: 2057 | BL7: 2058 | BM7: 2059 | BN7: 2060 | BO7: 2061 | BP7: 2062 | BQ7: 2063 | BR7: 2064 | BS7: 2065 | BT7: 2066 | BU7: 2067 | BV7: 2068 | BW7: 2069 | BX7: 2070 | BY7: 2071 | BZ7: 2072 | CA7: 2073 | CB7: 2074 | CC7: 2075 | CD7: 2076 | CE7: 2077 | CF7: 2078 | CG7: 2079 | CH7: 2080 | CI7: 2081
C9: Timing
E10: Startjaar | F10: 2022 | G10: [jaartal]
E11: Exploitatieduur | F11: 30 | G11: [jaar] | H11: 30 | AB11: =(AB$7>$F$10)*(AB$7<=$F$10+$F$11)*1 -> 0 | AC11: =(AC$7>$F$10)*(AC$7<=$F$10+$F$11)*1 -> 1 | AD11: 1 | AE11: 1 | AF11: 1 | AG11: 1 | AH11: 1 | AI11: 1 | AJ11: 1 | AK11: 1 | AL11: 1 | AM11: 1 | AN11: 1 | AO11: 1 | AP11: 1 | AQ11: 1 | AR11: 1 | AS11: 1 | AT11: 1 | AU11: 1 | AV11: 1 | AW11: 1 | AX11: 1 | AY11: 1 | AZ11: 1 | BA11: 1 | BB11: 1 | BC11: 1 | BD11: 1 | BE11: 1 | BF11: 1 | BG11: 0 | BH11: 0 | BI11: 0 | BJ11: 0 | BK11: 0 | BL11: 0 | BM11: 0 | BN11: 0 | BO11: 0 | BP11: 0 | BQ11: 0 | BR11: 0 | BS11: 0 | BT11: 0 | BU11: 0 | BV11: 0 | BW11: 0 | BX11: 0 | BY11: 0 | BZ11: 0 | CA11: 0 | CB11: 0 | CC11: 0 | CD11: 0 | CE11: 0 | CF11: 0 | CG11: 0 | CH11: 0 | CI11: 0
E12: Aantal aansluiting op basis van aansluitsnelheid of handmatig | F12: berekend | H12: =CH1 -> berekend
C14: Timing Exploitatie per aansluitcategorie
E16: Timing Exploitatie netten en organisatie | G16: [jaar] | H16: =$F$11 -> 30 | M16: =IF(ISBLANK(F16),$H16,F16) -> 30 | AB16: =(AB$7>$F$10)*(AB$7<=$F$10+$M16)*1 -> 0 | AC16: 1 | AD16: 1 | AE16: 1 | AF16: 1 | AG16: 1 | AH16: 1 | AI16: 1 | AJ16: 1 | AK16: 1 | AL16: =(AL$7>$F$10)*(AL$7<=$F$10+$M16)*1 -> 1 | AM16: 1 | AN16: 1 | AO16: 1 | AP16: 1 | AQ16: 1 | AR16: 1 | AS16: 1 | AT16: 1 | AU16: 1 | AV16: =(AV$7>$F$10)*(AV$7<=$F$10+$M16)*1 -> 1 | AW16: 1 | AX16: 1 | AY16: 1 | AZ16: 1 | BA16: 1 | BB16: 1 | BC16: 1 | BD16: 1 | BE16: 1 | BF16: =(BF$7>$F$10)*(BF$7<=$F$10+$M16)*1 -> 1 | BG16: 0 | BH16: 0 | BI16: 0 | BJ16: 0 | BK16: 0 | BL16: 0 | BM16: 0 | BN16: 0 | BO16: 0 | BP16: =(BP$7>$F$10)*(BP$7<=$F$10+$M16)*1 -> 0 | BQ16: 0 | BR16: 0 | BS16: 0 | BT16: 0 | BU16: 0 | BV16: 0 | BW16: 0 | BX16: 0 | BY16: 0 | BZ16: =(BZ$7>$F$10)*(BZ$7<=$F$10+$M16)*1 -> 0 | CA16: 0 | CB16: 0 | CC16: 0 | CD16: 0 | CE16: 0 | CF16: 0 | CG16: 0 | CH16: 0 | CI16: 0
E17: Timing Exploitatie grondgebonden | G17: [jaar] | H17: =$F$11 -> 30 | M17: =IF(ISBLANK(F17),$H17,F17) -> 30 | AB17: 0 | AC17: 1 | AD17: 1 | AE17: 1 | AF17: 1 | AG17: 1 | AH17: 1 | AI17: 1 | AJ17: 1 | AK17: 1 | AL17: 1 | AM17: 1 | AN17: 1 | AO17: 1 | AP17: 1 | AQ17: 1 | AR17: 1 | AS17: 1 | AT17: 1 | AU17: 1 | AV17: 1 | AW17: 1 | AX17: 1 | AY17: 1 | AZ17: 1 | BA17: 1 | BB17: 1 | BC17: 1 | BD17: 1 | BE17: 1 | BF17: 1 | BG17: 0 | BH17: 0 | BI17: 0 | BJ17: 0 | BK17: 0 | BL17: 0 | BM17: 0 | BN17: 0 | BO17: 0 | BP17: 0 | BQ17: 0 | BR17: 0 | BS17: 0 | BT17: 0 | BU17: 0 | BV17: 0 | BW17: 0 | BX17: 0 | BY17: 0 | BZ17: 0 | CA17: 0 | CB17: 0 | CC17: 0 | CD17: 0 | CE17: 0 | CF17: 0 | CG17: 0 | CH17: 0 | CI17: 0
E18: Timing Exploitatie gestapeld | G18: [jaar] | H18: 30 | M18: 30 | AB18: 0 | AC18: 1 | AD18: 1 | AE18: 1 | AF18: 1 | AG18: 1 | AH18: 1 | AI18: 1 | AJ18: 1 | AK18: 1 | AL18: 1 | AM18: 1 | AN18: 1 | AO18: 1 | AP18: 1 | AQ18: 1 | AR18: 1 | AS18: 1 | AT18: 1 | AU18: 1 | AV18: 1 | AW18: 1 | AX18: 1 | AY18: 1 | AZ18: 1 | BA18: 1 | BB18: 1 | BC18: 1 | BD18: 1 | BE18: 1 | BF18: 1 | BG18: 0 | BH18: 0 | BI18: 0 | BJ18: 0 | BK18: 0 | BL18: 0 | BM18: 0 | BN18: 0 | BO18: 0 | BP18: 0 | BQ18: 0 | BR18: 0 | BS18: 0 | BT18: 0 | BU18: 0 | BV18: 0 | BW18: 0 | BX18: 0 | BY18: 0 | BZ18: 0 | CA18: 0 | CB18: 0 | CC18: 0 | CD18: 0 | CE18: 0 | CF18: 0 | CG18: 0 | CH18: 0 | CI18: 0
E19: Timing Exploitatie collectief | G19: [jaar] | H19: 30 | M19: 30 | AB19: 0 | AC19: 1 | AD19: 1 | AE19: 1 | AF19: 1 | AG19: 1 | AH19: 1 | AI19: 1 | AJ19: 1 | AK19: 1 | AL19: 1 | AM19: 1 | AN19: 1 | AO19: 1 | AP19: 1 | AQ19: 1 | AR19: 1 | AS19: 1 | AT19: 1 | AU19: 1 | AV19: 1 | AW19: 1 | AX19: 1 | AY19: 1 | AZ19: 1 | BA19: 1 | BB19: 1 | BC19: 1 | BD19: 1 | BE19: 1 | BF19: 1 | BG19: 0 | BH19: 0 | BI19: 0 | BJ19: 0 | BK19: 0 | BL19: 0 | BM19: 0 | BN19: 0 | BO19: 0 | BP19: 0 | BQ19: 0 | BR19: 0 | BS19: 0 | BT19: 0 | BU19: 0 | BV19: 0 | BW19: 0 | BX19: 0 | BY19: 0 | BZ19: 0 | CA19: 0 | CB19: 0 | CC19: 0 | CD19: 0 | CE19: 0 | CF19: 0 | CG19: 0 | CH19: 0 | CI19: 0
E20: Timing Exploitatie utiliteit | G20: [jaar] | H20: 30 | M20: 30 | AB20: 0 | AC20: 1 | AD20: 1 | AE20: 1 | AF20: 1 | AG20: 1 | AH20: 1 | AI20: 1 | AJ20: 1 | AK20: 1 | AL20: 1 | AM20: 1 | AN20: 1 | AO20: 1 | AP20: 1 | AQ20: 1 | AR20: 1 | AS20: 1 | AT20: 1 | AU20: 1 | AV20: 1 | AW20: 1 | AX20: 1 | AY20: 1 | AZ20: 1 | BA20: 1 | BB20: 1 | BC20: 1 | BD20: 1 | BE20: 1 | BF20: 1 | BG20: 0 | BH20: 0 | BI20: 0 | BJ20: 0 | BK20: 0 | BL20: 0 | BM20: 0 | BN20: 0 | BO20: 0 | BP20: 0 | BQ20: 0 | BR20: 0 | BS20: 0 | BT20: 0 | BU20: 0 | BV20: 0 | BW20: 0 | BX20: 0 | BY20: 0 | BZ20: 0 | CA20: 0 | CB20: 0 | CC20: 0 | CD20: 0 | CE20: 0 | CF20: 0 | CG20: 0 | CH20: 0 | CI20: 0
A22: FASERING INDIVIDUEEL KLEINVERBRUIK
B24: Standaardrijen | AB24: =$F$10 -> 2022 | AC24: =AB24 + 1 -> 2023 | AD24: 2024 | AE24: 2025 | AF24: 2026 | AG24: 2027 | AH24: 2028 | AI24: 2029 | AJ24: 2030 | AK24: 2031 | AL24: 2032 | AM24: 2033 | AN24: 2034 | AO24: 2035 | AP24: 2036 | AQ24: 2037 | AR24: 2038 | AS24: 2039 | AT24: 2040 | AU24: 2041 | AV24: 2042 | AW24: 2043 | AX24: 2044 | AY24: 2045 | AZ24: 2046 | BA24: 2047 | BB24: 2048 | BC24: 2049 | BD24: 2050 | BE24: 2051 | BF24: 2052 | BG24: 2053 | BH24: 2054 | BI24: =BH24 + 1 -> 2055 | BJ24: 2056 | BK24: 2057 | BL24: 2058 | BM24: 2059 | BN24: 2060 | BO24: 2061 | BP24: 2062 | BQ24: 2063 | BR24: 2064 | BS24: 2065 | BT24: 2066 | BU24: 2067 | BV24: 2068 | BW24: 2069 | BX24: 2070 | BY24: 2071 | BZ24: 2072 | CA24: 2073 | CB24: 2074 | CC24: 2075 | CD24: 2076 | CE24: 2077 | CF24: 2078 | CG24: 2079 | CH24: 2080 | CI24: 2081
C26: Aan | D26: ="A."&TEXT(O26,"#") -> A.1 | E26: Individueel grondgebonden | K26: 27 | L26: =$F$10 -> 2022 | M26: 5 | N26: 1 | O26: =O24+1 -> 1 | P26: =C26=$CF$1 -> TRUE | S26: =ROUND($F26 * ($F$35=$CF$1) * $N26 * $P26,0) -> 0 | T26: =ROUND(SUM($G26:$I26 * ($G$35:$I$35=$CF$1))*$N26*$P26,0) -> 0 | U26: =ROUND(SUM($F26:$I26 * ($F$35:$I$35=$CF$1))*$N26*$P26,0) -> 0 | V26: =SUM(S26:T26)*K26 -> 0 | W26: =CEILING(U26/M26,1) -> 0 | X26: =$M26-(MOD(SUM($S26:$T26)-1,$M26)+1) -> 0 | Y26: =ROW(Y26) -> 26 | AA26: =IF(AND(SUM(AB26:CI26)>U26,$F$12=$CH$2),"Teveel aansluitingen","") -> 
C27: Aan | D27: ="B."&TEXT(O27,"#") -> B.1 | E27: Individueel gestapeld | K27: 20 | L27: =$F$10 -> 2022 | M27: 5 | N27: 1 | O27: =O26 -> 1 | P27: =C27=$CF$1 -> TRUE | S27: =ROUND($F27 * ($F$35=$CF$1) * $N27 * $P27,0) -> 0 | T27: =ROUND(SUM($G27:$I27*($G$35:$I$35=$CF$1))*$N27*$P27,0) -> 0 | U27: =ROUND(SUM($F27:$I27 * ($F$35:$I$35=$CF$1))*$N27*$P27,0) -> 0 | V27: =SUM(S27:T27)*K27 -> 0 | W27: =CEILING(U27/M27,1) -> 0 | X27: =$M27-(MOD(SUM($S27:$T27)-1,$M27)+1) -> 0 | Y27: =ROW(Y27) -> 27 | AA27: =IF(AND(SUM(AB27:CI27)>U27,$F$12=$CH$2),"Teveel aansluitingen","") -> 
D29: ="A."&TEXT(O29,"#") -> A.2 | E29: Individueel grondgebonden | O29: =O27+1 -> 2 | AB29: =IF($F$12=$CH$1, (SUM((_xlfn.XLOOKUP($D29,$D$36:$D$42,$L$36:$L$42)<=AB$24) * (_xlfn.XLOOKUP($D29,$D$36:$D$42,$L$36:$L$42)+_xlfn.XLOOKUP($D29,$D$36:$D$42,$M$36:$M$42)-1>AB$24) * (AB$24+1-_xlfn.XLOOKUP($D29,$D$36:$D$42,$L$36:$L$42)) * _xlfn.XLOOKUP($D29,$D$36:$D$42,$P$36:$P$42) * _xlfn.XLOOKUP($D29,$D$36:$D$42,$W$36:$W$42)) + SUM(_xlfn.XLOOKUP($D29,$D$36:$D$42,$U$36:$U$42) * (_xlfn.XLOOKUP($D29,$D$36:$D$42,$L$36:$L$42) +_xlfn.XLOOKUP($D29,$D$36:$D$42,$M$36:$M$42)-1<=AB$24) * _xlfn.XLOOKUP($D29,$D$36:$D$42,$P$36:$P$42))), (SUM( INDIRECT(ADDRESS(_xlfn.XLOOKUP($D29,$D$36:$D$42,$Y$36:$Y$42),COLUMN($AB$24))): INDIRECT(ADDRESS(_xlfn.XLOOKUP($D29,$D$36:$D$42,$Y$36:$Y$42),COLUMN(AB29)))) * _xlfn.XLOOKUP($D29,$D$36:$D$42,$P$36:$P$42))) -> 0 | AC29: =IF($F$12=$CH$1, (SUM((_xlfn.XLOOKUP($D29,$D$36:$D$42,$L$36:$L$42)<=AC$24) * (_xlfn.XLOOKUP($D29,$D$36:$D$42,$L$36:$L$42)+_xlfn.XLOOKUP($D29,$D$36:$D$42,$M$36:$M$42)-1>AC$24) * (AC$24+1-_xlfn.XLOOKUP($D29,$D$36:$D$42,$L$36:$L$42)) * _xlfn.XLOOKUP($D29,$D$36:$D$42,$P$36:$P$42) * _xlfn.XLOOKUP($D29,$D$36:$D$42,$W$36:$W$42)) + SUM(_xlfn.XLOOKUP($D29,$D$36:$D$42,$U$36:$U$42) * (_xlfn.XLOOKUP($D29,$D$36:$D$42,$L$36:$L$42) +_xlfn.XLOOKUP($D29,$D$36:$D$42,$M$36:$M$42)-1<=AC$24) * _xlfn.XLOOKUP($D29,$D$36:$D$42,$P$36:$P$42))), (SUM( INDIRECT(ADDRESS(_xlfn.XLOOKUP($D29,$D$36:$D$42,$Y$36:$Y$42),COLUMN($AB$24))): INDIRECT(ADDRESS(_xlfn.XLOOKUP($D29,$D$36:$D$42,$Y$36:$Y$42),COLUMN(AC29)))) * _xlfn.XLOOKUP($D29,$D$36:$D$42,$P$36:$P$42))) -> 0 | AD29: =IF($F$12=$CH$1, (SUM((_xlfn.XLOOKUP($D29,$D$36:$D$42,$L$36:$L$42)<=AD$24) * (_xlfn.XLOOKUP($D29,$D$36:$D$42,$L$36:$L$42)+_xlfn.XLOOKUP($D29,$D$36:$D$42,$M$36:$M$42)-1>AD$24) * (AD$24+1-_xlfn.XLOOKUP($D29,$D$36:$D$42,$L$36:$L$42)) * _xlfn.XLOOKUP($D29,$D$36:$D$42,$P$36:$P$42) * _xlfn.XLOOKUP($D29,$D$36:$D$42,$W$36:$W$42)) + SUM(_xlfn.XLOOKUP($D29,$D$36:$D$42,$U$36:$U$42) * (_xlfn.XLOOKUP($D29,$D$36:$D$42,$L$36:$L$42) +_xlfn.XLOOKUP($D29,$D$36:$D$42,$M$36:$M$42)-1<=AD$24) * _xlfn.XLOOKUP($D29,$D$36:$D$42,$P$36:$P$42))), (SUM( INDIRECT(ADDRESS(_xlfn.XLOOKUP($D29,$D$36:$D$42,$Y$36:$Y$42),COLUMN($AB$24))): INDIRECT(ADDRESS(_xlfn.XLOOKUP($D29,$D$36:$D$42,$Y$36:$Y$42),COLUMN(AD29)))) * _xlfn.XLOOKUP($D29,$D$36:$D$42,$P$36:$P$42))) -> 0 | AE29: =IF($F$12=$CH$1, (SUM((_xlfn.XLOOKUP($D29,$D$36:$D$42,$L$36:$L$42)<=AE$24) * (_xlfn.XLOOKUP($D29,$D$36:$D$42,$L$36:$L$42)+_xlfn.XLOOKUP($D29,$D$36:$D$42,$M$36:$M$42)-1>AE$24) * (AE$24+1-_xlfn.XLOOKUP($D29,$D$36:$D$42,$L$36:$L$42)) * _xlfn.XLOOKUP($D29,$D$36:$D$42,$P$36:$P$42) * _xlfn.XLOOKUP($D29,$D$36:$D$42,$W$36:$W$42)) + SUM(_xlfn.XLOOKUP($D29,$D$36:$D$42,$U$36:$U$42) * (_xlfn.XLOOKUP($D29,$D$36:$D$42,$L$36:$L$42) +_xlfn.XLOOKUP($D29,$D$36:$D$42,$M$36:$M$42)-1<=AE$24) * _xlfn.XLOOKUP($D29,$D$36:$D$42,$P$36:$P$42))), (SUM( INDIRECT(ADDRESS(_xlfn.XLOOKUP($D29,$D$36:$D$42,$Y$36:$Y$42),COLUMN($AB$24))): INDIRECT(ADDRESS(_xlfn.XLOOKUP($D29,$D$36:$D$42,$Y$36:$Y$42),COLUMN(AE29)))) * _xlfn.XLOOKUP($D29,$D$36:$D$42,$P$36:$P$42))) -> 0 | AF29: =IF($F$12=$CH$1, (SUM((_xlfn.XLOOKUP($D29,$D$36:$D$42,$L$36:$L$42)<=AF$24) * (_xlfn.XLOOKUP($D29,$D$36:$D$42,$L$36:$L$42)+_xlfn.XLOOKUP($D29,$D$36:$D$42,$M$36:$M$42)-1>AF$24) * (AF$24+1-_xlfn.XLOOKUP($D29,$D$36:$D$42,$L$36:$L$42)) * _xlfn.XLOOKUP($D29,$D$36:$D$42,$P$36:$P$42) * _xlfn.XLOOKUP($D29,$D$36:$D$42,$W$36:$W$42)) + SUM(_xlfn.XLOOKUP($D29,$D$36:$D$42,$U$36:$U$42) * (_xlfn.XLOOKUP($D29,$D$36:$D$42,$L$36:$L$42) +_xlfn.XLOOKUP($D29,$D$36:$D$42,$M$36:$M$42)-1<=AF$24) * _xlfn.XLOOKUP($D29,$D$36:$D$42,$P$36:$P$42))), (SUM( INDIRECT(ADDRESS(_xlfn.XLOOKUP($D29,$D$36:$D$42,$Y$36:$Y$42),COLUMN($AB$24))): INDIRECT(ADDRESS(_xlfn.XLOOKUP($D29,$D$36:$D$42,$Y$36:$Y$42),COLUMN(AF29)))) * _xlfn.XLOOKUP($D29,$D$36:$D$42,$P$36:$P$42))) -> 0 | AG29: =IF($F$12=$CH$1, (SUM((_xlfn.XLOOKUP($D29,$D$36:$D$42,$L$36:$L$42)<=AG$24) * (_xlfn.XLOOKUP($D29,$D$36:$D$42,$L$36:$L$42)+_xlfn.XLOOKUP($D29,$D$36:$D$42,$M$36:$M$42)-1>AG$24) * (AG$24+1-_xlfn.XLOOKUP($D29,$D$36:$D$42,$L$36:$L$42)) * _xlfn.XLOOKUP($D29,$D$36:$D$42,$P$36:$P$42) * _xlfn.XLOOKUP($D29,$D$36:$D$42,$W$36:$W$42)) + SUM(_xlfn.XLOOKUP($D29,$D$36:$D$42,$U$36:$U$42) * (_xlfn.XLOOKUP($D29,$D$36:$D$42,$L$36:$L$42) +_xlfn.XLOOKUP($D29,$D$36:$D$42,$M$36:$M$42)-1<=AG$24) * _xlfn.XLOOKUP($D29,$D$36:$D$42,$P$36:$P$42))), (SUM( INDIRECT(ADDRESS(_xlfn.XLOOKUP($D29,$D$36:$D$42,$Y$36:$Y$42),COLUMN($AB$24))): INDIRECT(ADDRESS(_xlfn.XLOOKUP($D29,$D$36:$D$42,$Y$36:$Y$42),COLUMN(AG29)))) * _xlfn.XLOOKUP($D29,$D$36:$D$42,$P$36:$P$42))) -> 0 | AH29: =IF($F$12=$CH$1, (SUM((_xlfn.XLOOKUP($D29,$D$36:$D$42,$L$36:$L$42)<=AH$24) * (_xlfn.XLOOKUP($D29,$D$36:$D$42,$L$36:$L$42)+_xlfn.XLOOKUP($D29,$D$36:$D$42,$M$36:$M$42)-1>AH$24) * (AH$24+1-_xlfn.XLOOKUP($D29,$D$36:$D$42,$L$36:$L$42)) * _xlfn.XLOOKUP($D29,$D$36:$D$42,$P$36:$P$42) * _xlfn.XLOOKUP($D29,$D$36:$D$42,$W$36:$W$42)) + SUM(_xlfn.XLOOKUP($D29,$D$36:$D$42,$U$36:$U$42) * (_xlfn.XLOOKUP($D29,$D$36:$D$42,$L$36:$L$42) +_xlfn.XLOOKUP($D29,$D$36:$D$42,$M$36:$M$42)-1<=AH$24) * _xlfn.XLOOKUP($D29,$D$36:$D$42,$P$36:$P$42))), (SUM( INDIRECT(ADDRESS(_xlfn.XLOOKUP($D29,$D$36:$D$42,$Y$36:$Y$42),COLUMN($AB$24))): INDIRECT(ADDRESS(_xlfn.XLOOKUP($D29,$D$36:$D$42,$Y$36:$Y$42),COLUMN(AH29)))) * _xlfn.XLOOKUP($D29,$D$36:$D$42,$P$36:$P$42))) -> 0 | AI29: =IF($F$12=$CH$1, (SUM((_xlfn.XLOOKUP($D29,$D$36:$D$42,$L$36:$L$42)<=AI$24) * (_xlfn.XLOOKUP($D29,$D$36:$D$42,$L$36:$L$42)+_xlfn.XLOOKUP($D29,$D$36:$D$42,$M$36:$M$42)-1>AI$24) * (AI$24+1-_xlfn.XLOOKUP($D29,$D$36:$D$42,$L$36:$L$42)) * _xlfn.XLOOKUP($D29,$D$36:$D$42,$P$36:$P$42) * _xlfn.XLOOKUP($D29,$D$36:$D$42,$W$36:$W$42)) + SUM(_xlfn.XLOOKUP($D29,$D$36:$D$42,$U$36:$U$42) * (_xlfn.XLOOKUP($D29,$D$36:$D$42,$L$36:$L$42) +_xlfn.XLOOKUP($D29,$D$36:$D$42,$M$36:$M$42)-1<=AI$24) * _xlfn.XLOOKUP($D29,$D$36:$D$42,$P$36:$P$42))), (SUM( INDIRECT(ADDRESS(_xlfn.XLOOKUP($D29,$D$36:$D$42,$Y$36:$Y$42),COLUMN($AB$24))): INDIRECT(ADDRESS(_xlfn.XLOOKUP($D29,$D$36:$D$42,$Y$36:$Y$42),COLUMN(AI29)))) * _xlfn.XLOOKUP($D29,$D$36:$D$42,$P$36:$P$42))) -> 0 | AJ29: =IF($F$12=$CH$1, (SUM((_xlfn.XLOOKUP($D29,$D$36:$D$42,$L$36:$L$42)<=AJ$24) * (_xlfn.XLOOKUP($D29,$D$36:$D$42,$L$36:$L$42)+_xlfn.XLOOKUP($D29,$D$36:$D$42,$M$36:$M$42)-1>AJ$24) * (AJ$24+1-_xlfn.XLOOKUP($D29,$D$36:$D$42,$L$36:$L$42)) * _xlfn.XLOOKUP($D29,$D$36:$D$42,$P$36:$P$42) * _xlfn.XLOOKUP($D29,$D$36:$D$42,$W$36:$W$42)) + SUM(_xlfn.XLOOKUP($D29,$D$36:$D$42,$U$36:$U$42) * (_xlfn.XLOOKUP($D29,$D$36:$D$42,$L$36:$L$42) +_xlfn.XLOOKUP($D29,$D$36:$D$42,$M$36:$M$42)-1<=AJ$24) * _xlfn.XLOOKUP($D29,$D$36:$D$42,$P$36:$P$42))), (SUM( INDIRECT(ADDRESS(_xlfn.XLOOKUP($D29,$D$36:$D$42,$Y$36:$Y$42),COLUMN($AB$24))): INDIRECT(ADDRESS(_xlfn.XLOOKUP($D29,$D$36:$D$42,$Y$36:$Y$42),COLUMN(AJ29)))) * _xlfn.XLOOKUP($D29,$D$36:$D$42,$P$36:$P$42))) -> 0 | AK29: =IF($F$12=$CH$1, (SUM((_xlfn.XLOOKUP($D29,$D$36:$D$42,$L$36:$L$42)<=AK$24) * (_xlfn.XLOOKUP($D29,$D$36:$D$42,$L$36:$L$42)+_xlfn.XLOOKUP($D29,$D$36:$D$42,$M$36:$M$42)-1>AK$24) * (AK$24+1-_xlfn.XLOOKUP($D29,$D$36:$D$42,$L$36:$L$42)) * _xlfn.XLOOKUP($D29,$D$36:$D$42,$P$36:$P$42) * _xlfn.XLOOKUP($D29,$D$36:$D$42,$W$36:$W$42)) + SUM(_xlfn.XLOOKUP($D29,$D$36:$D$42,$U$36:$U$42) * (_xlfn.XLOOKUP($D29,$D$36:$D$42,$L$36:$L$42) +_xlfn.XLOOKUP($D29,$D$36:$D$42,$M$36:$M$42)-1<=AK$24) * _xlfn.XLOOKUP($D29,$D$36:$D$42,$P$36:$P$42))), (SUM( INDIRECT(ADDRESS(_xlfn.XLOOKUP($D29,$D$36:$D$42,$Y$36:$Y$42),COLUMN($AB$24))): INDIRECT(ADDRESS(_xlfn.XLOOKUP($D29,$D$36:$D$42,$Y$36:$Y$42),COLUMN(AK29)))) * _xlfn.XLOOKUP($D29,$D$36:$D$42,$P$36:$P$42))) -> 0 | AL29: =IF($F$12=$CH$1, (SUM((_xlfn.XLOOKUP($D29,$D$36:$D$42,$L$36:$L$42)<=AL$24) * (_xlfn.XLOOKUP($D29,$D$36:$D$42,$L$36:$L$42)+_xlfn.XLOOKUP($D29,$D$36:$D$42,$M$36:$M$42)-1>AL$24) * (AL$24+1-_xlfn.XLOOKUP($D29,$D$36:$D$42,$L$36:$L$42)) * _xlfn.XLOOKUP($D29,$D$36:$D$42,$P$36:$P$42) * _xlfn.XLOOKUP($D29,$D$36:$D$42,$W$36:$W$42)) + SUM(_xlfn.XLOOKUP($D29,$D$36:$D$42,$U$36:$U$42) * (_xlfn.XLOOKUP($D29,$D$36:$D$42,$L$36:$L$42) +_xlfn.XLOOKUP($D29,$D$36:$D$42,$M$36:$M$42)-1<=AL$24) * _xlfn.XLOOKUP($D29,$D$36:$D$42,$P$36:$P$42))), (SUM( INDIRECT(ADDRESS(_xlfn.XLOOKUP($D29,$D$36:$D$42,$Y$36:$Y$42),COLUMN($AB$24))): INDIRECT(ADDRESS(_xlfn.XLOOKUP($D29,$D$36:$D$42,$Y$36:$Y$42),COLUMN(AL29)))) * _xlfn.XLOOKUP($D29,$D$36:$D$42,$P$36:$P$42))) -> 0 | AM29: =IF($F$12=$CH$1, (SUM((_xlfn.XLOOKUP($D29,$D$36:$D$42,$L$36:$L$42)<=AM$24) * (_xlfn.XLOOKUP($D29,$D$36:$D$42,$L$36:$L$42)+_xlfn.XLOOKUP($D29,$D$36:$D$42,$M$36:$M$42)-1>AM$24) * (AM$24+1-_xlfn.XLOOKUP($D29,$D$36:$D$42,$L$36:$L$42)) * _xlfn.XLOOKUP($D29,$D$36:$D$42,$P$36:$P$42) * _xlfn.XLOOKUP($D29,$D$36:$D$42,$W$36:$W$42)) + SUM(_xlfn.XLOOKUP($D29,$D$36:$D$42,$U$36:$U$42) * (_xlfn.XLOOKUP($D29,$D$36:$D$42,$L$36:$L$42) +_xlfn.XLOOKUP($D29,$D$36:$D$42,$M$36:$M$42)-1<=AM$24) * _xlfn.XLOOKUP($D29,$D$36:$D$42,$P$36:$P$42))), (SUM( INDIRECT(ADDRESS(_xlfn.XLOOKUP($D29,$D$36:$D$42,$Y$36:$Y$42),COLUMN($AB$24))): INDIRECT(ADDRESS(_xlfn.XLOOKUP($D29,$D$36:$D$42,$Y$36:$Y$42),COLUMN(AM29)))) * _xlfn.XLOOKUP($D29,$D$36:$D$42,$P$36:$P$42))) -> 0 | AN29: =IF($F$12=$CH$1, (SUM((_xlfn.XLOOKUP($D29,$D$36:$D$42,$L$36:$L$42)<=AN$24) * (_xlfn.XLOOKUP($D29,$D$36:$D$42,$L$36:$L$42)+_xlfn.XLOOKUP($D29,$D$36:$D$42,$M$36:$M$42)-1>AN$24) * (AN$24+1-_xlfn.XLOOKUP($D29,$D$36:$D$42,$L$36:$L$42)) * _xlfn.XLOOKUP($D29,$D$36:$D$42,$P$36:$P$42) * _xlfn.XLOOKUP($D29,$D$36:$D$42,$W$36:$W$42)) + SUM(_xlfn.XLOOKUP($D29,$D$36:$D$42,$U$36:$U$42) * (_xlfn.XLOOKUP($D29,$D$36:$D$42,$L$36:$L$42) +_xlfn.XLOOKUP($D29,$D$36:$D$42,$M$36:$M$42)-1<=AN$24) * _xlfn.XLOOKUP($D29,$D$36:$D$42,$P$36:$P$42))), (SUM( INDIRECT(ADDRESS(_xlfn.XLOOKUP($D29,$D$36:$D$42,$Y$36:$Y$42),COLUMN($AB$24))): INDIRECT(ADDRESS(_xlfn.XLOOKUP($D29,$D$36:$D$42,$Y$36:$Y$42),COLUMN(AN29)))) * _xlfn.XLOOKUP($D29,$D$36:$D$42,$P$36:$P$42))) -> 0 | AO29: =IF($F$12=$CH$1, (SUM((_xlfn.XLOOKUP($D29,$D$36:$D$42,$L$36:$L$42)<=AO$24) * (_xlfn.XLOOKUP($D29,$D$36:$D$42,$L$36:$L$42)+_xlfn.XLOOKUP($D29,$D$36:$D$42,$M$36:$M$42)-1>AO$24) * (AO$24+1-_xlfn.XLOOKUP($D29,$D$36:$D$42,$L$36:$L$42)) * _xlfn.XLOOKUP($D29,$D$36:$D$42,$P$36:$P$42) * _xlfn.XLOOKUP($D29,$D$36:$D$42,$W$36:$W$42)) + SUM(_xlfn.XLOOKUP($D29,$D$36:$D$42,$U$36:$U$42) * (_xlfn.XLOOKUP($D29,$D$36:$D$42,$L$36:$L$42) +_xlfn.XLOOKUP($D29,$D$36:$D$42,$M$36:$M$42)-1<=AO$24) * _xlfn.XLOOKUP($D29,$D$36:$D$42,$P$36:$P$42))), (SUM( INDIRECT(ADDRESS(_xlfn.XLOOKUP($D29,$D$36:$D$42,$Y$36:$Y$42),COLUMN($AB$24))): INDIRECT(ADDRESS(_xlfn.XLOOKUP($D29,$D$36:$D$42,$Y$36:$Y$42),COLUMN(AO29)))) * _xlfn.XLOOKUP($D29,$D$36:$D$42,$P$36:$P$42))) -> 0 | AP29: =IF($F$12=$CH$1, (SUM((_xlfn.XLOOKUP($D29,$D$36:$D$42,$L$36:$L$42)<=AP$24) * (_xlfn.XLOOKUP($D29,$D$36:$D$42,$L$36:$L$42)+_xlfn.XLOOKUP($D29,$D$36:$D$42,$M$36:$M$42)-1>AP$24) * (AP$24+1-_xlfn.XLOOKUP($D29,$D$36:$D$42,$L$36:$L$42)) * _xlfn.XLOOKUP($D29,$D$36:$D$42,$P$36:$P$42) * _xlfn.XLOOKUP($D29,$D$36:$D$42,$W$36:$W$42)) + SUM(_xlfn.XLOOKUP($D29,$D$36:$D$42,$U$36:$U$42) * (_xlfn.XLOOKUP($D29,$D$36:$D$42,$L$36:$L$42) +_xlfn.XLOOKUP($D29,$D$36:$D$42,$M$36:$M$42)-1<=AP$24) * _xlfn.XLOOKUP($D29,$D$36:$D$42,$P$36:$P$42))), (SUM( INDIRECT(ADDRESS(_xlfn.XLOOKUP($D29,$D$36:$D$42,$Y$36:$Y$42),COLUMN($AB$24))): INDIRECT(ADDRESS(_xlfn.XLOOKUP($D29,$D$36:$D$42,$Y$36:$Y$42),COLUMN(AP29)))) * _xlfn.XLOOKUP($D29,$D$36:$D$42,$P$36:$P$42))) -> 0 | AQ29: =IF($F$12=$CH$1, (SUM((_xlfn.XLOOKUP($D29,$D$36:$D$42,$L$36:$L$42)<=AQ$24) * (_xlfn.XLOOKUP($D29,$D$36:$D$42,$L$36:$L$42)+_xlfn.XLOOKUP($D29,$D$36:$D$42,$M$36:$M$42)-1>AQ$24) * (AQ$24+1-_xlfn.XLOOKUP($D29,$D$36:$D$42,$L$36:$L$42)) * _xlfn.XLOOKUP($D29,$D$36:$D$42,$P$36:$P$42) * _xlfn.XLOOKUP($D29,$D$36:$D$42,$W$36:$W$42)) + SUM(_xlfn.XLOOKUP($D29,$D$36:$D$42,$U$36:$U$42) * (_xlfn.XLOOKUP($D29,$D$36:$D$42,$L$36:$L$42) +_xlfn.XLOOKUP($D29,$D$36:$D$42,$M$36:$M$42)-1<=AQ$24) * _xlfn.XLOOKUP($D29,$D$36:$D$42,$P$36:$P$42))), (SUM( INDIRECT(ADDRESS(_xlfn.XLOOKUP($D29,$D$36:$D$42,$Y$36:$Y$42),COLUMN($AB$24))): INDIRECT(ADDRESS(_xlfn.XLOOKUP($D29,$D$36:$D$42,$Y$36:$Y$42),COLUMN(AQ29)))) * _xlfn.XLOOKUP($D29,$D$36:$D$42,$P$36:$P$42))) -> 0 | AR29: =IF($F$12=$CH$1, (SUM((_xlfn.XLOOKUP($D29,$D$36:$D$42,$L$36:$L$42)<=AR$24) * (_xlfn.XLOOKUP($D29,$D$36:$D$42,$L$36:$L$42)+_xlfn.XLOOKUP($D29,$D$36:$D$42,$M$36:$M$42)-1>AR$24) * (AR$24+1-_xlfn.XLOOKUP($D29,$D$36:$D$42,$L$36:$L$42)) * _xlfn.XLOOKUP($D29,$D$36:$D$42,$P$36:$P$42) * _xlfn.XLOOKUP($D29,$D$36:$D$42,$W$36:$W$42)) + SUM(_xlfn.XLOOKUP($D29,$D$36:$D$42,$U$36:$U$42) * (_xlfn.XLOOKUP($D29,$D$36:$D$42,$L$36:$L$42) +_xlfn.XLOOKUP($D29,$D$36:$D$42,$M$36:$M$42)-1<=AR$24) * _xlfn.XLOOKUP($D29,$D$36:$D$42,$P$36:$P$42))), (SUM( INDIRECT(ADDRESS(_xlfn.XLOOKUP($D29,$D$36:$D$42,$Y$36:$Y$42),COLUMN($AB$24))): INDIRECT(ADDRESS(_xlfn.XLOOKUP($D29,$D$36:$D$42,$Y$36:$Y$42),COLUMN(AR29)))) * _xlfn.XLOOKUP($D29,$D$36:$D$42,$P$36:$P$42))) -> 0 | AS29: =IF($F$12=$CH$1, (SUM((_xlfn.XLOOKUP($D29,$D$36:$D$42,$L$36:$L$42)<=AS$24) * (_xlfn.XLOOKUP($D29,$D$36:$D$42,$L$36:$L$42)+_xlfn.XLOOKUP($D29,$D$36:$D$42,$M$36:$M$42)-1>AS$24) * (AS$24+1-_xlfn.XLOOKUP($D29,$D$36:$D$42,$L$36:$L$42)) * _xlfn.XLOOKUP($D29,$D$36:$D$42,$P$36:$P$42) * _xlfn.XLOOKUP($D29,$D$36:$D$42,$W$36:$W$42)) + SUM(_xlfn.XLOOKUP($D29,$D$36:$D$42,$U$36:$U$42) * (_xlfn.XLOOKUP($D29,$D$36:$D$42,$L$36:$L$42) +_xlfn.XLOOKUP($D29,$D$36:$D$42,$M$36:$M$42)-1<=AS$24) * _xlfn.XLOOKUP($D29,$D$36:$D$42,$P$36:$P$42))), (SUM( INDIRECT(ADDRESS(_xlfn.XLOOKUP($D29,$D$36:$D$42,$Y$36:$Y$42),COLUMN($AB$24))): INDIRECT(ADDRESS(_xlfn.XLOOKUP($D29,$D$36:$D$42,$Y$36:$Y$42),COLUMN(AS29)))) * _xlfn.XLOOKUP($D29,$D$36:$D$42,$P$36:$P$42))) -> 0 | AT29: =IF($F$12=$CH$1, (SUM((_xlfn.XLOOKUP($D29,$D$36:$D$42,$L$36:$L$42)<=AT$24) * (_xlfn.XLOOKUP($D29,$D$36:$D$42,$L$36:$L$42)+_xlfn.XLOOKUP($D29,$D$36:$D$42,$M$36:$M$42)-1>AT$24) * (AT$24+1-_xlfn.XLOOKUP($D29,$D$36:$D$42,$L$36:$L$42)) * _xlfn.XLOOKUP($D29,$D$36:$D$42,$P$36:$P$42) * _xlfn.XLOOKUP($D29,$D$36:$D$42,$W$36:$W$42)) + SUM(_xlfn.XLOOKUP($D29,$D$36:$D$42,$U$36:$U$42) * (_xlfn.XLOOKUP($D29,$D$36:$D$42,$L$36:$L$42) +_xlfn.XLOOKUP($D29,$D$36:$D$42,$M$36:$M$42)-1<=AT$24) * _xlfn.XLOOKUP($D29,$D$36:$D$42,$P$36:$P$42))), (SUM( INDIRECT(ADDRESS(_xlfn.XLOOKUP($D29,$D$36:$D$42,$Y$36:$Y$42),COLUMN($AB$24))): INDIRECT(ADDRESS(_xlfn.XLOOKUP($D29,$D$36:$D$42,$Y$36:$Y$42),COLUMN(AT29)))) * _xlfn.XLOOKUP($D29,$D$36:$D$42,$P$36:$P$42))) -> 0 | AU29: =IF($F$12=$CH$1, (SUM((_xlfn.XLOOKUP($D29,$D$36:$D$42,$L$36:$L$42)<=AU$24) * (_xlfn.XLOOKUP($D29,$D$36:$D$42,$L$36:$L$42)+_xlfn.XLOOKUP($D29,$D$36:$D$42,$M$36:$M$42)-1>AU$24) * (AU$24+1-_xlfn.XLOOKUP($D29,$D$36:$D$42,$L$36:$L$42)) * _xlfn.XLOOKUP($D29,$D$36:$D$42,$P$36:$P$42) * _xlfn.XLOOKUP($D29,$D$36:$D$42,$W$36:$W$42)) + SUM(_xlfn.XLOOKUP($D29,$D$36:$D$42,$U$36:$U$42) * (_xlfn.XLOOKUP($D29,$D$36:$D$42,$L$36:$L$42) +_xlfn.XLOOKUP($D29,$D$36:$D$42,$M$36:$M$42)-1<=AU$24) * _xlfn.XLOOKUP($D29,$D$36:$D$42,$P$36:$P$42))), (SUM( INDIRECT(ADDRESS(_xlfn.XLOOKUP($D29,$D$36:$D$42,$Y$36:$Y$42),COLUMN($AB$24))): INDIRECT(ADDRESS(_xlfn.XLOOKUP($D29,$D$36:$D$42,$Y$36:$Y$42),COLUMN(AU29)))) * _xlfn.XLOOKUP($D29,$D$36:$D$42,$P$36:$P$42))) -> 0 | AV29: =IF($F$12=$CH$1, (SUM((_xlfn.XLOOKUP($D29,$D$36:$D$42,$L$36:$L$42)<=AV$24) * (_xlfn.XLOOKUP($D29,$D$36:$D$42,$L$36:$L$42)+_xlfn.XLOOKUP($D29,$D$36:$D$42,$M$36:$M$42)-1>AV$24) * (AV$24+1-_xlfn.XLOOKUP($D29,$D$36:$D$42,$L$36:$L$42)) * _xlfn.XLOOKUP($D29,$D$36:$D$42,$P$36:$P$42) * _xlfn.XLOOKUP($D29,$D$36:$D$42,$W$36:$W$42)) + SUM(_xlfn.XLOOKUP($D29,$D$36:$D$42,$U$36:$U$42) * (_xlfn.XLOOKUP($D29,$D$36:$D$42,$L$36:$L$42) +_xlfn.XLOOKUP($D29,$D$36:$D$42,$M$36:$M$42)-1<=AV$24) * _xlfn.XLOOKUP($D29,$D$36:$D$42,$P$36:$P$42))), (SUM( INDIRECT(ADDRESS(_xlfn.XLOOKUP($D29,$D$36:$D$42,$Y$36:$Y$42),COLUMN($AB$24))): INDIRECT(ADDRESS(_xlfn.XLOOKUP($D29,$D$36:$D$42,$Y$36:$Y$42),COLUMN(AV29)))) * _xlfn.XLOOKUP($D29,$D$36:$D$42,$P$36:$P$42))) -> 0 | AW29: =IF($F$12=$CH$1, (SUM((_xlfn.XLOOKUP($D29,$D$36:$D$42,$L$36:$L$42)<=AW$24) * (_xlfn.XLOOKUP($D29,$D$36:$D$42,$L$36:$L$42)+_xlfn.XLOOKUP($D29,$D$36:$D$42,$M$36:$M$42)-1>AW$24) * (AW$24+1-_xlfn.XLOOKUP($D29,$D$36:$D$42,$L$36:$L$42)) * _xlfn.XLOOKUP($D29,$D$36:$D$42,$P$36:$P$42) * _xlfn.XLOOKUP($D29,$D$36:$D$42,$W$36:$W$42)) + SUM(_xlfn.XLOOKUP($D29,$D$36:$D$42,$U$36:$U$42) * (_xlfn.XLOOKUP($D29,$D$36:$D$42,$L$36:$L$42) +_xlfn.XLOOKUP($D29,$D$36:$D$42,$M$36:$M$42)-1<=AW$24) * _xlfn.XLOOKUP($D29,$D$36:$D$42,$P$36:$P$42))), (SUM( INDIRECT(ADDRESS(_xlfn.XLOOKUP($D29,$D$36:$D$42,$Y$36:$Y$42),COLUMN($AB$24))): INDIRECT(ADDRESS(_xlfn.XLOOKUP($D29,$D$36:$D$42,$Y$36:$Y$42),COLUMN(AW29)))) * _xlfn.XLOOKUP($D29,$D$36:$D$42,$P$36:$P$42))) -> 0 | AX29: =IF($F$12=$CH$1, (SUM((_xlfn.XLOOKUP($D29,$D$36:$D$42,$L$36:$L$42)<=AX$24) * (_xlfn.XLOOKUP($D29,$D$36:$D$42,$L$36:$L$42)+_xlfn.XLOOKUP($D29,$D$36:$D$42,$M$36:$M$42)-1>AX$24) * (AX$24+1-_xlfn.XLOOKUP($D29,$D$36:$D$42,$L$36:$L$42)) * _xlfn.XLOOKUP($D29,$D$36:$D$42,$P$36:$P$42) * _xlfn.XLOOKUP($D29,$D$36:$D$42,$W$36:$W$42)) + SUM(_xlfn.XLOOKUP($D29,$D$36:$D$42,$U$36:$U$42) * (_xlfn.XLOOKUP($D29,$D$36:$D$42,$L$36:$L$42) +_xlfn.XLOOKUP($D29,$D$36:$D$42,$M$36:$M$42)-1<=AX$24) * _xlfn.XLOOKUP($D29,$D$36:$D$42,$P$36:$P$42))), (SUM( INDIRECT(ADDRESS(_xlfn.XLOOKUP($D29,$D$36:$D$42,$Y$36:$Y$42),COLUMN($AB$24))): INDIRECT(ADDRESS(_xlfn.XLOOKUP($D29,$D$36:$D$42,$Y$36:$Y$42),COLUMN(AX29)))) * _xlfn.XLOOKUP($D29,$D$36:$D$42,$P$36:$P$42))) -> 0 | AY29: =IF($F$12=$CH$1, (SUM((_xlfn.XLOOKUP($D29,$D$36:$D$42,$L$36:$L$42)<=AY$24) * (_xlfn.XLOOKUP($D29,$D$36:$D$42,$L$36:$L$42)+_xlfn.XLOOKUP($D29,$D$36:$D$42,$M$36:$M$42)-1>AY$24) * (AY$24+1-_xlfn.XLOOKUP($D29,$D$36:$D$42,$L$36:$L$42)) * _xlfn.XLOOKUP($D29,$D$36:$D$42,$P$36:$P$42) * _xlfn.XLOOKUP($D29,$D$36:$D$42,$W$36:$W$42)) + SUM(_xlfn.XLOOKUP($D29,$D$36:$D$42,$U$36:$U$42) * (_xlfn.XLOOKUP($D29,$D$36:$D$42,$L$36:$L$42) +_xlfn.XLOOKUP($D29,$D$36:$D$42,$M$36:$M$42)-1<=AY$24) * _xlfn.XLOOKUP($D29,$D$36:$D$42,$P$36:$P$42))), (SUM( INDIRECT(ADDRESS(_xlfn.XLOOKUP($D29,$D$36:$D$42,$Y$36:$Y$42),COLUMN($AB$24))): INDIRECT(ADDRESS(_xlfn.XLOOKUP($D29,$D$36:$D$42,$Y$36:$Y$42),COLUMN(AY29)))) * _xlfn.XLOOKUP($D29,$D$36:$D$42,$P$36:$P$42))) -> 0 | AZ29: =IF($F$12=$CH$1, (SUM((_xlfn.XLOOKUP($D29,$D$36:$D$42,$L$36:$L$42)<=AZ$24) * (_xlfn.XLOOKUP($D29,$D$36:$D$42,$L$36:$L$42)+_xlfn.XLOOKUP($D29,$D$36:$D$42,$M$36:$M$42)-1>AZ$24) * (AZ$24+1-_xlfn.XLOOKUP($D29,$D$36:$D$42,$L$36:$L$42)) * _xlfn.XLOOKUP($D29,$D$36:$D$42,$P$36:$P$42) * _xlfn.XLOOKUP($D29,$D$36:$D$42,$W$36:$W$42)) + SUM(_xlfn.XLOOKUP($D29,$D$36:$D$42,$U$36:$U$42) * (_xlfn.XLOOKUP($D29,$D$36:$D$42,$L$36:$L$42) +_xlfn.XLOOKUP($D29,$D$36:$D$42,$M$36:$M$42)-1<=AZ$24) * _xlfn.XLOOKUP($D29,$D$36:$D$42,$P$36:$P$42))), (SUM( INDIRECT(ADDRESS(_xlfn.XLOOKUP($D29,$D$36:$D$42,$Y$36:$Y$42),COLUMN($AB$24))): INDIRECT(ADDRESS(_xlfn.XLOOKUP($D29,$D$36:$D$42,$Y$36:$Y$42),COLUMN(AZ29)))) * _xlfn.XLOOKUP($D29,$D$36:$D$42,$P$36:$P$42))) -> 0 | BA29: =IF($F$12=$CH$1, (SUM((_xlfn.XLOOKUP($D29,$D$36:$D$42,$L$36:$L$42)<=BA$24) * (_xlfn.XLOOKUP($D29,$D$36:$D$42,$L$36:$L$42)+_xlfn.XLOOKUP($D29,$D$36:$D$42,$M$36:$M$42)-1>BA$24) * (BA$24+1-_xlfn.XLOOKUP($D29,$D$36:$D$42,$L$36:$L$42)) * _xlfn.XLOOKUP($D29,$D$36:$D$42,$P$36:$P$42) * _xlfn.XLOOKUP($D29,$D$36:$D$42,$W$36:$W$42)) + SUM(_xlfn.XLOOKUP($D29,$D$36:$D$42,$U$36:$U$42) * (_xlfn.XLOOKUP($D29,$D$36:$D$42,$L$36:$L$42) +_xlfn.XLOOKUP($D29,$D$36:$D$42,$M$36:$M$42)-1<=BA$24) * _xlfn.XLOOKUP($D29,$D$36:$D$42,$P$36:$P$42))), (SUM( INDIRECT(ADDRESS(_xlfn.XLOOKUP($D29,$D$36:$D$42,$Y$36:$Y$42),COLUMN($AB$24))): INDIRECT(ADDRESS(_xlfn.XLOOKUP($D29,$D$36:$D$42,$Y$36:$Y$42),COLUMN(BA29)))) * _xlfn.XLOOKUP($D29,$D$36:$D$42,$P$36:$P$42))) -> 0 | BB29: =IF($F$12=$CH$1, (SUM((_xlfn.XLOOKUP($D29,$D$36:$D$42,$L$36:$L$42)<=BB$24) * (_xlfn.XLOOKUP($D29,$D$36:$D$42,$L$36:$L$42)+_xlfn.XLOOKUP($D29,$D$36:$D$42,$M$36:$M$42)-1>BB$24) * (BB$24+1-_xlfn.XLOOKUP($D29,$D$36:$D$42,$L$36:$L$42)) * _xlfn.XLOOKUP($D29,$D$36:$D$42,$P$36:$P$42) * _xlfn.XLOOKUP($D29,$D$36:$D$42,$W$36:$W$42)) + SUM(_xlfn.XLOOKUP($D29,$D$36:$D$42,$U$36:$U$42) * (_xlfn.XLOOKUP($D29,$D$36:$D$42,$L$36:$L$42) +_xlfn.XLOOKUP($D29,$D$36:$D$42,$M$36:$M$42)-1<=BB$24) * _xlfn.XLOOKUP($D29,$D$36:$D$42,$P$36:$P$42))), (SUM( INDIRECT(ADDRESS(_xlfn.XLOOKUP($D29,$D$36:$D$42,$Y$36:$Y$42),COLUMN($AB$24))): INDIRECT(ADDRESS(_xlfn.XLOOKUP($D29,$D$36:$D$42,$Y$36:$Y$42),COLUMN(BB29)))) * _xlfn.XLOOKUP($D29,$D$36:$D$42,$P$36:$P$42))) -> 0 | BC29: =IF($F$12=$CH$1, (SUM((_xlfn.XLOOKUP($D29,$D$36:$D$42,$L$36:$L$42)<=BC$24) * (_xlfn.XLOOKUP($D29,$D$36:$D$42,$L$36:$L$42)+_xlfn.XLOOKUP($D29,$D$36:$D$42,$M$36:$M$42)-1>BC$24) * (BC$24+1-_xlfn.XLOOKUP($D29,$D$36:$D$42,$L$36:$L$42)) * _xlfn.XLOOKUP($D29,$D$36:$D$42,$P$36:$P$42) * _xlfn.XLOOKUP($D29,$D$36:$D$42,$W$36:$W$42)) + SUM(_xlfn.XLOOKUP($D29,$D$36:$D$42,$U$36:$U$42) * (_xlfn.XLOOKUP($D29,$D$36:$D$42,$L$36:$L$42) +_xlfn.XLOOKUP($D29,$D$36:$D$42,$M$36:$M$42)-1<=BC$24) * _xlfn.XLOOKUP($D29,$D$36:$D$42,$P$36:$P$42))), (SUM( INDIRECT(ADDRESS(_xlfn.XLOOKUP($D29,$D$36:$D$42,$Y$36:$Y$42),COLUMN($AB$24))): INDIRECT(ADDRESS(_xlfn.XLOOKUP($D29,$D$36:$D$42,$Y$36:$Y$42),COLUMN(BC29)))) * _xlfn.XLOOKUP($D29,$D$36:$D$42,$P$36:$P$42))) -> 0 | BD29: =IF($F$12=$CH$1, (SUM((_xlfn.XLOOKUP($D29,$D$36:$D$42,$L$36:$L$42)<=BD$24) * (_xlfn.XLOOKUP($D29,$D$36:$D$42,$L$36:$L$42)+_xlfn.XLOOKUP($D29,$D$36:$D$42,$M$36:$M$42)-1>BD$24) * (BD$24+1-_xlfn.XLOOKUP($D29,$D$36:$D$42,$L$36:$L$42)) * _xlfn.XLOOKUP($D29,$D$36:$D$42,$P$36:$P$42) * _xlfn.XLOOKUP($D29,$D$36:$D$42,$W$36:$W$42)) + SUM(_xlfn.XLOOKUP($D29,$D$36:$D$42,$U$36:$U$42) * (_xlfn.XLOOKUP($D29,$D$36:$D$42,$L$36:$L$42) +_xlfn.XLOOKUP($D29,$D$36:$D$42,$M$36:$M$42)-1<=BD$24) * _xlfn.XLOOKUP($D29,$D$36:$D$42,$P$36:$P$42))), (SUM( INDIRECT(ADDRESS(_xlfn.XLOOKUP($D29,$D$36:$D$42,$Y$36:$Y$42),COLUMN($AB$24))): INDIRECT(ADDRESS(_xlfn.XLOOKUP($D29,$D$36:$D$42,$Y$36:$Y$42),COLUMN(BD29)))) * _xlfn.XLOOKUP($D29,$D$36:$D$42,$P$36:$P$42))) -> 0 | BE29: =IF($F$12=$CH$1, (SUM((_xlfn.XLOOKUP($D29,$D$36:$D$42,$L$36:$L$42)<=BE$24) * (_xlfn.XLOOKUP($D29,$D$36:$D$42,$L$36:$L$42)+_xlfn.XLOOKUP($D29,$D$36:$D$42,$M$36:$M$42)-1>BE$24) * (BE$24+1-_xlfn.XLOOKUP($D29,$D$36:$D$42,$L$36:$L$42)) * _xlfn.XLOOKUP($D29,$D$36:$D$42,$P$36:$P$42) * _xlfn.XLOOKUP($D29,$D$36:$D$42,$W$36:$W$42)) + SUM(_xlfn.XLOOKUP($D29,$D$36:$D$42,$U$36:$U$42) * (_xlfn.XLOOKUP($D29,$D$36:$D$42,$L$36:$L$42) +_xlfn.XLOOKUP($D29,$D$36:$D$42,$M$36:$M$42)-1<=BE$24) * _xlfn.XLOOKUP($D29,$D$36:$D$42,$P$36:$P$42))), (SUM( INDIRECT(ADDRESS(_xlfn.XLOOKUP($D29,$D$36:$D$42,$Y$36:$Y$42),COLUMN($AB$24))): INDIRECT(ADDRESS(_xlfn.XLOOKUP($D29,$D$36:$D$42,$Y$36:$Y$42),COLUMN(BE29)))) * _xlfn.XLOOKUP($D29,$D$36:$D$42,$P$36:$P$42))) -> 0 | BF29: =IF($F$12=$CH$1, (SUM((_xlfn.XLOOKUP($D29,$D$36:$D$42,$L$36:$L$42)<=BF$24) * (_xlfn.XLOOKUP($D29,$D$36:$D$42,$L$36:$L$42)+_xlfn.XLOOKUP($D29,$D$36:$D$42,$M$36:$M$42)-1>BF$24) * (BF$24+1-_xlfn.XLOOKUP($D29,$D$36:$D$42,$L$36:$L$42)) * _xlfn.XLOOKUP($D29,$D$36:$D$42,$P$36:$P$42) * _xlfn.XLOOKUP($D29,$D$36:$D$42,$W$36:$W$42)) + SUM(_xlfn.XLOOKUP($D29,$D$36:$D$42,$U$36:$U$42) * (_xlfn.XLOOKUP($D29,$D$36:$D$42,$L$36:$L$42) +_xlfn.XLOOKUP($D29,$D$36:$D$42,$M$36:$M$42)-1<=BF$24) * _xlfn.XLOOKUP($D29,$D$36:$D$42,$P$36:$P$42))), (SUM( INDIRECT(ADDRESS(_xlfn.XLOOKUP($D29,$D$36:$D$42,$Y$36:$Y$42),COLUMN($AB$24))): INDIRECT(ADDRESS(_xlfn.XLOOKUP($D29,$D$36:$D$42,$Y$36:$Y$42),COLUMN(BF29)))) * _xlfn.XLOOKUP($D29,$D$36:$D$42,$P$36:$P$42))) -> 0 | BG29: =IF($F$12=$CH$1, (SUM((_xlfn.XLOOKUP($D29,$D$36:$D$42,$L$36:$L$42)<=BG$24) * (_xlfn.XLOOKUP($D29,$D$36:$D$42,$L$36:$L$42)+_xlfn.XLOOKUP($D29,$D$36:$D$42,$M$36:$M$42)-1>BG$24) * (BG$24+1-_xlfn.XLOOKUP($D29,$D$36:$D$42,$L$36:$L$42)) * _xlfn.XLOOKUP($D29,$D$36:$D$42,$P$36:$P$42) * _xlfn.XLOOKUP($D29,$D$36:$D$42,$W$36:$W$42)) + SUM(_xlfn.XLOOKUP($D29,$D$36:$D$42,$U$36:$U$42) * (_xlfn.XLOOKUP($D29,$D$36:$D$42,$L$36:$L$42) +_xlfn.XLOOKUP($D29,$D$36:$D$42,$M$36:$M$42)-1<=BG$24) * _xlfn.XLOOKUP($D29,$D$36:$D$42,$P$36:$P$42))), (SUM( INDIRECT(ADDRESS(_xlfn.XLOOKUP($D29,$D$36:$D$42,$Y$36:$Y$42),COLUMN($AB$24))): INDIRECT(ADDRESS(_xlfn.XLOOKUP($D29,$D$36:$D$42,$Y$36:$Y$42),COLUMN(BG29)))) * _xlfn.XLOOKUP($D29,$D$36:$D$42,$P$36:$P$42))) -> 0 | BH29: =IF($F$12=$CH$1, (SUM((_xlfn.XLOOKUP($D29,$D$36:$D$42,$L$36:$L$42)<=BH$24) * (_xlfn.XLOOKUP($D29,$D$36:$D$42,$L$36:$L$42)+_xlfn.XLOOKUP($D29,$D$36:$D$42,$M$36:$M$42)-1>BH$24) * (BH$24+1-_xlfn.XLOOKUP($D29,$D$36:$D$42,$L$36:$L$42)) * _xlfn.XLOOKUP($D29,$D$36:$D$42,$P$36:$P$42) * _xlfn.XLOOKUP($D29,$D$36:$D$42,$W$36:$W$42)) + SUM(_xlfn.XLOOKUP($D29,$D$36:$D$42,$U$36:$U$42) * (_xlfn.XLOOKUP($D29,$D$36:$D$42,$L$36:$L$42) +_xlfn.XLOOKUP($D29,$D$36:$D$42,$M$36:$M$42)-1<=BH$24) * _xlfn.XLOOKUP($D29,$D$36:$D$42,$P$36:$P$42))), (SUM( INDIRECT(ADDRESS(_xlfn.XLOOKUP($D29,$D$36:$D$42,$Y$36:$Y$42),COLUMN($AB$24))): INDIRECT(ADDRESS(_xlfn.XLOOKUP($D29,$D$36:$D$42,$Y$36:$Y$42),COLUMN(BH29)))) * _xlfn.XLOOKUP($D29,$D$36:$D$42,$P$36:$P$42))) -> 0 | BI29: =IF($F$12=$CH$1, (SUM((_xlfn.XLOOKUP($D29,$D$36:$D$42,$L$36:$L$42)<=BI$24) * (_xlfn.XLOOKUP($D29,$D$36:$D$42,$L$36:$L$42)+_xlfn.XLOOKUP($D29,$D$36:$D$42,$M$36:$M$42)-1>BI$24) * (BI$24+1-_xlfn.XLOOKUP($D29,$D$36:$D$42,$L$36:$L$42)) * _xlfn.XLOOKUP($D29,$D$36:$D$42,$P$36:$P$42) * _xlfn.XLOOKUP($D29,$D$36:$D$42,$W$36:$W$42)) + SUM(_xlfn.XLOOKUP($D29,$D$36:$D$42,$U$36:$U$42) * (_xlfn.XLOOKUP($D29,$D$36:$D$42,$L$36:$L$42) +_xlfn.XLOOKUP($D29,$D$36:$D$42,$M$36:$M$42)-1<=BI$24) * _xlfn.XLOOKUP($D29,$D$36:$D$42,$P$36:$P$42))), (SUM( INDIRECT(ADDRESS(_xlfn.XLOOKUP($D29,$D$36:$D$42,$Y$36:$Y$42),COLUMN($AB$24))): INDIRECT(ADDRESS(_xlfn.XLOOKUP($D29,$D$36:$D$42,$Y$36:$Y$42),COLUMN(BI29)))) * _xlfn.XLOOKUP($D29,$D$36:$D$42,$P$36:$P$42))) -> 0 | BJ29: =IF($F$12=$CH$1, (SUM((_xlfn.XLOOKUP($D29,$D$36:$D$42,$L$36:$L$42)<=BJ$24) * (_xlfn.XLOOKUP($D29,$D$36:$D$42,$L$36:$L$42)+_xlfn.XLOOKUP($D29,$D$36:$D$42,$M$36:$M$42)-1>BJ$24) * (BJ$24+1-_xlfn.XLOOKUP($D29,$D$36:$D$42,$L$36:$L$42)) * _xlfn.XLOOKUP($D29,$D$36:$D$42,$P$36:$P$42) * _xlfn.XLOOKUP($D29,$D$36:$D$42,$W$36:$W$42)) + SUM(_xlfn.XLOOKUP($D29,$D$36:$D$42,$U$36:$U$42) * (_xlfn.XLOOKUP($D29,$D$36:$D$42,$L$36:$L$42) +_xlfn.XLOOKUP($D29,$D$36:$D$42,$M$36:$M$42)-1<=BJ$24) * _xlfn.XLOOKUP($D29,$D$36:$D$42,$P$36:$P$42))), (SUM( INDIRECT(ADDRESS(_xlfn.XLOOKUP($D29,$D$36:$D$42,$Y$36:$Y$42),COLUMN($AB$24))): INDIRECT(ADDRESS(_xlfn.XLOOKUP($D29,$D$36:$D$42,$Y$36:$Y$42),COLUMN(BJ29)))) * _xlfn.XLOOKUP($D29,$D$36:$D$42,$P$36:$P$42))) -> 0 | BK29: =IF($F$12=$CH$1, (SUM((_xlfn.XLOOKUP($D29,$D$36:$D$42,$L$36:$L$42)<=BK$24) * (_xlfn.XLOOKUP($D29,$D$36:$D$42,$L$36:$L$42)+_xlfn.XLOOKUP($D29,$D$36:$D$42,$M$36:$M$42)-1>BK$24) * (BK$24+1-_xlfn.XLOOKUP($D29,$D$36:$D$42,$L$36:$L$42)) * _xlfn.XLOOKUP($D29,$D$36:$D$42,$P$36:$P$42) * _xlfn.XLOOKUP($D29,$D$36:$D$42,$W$36:$W$42)) + SUM(_xlfn.XLOOKUP($D29,$D$36:$D$42,$U$36:$U$42) * (_xlfn.XLOOKUP($D29,$D$36:$D$42,$L$36:$L$42) +_xlfn.XLOOKUP($D29,$D$36:$D$42,$M$36:$M$42)-1<=BK$24) * _xlfn.XLOOKUP($D29,$D$36:$D$42,$P$36:$P$42))), (SUM( INDIRECT(ADDRESS(_xlfn.XLOOKUP($D29,$D$36:$D$42,$Y$36:$Y$42),COLUMN($AB$24))): INDIRECT(ADDRESS(_xlfn.XLOOKUP($D29,$D$36:$D$42,$Y$36:$Y$42),COLUMN(BK29)))) * _xlfn.XLOOKUP($D29,$D$36:$D$42,$P$36:$P$42))) -> 0 | BL29: =IF($F$12=$CH$1, (SUM((_xlfn.XLOOKUP($D29,$D$36:$D$42,$L$36:$L$42)<=BL$24) * (_xlfn.XLOOKUP($D29,$D$36:$D$42,$L$36:$L$42)+_xlfn.XLOOKUP($D29,$D$36:$D$42,$M$36:$M$42)-1>BL$24) * (BL$24+1-_xlfn.XLOOKUP($D29,$D$36:$D$42,$L$36:$L$42)) * _xlfn.XLOOKUP($D29,$D$36:$D$42,$P$36:$P$42) * _xlfn.XLOOKUP($D29,$D$36:$D$42,$W$36:$W$42)) + SUM(_xlfn.XLOOKUP($D29,$D$36:$D$42,$U$36:$U$42) * (_xlfn.XLOOKUP($D29,$D$36:$D$42,$L$36:$L$42) +_xlfn.XLOOKUP($D29,$D$36:$D$42,$M$36:$M$42)-1<=BL$24) * _xlfn.XLOOKUP($D29,$D$36:$D$42,$P$36:$P$42))), (SUM( INDIRECT(ADDRESS(_xlfn.XLOOKUP($D29,$D$36:$D$42,$Y$36:$Y$42),COLUMN($AB$24))): INDIRECT(ADDRESS(_xlfn.XLOOKUP($D29,$D$36:$D$42,$Y$36:$Y$42),COLUMN(BL29)))) * _xlfn.XLOOKUP($D29,$D$36:$D$42,$P$36:$P$42))) -> 0 | BM29: =IF($F$12=$CH$1, (SUM((_xlfn.XLOOKUP($D29,$D$36:$D$42,$L$36:$L$42)<=BM$24) * (_xlfn.XLOOKUP($D29,$D$36:$D$42,$L$36:$L$42)+_xlfn.XLOOKUP($D29,$D$36:$D$42,$M$36:$M$42)-1>BM$24) * (BM$24+1-_xlfn.XLOOKUP($D29,$D$36:$D$42,$L$36:$L$42)) * _xlfn.XLOOKUP($D29,$D$36:$D$42,$P$36:$P$42) * _xlfn.XLOOKUP($D29,$D$36:$D$42,$W$36:$W$42)) + SUM(_xlfn.XLOOKUP($D29,$D$36:$D$42,$U$36:$U$42) * (_xlfn.XLOOKUP($D29,$D$36:$D$42,$L$36:$L$42) +_xlfn.XLOOKUP($D29,$D$36:$D$42,$M$36:$M$42)-1<=BM$24) * _xlfn.XLOOKUP($D29,$D$36:$D$42,$P$36:$P$42))), (SUM( INDIRECT(ADDRESS(_xlfn.XLOOKUP($D29,$D$36:$D$42,$Y$36:$Y$42),COLUMN($AB$24))): INDIRECT(ADDRESS(_xlfn.XLOOKUP($D29,$D$36:$D$42,$Y$36:$Y$42),COLUMN(BM29)))) * _xlfn.XLOOKUP($D29,$D$36:$D$42,$P$36:$P$42))) -> 0 | BN29: =IF($F$12=$CH$1, (SUM((_xlfn.XLOOKUP($D29,$D$36:$D$42,$L$36:$L$42)<=BN$24) * (_xlfn.XLOOKUP($D29,$D$36:$D$42,$L$36:$L$42)+_xlfn.XLOOKUP($D29,$D$36:$D$42,$M$36:$M$42)-1>BN$24) * (BN$24+1-_xlfn.XLOOKUP($D29,$D$36:$D$42,$L$36:$L$42)) * _xlfn.XLOOKUP($D29,$D$36:$D$42,$P$36:$P$42) * _xlfn.XLOOKUP($D29,$D$36:$D$42,$W$36:$W$42)) + SUM(_xlfn.XLOOKUP($D29,$D$36:$D$42,$U$36:$U$42) * (_xlfn.XLOOKUP($D29,$D$36:$D$42,$L$36:$L$42) +_xlfn.XLOOKUP($D29,$D$36:$D$42,$M$36:$M$42)-1<=BN$24) * _xlfn.XLOOKUP($D29,$D$36:$D$42,$P$36:$P$42))), (SUM( INDIRECT(ADDRESS(_xlfn.XLOOKUP($D29,$D$36:$D$42,$Y$36:$Y$42),COLUMN($AB$24))): INDIRECT(ADDRESS(_xlfn.XLOOKUP($D29,$D$36:$D$42,$Y$36:$Y$42),COLUMN(BN29)))) * _xlfn.XLOOKUP($D29,$D$36:$D$42,$P$36:$P$42))) -> 0 | BO29: =IF($F$12=$CH$1, (SUM((_xlfn.XLOOKUP($D29,$D$36:$D$42,$L$36:$L$42)<=BO$24) * (_xlfn.XLOOKUP($D29,$D$36:$D$42,$L$36:$L$42)+_xlfn.XLOOKUP($D29,$D$36:$D$42,$M$36:$M$42)-1>BO$24) * (BO$24+1-_xlfn.XLOOKUP($D29,$D$36:$D$42,$L$36:$L$42)) * _xlfn.XLOOKUP($D29,$D$36:$D$42,$P$36:$P$42) * _xlfn.XLOOKUP($D29,$D$36:$D$42,$W$36:$W$42)) + SUM(_xlfn.XLOOKUP($D29,$D$36:$D$42,$U$36:$U$42) * (_xlfn.XLOOKUP($D29,$D$36:$D$42,$L$36:$L$42) +_xlfn.XLOOKUP($D29,$D$36:$D$42,$M$36:$M$42)-1<=BO$24) * _xlfn.XLOOKUP($D29,$D$36:$D$42,$P$36:$P$42))), (SUM( INDIRECT(ADDRESS(_xlfn.XLOOKUP($D29,$D$36:$D$42,$Y$36:$Y$42),COLUMN($AB$24))): INDIRECT(ADDRESS(_xlfn.XLOOKUP($D29,$D$36:$D$42,$Y$36:$Y$42),COLUMN(BO29)))) * _xlfn.XLOOKUP($D29,$D$36:$D$42,$P$36:$P$42))) -> 0 | BP29: =IF($F$12=$CH$1, (SUM((_xlfn.XLOOKUP($D29,$D$36:$D$42,$L$36:$L$42)<=BP$24) * (_xlfn.XLOOKUP($D29,$D$36:$D$42,$L$36:$L$42)+_xlfn.XLOOKUP($D29,$D$36:$D$42,$M$36:$M$42)-1>BP$24) * (BP$24+1-_xlfn.XLOOKUP($D29,$D$36:$D$42,$L$36:$L$42)) * _xlfn.XLOOKUP($D29,$D$36:$D$42,$P$36:$P$42) * _xlfn.XLOOKUP($D29,$D$36:$D$42,$W$36:$W$42)) + SUM(_xlfn.XLOOKUP($D29,$D$36:$D$42,$U$36:$U$42) * (_xlfn.XLOOKUP($D29,$D$36:$D$42,$L$36:$L$42) +_xlfn.XLOOKUP($D29,$D$36:$D$42,$M$36:$M$42)-1<=BP$24) * _xlfn.XLOOKUP($D29,$D$36:$D$42,$P$36:$P$42))), (SUM( INDIRECT(ADDRESS(_xlfn.XLOOKUP($D29,$D$36:$D$42,$Y$36:$Y$42),COLUMN($AB$24))): INDIRECT(ADDRESS(_xlfn.XLOOKUP($D29,$D$36:$D$42,$Y$36:$Y$42),COLUMN(BP29)))) * _xlfn.XLOOKUP($D29,$D$36:$D$42,$P$36:$P$42))) -> 0 | BQ29: =IF($F$12=$CH$1, (SUM((_xlfn.XLOOKUP($D29,$D$36:$D$42,$L$36:$L$42)<=BQ$24) * (_xlfn.XLOOKUP($D29,$D$36:$D$42,$L$36:$L$42)+_xlfn.XLOOKUP($D29,$D$36:$D$42,$M$36:$M$42)-1>BQ$24) * (BQ$24+1-_xlfn.XLOOKUP($D29,$D$36:$D$42,$L$36:$L$42)) * _xlfn.XLOOKUP($D29,$D$36:$D$42,$P$36:$P$42) * _xlfn.XLOOKUP($D29,$D$36:$D$42,$W$36:$W$42)) + SUM(_xlfn.XLOOKUP($D29,$D$36:$D$42,$U$36:$U$42) * (_xlfn.XLOOKUP($D29,$D$36:$D$42,$L$36:$L$42) +_xlfn.XLOOKUP($D29,$D$36:$D$42,$M$36:$M$42)-1<=BQ$24) * _xlfn.XLOOKUP($D29,$D$36:$D$42,$P$36:$P$42))), (SUM( INDIRECT(ADDRESS(_xlfn.XLOOKUP($D29,$D$36:$D$42,$Y$36:$Y$42),COLUMN($AB$24))): INDIRECT(ADDRESS(_xlfn.XLOOKUP($D29,$D$36:$D$42,$Y$36:$Y$42),COLUMN(BQ29)))) * _xlfn.XLOOKUP($D29,$D$36:$D$42,$P$36:$P$42))) -> 0 | BR29: =IF($F$12=$CH$1, (SUM((_xlfn.XLOOKUP($D29,$D$36:$D$42,$L$36:$L$42)<=BR$24) * (_xlfn.XLOOKUP($D29,$D$36:$D$42,$L$36:$L$42)+_xlfn.XLOOKUP($D29,$D$36:$D$42,$M$36:$M$42)-1>BR$24) * (BR$24+1-_xlfn.XLOOKUP($D29,$D$36:$D$42,$L$36:$L$42)) * _xlfn.XLOOKUP($D29,$D$36:$D$42,$P$36:$P$42) * _xlfn.XLOOKUP($D29,$D$36:$D$42,$W$36:$W$42)) + SUM(_xlfn.XLOOKUP($D29,$D$36:$D$42,$U$36:$U$42) * (_xlfn.XLOOKUP($D29,$D$36:$D$42,$L$36:$L$42) +_xlfn.XLOOKUP($D29,$D$36:$D$42,$M$36:$M$42)-1<=BR$24) * _xlfn.XLOOKUP($D29,$D$36:$D$42,$P$36:$P$42))), (SUM( INDIRECT(ADDRESS(_xlfn.XLOOKUP($D29,$D$36:$D$42,$Y$36:$Y$42),COLUMN($AB$24))): INDIRECT(ADDRESS(_xlfn.XLOOKUP($D29,$D$36:$D$42,$Y$36:$Y$42),COLUMN(BR29)))) * _xlfn.XLOOKUP($D29,$D$36:$D$42,$P$36:$P$42))) -> 0 | BS29: =IF($F$12=$CH$1, (SUM((_xlfn.XLOOKUP($D29,$D$36:$D$42,$L$36:$L$42)<=BS$24) * (_xlfn.XLOOKUP($D29,$D$36:$D$42,$L$36:$L$42)+_xlfn.XLOOKUP($D29,$D$36:$D$42,$M$36:$M$42)-1>BS$24) * (BS$24+1-_xlfn.XLOOKUP($D29,$D$36:$D$42,$L$36:$L$42)) * _xlfn.XLOOKUP($D29,$D$36:$D$42,$P$36:$P$42) * _xlfn.XLOOKUP($D29,$D$36:$D$42,$W$36:$W$42)) + SUM(_xlfn.XLOOKUP($D29,$D$36:$D$42,$U$36:$U$42) * (_xlfn.XLOOKUP($D29,$D$36:$D$42,$L$36:$L$42) +_xlfn.XLOOKUP($D29,$D$36:$D$42,$M$36:$M$42)-1<=BS$24) * _xlfn.XLOOKUP($D29,$D$36:$D$42,$P$36:$P$42))), (SUM( INDIRECT(ADDRESS(_xlfn.XLOOKUP($D29,$D$36:$D$42,$Y$36:$Y$42),COLUMN($AB$24))): INDIRECT(ADDRESS(_xlfn.XLOOKUP($D29,$D$36:$D$42,$Y$36:$Y$42),COLUMN(BS29)))) * _xlfn.XLOOKUP($D29,$D$36:$D$42,$P$36:$P$42))) -> 0 | BT29: =IF($F$12=$CH$1, (SUM((_xlfn.XLOOKUP($D29,$D$36:$D$42,$L$36:$L$42)<=BT$24) * (_xlfn.XLOOKUP($D29,$D$36:$D$42,$L$36:$L$42)+_xlfn.XLOOKUP($D29,$D$36:$D$42,$M$36:$M$42)-1>BT$24) * (BT$24+1-_xlfn.XLOOKUP($D29,$D$36:$D$42,$L$36:$L$42)) * _xlfn.XLOOKUP($D29,$D$36:$D$42,$P$36:$P$42) * _xlfn.XLOOKUP($D29,$D$36:$D$42,$W$36:$W$42)) + SUM(_xlfn.XLOOKUP($D29,$D$36:$D$42,$U$36:$U$42) * (_xlfn.XLOOKUP($D29,$D$36:$D$42,$L$36:$L$42) +_xlfn.XLOOKUP($D29,$D$36:$D$42,$M$36:$M$42)-1<=BT$24) * _xlfn.XLOOKUP($D29,$D$36:$D$42,$P$36:$P$42))), (SUM( INDIRECT(ADDRESS(_xlfn.XLOOKUP($D29,$D$36:$D$42,$Y$36:$Y$42),COLUMN($AB$24))): INDIRECT(ADDRESS(_xlfn.XLOOKUP($D29,$D$36:$D$42,$Y$36:$Y$42),COLUMN(BT29)))) * _xlfn.XLOOKUP($D29,$D$36:$D$42,$P$36:$P$42))) -> 0 | BU29: =IF($F$12=$CH$1, (SUM((_xlfn.XLOOKUP($D29,$D$36:$D$42,$L$36:$L$42)<=BU$24) * (_xlfn.XLOOKUP($D29,$D$36:$D$42,$L$36:$L$42)+_xlfn.XLOOKUP($D29,$D$36:$D$42,$M$36:$M$42)-1>BU$24) * (BU$24+1-_xlfn.XLOOKUP($D29,$D$36:$D$42,$L$36:$L$42)) * _xlfn.XLOOKUP($D29,$D$36:$D$42,$P$36:$P$42) * _xlfn.XLOOKUP($D29,$D$36:$D$42,$W$36:$W$42)) + SUM(_xlfn.XLOOKUP($D29,$D$36:$D$42,$U$36:$U$42) * (_xlfn.XLOOKUP($D29,$D$36:$D$42,$L$36:$L$42) +_xlfn.XLOOKUP($D29,$D$36:$D$42,$M$36:$M$42)-1<=BU$24) * _xlfn.XLOOKUP($D29,$D$36:$D$42,$P$36:$P$42))), (SUM( INDIRECT(ADDRESS(_xlfn.XLOOKUP($D29,$D$36:$D$42,$Y$36:$Y$42),COLUMN($AB$24))): INDIRECT(ADDRESS(_xlfn.XLOOKUP($D29,$D$36:$D$42,$Y$36:$Y$42),COLUMN(BU29)))) * _xlfn.XLOOKUP($D29,$D$36:$D$42,$P$36:$P$42))) -> 0 | BV29: =IF($F$12=$CH$1, (SUM((_xlfn.XLOOKUP($D29,$D$36:$D$42,$L$36:$L$42)<=BV$24) * (_xlfn.XLOOKUP($D29,$D$36:$D$42,$L$36:$L$42)+_xlfn.XLOOKUP($D29,$D$36:$D$42,$M$36:$M$42)-1>BV$24) * (BV$24+1-_xlfn.XLOOKUP($D29,$D$36:$D$42,$L$36:$L$42)) * _xlfn.XLOOKUP($D29,$D$36:$D$42,$P$36:$P$42) * _xlfn.XLOOKUP($D29,$D$36:$D$42,$W$36:$W$42)) + SUM(_xlfn.XLOOKUP($D29,$D$36:$D$42,$U$36:$U$42) * (_xlfn.XLOOKUP($D29,$D$36:$D$42,$L$36:$L$42) +_xlfn.XLOOKUP($D29,$D$36:$D$42,$M$36:$M$42)-1<=BV$24) * _xlfn.XLOOKUP($D29,$D$36:$D$42,$P$36:$P$42))), (SUM( INDIRECT(ADDRESS(_xlfn.XLOOKUP($D29,$D$36:$D$42,$Y$36:$Y$42),COLUMN($AB$24))): INDIRECT(ADDRESS(_xlfn.XLOOKUP($D29,$D$36:$D$42,$Y$36:$Y$42),COLUMN(BV29)))) * _xlfn.XLOOKUP($D29,$D$36:$D$42,$P$36:$P$42))) -> 0 | BW29: =IF($F$12=$CH$1, (SUM((_xlfn.XLOOKUP($D29,$D$36:$D$42,$L$36:$L$42)<=BW$24) * (_xlfn.XLOOKUP($D29,$D$36:$D$42,$L$36:$L$42)+_xlfn.XLOOKUP($D29,$D$36:$D$42,$M$36:$M$42)-1>BW$24) * (BW$24+1-_xlfn.XLOOKUP($D29,$D$36:$D$42,$L$36:$L$42)) * _xlfn.XLOOKUP($D29,$D$36:$D$42,$P$36:$P$42) * _xlfn.XLOOKUP($D29,$D$36:$D$42,$W$36:$W$42)) + SUM(_xlfn.XLOOKUP($D29,$D$36:$D$42,$U$36:$U$42) * (_xlfn.XLOOKUP($D29,$D$36:$D$42,$L$36:$L$42) +_xlfn.XLOOKUP($D29,$D$36:$D$42,$M$36:$M$42)-1<=BW$24) * _xlfn.XLOOKUP($D29,$D$36:$D$42,$P$36:$P$42))), (SUM( INDIRECT(ADDRESS(_xlfn.XLOOKUP($D29,$D$36:$D$42,$Y$36:$Y$42),COLUMN($AB$24))): INDIRECT(ADDRESS(_xlfn.XLOOKUP($D29,$D$36:$D$42,$Y$36:$Y$42),COLUMN(BW29)))) * _xlfn.XLOOKUP($D29,$D$36:$D$42,$P$36:$P$42))) -> 0 | BX29: =IF($F$12=$CH$1, (SUM((_xlfn.XLOOKUP($D29,$D$36:$D$42,$L$36:$L$42)<=BX$24) * (_xlfn.XLOOKUP($D29,$D$36:$D$42,$L$36:$L$42)+_xlfn.XLOOKUP($D29,$D$36:$D$42,$M$36:$M$42)-1>BX$24) * (BX$24+1-_xlfn.XLOOKUP($D29,$D$36:$D$42,$L$36:$L$42)) * _xlfn.XLOOKUP($D29,$D$36:$D$42,$P$36:$P$42) * _xlfn.XLOOKUP($D29,$D$36:$D$42,$W$36:$W$42)) + SUM(_xlfn.XLOOKUP($D29,$D$36:$D$42,$U$36:$U$42) * (_xlfn.XLOOKUP($D29,$D$36:$D$42,$L$36:$L$42) +_xlfn.XLOOKUP($D29,$D$36:$D$42,$M$36:$M$42)-1<=BX$24) * _xlfn.XLOOKUP($D29,$D$36:$D$42,$P$36:$P$42))), (SUM( INDIRECT(ADDRESS(_xlfn.XLOOKUP($D29,$D$36:$D$42,$Y$36:$Y$42),COLUMN($AB$24))): INDIRECT(ADDRESS(_xlfn.XLOOKUP($D29,$D$36:$D$42,$Y$36:$Y$42),COLUMN(BX29)))) * _xlfn.XLOOKUP($D29,$D$36:$D$42,$P$36:$P$42))) -> 0 | BY29: =IF($F$12=$CH$1, (SUM((_xlfn.XLOOKUP($D29,$D$36:$D$42,$L$36:$L$42)<=BY$24) * (_xlfn.XLOOKUP($D29,$D$36:$D$42,$L$36:$L$42)+_xlfn.XLOOKUP($D29,$D$36:$D$42,$M$36:$M$42)-1>BY$24) * (BY$24+1-_xlfn.XLOOKUP($D29,$D$36:$D$42,$L$36:$L$42)) * _xlfn.XLOOKUP($D29,$D$36:$D$42,$P$36:$P$42) * _xlfn.XLOOKUP($D29,$D$36:$D$42,$W$36:$W$42)) + SUM(_xlfn.XLOOKUP($D29,$D$36:$D$42,$U$36:$U$42) * (_xlfn.XLOOKUP($D29,$D$36:$D$42,$L$36:$L$42) +_xlfn.XLOOKUP($D29,$D$36:$D$42,$M$36:$M$42)-1<=BY$24) * _xlfn.XLOOKUP($D29,$D$36:$D$42,$P$36:$P$42))), (SUM( INDIRECT(ADDRESS(_xlfn.XLOOKUP($D29,$D$36:$D$42,$Y$36:$Y$42),COLUMN($AB$24))): INDIRECT(ADDRESS(_xlfn.XLOOKUP($D29,$D$36:$D$42,$Y$36:$Y$42),COLUMN(BY29)))) * _xlfn.XLOOKUP($D29,$D$36:$D$42,$P$36:$P$42))) -> 0 | BZ29: =IF($F$12=$CH$1, (SUM((_xlfn.XLOOKUP($D29,$D$36:$D$42,$L$36:$L$42)<=BZ$24) * (_xlfn.XLOOKUP($D29,$D$36:$D$42,$L$36:$L$42)+_xlfn.XLOOKUP($D29,$D$36:$D$42,$M$36:$M$42)-1>BZ$24) * (BZ$24+1-_xlfn.XLOOKUP($D29,$D$36:$D$42,$L$36:$L$42)) * _xlfn.XLOOKUP($D29,$D$36:$D$42,$P$36:$P$42) * _xlfn.XLOOKUP($D29,$D$36:$D$42,$W$36:$W$42)) + SUM(_xlfn.XLOOKUP($D29,$D$36:$D$42,$U$36:$U$42) * (_xlfn.XLOOKUP($D29,$D$36:$D$42,$L$36:$L$42) +_xlfn.XLOOKUP($D29,$D$36:$D$42,$M$36:$M$42)-1<=BZ$24) * _xlfn.XLOOKUP($D29,$D$36:$D$42,$P$36:$P$42))), (SUM( INDIRECT(ADDRESS(_xlfn.XLOOKUP($D29,$D$36:$D$42,$Y$36:$Y$42),COLUMN($AB$24))): INDIRECT(ADDRESS(_xlfn.XLOOKUP($D29,$D$36:$D$42,$Y$36:$Y$42),COLUMN(BZ29)))) * _xlfn.XLOOKUP($D29,$D$36:$D$42,$P$36:$P$42))) -> 0 | CA29: =IF($F$12=$CH$1, (SUM((_xlfn.XLOOKUP($D29,$D$36:$D$42,$L$36:$L$42)<=CA$24) * (_xlfn.XLOOKUP($D29,$D$36:$D$42,$L$36:$L$42)+_xlfn.XLOOKUP($D29,$D$36:$D$42,$M$36:$M$42)-1>CA$24) * (CA$24+1-_xlfn.XLOOKUP($D29,$D$36:$D$42,$L$36:$L$42)) * _xlfn.XLOOKUP($D29,$D$36:$D$42,$P$36:$P$42) * _xlfn.XLOOKUP($D29,$D$36:$D$42,$W$36:$W$42)) + SUM(_xlfn.XLOOKUP($D29,$D$36:$D$42,$U$36:$U$42) * (_xlfn.XLOOKUP($D29,$D$36:$D$42,$L$36:$L$42) +_xlfn.XLOOKUP($D29,$D$36:$D$42,$M$36:$M$42)-1<=CA$24) * _xlfn.XLOOKUP($D29,$D$36:$D$42,$P$36:$P$42))), (SUM( INDIRECT(ADDRESS(_xlfn.XLOOKUP($D29,$D$36:$D$42,$Y$36:$Y$42),COLUMN($AB$24))): INDIRECT(ADDRESS(_xlfn.XLOOKUP($D29,$D$36:$D$42,$Y$36:$Y$42),COLUMN(CA29)))) * _xlfn.XLOOKUP($D29,$D$36:$D$42,$P$36:$P$42))) -> 0 | CB29: =IF($F$12=$CH$1, (SUM((_xlfn.XLOOKUP($D29,$D$36:$D$42,$L$36:$L$42)<=CB$24) * (_xlfn.XLOOKUP($D29,$D$36:$D$42,$L$36:$L$42)+_xlfn.XLOOKUP($D29,$D$36:$D$42,$M$36:$M$42)-1>CB$24) * (CB$24+1-_xlfn.XLOOKUP($D29,$D$36:$D$42,$L$36:$L$42)) * _xlfn.XLOOKUP($D29,$D$36:$D$42,$P$36:$P$42) * _xlfn.XLOOKUP($D29,$D$36:$D$42,$W$36:$W$42)) + SUM(_xlfn.XLOOKUP($D29,$D$36:$D$42,$U$36:$U$42) * (_xlfn.XLOOKUP($D29,$D$36:$D$42,$L$36:$L$42) +_xlfn.XLOOKUP($D29,$D$36:$D$42,$M$36:$M$42)-1<=CB$24) * _xlfn.XLOOKUP($D29,$D$36:$D$42,$P$36:$P$42))), (SUM( INDIRECT(ADDRESS(_xlfn.XLOOKUP($D29,$D$36:$D$42,$Y$36:$Y$42),COLUMN($AB$24))): INDIRECT(ADDRESS(_xlfn.XLOOKUP($D29,$D$36:$D$42,$Y$36:$Y$42),COLUMN(CB29)))) * _xlfn.XLOOKUP($D29,$D$36:$D$42,$P$36:$P$42))) -> 0 | CC29: =IF($F$12=$CH$1, (SUM((_xlfn.XLOOKUP($D29,$D$36:$D$42,$L$36:$L$42)<=CC$24) * (_xlfn.XLOOKUP($D29,$D$36:$D$42,$L$36:$L$42)+_xlfn.XLOOKUP($D29,$D$36:$D$42,$M$36:$M$42)-1>CC$24) * (CC$24+1-_xlfn.XLOOKUP($D29,$D$36:$D$42,$L$36:$L$42)) * _xlfn.XLOOKUP($D29,$D$36:$D$42,$P$36:$P$42) * _xlfn.XLOOKUP($D29,$D$36:$D$42,$W$36:$W$42)) + SUM(_xlfn.XLOOKUP($D29,$D$36:$D$42,$U$36:$U$42) * (_xlfn.XLOOKUP($D29,$D$36:$D$42,$L$36:$L$42) +_xlfn.XLOOKUP($D29,$D$36:$D$42,$M$36:$M$42)-1<=CC$24) * _xlfn.XLOOKUP($D29,$D$36:$D$42,$P$36:$P$42))), (SUM( INDIRECT(ADDRESS(_xlfn.XLOOKUP($D29,$D$36:$D$42,$Y$36:$Y$42),COLUMN($AB$24))): INDIRECT(ADDRESS(_xlfn.XLOOKUP($D29,$D$36:$D$42,$Y$36:$Y$42),COLUMN(CC29)))) * _xlfn.XLOOKUP($D29,$D$36:$D$42,$P$36:$P$42))) -> 0 | CD29: =IF($F$12=$CH$1, (SUM((_xlfn.XLOOKUP($D29,$D$36:$D$42,$L$36:$L$42)<=CD$24) * (_xlfn.XLOOKUP($D29,$D$36:$D$42,$L$36:$L$42)+_xlfn.XLOOKUP($D29,$D$36:$D$42,$M$36:$M$42)-1>CD$24) * (CD$24+1-_xlfn.XLOOKUP($D29,$D$36:$D$42,$L$36:$L$42)) * _xlfn.XLOOKUP($D29,$D$36:$D$42,$P$36:$P$42) * _xlfn.XLOOKUP($D29,$D$36:$D$42,$W$36:$W$42)) + SUM(_xlfn.XLOOKUP($D29,$D$36:$D$42,$U$36:$U$42) * (_xlfn.XLOOKUP($D29,$D$36:$D$42,$L$36:$L$42) +_xlfn.XLOOKUP($D29,$D$36:$D$42,$M$36:$M$42)-1<=CD$24) * _xlfn.XLOOKUP($D29,$D$36:$D$42,$P$36:$P$42))), (SUM( INDIRECT(ADDRESS(_xlfn.XLOOKUP($D29,$D$36:$D$42,$Y$36:$Y$42),COLUMN($AB$24))): INDIRECT(ADDRESS(_xlfn.XLOOKUP($D29,$D$36:$D$42,$Y$36:$Y$42),COLUMN(CD29)))) * _xlfn.XLOOKUP($D29,$D$36:$D$42,$P$36:$P$42))) -> 0 | CE29: =IF($F$12=$CH$1, (SUM((_xlfn.XLOOKUP($D29,$D$36:$D$42,$L$36:$L$42)<=CE$24) * (_xlfn.XLOOKUP($D29,$D$36:$D$42,$L$36:$L$42)+_xlfn.XLOOKUP($D29,$D$36:$D$42,$M$36:$M$42)-1>CE$24) * (CE$24+1-_xlfn.XLOOKUP($D29,$D$36:$D$42,$L$36:$L$42)) * _xlfn.XLOOKUP($D29,$D$36:$D$42,$P$36:$P$42) * _xlfn.XLOOKUP($D29,$D$36:$D$42,$W$36:$W$42)) + SUM(_xlfn.XLOOKUP($D29,$D$36:$D$42,$U$36:$U$42) * (_xlfn.XLOOKUP($D29,$D$36:$D$42,$L$36:$L$42) +_xlfn.XLOOKUP($D29,$D$36:$D$42,$M$36:$M$42)-1<=CE$24) * _xlfn.XLOOKUP($D29,$D$36:$D$42,$P$36:$P$42))), (SUM( INDIRECT(ADDRESS(_xlfn.XLOOKUP($D29,$D$36:$D$42,$Y$36:$Y$42),COLUMN($AB$24))): INDIRECT(ADDRESS(_xlfn.XLOOKUP($D29,$D$36:$D$42,$Y$36:$Y$42),COLUMN(CE29)))) * _xlfn.XLOOKUP($D29,$D$36:$D$42,$P$36:$P$42))) -> 0 | CF29: =IF($F$12=$CH$1, (SUM((_xlfn.XLOOKUP($D29,$D$36:$D$42,$L$36:$L$42)<=CF$24) * (_xlfn.XLOOKUP($D29,$D$36:$D$42,$L$36:$L$42)+_xlfn.XLOOKUP($D29,$D$36:$D$42,$M$36:$M$42)-1>CF$24) * (CF$24+1-_xlfn.XLOOKUP($D29,$D$36:$D$42,$L$36:$L$42)) * _xlfn.XLOOKUP($D29,$D$36:$D$42,$P$36:$P$42) * _xlfn.XLOOKUP($D29,$D$36:$D$42,$W$36:$W$42)) + SUM(_xlfn.XLOOKUP($D29,$D$36:$D$42,$U$36:$U$42) * (_xlfn.XLOOKUP($D29,$D$36:$D$42,$L$36:$L$42) +_xlfn.XLOOKUP($D29,$D$36:$D$42,$M$36:$M$42)-1<=CF$24) * _xlfn.XLOOKUP($D29,$D$36:$D$42,$P$36:$P$42))), (SUM( INDIRECT(ADDRESS(_xlfn.XLOOKUP($D29,$D$36:$D$42,$Y$36:$Y$42),COLUMN($AB$24))): INDIRECT(ADDRESS(_xlfn.XLOOKUP($D29,$D$36:$D$42,$Y$36:$Y$42),COLUMN(CF29)))) * _xlfn.XLOOKUP($D29,$D$36:$D$42,$P$36:$P$42))) -> 0 | CG29: =IF($F$12=$CH$1, (SUM((_xlfn.XLOOKUP($D29,$D$36:$D$42,$L$36:$L$42)<=CG$24) * (_xlfn.XLOOKUP($D29,$D$36:$D$42,$L$36:$L$42)+_xlfn.XLOOKUP($D29,$D$36:$D$42,$M$36:$M$42)-1>CG$24) * (CG$24+1-_xlfn.XLOOKUP($D29,$D$36:$D$42,$L$36:$L$42)) * _xlfn.XLOOKUP($D29,$D$36:$D$42,$P$36:$P$42) * _xlfn.XLOOKUP($D29,$D$36:$D$42,$W$36:$W$42)) + SUM(_xlfn.XLOOKUP($D29,$D$36:$D$42,$U$36:$U$42) * (_xlfn.XLOOKUP($D29,$D$36:$D$42,$L$36:$L$42) +_xlfn.XLOOKUP($D29,$D$36:$D$42,$M$36:$M$42)-1<=CG$24) * _xlfn.XLOOKUP($D29,$D$36:$D$42,$P$36:$P$42))), (SUM( INDIRECT(ADDRESS(_xlfn.XLOOKUP($D29,$D$36:$D$42,$Y$36:$Y$42),COLUMN($AB$24))): INDIRECT(ADDRESS(_xlfn.XLOOKUP($D29,$D$36:$D$42,$Y$36:$Y$42),COLUMN(CG29)))) * _xlfn.XLOOKUP($D29,$D$36:$D$42,$P$36:$P$42))) -> 0 | CH29: =IF($F$12=$CH$1, (SUM((_xlfn.XLOOKUP($D29,$D$36:$D$42,$L$36:$L$42)<=CH$24) * (_xlfn.XLOOKUP($D29,$D$36:$D$42,$L$36:$L$42)+_xlfn.XLOOKUP($D29,$D$36:$D$42,$M$36:$M$42)-1>CH$24) * (CH$24+1-_xlfn.XLOOKUP($D29,$D$36:$D$42,$L$36:$L$42)) * _xlfn.XLOOKUP($D29,$D$36:$D$42,$P$36:$P$42) * _xlfn.XLOOKUP($D29,$D$36:$D$42,$W$36:$W$42)) + SUM(_xlfn.XLOOKUP($D29,$D$36:$D$42,$U$36:$U$42) * (_xlfn.XLOOKUP($D29,$D$36:$D$42,$L$36:$L$42) +_xlfn.XLOOKUP($D29,$D$36:$D$42,$M$36:$M$42)-1<=CH$24) * _xlfn.XLOOKUP($D29,$D$36:$D$42,$P$36:$P$42))), (SUM( INDIRECT(ADDRESS(_xlfn.XLOOKUP($D29,$D$36:$D$42,$Y$36:$Y$42),COLUMN($AB$24))): INDIRECT(ADDRESS(_xlfn.XLOOKUP($D29,$D$36:$D$42,$Y$36:$Y$42),COLUMN(CH29)))) * _xlfn.XLOOKUP($D29,$D$36:$D$42,$P$36:$P$42))) -> 0 | CI29: =IF($F$12=$CH$1, (SUM((_xlfn.XLOOKUP($D29,$D$36:$D$42,$L$36:$L$42)<=CI$24) * (_xlfn.XLOOKUP($D29,$D$36:$D$42,$L$36:$L$42)+_xlfn.XLOOKUP($D29,$D$36:$D$42,$M$36:$M$42)-1>CI$24) * (CI$24+1-_xlfn.XLOOKUP($D29,$D$36:$D$42,$L$36:$L$42)) * _xlfn.XLOOKUP($D29,$D$36:$D$42,$P$36:$P$42) * _xlfn.XLOOKUP($D29,$D$36:$D$42,$W$36:$W$42)) + SUM(_xlfn.XLOOKUP($D29,$D$36:$D$42,$U$36:$U$42) * (_xlfn.XLOOKUP($D29,$D$36:$D$42,$L$36:$L$42) +_xlfn.XLOOKUP($D29,$D$36:$D$42,$M$36:$M$42)-1<=CI$24) * _xlfn.XLOOKUP($D29,$D$36:$D$42,$P$36:$P$42))), (SUM( INDIRECT(ADDRESS(_xlfn.XLOOKUP($D29,$D$36:$D$42,$Y$36:$Y$42),COLUMN($AB$24))): INDIRECT(ADDRESS(_xlfn.XLOOKUP($D29,$D$36:$D$42,$Y$36:$Y$42),COLUMN(CI29)))) * _xlfn.XLOOKUP($D29,$D$36:$D$42,$P$36:$P$42))) -> 0
D30: ="B."&TEXT(O30,"#") -> B.2 | E30: Individueel gestapeld | O30: =O29 -> 2 | AB30: =IF($F$12=$CH$1, (SUM((_xlfn.XLOOKUP($D30,$D$36:$D$42,$L$36:$L$42)<=AB$24) * (_xlfn.XLOOKUP($D30,$D$36:$D$42,$L$36:$L$42)+_xlfn.XLOOKUP($D30,$D$36:$D$42,$M$36:$M$42)-1>AB$24) * (AB$24+1-_xlfn.XLOOKUP($D30,$D$36:$D$42,$L$36:$L$42)) * _xlfn.XLOOKUP($D30,$D$36:$D$42,$P$36:$P$42) * _xlfn.XLOOKUP($D30,$D$36:$D$42,$W$36:$W$42)) + SUM(_xlfn.XLOOKUP($D30,$D$36:$D$42,$U$36:$U$42) * (_xlfn.XLOOKUP($D30,$D$36:$D$42,$L$36:$L$42) +_xlfn.XLOOKUP($D30,$D$36:$D$42,$M$36:$M$42)-1<=AB$24) * _xlfn.XLOOKUP($D30,$D$36:$D$42,$P$36:$P$42))), (SUM( INDIRECT(ADDRESS(_xlfn.XLOOKUP($D30,$D$36:$D$42,$Y$36:$Y$42),COLUMN($AB$24))): INDIRECT(ADDRESS(_xlfn.XLOOKUP($D30,$D$36:$D$42,$Y$36:$Y$42),COLUMN(AB30)))) * _xlfn.XLOOKUP($D30,$D$36:$D$42,$P$36:$P$42))) -> 0 | AC30: =IF($F$12=$CH$1, (SUM((_xlfn.XLOOKUP($D30,$D$36:$D$42,$L$36:$L$42)<=AC$24) * (_xlfn.XLOOKUP($D30,$D$36:$D$42,$L$36:$L$42)+_xlfn.XLOOKUP($D30,$D$36:$D$42,$M$36:$M$42)-1>AC$24) * (AC$24+1-_xlfn.XLOOKUP($D30,$D$36:$D$42,$L$36:$L$42)) * _xlfn.XLOOKUP($D30,$D$36:$D$42,$P$36:$P$42) * _xlfn.XLOOKUP($D30,$D$36:$D$42,$W$36:$W$42)) + SUM(_xlfn.XLOOKUP($D30,$D$36:$D$42,$U$36:$U$42) * (_xlfn.XLOOKUP($D30,$D$36:$D$42,$L$36:$L$42) +_xlfn.XLOOKUP($D30,$D$36:$D$42,$M$36:$M$42)-1<=AC$24) * _xlfn.XLOOKUP($D30,$D$36:$D$42,$P$36:$P$42))), (SUM( INDIRECT(ADDRESS(_xlfn.XLOOKUP($D30,$D$36:$D$42,$Y$36:$Y$42),COLUMN($AB$24))): INDIRECT(ADDRESS(_xlfn.XLOOKUP($D30,$D$36:$D$42,$Y$36:$Y$42),COLUMN(AC30)))) * _xlfn.XLOOKUP($D30,$D$36:$D$42,$P$36:$P$42))) -> 0 | AD30: =IF($F$12=$CH$1, (SUM((_xlfn.XLOOKUP($D30,$D$36:$D$42,$L$36:$L$42)<=AD$24) * (_xlfn.XLOOKUP($D30,$D$36:$D$42,$L$36:$L$42)+_xlfn.XLOOKUP($D30,$D$36:$D$42,$M$36:$M$42)-1>AD$24) * (AD$24+1-_xlfn.XLOOKUP($D30,$D$36:$D$42,$L$36:$L$42)) * _xlfn.XLOOKUP($D30,$D$36:$D$42,$P$36:$P$42) * _xlfn.XLOOKUP($D30,$D$36:$D$42,$W$36:$W$42)) + SUM(_xlfn.XLOOKUP($D30,$D$36:$D$42,$U$36:$U$42) * (_xlfn.XLOOKUP($D30,$D$36:$D$42,$L$36:$L$42) +_xlfn.XLOOKUP($D30,$D$36:$D$42,$M$36:$M$42)-1<=AD$24) * _xlfn.XLOOKUP($D30,$D$36:$D$42,$P$36:$P$42))), (SUM( INDIRECT(ADDRESS(_xlfn.XLOOKUP($D30,$D$36:$D$42,$Y$36:$Y$42),COLUMN($AB$24))): INDIRECT(ADDRESS(_xlfn.XLOOKUP($D30,$D$36:$D$42,$Y$36:$Y$42),COLUMN(AD30)))) * _xlfn.XLOOKUP($D30,$D$36:$D$42,$P$36:$P$42))) -> 0 | AE30: =IF($F$12=$CH$1, (SUM((_xlfn.XLOOKUP($D30,$D$36:$D$42,$L$36:$L$42)<=AE$24) * (_xlfn.XLOOKUP($D30,$D$36:$D$42,$L$36:$L$42)+_xlfn.XLOOKUP($D30,$D$36:$D$42,$M$36:$M$42)-1>AE$24) * (AE$24+1-_xlfn.XLOOKUP($D30,$D$36:$D$42,$L$36:$L$42)) * _xlfn.XLOOKUP($D30,$D$36:$D$42,$P$36:$P$42) * _xlfn.XLOOKUP($D30,$D$36:$D$42,$W$36:$W$42)) + SUM(_xlfn.XLOOKUP($D30,$D$36:$D$42,$U$36:$U$42) * (_xlfn.XLOOKUP($D30,$D$36:$D$42,$L$36:$L$42) +_xlfn.XLOOKUP($D30,$D$36:$D$42,$M$36:$M$42)-1<=AE$24) * _xlfn.XLOOKUP($D30,$D$36:$D$42,$P$36:$P$42))), (SUM( INDIRECT(ADDRESS(_xlfn.XLOOKUP($D30,$D$36:$D$42,$Y$36:$Y$42),COLUMN($AB$24))): INDIRECT(ADDRESS(_xlfn.XLOOKUP($D30,$D$36:$D$42,$Y$36:$Y$42),COLUMN(AE30)))) * _xlfn.XLOOKUP($D30,$D$36:$D$42,$P$36:$P$42))) -> 0 | AF30: =IF($F$12=$CH$1, (SUM((_xlfn.XLOOKUP($D30,$D$36:$D$42,$L$36:$L$42)<=AF$24) * (_xlfn.XLOOKUP($D30,$D$36:$D$42,$L$36:$L$42)+_xlfn.XLOOKUP($D30,$D$36:$D$42,$M$36:$M$42)-1>AF$24) * (AF$24+1-_xlfn.XLOOKUP($D30,$D$36:$D$42,$L$36:$L$42)) * _xlfn.XLOOKUP($D30,$D$36:$D$42,$P$36:$P$42) * _xlfn.XLOOKUP($D30,$D$36:$D$42,$W$36:$W$42)) + SUM(_xlfn.XLOOKUP($D30,$D$36:$D$42,$U$36:$U$42) * (_xlfn.XLOOKUP($D30,$D$36:$D$42,$L$36:$L$42) +_xlfn.XLOOKUP($D30,$D$36:$D$42,$M$36:$M$42)-1<=AF$24) * _xlfn.XLOOKUP($D30,$D$36:$D$42,$P$36:$P$42))), (SUM( INDIRECT(ADDRESS(_xlfn.XLOOKUP($D30,$D$36:$D$42,$Y$36:$Y$42),COLUMN($AB$24))): INDIRECT(ADDRESS(_xlfn.XLOOKUP($D30,$D$36:$D$42,$Y$36:$Y$42),COLUMN(AF30)))) * _xlfn.XLOOKUP($D30,$D$36:$D$42,$P$36:$P$42))) -> 0 | AG30: =IF($F$12=$CH$1, (SUM((_xlfn.XLOOKUP($D30,$D$36:$D$42,$L$36:$L$42)<=AG$24) * (_xlfn.XLOOKUP($D30,$D$36:$D$42,$L$36:$L$42)+_xlfn.XLOOKUP($D30,$D$36:$D$42,$M$36:$M$42)-1>AG$24) * (AG$24+1-_xlfn.XLOOKUP($D30,$D$36:$D$42,$L$36:$L$42)) * _xlfn.XLOOKUP($D30,$D$36:$D$42,$P$36:$P$42) * _xlfn.XLOOKUP($D30,$D$36:$D$42,$W$36:$W$42)) + SUM(_xlfn.XLOOKUP($D30,$D$36:$D$42,$U$36:$U$42) * (_xlfn.XLOOKUP($D30,$D$36:$D$42,$L$36:$L$42) +_xlfn.XLOOKUP($D30,$D$36:$D$42,$M$36:$M$42)-1<=AG$24) * _xlfn.XLOOKUP($D30,$D$36:$D$42,$P$36:$P$42))), (SUM( INDIRECT(ADDRESS(_xlfn.XLOOKUP($D30,$D$36:$D$42,$Y$36:$Y$42),COLUMN($AB$24))): INDIRECT(ADDRESS(_xlfn.XLOOKUP($D30,$D$36:$D$42,$Y$36:$Y$42),COLUMN(AG30)))) * _xlfn.XLOOKUP($D30,$D$36:$D$42,$P$36:$P$42))) -> 0 | AH30: =IF($F$12=$CH$1, (SUM((_xlfn.XLOOKUP($D30,$D$36:$D$42,$L$36:$L$42)<=AH$24) * (_xlfn.XLOOKUP($D30,$D$36:$D$42,$L$36:$L$42)+_xlfn.XLOOKUP($D30,$D$36:$D$42,$M$36:$M$42)-1>AH$24) * (AH$24+1-_xlfn.XLOOKUP($D30,$D$36:$D$42,$L$36:$L$42)) * _xlfn.XLOOKUP($D30,$D$36:$D$42,$P$36:$P$42) * _xlfn.XLOOKUP($D30,$D$36:$D$42,$W$36:$W$42)) + SUM(_xlfn.XLOOKUP($D30,$D$36:$D$42,$U$36:$U$42) * (_xlfn.XLOOKUP($D30,$D$36:$D$42,$L$36:$L$42) +_xlfn.XLOOKUP($D30,$D$36:$D$42,$M$36:$M$42)-1<=AH$24) * _xlfn.XLOOKUP($D30,$D$36:$D$42,$P$36:$P$42))), (SUM( INDIRECT(ADDRESS(_xlfn.XLOOKUP($D30,$D$36:$D$42,$Y$36:$Y$42),COLUMN($AB$24))): INDIRECT(ADDRESS(_xlfn.XLOOKUP($D30,$D$36:$D$42,$Y$36:$Y$42),COLUMN(AH30)))) * _xlfn.XLOOKUP($D30,$D$36:$D$42,$P$36:$P$42))) -> 0 | AI30: =IF($F$12=$CH$1, (SUM((_xlfn.XLOOKUP($D30,$D$36:$D$42,$L$36:$L$42)<=AI$24) * (_xlfn.XLOOKUP($D30,$D$36:$D$42,$L$36:$L$42)+_xlfn.XLOOKUP($D30,$D$36:$D$42,$M$36:$M$42)-1>AI$24) * (AI$24+1-_xlfn.XLOOKUP($D30,$D$36:$D$42,$L$36:$L$42)) * _xlfn.XLOOKUP($D30,$D$36:$D$42,$P$36:$P$42) * _xlfn.XLOOKUP($D30,$D$36:$D$42,$W$36:$W$42)) + SUM(_xlfn.XLOOKUP($D30,$D$36:$D$42,$U$36:$U$42) * (_xlfn.XLOOKUP($D30,$D$36:$D$42,$L$36:$L$42) +_xlfn.XLOOKUP($D30,$D$36:$D$42,$M$36:$M$42)-1<=AI$24) * _xlfn.XLOOKUP($D30,$D$36:$D$42,$P$36:$P$42))), (SUM( INDIRECT(ADDRESS(_xlfn.XLOOKUP($D30,$D$36:$D$42,$Y$36:$Y$42),COLUMN($AB$24))): INDIRECT(ADDRESS(_xlfn.XLOOKUP($D30,$D$36:$D$42,$Y$36:$Y$42),COLUMN(AI30)))) * _xlfn.XLOOKUP($D30,$D$36:$D$42,$P$36:$P$42))) -> 0 | AJ30: =IF($F$12=$CH$1, (SUM((_xlfn.XLOOKUP($D30,$D$36:$D$42,$L$36:$L$42)<=AJ$24) * (_xlfn.XLOOKUP($D30,$D$36:$D$42,$L$36:$L$42)+_xlfn.XLOOKUP($D30,$D$36:$D$42,$M$36:$M$42)-1>AJ$24) * (AJ$24+1-_xlfn.XLOOKUP($D30,$D$36:$D$42,$L$36:$L$42)) * _xlfn.XLOOKUP($D30,$D$36:$D$42,$P$36:$P$42) * _xlfn.XLOOKUP($D30,$D$36:$D$42,$W$36:$W$42)) + SUM(_xlfn.XLOOKUP($D30,$D$36:$D$42,$U$36:$U$42) * (_xlfn.XLOOKUP($D30,$D$36:$D$42,$L$36:$L$42) +_xlfn.XLOOKUP($D30,$D$36:$D$42,$M$36:$M$42)-1<=AJ$24) * _xlfn.XLOOKUP($D30,$D$36:$D$42,$P$36:$P$42))), (SUM( INDIRECT(ADDRESS(_xlfn.XLOOKUP($D30,$D$36:$D$42,$Y$36:$Y$42),COLUMN($AB$24))): INDIRECT(ADDRESS(_xlfn.XLOOKUP($D30,$D$36:$D$42,$Y$36:$Y$42),COLUMN(AJ30)))) * _xlfn.XLOOKUP($D30,$D$36:$D$42,$P$36:$P$42))) -> 0 | AK30: =IF($F$12=$CH$1, (SUM((_xlfn.XLOOKUP($D30,$D$36:$D$42,$L$36:$L$42)<=AK$24) * (_xlfn.XLOOKUP($D30,$D$36:$D$42,$L$36:$L$42)+_xlfn.XLOOKUP($D30,$D$36:$D$42,$M$36:$M$42)-1>AK$24) * (AK$24+1-_xlfn.XLOOKUP($D30,$D$36:$D$42,$L$36:$L$42)) * _xlfn.XLOOKUP($D30,$D$36:$D$42,$P$36:$P$42) * _xlfn.XLOOKUP($D30,$D$36:$D$42,$W$36:$W$42)) + SUM(_xlfn.XLOOKUP($D30,$D$36:$D$42,$U$36:$U$42) * (_xlfn.XLOOKUP($D30,$D$36:$D$42,$L$36:$L$42) +_xlfn.XLOOKUP($D30,$D$36:$D$42,$M$36:$M$42)-1<=AK$24) * _xlfn.XLOOKUP($D30,$D$36:$D$42,$P$36:$P$42))), (SUM( INDIRECT(ADDRESS(_xlfn.XLOOKUP($D30,$D$36:$D$42,$Y$36:$Y$42),COLUMN($AB$24))): INDIRECT(ADDRESS(_xlfn.XLOOKUP($D30,$D$36:$D$42,$Y$36:$Y$42),COLUMN(AK30)))) * _xlfn.XLOOKUP($D30,$D$36:$D$42,$P$36:$P$42))) -> 0 | AL30: =IF($F$12=$CH$1, (SUM((_xlfn.XLOOKUP($D30,$D$36:$D$42,$L$36:$L$42)<=AL$24) * (_xlfn.XLOOKUP($D30,$D$36:$D$42,$L$36:$L$42)+_xlfn.XLOOKUP($D30,$D$36:$D$42,$M$36:$M$42)-1>AL$24) * (AL$24+1-_xlfn.XLOOKUP($D30,$D$36:$D$42,$L$36:$L$42)) * _xlfn.XLOOKUP($D30,$D$36:$D$42,$P$36:$P$42) * _xlfn.XLOOKUP($D30,$D$36:$D$42,$W$36:$W$42)) + SUM(_xlfn.XLOOKUP($D30,$D$36:$D$42,$U$36:$U$42) * (_xlfn.XLOOKUP($D30,$D$36:$D$42,$L$36:$L$42) +_xlfn.XLOOKUP($D30,$D$36:$D$42,$M$36:$M$42)-1<=AL$24) * _xlfn.XLOOKUP($D30,$D$36:$D$42,$P$36:$P$42))), (SUM( INDIRECT(ADDRESS(_xlfn.XLOOKUP($D30,$D$36:$D$42,$Y$36:$Y$42),COLUMN($AB$24))): INDIRECT(ADDRESS(_xlfn.XLOOKUP($D30,$D$36:$D$42,$Y$36:$Y$42),COLUMN(AL30)))) * _xlfn.XLOOKUP($D30,$D$36:$D$42,$P$36:$P$42))) -> 0 | AM30: =IF($F$12=$CH$1, (SUM((_xlfn.XLOOKUP($D30,$D$36:$D$42,$L$36:$L$42)<=AM$24) * (_xlfn.XLOOKUP($D30,$D$36:$D$42,$L$36:$L$42)+_xlfn.XLOOKUP($D30,$D$36:$D$42,$M$36:$M$42)-1>AM$24) * (AM$24+1-_xlfn.XLOOKUP($D30,$D$36:$D$42,$L$36:$L$42)) * _xlfn.XLOOKUP($D30,$D$36:$D$42,$P$36:$P$42) * _xlfn.XLOOKUP($D30,$D$36:$D$42,$W$36:$W$42)) + SUM(_xlfn.XLOOKUP($D30,$D$36:$D$42,$U$36:$U$42) * (_xlfn.XLOOKUP($D30,$D$36:$D$42,$L$36:$L$42) +_xlfn.XLOOKUP($D30,$D$36:$D$42,$M$36:$M$42)-1<=AM$24) * _xlfn.XLOOKUP($D30,$D$36:$D$42,$P$36:$P$42))), (SUM( INDIRECT(ADDRESS(_xlfn.XLOOKUP($D30,$D$36:$D$42,$Y$36:$Y$42),COLUMN($AB$24))): INDIRECT(ADDRESS(_xlfn.XLOOKUP($D30,$D$36:$D$42,$Y$36:$Y$42),COLUMN(AM30)))) * _xlfn.XLOOKUP($D30,$D$36:$D$42,$P$36:$P$42))) -> 0 | AN30: =IF($F$12=$CH$1, (SUM((_xlfn.XLOOKUP($D30,$D$36:$D$42,$L$36:$L$42)<=AN$24) * (_xlfn.XLOOKUP($D30,$D$36:$D$42,$L$36:$L$42)+_xlfn.XLOOKUP($D30,$D$36:$D$42,$M$36:$M$42)-1>AN$24) * (AN$24+1-_xlfn.XLOOKUP($D30,$D$36:$D$42,$L$36:$L$42)) * _xlfn.XLOOKUP($D30,$D$36:$D$42,$P$36:$P$42) * _xlfn.XLOOKUP($D30,$D$36:$D$42,$W$36:$W$42)) + SUM(_xlfn.XLOOKUP($D30,$D$36:$D$42,$U$36:$U$42) * (_xlfn.XLOOKUP($D30,$D$36:$D$42,$L$36:$L$42) +_xlfn.XLOOKUP($D30,$D$36:$D$42,$M$36:$M$42)-1<=AN$24) * _xlfn.XLOOKUP($D30,$D$36:$D$42,$P$36:$P$42))), (SUM( INDIRECT(ADDRESS(_xlfn.XLOOKUP($D30,$D$36:$D$42,$Y$36:$Y$42),COLUMN($AB$24))): INDIRECT(ADDRESS(_xlfn.XLOOKUP($D30,$D$36:$D$42,$Y$36:$Y$42),COLUMN(AN30)))) * _xlfn.XLOOKUP($D30,$D$36:$D$42,$P$36:$P$42))) -> 0 | AO30: =IF($F$12=$CH$1, (SUM((_xlfn.XLOOKUP($D30,$D$36:$D$42,$L$36:$L$42)<=AO$24) * (_xlfn.XLOOKUP($D30,$D$36:$D$42,$L$36:$L$42)+_xlfn.XLOOKUP($D30,$D$36:$D$42,$M$36:$M$42)-1>AO$24) * (AO$24+1-_xlfn.XLOOKUP($D30,$D$36:$D$42,$L$36:$L$42)) * _xlfn.XLOOKUP($D30,$D$36:$D$42,$P$36:$P$42) * _xlfn.XLOOKUP($D30,$D$36:$D$42,$W$36:$W$42)) + SUM(_xlfn.XLOOKUP($D30,$D$36:$D$42,$U$36:$U$42) * (_xlfn.XLOOKUP($D30,$D$36:$D$42,$L$36:$L$42) +_xlfn.XLOOKUP($D30,$D$36:$D$42,$M$36:$M$42)-1<=AO$24) * _xlfn.XLOOKUP($D30,$D$36:$D$42,$P$36:$P$42))), (SUM( INDIRECT(ADDRESS(_xlfn.XLOOKUP($D30,$D$36:$D$42,$Y$36:$Y$42),COLUMN($AB$24))): INDIRECT(ADDRESS(_xlfn.XLOOKUP($D30,$D$36:$D$42,$Y$36:$Y$42),COLUMN(AO30)))) * _xlfn.XLOOKUP($D30,$D$36:$D$42,$P$36:$P$42))) -> 0 | AP30: =IF($F$12=$CH$1, (SUM((_xlfn.XLOOKUP($D30,$D$36:$D$42,$L$36:$L$42)<=AP$24) * (_xlfn.XLOOKUP($D30,$D$36:$D$42,$L$36:$L$42)+_xlfn.XLOOKUP($D30,$D$36:$D$42,$M$36:$M$42)-1>AP$24) * (AP$24+1-_xlfn.XLOOKUP($D30,$D$36:$D$42,$L$36:$L$42)) * _xlfn.XLOOKUP($D30,$D$36:$D$42,$P$36:$P$42) * _xlfn.XLOOKUP($D30,$D$36:$D$42,$W$36:$W$42)) + SUM(_xlfn.XLOOKUP($D30,$D$36:$D$42,$U$36:$U$42) * (_xlfn.XLOOKUP($D30,$D$36:$D$42,$L$36:$L$42) +_xlfn.XLOOKUP($D30,$D$36:$D$42,$M$36:$M$42)-1<=AP$24) * _xlfn.XLOOKUP($D30,$D$36:$D$42,$P$36:$P$42))), (SUM( INDIRECT(ADDRESS(_xlfn.XLOOKUP($D30,$D$36:$D$42,$Y$36:$Y$42),COLUMN($AB$24))): INDIRECT(ADDRESS(_xlfn.XLOOKUP($D30,$D$36:$D$42,$Y$36:$Y$42),COLUMN(AP30)))) * _xlfn.XLOOKUP($D30,$D$36:$D$42,$P$36:$P$42))) -> 0 | AQ30: =IF($F$12=$CH$1, (SUM((_xlfn.XLOOKUP($D30,$D$36:$D$42,$L$36:$L$42)<=AQ$24) * (_xlfn.XLOOKUP($D30,$D$36:$D$42,$L$36:$L$42)+_xlfn.XLOOKUP($D30,$D$36:$D$42,$M$36:$M$42)-1>AQ$24) * (AQ$24+1-_xlfn.XLOOKUP($D30,$D$36:$D$42,$L$36:$L$42)) * _xlfn.XLOOKUP($D30,$D$36:$D$42,$P$36:$P$42) * _xlfn.XLOOKUP($D30,$D$36:$D$42,$W$36:$W$42)) + SUM(_xlfn.XLOOKUP($D30,$D$36:$D$42,$U$36:$U$42) * (_xlfn.XLOOKUP($D30,$D$36:$D$42,$L$36:$L$42) +_xlfn.XLOOKUP($D30,$D$36:$D$42,$M$36:$M$42)-1<=AQ$24) * _xlfn.XLOOKUP($D30,$D$36:$D$42,$P$36:$P$42))), (SUM( INDIRECT(ADDRESS(_xlfn.XLOOKUP($D30,$D$36:$D$42,$Y$36:$Y$42),COLUMN($AB$24))): INDIRECT(ADDRESS(_xlfn.XLOOKUP($D30,$D$36:$D$42,$Y$36:$Y$42),COLUMN(AQ30)))) * _xlfn.XLOOKUP($D30,$D$36:$D$42,$P$36:$P$42))) -> 0 | AR30: =IF($F$12=$CH$1, (SUM((_xlfn.XLOOKUP($D30,$D$36:$D$42,$L$36:$L$42)<=AR$24) * (_xlfn.XLOOKUP($D30,$D$36:$D$42,$L$36:$L$42)+_xlfn.XLOOKUP($D30,$D$36:$D$42,$M$36:$M$42)-1>AR$24) * (AR$24+1-_xlfn.XLOOKUP($D30,$D$36:$D$42,$L$36:$L$42)) * _xlfn.XLOOKUP($D30,$D$36:$D$42,$P$36:$P$42) * _xlfn.XLOOKUP($D30,$D$36:$D$42,$W$36:$W$42)) + SUM(_xlfn.XLOOKUP($D30,$D$36:$D$42,$U$36:$U$42) * (_xlfn.XLOOKUP($D30,$D$36:$D$42,$L$36:$L$42) +_xlfn.XLOOKUP($D30,$D$36:$D$42,$M$36:$M$42)-1<=AR$24) * _xlfn.XLOOKUP($D30,$D$36:$D$42,$P$36:$P$42))), (SUM( INDIRECT(ADDRESS(_xlfn.XLOOKUP($D30,$D$36:$D$42,$Y$36:$Y$42),COLUMN($AB$24))): INDIRECT(ADDRESS(_xlfn.XLOOKUP($D30,$D$36:$D$42,$Y$36:$Y$42),COLUMN(AR30)))) * _xlfn.XLOOKUP($D30,$D$36:$D$42,$P$36:$P$42))) -> 0 | AS30: =IF($F$12=$CH$1, (SUM((_xlfn.XLOOKUP($D30,$D$36:$D$42,$L$36:$L$42)<=AS$24) * (_xlfn.XLOOKUP($D30,$D$36:$D$42,$L$36:$L$42)+_xlfn.XLOOKUP($D30,$D$36:$D$42,$M$36:$M$42)-1>AS$24) * (AS$24+1-_xlfn.XLOOKUP($D30,$D$36:$D$42,$L$36:$L$42)) * _xlfn.XLOOKUP($D30,$D$36:$D$42,$P$36:$P$42) * _xlfn.XLOOKUP($D30,$D$36:$D$42,$W$36:$W$42)) + SUM(_xlfn.XLOOKUP($D30,$D$36:$D$42,$U$36:$U$42) * (_xlfn.XLOOKUP($D30,$D$36:$D$42,$L$36:$L$42) +_xlfn.XLOOKUP($D30,$D$36:$D$42,$M$36:$M$42)-1<=AS$24) * _xlfn.XLOOKUP($D30,$D$36:$D$42,$P$36:$P$42))), (SUM( INDIRECT(ADDRESS(_xlfn.XLOOKUP($D30,$D$36:$D$42,$Y$36:$Y$42),COLUMN($AB$24))): INDIRECT(ADDRESS(_xlfn.XLOOKUP($D30,$D$36:$D$42,$Y$36:$Y$42),COLUMN(AS30)))) * _xlfn.XLOOKUP($D30,$D$36:$D$42,$P$36:$P$42))) -> 0 | AT30: =IF($F$12=$CH$1, (SUM((_xlfn.XLOOKUP($D30,$D$36:$D$42,$L$36:$L$42)<=AT$24) * (_xlfn.XLOOKUP($D30,$D$36:$D$42,$L$36:$L$42)+_xlfn.XLOOKUP($D30,$D$36:$D$42,$M$36:$M$42)-1>AT$24) * (AT$24+1-_xlfn.XLOOKUP($D30,$D$36:$D$42,$L$36:$L$42)) * _xlfn.XLOOKUP($D30,$D$36:$D$42,$P$36:$P$42) * _xlfn.XLOOKUP($D30,$D$36:$D$42,$W$36:$W$42)) + SUM(_xlfn.XLOOKUP($D30,$D$36:$D$42,$U$36:$U$42) * (_xlfn.XLOOKUP($D30,$D$36:$D$42,$L$36:$L$42) +_xlfn.XLOOKUP($D30,$D$36:$D$42,$M$36:$M$42)-1<=AT$24) * _xlfn.XLOOKUP($D30,$D$36:$D$42,$P$36:$P$42))), (SUM( INDIRECT(ADDRESS(_xlfn.XLOOKUP($D30,$D$36:$D$42,$Y$36:$Y$42),COLUMN($AB$24))): INDIRECT(ADDRESS(_xlfn.XLOOKUP($D30,$D$36:$D$42,$Y$36:$Y$42),COLUMN(AT30)))) * _xlfn.XLOOKUP($D30,$D$36:$D$42,$P$36:$P$42))) -> 0 | AU30: =IF($F$12=$CH$1, (SUM((_xlfn.XLOOKUP($D30,$D$36:$D$42,$L$36:$L$42)<=AU$24) * (_xlfn.XLOOKUP($D30,$D$36:$D$42,$L$36:$L$42)+_xlfn.XLOOKUP($D30,$D$36:$D$42,$M$36:$M$42)-1>AU$24) * (AU$24+1-_xlfn.XLOOKUP($D30,$D$36:$D$42,$L$36:$L$42)) * _xlfn.XLOOKUP($D30,$D$36:$D$42,$P$36:$P$42) * _xlfn.XLOOKUP($D30,$D$36:$D$42,$W$36:$W$42)) + SUM(_xlfn.XLOOKUP($D30,$D$36:$D$42,$U$36:$U$42) * (_xlfn.XLOOKUP($D30,$D$36:$D$42,$L$36:$L$42) +_xlfn.XLOOKUP($D30,$D$36:$D$42,$M$36:$M$42)-1<=AU$24) * _xlfn.XLOOKUP($D30,$D$36:$D$42,$P$36:$P$42))), (SUM( INDIRECT(ADDRESS(_xlfn.XLOOKUP($D30,$D$36:$D$42,$Y$36:$Y$42),COLUMN($AB$24))): INDIRECT(ADDRESS(_xlfn.XLOOKUP($D30,$D$36:$D$42,$Y$36:$Y$42),COLUMN(AU30)))) * _xlfn.XLOOKUP($D30,$D$36:$D$42,$P$36:$P$42))) -> 0 | AV30: =IF($F$12=$CH$1, (SUM((_xlfn.XLOOKUP($D30,$D$36:$D$42,$L$36:$L$42)<=AV$24) * (_xlfn.XLOOKUP($D30,$D$36:$D$42,$L$36:$L$42)+_xlfn.XLOOKUP($D30,$D$36:$D$42,$M$36:$M$42)-1>AV$24) * (AV$24+1-_xlfn.XLOOKUP($D30,$D$36:$D$42,$L$36:$L$42)) * _xlfn.XLOOKUP($D30,$D$36:$D$42,$P$36:$P$42) * _xlfn.XLOOKUP($D30,$D$36:$D$42,$W$36:$W$42)) + SUM(_xlfn.XLOOKUP($D30,$D$36:$D$42,$U$36:$U$42) * (_xlfn.XLOOKUP($D30,$D$36:$D$42,$L$36:$L$42) +_xlfn.XLOOKUP($D30,$D$36:$D$42,$M$36:$M$42)-1<=AV$24) * _xlfn.XLOOKUP($D30,$D$36:$D$42,$P$36:$P$42))), (SUM( INDIRECT(ADDRESS(_xlfn.XLOOKUP($D30,$D$36:$D$42,$Y$36:$Y$42),COLUMN($AB$24))): INDIRECT(ADDRESS(_xlfn.XLOOKUP($D30,$D$36:$D$42,$Y$36:$Y$42),COLUMN(AV30)))) * _xlfn.XLOOKUP($D30,$D$36:$D$42,$P$36:$P$42))) -> 0 | AW30: =IF($F$12=$CH$1, (SUM((_xlfn.XLOOKUP($D30,$D$36:$D$42,$L$36:$L$42)<=AW$24) * (_xlfn.XLOOKUP($D30,$D$36:$D$42,$L$36:$L$42)+_xlfn.XLOOKUP($D30,$D$36:$D$42,$M$36:$M$42)-1>AW$24) * (AW$24+1-_xlfn.XLOOKUP($D30,$D$36:$D$42,$L$36:$L$42)) * _xlfn.XLOOKUP($D30,$D$36:$D$42,$P$36:$P$42) * _xlfn.XLOOKUP($D30,$D$36:$D$42,$W$36:$W$42)) + SUM(_xlfn.XLOOKUP($D30,$D$36:$D$42,$U$36:$U$42) * (_xlfn.XLOOKUP($D30,$D$36:$D$42,$L$36:$L$42) +_xlfn.XLOOKUP($D30,$D$36:$D$42,$M$36:$M$42)-1<=AW$24) * _xlfn.XLOOKUP($D30,$D$36:$D$42,$P$36:$P$42))), (SUM( INDIRECT(ADDRESS(_xlfn.XLOOKUP($D30,$D$36:$D$42,$Y$36:$Y$42),COLUMN($AB$24))): INDIRECT(ADDRESS(_xlfn.XLOOKUP($D30,$D$36:$D$42,$Y$36:$Y$42),COLUMN(AW30)))) * _xlfn.XLOOKUP($D30,$D$36:$D$42,$P$36:$P$42))) -> 0 | AX30: =IF($F$12=$CH$1, (SUM((_xlfn.XLOOKUP($D30,$D$36:$D$42,$L$36:$L$42)<=AX$24) * (_xlfn.XLOOKUP($D30,$D$36:$D$42,$L$36:$L$42)+_xlfn.XLOOKUP($D30,$D$36:$D$42,$M$36:$M$42)-1>AX$24) * (AX$24+1-_xlfn.XLOOKUP($D30,$D$36:$D$42,$L$36:$L$42)) * _xlfn.XLOOKUP($D30,$D$36:$D$42,$P$36:$P$42) * _xlfn.XLOOKUP($D30,$D$36:$D$42,$W$36:$W$42)) + SUM(_xlfn.XLOOKUP($D30,$D$36:$D$42,$U$36:$U$42) * (_xlfn.XLOOKUP($D30,$D$36:$D$42,$L$36:$L$42) +_xlfn.XLOOKUP($D30,$D$36:$D$42,$M$36:$M$42)-1<=AX$24) * _xlfn.XLOOKUP($D30,$D$36:$D$42,$P$36:$P$42))), (SUM( INDIRECT(ADDRESS(_xlfn.XLOOKUP($D30,$D$36:$D$42,$Y$36:$Y$42),COLUMN($AB$24))): INDIRECT(ADDRESS(_xlfn.XLOOKUP($D30,$D$36:$D$42,$Y$36:$Y$42),COLUMN(AX30)))) * _xlfn.XLOOKUP($D30,$D$36:$D$42,$P$36:$P$42))) -> 0 | AY30: =IF($F$12=$CH$1, (SUM((_xlfn.XLOOKUP($D30,$D$36:$D$42,$L$36:$L$42)<=AY$24) * (_xlfn.XLOOKUP($D30,$D$36:$D$42,$L$36:$L$42)+_xlfn.XLOOKUP($D30,$D$36:$D$42,$M$36:$M$42)-1>AY$24) * (AY$24+1-_xlfn.XLOOKUP($D30,$D$36:$D$42,$L$36:$L$42)) * _xlfn.XLOOKUP($D30,$D$36:$D$42,$P$36:$P$42) * _xlfn.XLOOKUP($D30,$D$36:$D$42,$W$36:$W$42)) + SUM(_xlfn.XLOOKUP($D30,$D$36:$D$42,$U$36:$U$42) * (_xlfn.XLOOKUP($D30,$D$36:$D$42,$L$36:$L$42) +_xlfn.XLOOKUP($D30,$D$36:$D$42,$M$36:$M$42)-1<=AY$24) * _xlfn.XLOOKUP($D30,$D$36:$D$42,$P$36:$P$42))), (SUM( INDIRECT(ADDRESS(_xlfn.XLOOKUP($D30,$D$36:$D$42,$Y$36:$Y$42),COLUMN($AB$24))): INDIRECT(ADDRESS(_xlfn.XLOOKUP($D30,$D$36:$D$42,$Y$36:$Y$42),COLUMN(AY30)))) * _xlfn.XLOOKUP($D30,$D$36:$D$42,$P$36:$P$42))) -> 0 | AZ30: =IF($F$12=$CH$1, (SUM((_xlfn.XLOOKUP($D30,$D$36:$D$42,$L$36:$L$42)<=AZ$24) * (_xlfn.XLOOKUP($D30,$D$36:$D$42,$L$36:$L$42)+_xlfn.XLOOKUP($D30,$D$36:$D$42,$M$36:$M$42)-1>AZ$24) * (AZ$24+1-_xlfn.XLOOKUP($D30,$D$36:$D$42,$L$36:$L$42)) * _xlfn.XLOOKUP($D30,$D$36:$D$42,$P$36:$P$42) * _xlfn.XLOOKUP($D30,$D$36:$D$42,$W$36:$W$42)) + SUM(_xlfn.XLOOKUP($D30,$D$36:$D$42,$U$36:$U$42) * (_xlfn.XLOOKUP($D30,$D$36:$D$42,$L$36:$L$42) +_xlfn.XLOOKUP($D30,$D$36:$D$42,$M$36:$M$42)-1<=AZ$24) * _xlfn.XLOOKUP($D30,$D$36:$D$42,$P$36:$P$42))), (SUM( INDIRECT(ADDRESS(_xlfn.XLOOKUP($D30,$D$36:$D$42,$Y$36:$Y$42),COLUMN($AB$24))): INDIRECT(ADDRESS(_xlfn.XLOOKUP($D30,$D$36:$D$42,$Y$36:$Y$42),COLUMN(AZ30)))) * _xlfn.XLOOKUP($D30,$D$36:$D$42,$P$36:$P$42))) -> 0 | BA30: =IF($F$12=$CH$1, (SUM((_xlfn.XLOOKUP($D30,$D$36:$D$42,$L$36:$L$42)<=BA$24) * (_xlfn.XLOOKUP($D30,$D$36:$D$42,$L$36:$L$42)+_xlfn.XLOOKUP($D30,$D$36:$D$42,$M$36:$M$42)-1>BA$24) * (BA$24+1-_xlfn.XLOOKUP($D30,$D$36:$D$42,$L$36:$L$42)) * _xlfn.XLOOKUP($D30,$D$36:$D$42,$P$36:$P$42) * _xlfn.XLOOKUP($D30,$D$36:$D$42,$W$36:$W$42)) + SUM(_xlfn.XLOOKUP($D30,$D$36:$D$42,$U$36:$U$42) * (_xlfn.XLOOKUP($D30,$D$36:$D$42,$L$36:$L$42) +_xlfn.XLOOKUP($D30,$D$36:$D$42,$M$36:$M$42)-1<=BA$24) * _xlfn.XLOOKUP($D30,$D$36:$D$42,$P$36:$P$42))), (SUM( INDIRECT(ADDRESS(_xlfn.XLOOKUP($D30,$D$36:$D$42,$Y$36:$Y$42),COLUMN($AB$24))): INDIRECT(ADDRESS(_xlfn.XLOOKUP($D30,$D$36:$D$42,$Y$36:$Y$42),COLUMN(BA30)))) * _xlfn.XLOOKUP($D30,$D$36:$D$42,$P$36:$P$42))) -> 0 | BB30: =IF($F$12=$CH$1, (SUM((_xlfn.XLOOKUP($D30,$D$36:$D$42,$L$36:$L$42)<=BB$24) * (_xlfn.XLOOKUP($D30,$D$36:$D$42,$L$36:$L$42)+_xlfn.XLOOKUP($D30,$D$36:$D$42,$M$36:$M$42)-1>BB$24) * (BB$24+1-_xlfn.XLOOKUP($D30,$D$36:$D$42,$L$36:$L$42)) * _xlfn.XLOOKUP($D30,$D$36:$D$42,$P$36:$P$42) * _xlfn.XLOOKUP($D30,$D$36:$D$42,$W$36:$W$42)) + SUM(_xlfn.XLOOKUP($D30,$D$36:$D$42,$U$36:$U$42) * (_xlfn.XLOOKUP($D30,$D$36:$D$42,$L$36:$L$42) +_xlfn.XLOOKUP($D30,$D$36:$D$42,$M$36:$M$42)-1<=BB$24) * _xlfn.XLOOKUP($D30,$D$36:$D$42,$P$36:$P$42))), (SUM( INDIRECT(ADDRESS(_xlfn.XLOOKUP($D30,$D$36:$D$42,$Y$36:$Y$42),COLUMN($AB$24))): INDIRECT(ADDRESS(_xlfn.XLOOKUP($D30,$D$36:$D$42,$Y$36:$Y$42),COLUMN(BB30)))) * _xlfn.XLOOKUP($D30,$D$36:$D$42,$P$36:$P$42))) -> 0 | BC30: =IF($F$12=$CH$1, (SUM((_xlfn.XLOOKUP($D30,$D$36:$D$42,$L$36:$L$42)<=BC$24) * (_xlfn.XLOOKUP($D30,$D$36:$D$42,$L$36:$L$42)+_xlfn.XLOOKUP($D30,$D$36:$D$42,$M$36:$M$42)-1>BC$24) * (BC$24+1-_xlfn.XLOOKUP($D30,$D$36:$D$42,$L$36:$L$42)) * _xlfn.XLOOKUP($D30,$D$36:$D$42,$P$36:$P$42) * _xlfn.XLOOKUP($D30,$D$36:$D$42,$W$36:$W$42)) + SUM(_xlfn.XLOOKUP($D30,$D$36:$D$42,$U$36:$U$42) * (_xlfn.XLOOKUP($D30,$D$36:$D$42,$L$36:$L$42) +_xlfn.XLOOKUP($D30,$D$36:$D$42,$M$36:$M$42)-1<=BC$24) * _xlfn.XLOOKUP($D30,$D$36:$D$42,$P$36:$P$42))), (SUM( INDIRECT(ADDRESS(_xlfn.XLOOKUP($D30,$D$36:$D$42,$Y$36:$Y$42),COLUMN($AB$24))): INDIRECT(ADDRESS(_xlfn.XLOOKUP($D30,$D$36:$D$42,$Y$36:$Y$42),COLUMN(BC30)))) * _xlfn.XLOOKUP($D30,$D$36:$D$42,$P$36:$P$42))) -> 0 | BD30: =IF($F$12=$CH$1, (SUM((_xlfn.XLOOKUP($D30,$D$36:$D$42,$L$36:$L$42)<=BD$24) * (_xlfn.XLOOKUP($D30,$D$36:$D$42,$L$36:$L$42)+_xlfn.XLOOKUP($D30,$D$36:$D$42,$M$36:$M$42)-1>BD$24) * (BD$24+1-_xlfn.XLOOKUP($D30,$D$36:$D$42,$L$36:$L$42)) * _xlfn.XLOOKUP($D30,$D$36:$D$42,$P$36:$P$42) * _xlfn.XLOOKUP($D30,$D$36:$D$42,$W$36:$W$42)) + SUM(_xlfn.XLOOKUP($D30,$D$36:$D$42,$U$36:$U$42) * (_xlfn.XLOOKUP($D30,$D$36:$D$42,$L$36:$L$42) +_xlfn.XLOOKUP($D30,$D$36:$D$42,$M$36:$M$42)-1<=BD$24) * _xlfn.XLOOKUP($D30,$D$36:$D$42,$P$36:$P$42))), (SUM( INDIRECT(ADDRESS(_xlfn.XLOOKUP($D30,$D$36:$D$42,$Y$36:$Y$42),COLUMN($AB$24))): INDIRECT(ADDRESS(_xlfn.XLOOKUP($D30,$D$36:$D$42,$Y$36:$Y$42),COLUMN(BD30)))) * _xlfn.XLOOKUP($D30,$D$36:$D$42,$P$36:$P$42))) -> 0 | BE30: =IF($F$12=$CH$1, (SUM((_xlfn.XLOOKUP($D30,$D$36:$D$42,$L$36:$L$42)<=BE$24) * (_xlfn.XLOOKUP($D30,$D$36:$D$42,$L$36:$L$42)+_xlfn.XLOOKUP($D30,$D$36:$D$42,$M$36:$M$42)-1>BE$24) * (BE$24+1-_xlfn.XLOOKUP($D30,$D$36:$D$42,$L$36:$L$42)) * _xlfn.XLOOKUP($D30,$D$36:$D$42,$P$36:$P$42) * _xlfn.XLOOKUP($D30,$D$36:$D$42,$W$36:$W$42)) + SUM(_xlfn.XLOOKUP($D30,$D$36:$D$42,$U$36:$U$42) * (_xlfn.XLOOKUP($D30,$D$36:$D$42,$L$36:$L$42) +_xlfn.XLOOKUP($D30,$D$36:$D$42,$M$36:$M$42)-1<=BE$24) * _xlfn.XLOOKUP($D30,$D$36:$D$42,$P$36:$P$42))), (SUM( INDIRECT(ADDRESS(_xlfn.XLOOKUP($D30,$D$36:$D$42,$Y$36:$Y$42),COLUMN($AB$24))): INDIRECT(ADDRESS(_xlfn.XLOOKUP($D30,$D$36:$D$42,$Y$36:$Y$42),COLUMN(BE30)))) * _xlfn.XLOOKUP($D30,$D$36:$D$42,$P$36:$P$42))) -> 0 | BF30: =IF($F$12=$CH$1, (SUM((_xlfn.XLOOKUP($D30,$D$36:$D$42,$L$36:$L$42)<=BF$24) * (_xlfn.XLOOKUP($D30,$D$36:$D$42,$L$36:$L$42)+_xlfn.XLOOKUP($D30,$D$36:$D$42,$M$36:$M$42)-1>BF$24) * (BF$24+1-_xlfn.XLOOKUP($D30,$D$36:$D$42,$L$36:$L$42)) * _xlfn.XLOOKUP($D30,$D$36:$D$42,$P$36:$P$42) * _xlfn.XLOOKUP($D30,$D$36:$D$42,$W$36:$W$42)) + SUM(_xlfn.XLOOKUP($D30,$D$36:$D$42,$U$36:$U$42) * (_xlfn.XLOOKUP($D30,$D$36:$D$42,$L$36:$L$42) +_xlfn.XLOOKUP($D30,$D$36:$D$42,$M$36:$M$42)-1<=BF$24) * _xlfn.XLOOKUP($D30,$D$36:$D$42,$P$36:$P$42))), (SUM( INDIRECT(ADDRESS(_xlfn.XLOOKUP($D30,$D$36:$D$42,$Y$36:$Y$42),COLUMN($AB$24))): INDIRECT(ADDRESS(_xlfn.XLOOKUP($D30,$D$36:$D$42,$Y$36:$Y$42),COLUMN(BF30)))) * _xlfn.XLOOKUP($D30,$D$36:$D$42,$P$36:$P$42))) -> 0 | BG30: =IF($F$12=$CH$1, (SUM((_xlfn.XLOOKUP($D30,$D$36:$D$42,$L$36:$L$42)<=BG$24) * (_xlfn.XLOOKUP($D30,$D$36:$D$42,$L$36:$L$42)+_xlfn.XLOOKUP($D30,$D$36:$D$42,$M$36:$M$42)-1>BG$24) * (BG$24+1-_xlfn.XLOOKUP($D30,$D$36:$D$42,$L$36:$L$42)) * _xlfn.XLOOKUP($D30,$D$36:$D$42,$P$36:$P$42) * _xlfn.XLOOKUP($D30,$D$36:$D$42,$W$36:$W$42)) + SUM(_xlfn.XLOOKUP($D30,$D$36:$D$42,$U$36:$U$42) * (_xlfn.XLOOKUP($D30,$D$36:$D$42,$L$36:$L$42) +_xlfn.XLOOKUP($D30,$D$36:$D$42,$M$36:$M$42)-1<=BG$24) * _xlfn.XLOOKUP($D30,$D$36:$D$42,$P$36:$P$42))), (SUM( INDIRECT(ADDRESS(_xlfn.XLOOKUP($D30,$D$36:$D$42,$Y$36:$Y$42),COLUMN($AB$24))): INDIRECT(ADDRESS(_xlfn.XLOOKUP($D30,$D$36:$D$42,$Y$36:$Y$42),COLUMN(BG30)))) * _xlfn.XLOOKUP($D30,$D$36:$D$42,$P$36:$P$42))) -> 0 | BH30: =IF($F$12=$CH$1, (SUM((_xlfn.XLOOKUP($D30,$D$36:$D$42,$L$36:$L$42)<=BH$24) * (_xlfn.XLOOKUP($D30,$D$36:$D$42,$L$36:$L$42)+_xlfn.XLOOKUP($D30,$D$36:$D$42,$M$36:$M$42)-1>BH$24) * (BH$24+1-_xlfn.XLOOKUP($D30,$D$36:$D$42,$L$36:$L$42)) * _xlfn.XLOOKUP($D30,$D$36:$D$42,$P$36:$P$42) * _xlfn.XLOOKUP($D30,$D$36:$D$42,$W$36:$W$42)) + SUM(_xlfn.XLOOKUP($D30,$D$36:$D$42,$U$36:$U$42) * (_xlfn.XLOOKUP($D30,$D$36:$D$42,$L$36:$L$42) +_xlfn.XLOOKUP($D30,$D$36:$D$42,$M$36:$M$42)-1<=BH$24) * _xlfn.XLOOKUP($D30,$D$36:$D$42,$P$36:$P$42))), (SUM( INDIRECT(ADDRESS(_xlfn.XLOOKUP($D30,$D$36:$D$42,$Y$36:$Y$42),COLUMN($AB$24))): INDIRECT(ADDRESS(_xlfn.XLOOKUP($D30,$D$36:$D$42,$Y$36:$Y$42),COLUMN(BH30)))) * _xlfn.XLOOKUP($D30,$D$36:$D$42,$P$36:$P$42))) -> 0 | BI30: =IF($F$12=$CH$1, (SUM((_xlfn.XLOOKUP($D30,$D$36:$D$42,$L$36:$L$42)<=BI$24) * (_xlfn.XLOOKUP($D30,$D$36:$D$42,$L$36:$L$42)+_xlfn.XLOOKUP($D30,$D$36:$D$42,$M$36:$M$42)-1>BI$24) * (BI$24+1-_xlfn.XLOOKUP($D30,$D$36:$D$42,$L$36:$L$42)) * _xlfn.XLOOKUP($D30,$D$36:$D$42,$P$36:$P$42) * _xlfn.XLOOKUP($D30,$D$36:$D$42,$W$36:$W$42)) + SUM(_xlfn.XLOOKUP($D30,$D$36:$D$42,$U$36:$U$42) * (_xlfn.XLOOKUP($D30,$D$36:$D$42,$L$36:$L$42) +_xlfn.XLOOKUP($D30,$D$36:$D$42,$M$36:$M$42)-1<=BI$24) * _xlfn.XLOOKUP($D30,$D$36:$D$42,$P$36:$P$42))), (SUM( INDIRECT(ADDRESS(_xlfn.XLOOKUP($D30,$D$36:$D$42,$Y$36:$Y$42),COLUMN($AB$24))): INDIRECT(ADDRESS(_xlfn.XLOOKUP($D30,$D$36:$D$42,$Y$36:$Y$42),COLUMN(BI30)))) * _xlfn.XLOOKUP($D30,$D$36:$D$42,$P$36:$P$42))) -> 0 | BJ30: =IF($F$12=$CH$1, (SUM((_xlfn.XLOOKUP($D30,$D$36:$D$42,$L$36:$L$42)<=BJ$24) * (_xlfn.XLOOKUP($D30,$D$36:$D$42,$L$36:$L$42)+_xlfn.XLOOKUP($D30,$D$36:$D$42,$M$36:$M$42)-1>BJ$24) * (BJ$24+1-_xlfn.XLOOKUP($D30,$D$36:$D$42,$L$36:$L$42)) * _xlfn.XLOOKUP($D30,$D$36:$D$42,$P$36:$P$42) * _xlfn.XLOOKUP($D30,$D$36:$D$42,$W$36:$W$42)) + SUM(_xlfn.XLOOKUP($D30,$D$36:$D$42,$U$36:$U$42) * (_xlfn.XLOOKUP($D30,$D$36:$D$42,$L$36:$L$42) +_xlfn.XLOOKUP($D30,$D$36:$D$42,$M$36:$M$42)-1<=BJ$24) * _xlfn.XLOOKUP($D30,$D$36:$D$42,$P$36:$P$42))), (SUM( INDIRECT(ADDRESS(_xlfn.XLOOKUP($D30,$D$36:$D$42,$Y$36:$Y$42),COLUMN($AB$24))): INDIRECT(ADDRESS(_xlfn.XLOOKUP($D30,$D$36:$D$42,$Y$36:$Y$42),COLUMN(BJ30)))) * _xlfn.XLOOKUP($D30,$D$36:$D$42,$P$36:$P$42))) -> 0 | BK30: =IF($F$12=$CH$1, (SUM((_xlfn.XLOOKUP($D30,$D$36:$D$42,$L$36:$L$42)<=BK$24) * (_xlfn.XLOOKUP($D30,$D$36:$D$42,$L$36:$L$42)+_xlfn.XLOOKUP($D30,$D$36:$D$42,$M$36:$M$42)-1>BK$24) * (BK$24+1-_xlfn.XLOOKUP($D30,$D$36:$D$42,$L$36:$L$42)) * _xlfn.XLOOKUP($D30,$D$36:$D$42,$P$36:$P$42) * _xlfn.XLOOKUP($D30,$D$36:$D$42,$W$36:$W$42)) + SUM(_xlfn.XLOOKUP($D30,$D$36:$D$42,$U$36:$U$42) * (_xlfn.XLOOKUP($D30,$D$36:$D$42,$L$36:$L$42) +_xlfn.XLOOKUP($D30,$D$36:$D$42,$M$36:$M$42)-1<=BK$24) * _xlfn.XLOOKUP($D30,$D$36:$D$42,$P$36:$P$42))), (SUM( INDIRECT(ADDRESS(_xlfn.XLOOKUP($D30,$D$36:$D$42,$Y$36:$Y$42),COLUMN($AB$24))): INDIRECT(ADDRESS(_xlfn.XLOOKUP($D30,$D$36:$D$42,$Y$36:$Y$42),COLUMN(BK30)))) * _xlfn.XLOOKUP($D30,$D$36:$D$42,$P$36:$P$42))) -> 0 | BL30: =IF($F$12=$CH$1, (SUM((_xlfn.XLOOKUP($D30,$D$36:$D$42,$L$36:$L$42)<=BL$24) * (_xlfn.XLOOKUP($D30,$D$36:$D$42,$L$36:$L$42)+_xlfn.XLOOKUP($D30,$D$36:$D$42,$M$36:$M$42)-1>BL$24) * (BL$24+1-_xlfn.XLOOKUP($D30,$D$36:$D$42,$L$36:$L$42)) * _xlfn.XLOOKUP($D30,$D$36:$D$42,$P$36:$P$42) * _xlfn.XLOOKUP($D30,$D$36:$D$42,$W$36:$W$42)) + SUM(_xlfn.XLOOKUP($D30,$D$36:$D$42,$U$36:$U$42) * (_xlfn.XLOOKUP($D30,$D$36:$D$42,$L$36:$L$42) +_xlfn.XLOOKUP($D30,$D$36:$D$42,$M$36:$M$42)-1<=BL$24) * _xlfn.XLOOKUP($D30,$D$36:$D$42,$P$36:$P$42))), (SUM( INDIRECT(ADDRESS(_xlfn.XLOOKUP($D30,$D$36:$D$42,$Y$36:$Y$42),COLUMN($AB$24))): INDIRECT(ADDRESS(_xlfn.XLOOKUP($D30,$D$36:$D$42,$Y$36:$Y$42),COLUMN(BL30)))) * _xlfn.XLOOKUP($D30,$D$36:$D$42,$P$36:$P$42))) -> 0 | BM30: =IF($F$12=$CH$1, (SUM((_xlfn.XLOOKUP($D30,$D$36:$D$42,$L$36:$L$42)<=BM$24) * (_xlfn.XLOOKUP($D30,$D$36:$D$42,$L$36:$L$42)+_xlfn.XLOOKUP($D30,$D$36:$D$42,$M$36:$M$42)-1>BM$24) * (BM$24+1-_xlfn.XLOOKUP($D30,$D$36:$D$42,$L$36:$L$42)) * _xlfn.XLOOKUP($D30,$D$36:$D$42,$P$36:$P$42) * _xlfn.XLOOKUP($D30,$D$36:$D$42,$W$36:$W$42)) + SUM(_xlfn.XLOOKUP($D30,$D$36:$D$42,$U$36:$U$42) * (_xlfn.XLOOKUP($D30,$D$36:$D$42,$L$36:$L$42) +_xlfn.XLOOKUP($D30,$D$36:$D$42,$M$36:$M$42)-1<=BM$24) * _xlfn.XLOOKUP($D30,$D$36:$D$42,$P$36:$P$42))), (SUM( INDIRECT(ADDRESS(_xlfn.XLOOKUP($D30,$D$36:$D$42,$Y$36:$Y$42),COLUMN($AB$24))): INDIRECT(ADDRESS(_xlfn.XLOOKUP($D30,$D$36:$D$42,$Y$36:$Y$42),COLUMN(BM30)))) * _xlfn.XLOOKUP($D30,$D$36:$D$42,$P$36:$P$42))) -> 0 | BN30: =IF($F$12=$CH$1, (SUM((_xlfn.XLOOKUP($D30,$D$36:$D$42,$L$36:$L$42)<=BN$24) * (_xlfn.XLOOKUP($D30,$D$36:$D$42,$L$36:$L$42)+_xlfn.XLOOKUP($D30,$D$36:$D$42,$M$36:$M$42)-1>BN$24) * (BN$24+1-_xlfn.XLOOKUP($D30,$D$36:$D$42,$L$36:$L$42)) * _xlfn.XLOOKUP($D30,$D$36:$D$42,$P$36:$P$42) * _xlfn.XLOOKUP($D30,$D$36:$D$42,$W$36:$W$42)) + SUM(_xlfn.XLOOKUP($D30,$D$36:$D$42,$U$36:$U$42) * (_xlfn.XLOOKUP($D30,$D$36:$D$42,$L$36:$L$42) +_xlfn.XLOOKUP($D30,$D$36:$D$42,$M$36:$M$42)-1<=BN$24) * _xlfn.XLOOKUP($D30,$D$36:$D$42,$P$36:$P$42))), (SUM( INDIRECT(ADDRESS(_xlfn.XLOOKUP($D30,$D$36:$D$42,$Y$36:$Y$42),COLUMN($AB$24))): INDIRECT(ADDRESS(_xlfn.XLOOKUP($D30,$D$36:$D$42,$Y$36:$Y$42),COLUMN(BN30)))) * _xlfn.XLOOKUP($D30,$D$36:$D$42,$P$36:$P$42))) -> 0 | BO30: =IF($F$12=$CH$1, (SUM((_xlfn.XLOOKUP($D30,$D$36:$D$42,$L$36:$L$42)<=BO$24) * (_xlfn.XLOOKUP($D30,$D$36:$D$42,$L$36:$L$42)+_xlfn.XLOOKUP($D30,$D$36:$D$42,$M$36:$M$42)-1>BO$24) * (BO$24+1-_xlfn.XLOOKUP($D30,$D$36:$D$42,$L$36:$L$42)) * _xlfn.XLOOKUP($D30,$D$36:$D$42,$P$36:$P$42) * _xlfn.XLOOKUP($D30,$D$36:$D$42,$W$36:$W$42)) + SUM(_xlfn.XLOOKUP($D30,$D$36:$D$42,$U$36:$U$42) * (_xlfn.XLOOKUP($D30,$D$36:$D$42,$L$36:$L$42) +_xlfn.XLOOKUP($D30,$D$36:$D$42,$M$36:$M$42)-1<=BO$24) * _xlfn.XLOOKUP($D30,$D$36:$D$42,$P$36:$P$42))), (SUM( INDIRECT(ADDRESS(_xlfn.XLOOKUP($D30,$D$36:$D$42,$Y$36:$Y$42),COLUMN($AB$24))): INDIRECT(ADDRESS(_xlfn.XLOOKUP($D30,$D$36:$D$42,$Y$36:$Y$42),COLUMN(BO30)))) * _xlfn.XLOOKUP($D30,$D$36:$D$42,$P$36:$P$42))) -> 0 | BP30: =IF($F$12=$CH$1, (SUM((_xlfn.XLOOKUP($D30,$D$36:$D$42,$L$36:$L$42)<=BP$24) * (_xlfn.XLOOKUP($D30,$D$36:$D$42,$L$36:$L$42)+_xlfn.XLOOKUP($D30,$D$36:$D$42,$M$36:$M$42)-1>BP$24) * (BP$24+1-_xlfn.XLOOKUP($D30,$D$36:$D$42,$L$36:$L$42)) * _xlfn.XLOOKUP($D30,$D$36:$D$42,$P$36:$P$42) * _xlfn.XLOOKUP($D30,$D$36:$D$42,$W$36:$W$42)) + SUM(_xlfn.XLOOKUP($D30,$D$36:$D$42,$U$36:$U$42) * (_xlfn.XLOOKUP($D30,$D$36:$D$42,$L$36:$L$42) +_xlfn.XLOOKUP($D30,$D$36:$D$42,$M$36:$M$42)-1<=BP$24) * _xlfn.XLOOKUP($D30,$D$36:$D$42,$P$36:$P$42))), (SUM( INDIRECT(ADDRESS(_xlfn.XLOOKUP($D30,$D$36:$D$42,$Y$36:$Y$42),COLUMN($AB$24))): INDIRECT(ADDRESS(_xlfn.XLOOKUP($D30,$D$36:$D$42,$Y$36:$Y$42),COLUMN(BP30)))) * _xlfn.XLOOKUP($D30,$D$36:$D$42,$P$36:$P$42))) -> 0 | BQ30: =IF($F$12=$CH$1, (SUM((_xlfn.XLOOKUP($D30,$D$36:$D$42,$L$36:$L$42)<=BQ$24) * (_xlfn.XLOOKUP($D30,$D$36:$D$42,$L$36:$L$42)+_xlfn.XLOOKUP($D30,$D$36:$D$42,$M$36:$M$42)-1>BQ$24) * (BQ$24+1-_xlfn.XLOOKUP($D30,$D$36:$D$42,$L$36:$L$42)) * _xlfn.XLOOKUP($D30,$D$36:$D$42,$P$36:$P$42) * _xlfn.XLOOKUP($D30,$D$36:$D$42,$W$36:$W$42)) + SUM(_xlfn.XLOOKUP($D30,$D$36:$D$42,$U$36:$U$42) * (_xlfn.XLOOKUP($D30,$D$36:$D$42,$L$36:$L$42) +_xlfn.XLOOKUP($D30,$D$36:$D$42,$M$36:$M$42)-1<=BQ$24) * _xlfn.XLOOKUP($D30,$D$36:$D$42,$P$36:$P$42))), (SUM( INDIRECT(ADDRESS(_xlfn.XLOOKUP($D30,$D$36:$D$42,$Y$36:$Y$42),COLUMN($AB$24))): INDIRECT(ADDRESS(_xlfn.XLOOKUP($D30,$D$36:$D$42,$Y$36:$Y$42),COLUMN(BQ30)))) * _xlfn.XLOOKUP($D30,$D$36:$D$42,$P$36:$P$42))) -> 0 | BR30: =IF($F$12=$CH$1, (SUM((_xlfn.XLOOKUP($D30,$D$36:$D$42,$L$36:$L$42)<=BR$24) * (_xlfn.XLOOKUP($D30,$D$36:$D$42,$L$36:$L$42)+_xlfn.XLOOKUP($D30,$D$36:$D$42,$M$36:$M$42)-1>BR$24) * (BR$24+1-_xlfn.XLOOKUP($D30,$D$36:$D$42,$L$36:$L$42)) * _xlfn.XLOOKUP($D30,$D$36:$D$42,$P$36:$P$42) * _xlfn.XLOOKUP($D30,$D$36:$D$42,$W$36:$W$42)) + SUM(_xlfn.XLOOKUP($D30,$D$36:$D$42,$U$36:$U$42) * (_xlfn.XLOOKUP($D30,$D$36:$D$42,$L$36:$L$42) +_xlfn.XLOOKUP($D30,$D$36:$D$42,$M$36:$M$42)-1<=BR$24) * _xlfn.XLOOKUP($D30,$D$36:$D$42,$P$36:$P$42))), (SUM( INDIRECT(ADDRESS(_xlfn.XLOOKUP($D30,$D$36:$D$42,$Y$36:$Y$42),COLUMN($AB$24))): INDIRECT(ADDRESS(_xlfn.XLOOKUP($D30,$D$36:$D$42,$Y$36:$Y$42),COLUMN(BR30)))) * _xlfn.XLOOKUP($D30,$D$36:$D$42,$P$36:$P$42))) -> 0 | BS30: =IF($F$12=$CH$1, (SUM((_xlfn.XLOOKUP($D30,$D$36:$D$42,$L$36:$L$42)<=BS$24) * (_xlfn.XLOOKUP($D30,$D$36:$D$42,$L$36:$L$42)+_xlfn.XLOOKUP($D30,$D$36:$D$42,$M$36:$M$42)-1>BS$24) * (BS$24+1-_xlfn.XLOOKUP($D30,$D$36:$D$42,$L$36:$L$42)) * _xlfn.XLOOKUP($D30,$D$36:$D$42,$P$36:$P$42) * _xlfn.XLOOKUP($D30,$D$36:$D$42,$W$36:$W$42)) + SUM(_xlfn.XLOOKUP($D30,$D$36:$D$42,$U$36:$U$42) * (_xlfn.XLOOKUP($D30,$D$36:$D$42,$L$36:$L$42) +_xlfn.XLOOKUP($D30,$D$36:$D$42,$M$36:$M$42)-1<=BS$24) * _xlfn.XLOOKUP($D30,$D$36:$D$42,$P$36:$P$42))), (SUM( INDIRECT(ADDRESS(_xlfn.XLOOKUP($D30,$D$36:$D$42,$Y$36:$Y$42),COLUMN($AB$24))): INDIRECT(ADDRESS(_xlfn.XLOOKUP($D30,$D$36:$D$42,$Y$36:$Y$42),COLUMN(BS30)))) * _xlfn.XLOOKUP($D30,$D$36:$D$42,$P$36:$P$42))) -> 0 | BT30: =IF($F$12=$CH$1, (SUM((_xlfn.XLOOKUP($D30,$D$36:$D$42,$L$36:$L$42)<=BT$24) * (_xlfn.XLOOKUP($D30,$D$36:$D$42,$L$36:$L$42)+_xlfn.XLOOKUP($D30,$D$36:$D$42,$M$36:$M$42)-1>BT$24) * (BT$24+1-_xlfn.XLOOKUP($D30,$D$36:$D$42,$L$36:$L$42)) * _xlfn.XLOOKUP($D30,$D$36:$D$42,$P$36:$P$42) * _xlfn.XLOOKUP($D30,$D$36:$D$42,$W$36:$W$42)) + SUM(_xlfn.XLOOKUP($D30,$D$36:$D$42,$U$36:$U$42) * (_xlfn.XLOOKUP($D30,$D$36:$D$42,$L$36:$L$42) +_xlfn.XLOOKUP($D30,$D$36:$D$42,$M$36:$M$42)-1<=BT$24) * _xlfn.XLOOKUP($D30,$D$36:$D$42,$P$36:$P$42))), (SUM( INDIRECT(ADDRESS(_xlfn.XLOOKUP($D30,$D$36:$D$42,$Y$36:$Y$42),COLUMN($AB$24))): INDIRECT(ADDRESS(_xlfn.XLOOKUP($D30,$D$36:$D$42,$Y$36:$Y$42),COLUMN(BT30)))) * _xlfn.XLOOKUP($D30,$D$36:$D$42,$P$36:$P$42))) -> 0 | BU30: =IF($F$12=$CH$1, (SUM((_xlfn.XLOOKUP($D30,$D$36:$D$42,$L$36:$L$42)<=BU$24) * (_xlfn.XLOOKUP($D30,$D$36:$D$42,$L$36:$L$42)+_xlfn.XLOOKUP($D30,$D$36:$D$42,$M$36:$M$42)-1>BU$24) * (BU$24+1-_xlfn.XLOOKUP($D30,$D$36:$D$42,$L$36:$L$42)) * _xlfn.XLOOKUP($D30,$D$36:$D$42,$P$36:$P$42) * _xlfn.XLOOKUP($D30,$D$36:$D$42,$W$36:$W$42)) + SUM(_xlfn.XLOOKUP($D30,$D$36:$D$42,$U$36:$U$42) * (_xlfn.XLOOKUP($D30,$D$36:$D$42,$L$36:$L$42) +_xlfn.XLOOKUP($D30,$D$36:$D$42,$M$36:$M$42)-1<=BU$24) * _xlfn.XLOOKUP($D30,$D$36:$D$42,$P$36:$P$42))), (SUM( INDIRECT(ADDRESS(_xlfn.XLOOKUP($D30,$D$36:$D$42,$Y$36:$Y$42),COLUMN($AB$24))): INDIRECT(ADDRESS(_xlfn.XLOOKUP($D30,$D$36:$D$42,$Y$36:$Y$42),COLUMN(BU30)))) * _xlfn.XLOOKUP($D30,$D$36:$D$42,$P$36:$P$42))) -> 0 | BV30: =IF($F$12=$CH$1, (SUM((_xlfn.XLOOKUP($D30,$D$36:$D$42,$L$36:$L$42)<=BV$24) * (_xlfn.XLOOKUP($D30,$D$36:$D$42,$L$36:$L$42)+_xlfn.XLOOKUP($D30,$D$36:$D$42,$M$36:$M$42)-1>BV$24) * (BV$24+1-_xlfn.XLOOKUP($D30,$D$36:$D$42,$L$36:$L$42)) * _xlfn.XLOOKUP($D30,$D$36:$D$42,$P$36:$P$42) * _xlfn.XLOOKUP($D30,$D$36:$D$42,$W$36:$W$42)) + SUM(_xlfn.XLOOKUP($D30,$D$36:$D$42,$U$36:$U$42) * (_xlfn.XLOOKUP($D30,$D$36:$D$42,$L$36:$L$42) +_xlfn.XLOOKUP($D30,$D$36:$D$42,$M$36:$M$42)-1<=BV$24) * _xlfn.XLOOKUP($D30,$D$36:$D$42,$P$36:$P$42))), (SUM( INDIRECT(ADDRESS(_xlfn.XLOOKUP($D30,$D$36:$D$42,$Y$36:$Y$42),COLUMN($AB$24))): INDIRECT(ADDRESS(_xlfn.XLOOKUP($D30,$D$36:$D$42,$Y$36:$Y$42),COLUMN(BV30)))) * _xlfn.XLOOKUP($D30,$D$36:$D$42,$P$36:$P$42))) -> 0 | BW30: =IF($F$12=$CH$1, (SUM((_xlfn.XLOOKUP($D30,$D$36:$D$42,$L$36:$L$42)<=BW$24) * (_xlfn.XLOOKUP($D30,$D$36:$D$42,$L$36:$L$42)+_xlfn.XLOOKUP($D30,$D$36:$D$42,$M$36:$M$42)-1>BW$24) * (BW$24+1-_xlfn.XLOOKUP($D30,$D$36:$D$42,$L$36:$L$42)) * _xlfn.XLOOKUP($D30,$D$36:$D$42,$P$36:$P$42) * _xlfn.XLOOKUP($D30,$D$36:$D$42,$W$36:$W$42)) + SUM(_xlfn.XLOOKUP($D30,$D$36:$D$42,$U$36:$U$42) * (_xlfn.XLOOKUP($D30,$D$36:$D$42,$L$36:$L$42) +_xlfn.XLOOKUP($D30,$D$36:$D$42,$M$36:$M$42)-1<=BW$24) * _xlfn.XLOOKUP($D30,$D$36:$D$42,$P$36:$P$42))), (SUM( INDIRECT(ADDRESS(_xlfn.XLOOKUP($D30,$D$36:$D$42,$Y$36:$Y$42),COLUMN($AB$24))): INDIRECT(ADDRESS(_xlfn.XLOOKUP($D30,$D$36:$D$42,$Y$36:$Y$42),COLUMN(BW30)))) * _xlfn.XLOOKUP($D30,$D$36:$D$42,$P$36:$P$42))) -> 0 | BX30: =IF($F$12=$CH$1, (SUM((_xlfn.XLOOKUP($D30,$D$36:$D$42,$L$36:$L$42)<=BX$24) * (_xlfn.XLOOKUP($D30,$D$36:$D$42,$L$36:$L$42)+_xlfn.XLOOKUP($D30,$D$36:$D$42,$M$36:$M$42)-1>BX$24) * (BX$24+1-_xlfn.XLOOKUP($D30,$D$36:$D$42,$L$36:$L$42)) * _xlfn.XLOOKUP($D30,$D$36:$D$42,$P$36:$P$42) * _xlfn.XLOOKUP($D30,$D$36:$D$42,$W$36:$W$42)) + SUM(_xlfn.XLOOKUP($D30,$D$36:$D$42,$U$36:$U$42) * (_xlfn.XLOOKUP($D30,$D$36:$D$42,$L$36:$L$42) +_xlfn.XLOOKUP($D30,$D$36:$D$42,$M$36:$M$42)-1<=BX$24) * _xlfn.XLOOKUP($D30,$D$36:$D$42,$P$36:$P$42))), (SUM( INDIRECT(ADDRESS(_xlfn.XLOOKUP($D30,$D$36:$D$42,$Y$36:$Y$42),COLUMN($AB$24))): INDIRECT(ADDRESS(_xlfn.XLOOKUP($D30,$D$36:$D$42,$Y$36:$Y$42),COLUMN(BX30)))) * _xlfn.XLOOKUP($D30,$D$36:$D$42,$P$36:$P$42))) -> 0 | BY30: =IF($F$12=$CH$1, (SUM((_xlfn.XLOOKUP($D30,$D$36:$D$42,$L$36:$L$42)<=BY$24) * (_xlfn.XLOOKUP($D30,$D$36:$D$42,$L$36:$L$42)+_xlfn.XLOOKUP($D30,$D$36:$D$42,$M$36:$M$42)-1>BY$24) * (BY$24+1-_xlfn.XLOOKUP($D30,$D$36:$D$42,$L$36:$L$42)) * _xlfn.XLOOKUP($D30,$D$36:$D$42,$P$36:$P$42) * _xlfn.XLOOKUP($D30,$D$36:$D$42,$W$36:$W$42)) + SUM(_xlfn.XLOOKUP($D30,$D$36:$D$42,$U$36:$U$42) * (_xlfn.XLOOKUP($D30,$D$36:$D$42,$L$36:$L$42) +_xlfn.XLOOKUP($D30,$D$36:$D$42,$M$36:$M$42)-1<=BY$24) * _xlfn.XLOOKUP($D30,$D$36:$D$42,$P$36:$P$42))), (SUM( INDIRECT(ADDRESS(_xlfn.XLOOKUP($D30,$D$36:$D$42,$Y$36:$Y$42),COLUMN($AB$24))): INDIRECT(ADDRESS(_xlfn.XLOOKUP($D30,$D$36:$D$42,$Y$36:$Y$42),COLUMN(BY30)))) * _xlfn.XLOOKUP($D30,$D$36:$D$42,$P$36:$P$42))) -> 0 | BZ30: =IF($F$12=$CH$1, (SUM((_xlfn.XLOOKUP($D30,$D$36:$D$42,$L$36:$L$42)<=BZ$24) * (_xlfn.XLOOKUP($D30,$D$36:$D$42,$L$36:$L$42)+_xlfn.XLOOKUP($D30,$D$36:$D$42,$M$36:$M$42)-1>BZ$24) * (BZ$24+1-_xlfn.XLOOKUP($D30,$D$36:$D$42,$L$36:$L$42)) * _xlfn.XLOOKUP($D30,$D$36:$D$42,$P$36:$P$42) * _xlfn.XLOOKUP($D30,$D$36:$D$42,$W$36:$W$42)) + SUM(_xlfn.XLOOKUP($D30,$D$36:$D$42,$U$36:$U$42) * (_xlfn.XLOOKUP($D30,$D$36:$D$42,$L$36:$L$42) +_xlfn.XLOOKUP($D30,$D$36:$D$42,$M$36:$M$42)-1<=BZ$24) * _xlfn.XLOOKUP($D30,$D$36:$D$42,$P$36:$P$42))), (SUM( INDIRECT(ADDRESS(_xlfn.XLOOKUP($D30,$D$36:$D$42,$Y$36:$Y$42),COLUMN($AB$24))): INDIRECT(ADDRESS(_xlfn.XLOOKUP($D30,$D$36:$D$42,$Y$36:$Y$42),COLUMN(BZ30)))) * _xlfn.XLOOKUP($D30,$D$36:$D$42,$P$36:$P$42))) -> 0 | CA30: =IF($F$12=$CH$1, (SUM((_xlfn.XLOOKUP($D30,$D$36:$D$42,$L$36:$L$42)<=CA$24) * (_xlfn.XLOOKUP($D30,$D$36:$D$42,$L$36:$L$42)+_xlfn.XLOOKUP($D30,$D$36:$D$42,$M$36:$M$42)-1>CA$24) * (CA$24+1-_xlfn.XLOOKUP($D30,$D$36:$D$42,$L$36:$L$42)) * _xlfn.XLOOKUP($D30,$D$36:$D$42,$P$36:$P$42) * _xlfn.XLOOKUP($D30,$D$36:$D$42,$W$36:$W$42)) + SUM(_xlfn.XLOOKUP($D30,$D$36:$D$42,$U$36:$U$42) * (_xlfn.XLOOKUP($D30,$D$36:$D$42,$L$36:$L$42) +_xlfn.XLOOKUP($D30,$D$36:$D$42,$M$36:$M$42)-1<=CA$24) * _xlfn.XLOOKUP($D30,$D$36:$D$42,$P$36:$P$42))), (SUM( INDIRECT(ADDRESS(_xlfn.XLOOKUP($D30,$D$36:$D$42,$Y$36:$Y$42),COLUMN($AB$24))): INDIRECT(ADDRESS(_xlfn.XLOOKUP($D30,$D$36:$D$42,$Y$36:$Y$42),COLUMN(CA30)))) * _xlfn.XLOOKUP($D30,$D$36:$D$42,$P$36:$P$42))) -> 0 | CB30: =IF($F$12=$CH$1, (SUM((_xlfn.XLOOKUP($D30,$D$36:$D$42,$L$36:$L$42)<=CB$24) * (_xlfn.XLOOKUP($D30,$D$36:$D$42,$L$36:$L$42)+_xlfn.XLOOKUP($D30,$D$36:$D$42,$M$36:$M$42)-1>CB$24) * (CB$24+1-_xlfn.XLOOKUP($D30,$D$36:$D$42,$L$36:$L$42)) * _xlfn.XLOOKUP($D30,$D$36:$D$42,$P$36:$P$42) * _xlfn.XLOOKUP($D30,$D$36:$D$42,$W$36:$W$42)) + SUM(_xlfn.XLOOKUP($D30,$D$36:$D$42,$U$36:$U$42) * (_xlfn.XLOOKUP($D30,$D$36:$D$42,$L$36:$L$42) +_xlfn.XLOOKUP($D30,$D$36:$D$42,$M$36:$M$42)-1<=CB$24) * _xlfn.XLOOKUP($D30,$D$36:$D$42,$P$36:$P$42))), (SUM( INDIRECT(ADDRESS(_xlfn.XLOOKUP($D30,$D$36:$D$42,$Y$36:$Y$42),COLUMN($AB$24))): INDIRECT(ADDRESS(_xlfn.XLOOKUP($D30,$D$36:$D$42,$Y$36:$Y$42),COLUMN(CB30)))) * _xlfn.XLOOKUP($D30,$D$36:$D$42,$P$36:$P$42))) -> 0 | CC30: =IF($F$12=$CH$1, (SUM((_xlfn.XLOOKUP($D30,$D$36:$D$42,$L$36:$L$42)<=CC$24) * (_xlfn.XLOOKUP($D30,$D$36:$D$42,$L$36:$L$42)+_xlfn.XLOOKUP($D30,$D$36:$D$42,$M$36:$M$42)-1>CC$24) * (CC$24+1-_xlfn.XLOOKUP($D30,$D$36:$D$42,$L$36:$L$42)) * _xlfn.XLOOKUP($D30,$D$36:$D$42,$P$36:$P$42) * _xlfn.XLOOKUP($D30,$D$36:$D$42,$W$36:$W$42)) + SUM(_xlfn.XLOOKUP($D30,$D$36:$D$42,$U$36:$U$42) * (_xlfn.XLOOKUP($D30,$D$36:$D$42,$L$36:$L$42) +_xlfn.XLOOKUP($D30,$D$36:$D$42,$M$36:$M$42)-1<=CC$24) * _xlfn.XLOOKUP($D30,$D$36:$D$42,$P$36:$P$42))), (SUM( INDIRECT(ADDRESS(_xlfn.XLOOKUP($D30,$D$36:$D$42,$Y$36:$Y$42),COLUMN($AB$24))): INDIRECT(ADDRESS(_xlfn.XLOOKUP($D30,$D$36:$D$42,$Y$36:$Y$42),COLUMN(CC30)))) * _xlfn.XLOOKUP($D30,$D$36:$D$42,$P$36:$P$42))) -> 0 | CD30: =IF($F$12=$CH$1, (SUM((_xlfn.XLOOKUP($D30,$D$36:$D$42,$L$36:$L$42)<=CD$24) * (_xlfn.XLOOKUP($D30,$D$36:$D$42,$L$36:$L$42)+_xlfn.XLOOKUP($D30,$D$36:$D$42,$M$36:$M$42)-1>CD$24) * (CD$24+1-_xlfn.XLOOKUP($D30,$D$36:$D$42,$L$36:$L$42)) * _xlfn.XLOOKUP($D30,$D$36:$D$42,$P$36:$P$42) * _xlfn.XLOOKUP($D30,$D$36:$D$42,$W$36:$W$42)) + SUM(_xlfn.XLOOKUP($D30,$D$36:$D$42,$U$36:$U$42) * (_xlfn.XLOOKUP($D30,$D$36:$D$42,$L$36:$L$42) +_xlfn.XLOOKUP($D30,$D$36:$D$42,$M$36:$M$42)-1<=CD$24) * _xlfn.XLOOKUP($D30,$D$36:$D$42,$P$36:$P$42))), (SUM( INDIRECT(ADDRESS(_xlfn.XLOOKUP($D30,$D$36:$D$42,$Y$36:$Y$42),COLUMN($AB$24))): INDIRECT(ADDRESS(_xlfn.XLOOKUP($D30,$D$36:$D$42,$Y$36:$Y$42),COLUMN(CD30)))) * _xlfn.XLOOKUP($D30,$D$36:$D$42,$P$36:$P$42))) -> 0 | CE30: =IF($F$12=$CH$1, (SUM((_xlfn.XLOOKUP($D30,$D$36:$D$42,$L$36:$L$42)<=CE$24) * (_xlfn.XLOOKUP($D30,$D$36:$D$42,$L$36:$L$42)+_xlfn.XLOOKUP($D30,$D$36:$D$42,$M$36:$M$42)-1>CE$24) * (CE$24+1-_xlfn.XLOOKUP($D30,$D$36:$D$42,$L$36:$L$42)) * _xlfn.XLOOKUP($D30,$D$36:$D$42,$P$36:$P$42) * _xlfn.XLOOKUP($D30,$D$36:$D$42,$W$36:$W$42)) + SUM(_xlfn.XLOOKUP($D30,$D$36:$D$42,$U$36:$U$42) * (_xlfn.XLOOKUP($D30,$D$36:$D$42,$L$36:$L$42) +_xlfn.XLOOKUP($D30,$D$36:$D$42,$M$36:$M$42)-1<=CE$24) * _xlfn.XLOOKUP($D30,$D$36:$D$42,$P$36:$P$42))), (SUM( INDIRECT(ADDRESS(_xlfn.XLOOKUP($D30,$D$36:$D$42,$Y$36:$Y$42),COLUMN($AB$24))): INDIRECT(ADDRESS(_xlfn.XLOOKUP($D30,$D$36:$D$42,$Y$36:$Y$42),COLUMN(CE30)))) * _xlfn.XLOOKUP($D30,$D$36:$D$42,$P$36:$P$42))) -> 0 | CF30: =IF($F$12=$CH$1, (SUM((_xlfn.XLOOKUP($D30,$D$36:$D$42,$L$36:$L$42)<=CF$24) * (_xlfn.XLOOKUP($D30,$D$36:$D$42,$L$36:$L$42)+_xlfn.XLOOKUP($D30,$D$36:$D$42,$M$36:$M$42)-1>CF$24) * (CF$24+1-_xlfn.XLOOKUP($D30,$D$36:$D$42,$L$36:$L$42)) * _xlfn.XLOOKUP($D30,$D$36:$D$42,$P$36:$P$42) * _xlfn.XLOOKUP($D30,$D$36:$D$42,$W$36:$W$42)) + SUM(_xlfn.XLOOKUP($D30,$D$36:$D$42,$U$36:$U$42) * (_xlfn.XLOOKUP($D30,$D$36:$D$42,$L$36:$L$42) +_xlfn.XLOOKUP($D30,$D$36:$D$42,$M$36:$M$42)-1<=CF$24) * _xlfn.XLOOKUP($D30,$D$36:$D$42,$P$36:$P$42))), (SUM( INDIRECT(ADDRESS(_xlfn.XLOOKUP($D30,$D$36:$D$42,$Y$36:$Y$42),COLUMN($AB$24))): INDIRECT(ADDRESS(_xlfn.XLOOKUP($D30,$D$36:$D$42,$Y$36:$Y$42),COLUMN(CF30)))) * _xlfn.XLOOKUP($D30,$D$36:$D$42,$P$36:$P$42))) -> 0 | CG30: =IF($F$12=$CH$1, (SUM((_xlfn.XLOOKUP($D30,$D$36:$D$42,$L$36:$L$42)<=CG$24) * (_xlfn.XLOOKUP($D30,$D$36:$D$42,$L$36:$L$42)+_xlfn.XLOOKUP($D30,$D$36:$D$42,$M$36:$M$42)-1>CG$24) * (CG$24+1-_xlfn.XLOOKUP($D30,$D$36:$D$42,$L$36:$L$42)) * _xlfn.XLOOKUP($D30,$D$36:$D$42,$P$36:$P$42) * _xlfn.XLOOKUP($D30,$D$36:$D$42,$W$36:$W$42)) + SUM(_xlfn.XLOOKUP($D30,$D$36:$D$42,$U$36:$U$42) * (_xlfn.XLOOKUP($D30,$D$36:$D$42,$L$36:$L$42) +_xlfn.XLOOKUP($D30,$D$36:$D$42,$M$36:$M$42)-1<=CG$24) * _xlfn.XLOOKUP($D30,$D$36:$D$42,$P$36:$P$42))), (SUM( INDIRECT(ADDRESS(_xlfn.XLOOKUP($D30,$D$36:$D$42,$Y$36:$Y$42),COLUMN($AB$24))): INDIRECT(ADDRESS(_xlfn.XLOOKUP($D30,$D$36:$D$42,$Y$36:$Y$42),COLUMN(CG30)))) * _xlfn.XLOOKUP($D30,$D$36:$D$42,$P$36:$P$42))) -> 0 | CH30: =IF($F$12=$CH$1, (SUM((_xlfn.XLOOKUP($D30,$D$36:$D$42,$L$36:$L$42)<=CH$24) * (_xlfn.XLOOKUP($D30,$D$36:$D$42,$L$36:$L$42)+_xlfn.XLOOKUP($D30,$D$36:$D$42,$M$36:$M$42)-1>CH$24) * (CH$24+1-_xlfn.XLOOKUP($D30,$D$36:$D$42,$L$36:$L$42)) * _xlfn.XLOOKUP($D30,$D$36:$D$42,$P$36:$P$42) * _xlfn.XLOOKUP($D30,$D$36:$D$42,$W$36:$W$42)) + SUM(_xlfn.XLOOKUP($D30,$D$36:$D$42,$U$36:$U$42) * (_xlfn.XLOOKUP($D30,$D$36:$D$42,$L$36:$L$42) +_xlfn.XLOOKUP($D30,$D$36:$D$42,$M$36:$M$42)-1<=CH$24) * _xlfn.XLOOKUP($D30,$D$36:$D$42,$P$36:$P$42))), (SUM( INDIRECT(ADDRESS(_xlfn.XLOOKUP($D30,$D$36:$D$42,$Y$36:$Y$42),COLUMN($AB$24))): INDIRECT(ADDRESS(_xlfn.XLOOKUP($D30,$D$36:$D$42,$Y$36:$Y$42),COLUMN(CH30)))) * _xlfn.XLOOKUP($D30,$D$36:$D$42,$P$36:$P$42))) -> 0 | CI30: =IF($F$12=$CH$1, (SUM((_xlfn.XLOOKUP($D30,$D$36:$D$42,$L$36:$L$42)<=CI$24) * (_xlfn.XLOOKUP($D30,$D$36:$D$42,$L$36:$L$42)+_xlfn.XLOOKUP($D30,$D$36:$D$42,$M$36:$M$42)-1>CI$24) * (CI$24+1-_xlfn.XLOOKUP($D30,$D$36:$D$42,$L$36:$L$42)) * _xlfn.XLOOKUP($D30,$D$36:$D$42,$P$36:$P$42) * _xlfn.XLOOKUP($D30,$D$36:$D$42,$W$36:$W$42)) + SUM(_xlfn.XLOOKUP($D30,$D$36:$D$42,$U$36:$U$42) * (_xlfn.XLOOKUP($D30,$D$36:$D$42,$L$36:$L$42) +_xlfn.XLOOKUP($D30,$D$36:$D$42,$M$36:$M$42)-1<=CI$24) * _xlfn.XLOOKUP($D30,$D$36:$D$42,$P$36:$P$42))), (SUM( INDIRECT(ADDRESS(_xlfn.XLOOKUP($D30,$D$36:$D$42,$Y$36:$Y$42),COLUMN($AB$24))): INDIRECT(ADDRESS(_xlfn.XLOOKUP($D30,$D$36:$D$42,$Y$36:$Y$42),COLUMN(CI30)))) * _xlfn.XLOOKUP($D30,$D$36:$D$42,$P$36:$P$42))) -> 0
F32: Particulier | G32: Corporatie | H32: Corporatie | I32: Corporatie
B33: Individuele aansluitingen | F33: Particulier | G33: [naam] | H33: [naam] | I33: [naam] | K33: Warmteverbruik | L33: Aansluitjaar | M33: Aansluitsnelheid | N33: Participatiegraad | S33: Totaal particulier bezit | T33: Totaal corporatiebezit | U33: Totaal bezit | V33: Jaarverbruik | W33: Aantal aansluitingen per jaar | X33: Overschot fasering door afronding | Y33: Rijnummer | AB33: =$F$10 -> 2022 | AC33: =AB33 + 1 -> 2023 | AD33: 2024 | AE33: 2025 | AF33: 2026 | AG33: 2027 | AH33: 2028 | AI33: 2029 | AJ33: 2030 | AK33: 2031 | AL33: 2032 | AM33: 2033 | AN33: 2034 | AO33: 2035 | AP33: 2036 | AQ33: 2037 | AR33: 2038 | AS33: 2039 | AT33: 2040 | AU33: 2041 | AV33: 2042 | AW33: 2043 | AX33: 2044 | AY33: 2045 | AZ33: 2046 | BA33: 2047 | BB33: 2048 | BC33: 2049 | BD33: 2050 | BE33: 2051 | BF33: 2052 | BG33: 2053 | BH33: 2054 | BI33: =BH33 + 1 -> 2055 | BJ33: 2056 | BK33: 2057 | BL33: 2058 | BM33: 2059 | BN33: 2060 | BO33: 2061 | BP33: 2062 | BQ33: 2063 | BR33: 2064 | BS33: 2065 | BT33: 2066 | BU33: 2067 | BV33: 2068 | BW33: 2069 | BX33: 2070 | BY33: 2071 | BZ33: 2072 | CA33: 2073 | CB33: 2074 | CC33: 2075 | CD33: 2076 | CE33: 2077 | CF33: 2078 | CG33: 2079 | CH33: 2080 | CI33: 2081
F34: [#] | G34: [#] | H34: [#] | I34: [#] | K34: [GJ/woning/jr] | L34: [jaartal] | M34: [jaar] | N34: [%] | S34: [#] | T34: [#] | U34: [#] | V34: [GJ/jr] | W34: [#/jaar] | X34: [#]
C35: Switch | D35: Tranche | F35: Aan | G35: Aan | H35: Aan | I35: Aan | AB35: Aantal aansluitingen handmatig (absoluut)
C36: Aan | D36: ="A."&TEXT(O36,"#") -> A.1 | E36: Individueel grondgebonden | F36: 500 | K36: 27 | L36: 2022 | M36: 5 | N36: 1 | O36: =O34+1 -> 1 | P36: =C36=$CF$1 -> TRUE | S36: =ROUND($F36 * ($F$35=$CF$1) * $N36 * $P36,0) -> 500 | T36: =ROUND(SUM($G36:$I36 * ($G$35:$I$35=$CF$1))*$N36*$P36,0) -> 0 | U36: =ROUND(SUM($F36:$I36 * ($F$35:$I$35=$CF$1))*$N36*$P36,0) -> 500 | V36: =SUM(S36:T36)*K36 -> 13500 | W36: =CEILING(U36/M36,1) -> 100 | X36: =$M36-(MOD(SUM($S36:$T36)-1,$M36)+1) -> 0 | Y36: =ROW(Y36) -> 36 | AA36: =IF(AND(SUM(AB36:CI36)>U36,$F$12=$CH$2),"Teveel aansluitingen","") -> 
C37: Aan | D37: B.1 | E37: Individueel gestapeld | F37: 500 | K37: 20 | L37: 2022 | M37: 5 | N37: 1 | O37: =O36 -> 1 | P37: =C37=$CF$1 -> TRUE | S37: =ROUND($F37 * ($F$35=$CF$1) * $N37 * $P37,0) -> 500 | T37: =ROUND(SUM($G37:$I37 * ($G$35:$I$35=$CF$1))*$N37*$P37,0) -> 0 | U37: =ROUND(SUM($F37:$I37 * ($F$35:$I$35=$CF$1))*$N37*$P37,0) -> 500 | V37: =SUM(S37:T37)*K37 -> 10000 | W37: =CEILING(U37/M37,1) -> 100 | X37: =$M37-(MOD(SUM($S37:$T37)-1,$M37)+1) -> 0 | Y37: =ROW(Y37) -> 37 | AA37: =IF(AND(SUM(AB37:CI37)>U37,$F$12=$CH$2),"Teveel aansluitingen","") -> 
C39: Aan | D39: ="A."&TEXT(O39,"#") -> A.2 | E39: Individueel grondgebonden | K39: 27 | L39: 2022 | M39: 5 | N39: 1 | O39: =O37+1 -> 2 | P39: =C39=$CF$1 -> TRUE | S39: =ROUND($F39 * ($F$35=$CF$1) * $N39 * $P39,0) -> 0 | T39: =ROUND(SUM($G39:$I39 * ($G$35:$I$35=$CF$1))*$N39*$P39,0) -> 0 | U39: =ROUND(SUM($F39:$I39 * ($F$35:$I$35=$CF$1))*$N39*$P39,0) -> 0 | V39: =SUM(S39:T39)*K39 -> 0 | W39: =CEILING(U39/M39,1) -> 0 | X39: =$M39-(MOD(SUM($S39:$T39)-1,$M39)+1) -> 0 | Y39: =ROW(Y39) -> 39 | AA39: =IF(AND(SUM(AB39:CI39)>U39,$F$12=$CH$2),"Teveel aansluitingen","") -> 
C40: Aan | D40: ="B."&TEXT(O40,"#") -> B.2 | E40: Individueel gestapeld | K40: 20 | L40: 2022 | M40: 5 | N40: 1 | O40: =O39 -> 2 | P40: =C40=$CF$1 -> TRUE | S40: =ROUND($F40 * ($F$35=$CF$1) * $N40 * $P40,0) -> 0 | T40: =ROUND(SUM($G40:$I40 * ($G$35:$I$35=$CF$1))*$N40*$P40,0) -> 0 | U40: =ROUND(SUM($F40:$I40 * ($F$35:$I$35=$CF$1))*$N40*$P40,0) -> 0 | V40: =SUM(S40:T40)*K40 -> 0 | W40: =CEILING(U40/M40,1) -> 0 | X40: =$M40 - (MOD(SUM($S40:$T40) - 1,$M40) + 1) -> 0 | Y40: =ROW(Y40) -> 40 | AA40: =IF(AND(SUM(AB40:CI40)>U40,$F$12=$CH$2),"Teveel aansluitingen","") -> 
B43: Berekeningen aansluitingen cumulatief
D44: Tranche | AB44: Aantal aansluitingen berekend (cumulatief)
D45: ="A."&TEXT(O45,"#") -> A.1 | E45: Individueel grondgebonden | O45: =O43+1 -> 1 | AB45: =IF($F$12=$CH$1, (SUM((_xlfn.XLOOKUP($D45,$D$36:$D$42,$L$36:$L$42)<=AB$24) * (_xlfn.XLOOKUP($D45,$D$36:$D$42,$L$36:$L$42)+_xlfn.XLOOKUP($D45,$D$36:$D$42,$M$36:$M$42)-1>AB$24) * (AB$24+1-_xlfn.XLOOKUP($D45,$D$36:$D$42,$L$36:$L$42)) * _xlfn.XLOOKUP($D45,$D$36:$D$42,$P$36:$P$42) * _xlfn.XLOOKUP($D45,$D$36:$D$42,$W$36:$W$42)) + SUM(_xlfn.XLOOKUP($D45,$D$36:$D$42,$U$36:$U$42) * (_xlfn.XLOOKUP($D45,$D$36:$D$42,$L$36:$L$42) +_xlfn.XLOOKUP($D45,$D$36:$D$42,$M$36:$M$42)-1<=AB$24) * _xlfn.XLOOKUP($D45,$D$36:$D$42,$P$36:$P$42))), (SUM( INDIRECT(ADDRESS(_xlfn.XLOOKUP($D45,$D$36:$D$42,$Y$36:$Y$42),COLUMN($AB$24))): INDIRECT(ADDRESS(_xlfn.XLOOKUP($D45,$D$36:$D$42,$Y$36:$Y$42),COLUMN(AB45)))) * _xlfn.XLOOKUP($D45,$D$36:$D$42,$P$36:$P$42))) -> 100 | AC45: =IF($F$12=$CH$1, (SUM((_xlfn.XLOOKUP($D45,$D$36:$D$42,$L$36:$L$42)<=AC$24) * (_xlfn.XLOOKUP($D45,$D$36:$D$42,$L$36:$L$42)+_xlfn.XLOOKUP($D45,$D$36:$D$42,$M$36:$M$42)-1>AC$24) * (AC$24+1-_xlfn.XLOOKUP($D45,$D$36:$D$42,$L$36:$L$42)) * _xlfn.XLOOKUP($D45,$D$36:$D$42,$P$36:$P$42) * _xlfn.XLOOKUP($D45,$D$36:$D$42,$W$36:$W$42)) + SUM(_xlfn.XLOOKUP($D45,$D$36:$D$42,$U$36:$U$42) * (_xlfn.XLOOKUP($D45,$D$36:$D$42,$L$36:$L$42) +_xlfn.XLOOKUP($D45,$D$36:$D$42,$M$36:$M$42)-1<=AC$24) * _xlfn.XLOOKUP($D45,$D$36:$D$42,$P$36:$P$42))), (SUM( INDIRECT(ADDRESS(_xlfn.XLOOKUP($D45,$D$36:$D$42,$Y$36:$Y$42),COLUMN($AB$24))): INDIRECT(ADDRESS(_xlfn.XLOOKUP($D45,$D$36:$D$42,$Y$36:$Y$42),COLUMN(AC45)))) * _xlfn.XLOOKUP($D45,$D$36:$D$42,$P$36:$P$42))) -> 200 | AD45: =IF($F$12=$CH$1, (SUM((_xlfn.XLOOKUP($D45,$D$36:$D$42,$L$36:$L$42)<=AD$24) * (_xlfn.XLOOKUP($D45,$D$36:$D$42,$L$36:$L$42)+_xlfn.XLOOKUP($D45,$D$36:$D$42,$M$36:$M$42)-1>AD$24) * (AD$24+1-_xlfn.XLOOKUP($D45,$D$36:$D$42,$L$36:$L$42)) * _xlfn.XLOOKUP($D45,$D$36:$D$42,$P$36:$P$42) * _xlfn.XLOOKUP($D45,$D$36:$D$42,$W$36:$W$42)) + SUM(_xlfn.XLOOKUP($D45,$D$36:$D$42,$U$36:$U$42) * (_xlfn.XLOOKUP($D45,$D$36:$D$42,$L$36:$L$42) +_xlfn.XLOOKUP($D45,$D$36:$D$42,$M$36:$M$42)-1<=AD$24) * _xlfn.XLOOKUP($D45,$D$36:$D$42,$P$36:$P$42))), (SUM( INDIRECT(ADDRESS(_xlfn.XLOOKUP($D45,$D$36:$D$42,$Y$36:$Y$42),COLUMN($AB$24))): INDIRECT(ADDRESS(_xlfn.XLOOKUP($D45,$D$36:$D$42,$Y$36:$Y$42),COLUMN(AD45)))) * _xlfn.XLOOKUP($D45,$D$36:$D$42,$P$36:$P$42))) -> 300 | AE45: =IF($F$12=$CH$1, (SUM((_xlfn.XLOOKUP($D45,$D$36:$D$42,$L$36:$L$42)<=AE$24) * (_xlfn.XLOOKUP($D45,$D$36:$D$42,$L$36:$L$42)+_xlfn.XLOOKUP($D45,$D$36:$D$42,$M$36:$M$42)-1>AE$24) * (AE$24+1-_xlfn.XLOOKUP($D45,$D$36:$D$42,$L$36:$L$42)) * _xlfn.XLOOKUP($D45,$D$36:$D$42,$P$36:$P$42) * _xlfn.XLOOKUP($D45,$D$36:$D$42,$W$36:$W$42)) + SUM(_xlfn.XLOOKUP($D45,$D$36:$D$42,$U$36:$U$42) * (_xlfn.XLOOKUP($D45,$D$36:$D$42,$L$36:$L$42) +_xlfn.XLOOKUP($D45,$D$36:$D$42,$M$36:$M$42)-1<=AE$24) * _xlfn.XLOOKUP($D45,$D$36:$D$42,$P$36:$P$42))), (SUM( INDIRECT(ADDRESS(_xlfn.XLOOKUP($D45,$D$36:$D$42,$Y$36:$Y$42),COLUMN($AB$24))): INDIRECT(ADDRESS(_xlfn.XLOOKUP($D45,$D$36:$D$42,$Y$36:$Y$42),COLUMN(AE45)))) * _xlfn.XLOOKUP($D45,$D$36:$D$42,$P$36:$P$42))) -> 400 | AF45: =IF($F$12=$CH$1, (SUM((_xlfn.XLOOKUP($D45,$D$36:$D$42,$L$36:$L$42)<=AF$24) * (_xlfn.XLOOKUP($D45,$D$36:$D$42,$L$36:$L$42)+_xlfn.XLOOKUP($D45,$D$36:$D$42,$M$36:$M$42)-1>AF$24) * (AF$24+1-_xlfn.XLOOKUP($D45,$D$36:$D$42,$L$36:$L$42)) * _xlfn.XLOOKUP($D45,$D$36:$D$42,$P$36:$P$42) * _xlfn.XLOOKUP($D45,$D$36:$D$42,$W$36:$W$42)) + SUM(_xlfn.XLOOKUP($D45,$D$36:$D$42,$U$36:$U$42) * (_xlfn.XLOOKUP($D45,$D$36:$D$42,$L$36:$L$42) +_xlfn.XLOOKUP($D45,$D$36:$D$42,$M$36:$M$42)-1<=AF$24) * _xlfn.XLOOKUP($D45,$D$36:$D$42,$P$36:$P$42))), (SUM( INDIRECT(ADDRESS(_xlfn.XLOOKUP($D45,$D$36:$D$42,$Y$36:$Y$42),COLUMN($AB$24))): INDIRECT(ADDRESS(_xlfn.XLOOKUP($D45,$D$36:$D$42,$Y$36:$Y$42),COLUMN(AF45)))) * _xlfn.XLOOKUP($D45,$D$36:$D$42,$P$36:$P$42))) -> 500 | AG45: =IF($F$12=$CH$1, (SUM((_xlfn.XLOOKUP($D45,$D$36:$D$42,$L$36:$L$42)<=AG$24) * (_xlfn.XLOOKUP($D45,$D$36:$D$42,$L$36:$L$42)+_xlfn.XLOOKUP($D45,$D$36:$D$42,$M$36:$M$42)-1>AG$24) * (AG$24+1-_xlfn.XLOOKUP($D45,$D$36:$D$42,$L$36:$L$42)) * _xlfn.XLOOKUP($D45,$D$36:$D$42,$P$36:$P$42) * _xlfn.XLOOKUP($D45,$D$36:$D$42,$W$36:$W$42)) + SUM(_xlfn.XLOOKUP($D45,$D$36:$D$42,$U$36:$U$42) * (_xlfn.XLOOKUP($D45,$D$36:$D$42,$L$36:$L$42) +_xlfn.XLOOKUP($D45,$D$36:$D$42,$M$36:$M$42)-1<=AG$24) * _xlfn.XLOOKUP($D45,$D$36:$D$42,$P$36:$P$42))), (SUM( INDIRECT(ADDRESS(_xlfn.XLOOKUP($D45,$D$36:$D$42,$Y$36:$Y$42),COLUMN($AB$24))): INDIRECT(ADDRESS(_xlfn.XLOOKUP($D45,$D$36:$D$42,$Y$36:$Y$42),COLUMN(AG45)))) * _xlfn.XLOOKUP($D45,$D$36:$D$42,$P$36:$P$42))) -> 500 | AH45: =IF($F$12=$CH$1, (SUM((_xlfn.XLOOKUP($D45,$D$36:$D$42,$L$36:$L$42)<=AH$24) * (_xlfn.XLOOKUP($D45,$D$36:$D$42,$L$36:$L$42)+_xlfn.XLOOKUP($D45,$D$36:$D$42,$M$36:$M$42)-1>AH$24) * (AH$24+1-_xlfn.XLOOKUP($D45,$D$36:$D$42,$L$36:$L$42)) * _xlfn.XLOOKUP($D45,$D$36:$D$42,$P$36:$P$42) * _xlfn.XLOOKUP($D45,$D$36:$D$42,$W$36:$W$42)) + SUM(_xlfn.XLOOKUP($D45,$D$36:$D$42,$U$36:$U$42) * (_xlfn.XLOOKUP($D45,$D$36:$D$42,$L$36:$L$42) +_xlfn.XLOOKUP($D45,$D$36:$D$42,$M$36:$M$42)-1<=AH$24) * _xlfn.XLOOKUP($D45,$D$36:$D$42,$P$36:$P$42))), (SUM( INDIRECT(ADDRESS(_xlfn.XLOOKUP($D45,$D$36:$D$42,$Y$36:$Y$42),COLUMN($AB$24))): INDIRECT(ADDRESS(_xlfn.XLOOKUP($D45,$D$36:$D$42,$Y$36:$Y$42),COLUMN(AH45)))) * _xlfn.XLOOKUP($D45,$D$36:$D$42,$P$36:$P$42))) -> 500 | AI45: =IF($F$12=$CH$1, (SUM((_xlfn.XLOOKUP($D45,$D$36:$D$42,$L$36:$L$42)<=AI$24) * (_xlfn.XLOOKUP($D45,$D$36:$D$42,$L$36:$L$42)+_xlfn.XLOOKUP($D45,$D$36:$D$42,$M$36:$M$42)-1>AI$24) * (AI$24+1-_xlfn.XLOOKUP($D45,$D$36:$D$42,$L$36:$L$42)) * _xlfn.XLOOKUP($D45,$D$36:$D$42,$P$36:$P$42) * _xlfn.XLOOKUP($D45,$D$36:$D$42,$W$36:$W$42)) + SUM(_xlfn.XLOOKUP($D45,$D$36:$D$42,$U$36:$U$42) * (_xlfn.XLOOKUP($D45,$D$36:$D$42,$L$36:$L$42) +_xlfn.XLOOKUP($D45,$D$36:$D$42,$M$36:$M$42)-1<=AI$24) * _xlfn.XLOOKUP($D45,$D$36:$D$42,$P$36:$P$42))), (SUM( INDIRECT(ADDRESS(_xlfn.XLOOKUP($D45,$D$36:$D$42,$Y$36:$Y$42),COLUMN($AB$24))): INDIRECT(ADDRESS(_xlfn.XLOOKUP($D45,$D$36:$D$42,$Y$36:$Y$42),COLUMN(AI45)))) * _xlfn.XLOOKUP($D45,$D$36:$D$42,$P$36:$P$42))) -> 500 | AJ45: =IF($F$12=$CH$1, (SUM((_xlfn.XLOOKUP($D45,$D$36:$D$42,$L$36:$L$42)<=AJ$24) * (_xlfn.XLOOKUP($D45,$D$36:$D$42,$L$36:$L$42)+_xlfn.XLOOKUP($D45,$D$36:$D$42,$M$36:$M$42)-1>AJ$24) * (AJ$24+1-_xlfn.XLOOKUP($D45,$D$36:$D$42,$L$36:$L$42)) * _xlfn.XLOOKUP($D45,$D$36:$D$42,$P$36:$P$42) * _xlfn.XLOOKUP($D45,$D$36:$D$42,$W$36:$W$42)) + SUM(_xlfn.XLOOKUP($D45,$D$36:$D$42,$U$36:$U$42) * (_xlfn.XLOOKUP($D45,$D$36:$D$42,$L$36:$L$42) +_xlfn.XLOOKUP($D45,$D$36:$D$42,$M$36:$M$42)-1<=AJ$24) * _xlfn.XLOOKUP($D45,$D$36:$D$42,$P$36:$P$42))), (SUM( INDIRECT(ADDRESS(_xlfn.XLOOKUP($D45,$D$36:$D$42,$Y$36:$Y$42),COLUMN($AB$24))): INDIRECT(ADDRESS(_xlfn.XLOOKUP($D45,$D$36:$D$42,$Y$36:$Y$42),COLUMN(AJ45)))) * _xlfn.XLOOKUP($D45,$D$36:$D$42,$P$36:$P$42))) -> 500 | AK45: =IF($F$12=$CH$1, (SUM((_xlfn.XLOOKUP($D45,$D$36:$D$42,$L$36:$L$42)<=AK$24) * (_xlfn.XLOOKUP($D45,$D$36:$D$42,$L$36:$L$42)+_xlfn.XLOOKUP($D45,$D$36:$D$42,$M$36:$M$42)-1>AK$24) * (AK$24+1-_xlfn.XLOOKUP($D45,$D$36:$D$42,$L$36:$L$42)) * _xlfn.XLOOKUP($D45,$D$36:$D$42,$P$36:$P$42) * _xlfn.XLOOKUP($D45,$D$36:$D$42,$W$36:$W$42)) + SUM(_xlfn.XLOOKUP($D45,$D$36:$D$42,$U$36:$U$42) * (_xlfn.XLOOKUP($D45,$D$36:$D$42,$L$36:$L$42) +_xlfn.XLOOKUP($D45,$D$36:$D$42,$M$36:$M$42)-1<=AK$24) * _xlfn.XLOOKUP($D45,$D$36:$D$42,$P$36:$P$42))), (SUM( INDIRECT(ADDRESS(_xlfn.XLOOKUP($D45,$D$36:$D$42,$Y$36:$Y$42),COLUMN($AB$24))): INDIRECT(ADDRESS(_xlfn.XLOOKUP($D45,$D$36:$D$42,$Y$36:$Y$42),COLUMN(AK45)))) * _xlfn.XLOOKUP($D45,$D$36:$D$42,$P$36:$P$42))) -> 500 | AL45: =IF($F$12=$CH$1, (SUM((_xlfn.XLOOKUP($D45,$D$36:$D$42,$L$36:$L$42)<=AL$24) * (_xlfn.XLOOKUP($D45,$D$36:$D$42,$L$36:$L$42)+_xlfn.XLOOKUP($D45,$D$36:$D$42,$M$36:$M$42)-1>AL$24) * (AL$24+1-_xlfn.XLOOKUP($D45,$D$36:$D$42,$L$36:$L$42)) * _xlfn.XLOOKUP($D45,$D$36:$D$42,$P$36:$P$42) * _xlfn.XLOOKUP($D45,$D$36:$D$42,$W$36:$W$42)) + SUM(_xlfn.XLOOKUP($D45,$D$36:$D$42,$U$36:$U$42) * (_xlfn.XLOOKUP($D45,$D$36:$D$42,$L$36:$L$42) +_xlfn.XLOOKUP($D45,$D$36:$D$42,$M$36:$M$42)-1<=AL$24) * _xlfn.XLOOKUP($D45,$D$36:$D$42,$P$36:$P$42))), (SUM( INDIRECT(ADDRESS(_xlfn.XLOOKUP($D45,$D$36:$D$42,$Y$36:$Y$42),COLUMN($AB$24))): INDIRECT(ADDRESS(_xlfn.XLOOKUP($D45,$D$36:$D$42,$Y$36:$Y$42),COLUMN(AL45)))) * _xlfn.XLOOKUP($D45,$D$36:$D$42,$P$36:$P$42))) -> 500 | AM45: =IF($F$12=$CH$1, (SUM((_xlfn.XLOOKUP($D45,$D$36:$D$42,$L$36:$L$42)<=AM$24) * (_xlfn.XLOOKUP($D45,$D$36:$D$42,$L$36:$L$42)+_xlfn.XLOOKUP($D45,$D$36:$D$42,$M$36:$M$42)-1>AM$24) * (AM$24+1-_xlfn.XLOOKUP($D45,$D$36:$D$42,$L$36:$L$42)) * _xlfn.XLOOKUP($D45,$D$36:$D$42,$P$36:$P$42) * _xlfn.XLOOKUP($D45,$D$36:$D$42,$W$36:$W$42)) + SUM(_xlfn.XLOOKUP($D45,$D$36:$D$42,$U$36:$U$42) * (_xlfn.XLOOKUP($D45,$D$36:$D$42,$L$36:$L$42) +_xlfn.XLOOKUP($D45,$D$36:$D$42,$M$36:$M$42)-1<=AM$24) * _xlfn.XLOOKUP($D45,$D$36:$D$42,$P$36:$P$42))), (SUM( INDIRECT(ADDRESS(_xlfn.XLOOKUP($D45,$D$36:$D$42,$Y$36:$Y$42),COLUMN($AB$24))): INDIRECT(ADDRESS(_xlfn.XLOOKUP($D45,$D$36:$D$42,$Y$36:$Y$42),COLUMN(AM45)))) * _xlfn.XLOOKUP($D45,$D$36:$D$42,$P$36:$P$42))) -> 500 | AN45: =IF($F$12=$CH$1, (SUM((_xlfn.XLOOKUP($D45,$D$36:$D$42,$L$36:$L$42)<=AN$24) * (_xlfn.XLOOKUP($D45,$D$36:$D$42,$L$36:$L$42)+_xlfn.XLOOKUP($D45,$D$36:$D$42,$M$36:$M$42)-1>AN$24) * (AN$24+1-_xlfn.XLOOKUP($D45,$D$36:$D$42,$L$36:$L$42)) * _xlfn.XLOOKUP($D45,$D$36:$D$42,$P$36:$P$42) * _xlfn.XLOOKUP($D45,$D$36:$D$42,$W$36:$W$42)) + SUM(_xlfn.XLOOKUP($D45,$D$36:$D$42,$U$36:$U$42) * (_xlfn.XLOOKUP($D45,$D$36:$D$42,$L$36:$L$42) +_xlfn.XLOOKUP($D45,$D$36:$D$42,$M$36:$M$42)-1<=AN$24) * _xlfn.XLOOKUP($D45,$D$36:$D$42,$P$36:$P$42))), (SUM( INDIRECT(ADDRESS(_xlfn.XLOOKUP($D45,$D$36:$D$42,$Y$36:$Y$42),COLUMN($AB$24))): INDIRECT(ADDRESS(_xlfn.XLOOKUP($D45,$D$36:$D$42,$Y$36:$Y$42),COLUMN(AN45)))) * _xlfn.XLOOKUP($D45,$D$36:$D$42,$P$36:$P$42))) -> 500 | AO45: =IF($F$12=$CH$1, (SUM((_xlfn.XLOOKUP($D45,$D$36:$D$42,$L$36:$L$42)<=AO$24) * (_xlfn.XLOOKUP($D45,$D$36:$D$42,$L$36:$L$42)+_xlfn.XLOOKUP($D45,$D$36:$D$42,$M$36:$M$42)-1>AO$24) * (AO$24+1-_xlfn.XLOOKUP($D45,$D$36:$D$42,$L$36:$L$42)) * _xlfn.XLOOKUP($D45,$D$36:$D$42,$P$36:$P$42) * _xlfn.XLOOKUP($D45,$D$36:$D$42,$W$36:$W$42)) + SUM(_xlfn.XLOOKUP($D45,$D$36:$D$42,$U$36:$U$42) * (_xlfn.XLOOKUP($D45,$D$36:$D$42,$L$36:$L$42) +_xlfn.XLOOKUP($D45,$D$36:$D$42,$M$36:$M$42)-1<=AO$24) * _xlfn.XLOOKUP($D45,$D$36:$D$42,$P$36:$P$42))), (SUM( INDIRECT(ADDRESS(_xlfn.XLOOKUP($D45,$D$36:$D$42,$Y$36:$Y$42),COLUMN($AB$24))): INDIRECT(ADDRESS(_xlfn.XLOOKUP($D45,$D$36:$D$42,$Y$36:$Y$42),COLUMN(AO45)))) * _xlfn.XLOOKUP($D45,$D$36:$D$42,$P$36:$P$42))) -> 500 | AP45: =IF($F$12=$CH$1, (SUM((_xlfn.XLOOKUP($D45,$D$36:$D$42,$L$36:$L$42)<=AP$24) * (_xlfn.XLOOKUP($D45,$D$36:$D$42,$L$36:$L$42)+_xlfn.XLOOKUP($D45,$D$36:$D$42,$M$36:$M$42)-1>AP$24) * (AP$24+1-_xlfn.XLOOKUP($D45,$D$36:$D$42,$L$36:$L$42)) * _xlfn.XLOOKUP($D45,$D$36:$D$42,$P$36:$P$42) * _xlfn.XLOOKUP($D45,$D$36:$D$42,$W$36:$W$42)) + SUM(_xlfn.XLOOKUP($D45,$D$36:$D$42,$U$36:$U$42) * (_xlfn.XLOOKUP($D45,$D$36:$D$42,$L$36:$L$42) +_xlfn.XLOOKUP($D45,$D$36:$D$42,$M$36:$M$42)-1<=AP$24) * _xlfn.XLOOKUP($D45,$D$36:$D$42,$P$36:$P$42))), (SUM( INDIRECT(ADDRESS(_xlfn.XLOOKUP($D45,$D$36:$D$42,$Y$36:$Y$42),COLUMN($AB$24))): INDIRECT(ADDRESS(_xlfn.XLOOKUP($D45,$D$36:$D$42,$Y$36:$Y$42),COLUMN(AP45)))) * _xlfn.XLOOKUP($D45,$D$36:$D$42,$P$36:$P$42))) -> 500 | AQ45: =IF($F$12=$CH$1, (SUM((_xlfn.XLOOKUP($D45,$D$36:$D$42,$L$36:$L$42)<=AQ$24) * (_xlfn.XLOOKUP($D45,$D$36:$D$42,$L$36:$L$42)+_xlfn.XLOOKUP($D45,$D$36:$D$42,$M$36:$M$42)-1>AQ$24) * (AQ$24+1-_xlfn.XLOOKUP($D45,$D$36:$D$42,$L$36:$L$42)) * _xlfn.XLOOKUP($D45,$D$36:$D$42,$P$36:$P$42) * _xlfn.XLOOKUP($D45,$D$36:$D$42,$W$36:$W$42)) + SUM(_xlfn.XLOOKUP($D45,$D$36:$D$42,$U$36:$U$42) * (_xlfn.XLOOKUP($D45,$D$36:$D$42,$L$36:$L$42) +_xlfn.XLOOKUP($D45,$D$36:$D$42,$M$36:$M$42)-1<=AQ$24) * _xlfn.XLOOKUP($D45,$D$36:$D$42,$P$36:$P$42))), (SUM( INDIRECT(ADDRESS(_xlfn.XLOOKUP($D45,$D$36:$D$42,$Y$36:$Y$42),COLUMN($AB$24))): INDIRECT(ADDRESS(_xlfn.XLOOKUP($D45,$D$36:$D$42,$Y$36:$Y$42),COLUMN(AQ45)))) * _xlfn.XLOOKUP($D45,$D$36:$D$42,$P$36:$P$42))) -> 500 | AR45: =IF($F$12=$CH$1, (SUM((_xlfn.XLOOKUP($D45,$D$36:$D$42,$L$36:$L$42)<=AR$24) * (_xlfn.XLOOKUP($D45,$D$36:$D$42,$L$36:$L$42)+_xlfn.XLOOKUP($D45,$D$36:$D$42,$M$36:$M$42)-1>AR$24) * (AR$24+1-_xlfn.XLOOKUP($D45,$D$36:$D$42,$L$36:$L$42)) * _xlfn.XLOOKUP($D45,$D$36:$D$42,$P$36:$P$42) * _xlfn.XLOOKUP($D45,$D$36:$D$42,$W$36:$W$42)) + SUM(_xlfn.XLOOKUP($D45,$D$36:$D$42,$U$36:$U$42) * (_xlfn.XLOOKUP($D45,$D$36:$D$42,$L$36:$L$42) +_xlfn.XLOOKUP($D45,$D$36:$D$42,$M$36:$M$42)-1<=AR$24) * _xlfn.XLOOKUP($D45,$D$36:$D$42,$P$36:$P$42))), (SUM( INDIRECT(ADDRESS(_xlfn.XLOOKUP($D45,$D$36:$D$42,$Y$36:$Y$42),COLUMN($AB$24))): INDIRECT(ADDRESS(_xlfn.XLOOKUP($D45,$D$36:$D$42,$Y$36:$Y$42),COLUMN(AR45)))) * _xlfn.XLOOKUP($D45,$D$36:$D$42,$P$36:$P$42))) -> 500 | AS45: =IF($F$12=$CH$1, (SUM((_xlfn.XLOOKUP($D45,$D$36:$D$42,$L$36:$L$42)<=AS$24) * (_xlfn.XLOOKUP($D45,$D$36:$D$42,$L$36:$L$42)+_xlfn.XLOOKUP($D45,$D$36:$D$42,$M$36:$M$42)-1>AS$24) * (AS$24+1-_xlfn.XLOOKUP($D45,$D$36:$D$42,$L$36:$L$42)) * _xlfn.XLOOKUP($D45,$D$36:$D$42,$P$36:$P$42) * _xlfn.XLOOKUP($D45,$D$36:$D$42,$W$36:$W$42)) + SUM(_xlfn.XLOOKUP($D45,$D$36:$D$42,$U$36:$U$42) * (_xlfn.XLOOKUP($D45,$D$36:$D$42,$L$36:$L$42) +_xlfn.XLOOKUP($D45,$D$36:$D$42,$M$36:$M$42)-1<=AS$24) * _xlfn.XLOOKUP($D45,$D$36:$D$42,$P$36:$P$42))), (SUM( INDIRECT(ADDRESS(_xlfn.XLOOKUP($D45,$D$36:$D$42,$Y$36:$Y$42),COLUMN($AB$24))): INDIRECT(ADDRESS(_xlfn.XLOOKUP($D45,$D$36:$D$42,$Y$36:$Y$42),COLUMN(AS45)))) * _xlfn.XLOOKUP($D45,$D$36:$D$42,$P$36:$P$42))) -> 500 | AT45: =IF($F$12=$CH$1, (SUM((_xlfn.XLOOKUP($D45,$D$36:$D$42,$L$36:$L$42)<=AT$24) * (_xlfn.XLOOKUP($D45,$D$36:$D$42,$L$36:$L$42)+_xlfn.XLOOKUP($D45,$D$36:$D$42,$M$36:$M$42)-1>AT$24) * (AT$24+1-_xlfn.XLOOKUP($D45,$D$36:$D$42,$L$36:$L$42)) * _xlfn.XLOOKUP($D45,$D$36:$D$42,$P$36:$P$42) * _xlfn.XLOOKUP($D45,$D$36:$D$42,$W$36:$W$42)) + SUM(_xlfn.XLOOKUP($D45,$D$36:$D$42,$U$36:$U$42) * (_xlfn.XLOOKUP($D45,$D$36:$D$42,$L$36:$L$42) +_xlfn.XLOOKUP($D45,$D$36:$D$42,$M$36:$M$42)-1<=AT$24) * _xlfn.XLOOKUP($D45,$D$36:$D$42,$P$36:$P$42))), (SUM( INDIRECT(ADDRESS(_xlfn.XLOOKUP($D45,$D$36:$D$42,$Y$36:$Y$42),COLUMN($AB$24))): INDIRECT(ADDRESS(_xlfn.XLOOKUP($D45,$D$36:$D$42,$Y$36:$Y$42),COLUMN(AT45)))) * _xlfn.XLOOKUP($D45,$D$36:$D$42,$P$36:$P$42))) -> 500 | AU45: =IF($F$12=$CH$1, (SUM((_xlfn.XLOOKUP($D45,$D$36:$D$42,$L$36:$L$42)<=AU$24) * (_xlfn.XLOOKUP($D45,$D$36:$D$42,$L$36:$L$42)+_xlfn.XLOOKUP($D45,$D$36:$D$42,$M$36:$M$42)-1>AU$24) * (AU$24+1-_xlfn.XLOOKUP($D45,$D$36:$D$42,$L$36:$L$42)) * _xlfn.XLOOKUP($D45,$D$36:$D$42,$P$36:$P$42) * _xlfn.XLOOKUP($D45,$D$36:$D$42,$W$36:$W$42)) + SUM(_xlfn.XLOOKUP($D45,$D$36:$D$42,$U$36:$U$42) * (_xlfn.XLOOKUP($D45,$D$36:$D$42,$L$36:$L$42) +_xlfn.XLOOKUP($D45,$D$36:$D$42,$M$36:$M$42)-1<=AU$24) * _xlfn.XLOOKUP($D45,$D$36:$D$42,$P$36:$P$42))), (SUM( INDIRECT(ADDRESS(_xlfn.XLOOKUP($D45,$D$36:$D$42,$Y$36:$Y$42),COLUMN($AB$24))): INDIRECT(ADDRESS(_xlfn.XLOOKUP($D45,$D$36:$D$42,$Y$36:$Y$42),COLUMN(AU45)))) * _xlfn.XLOOKUP($D45,$D$36:$D$42,$P$36:$P$42))) -> 500 | AV45: =IF($F$12=$CH$1, (SUM((_xlfn.XLOOKUP($D45,$D$36:$D$42,$L$36:$L$42)<=AV$24) * (_xlfn.XLOOKUP($D45,$D$36:$D$42,$L$36:$L$42)+_xlfn.XLOOKUP($D45,$D$36:$D$42,$M$36:$M$42)-1>AV$24) * (AV$24+1-_xlfn.XLOOKUP($D45,$D$36:$D$42,$L$36:$L$42)) * _xlfn.XLOOKUP($D45,$D$36:$D$42,$P$36:$P$42) * _xlfn.XLOOKUP($D45,$D$36:$D$42,$W$36:$W$42)) + SUM(_xlfn.XLOOKUP($D45,$D$36:$D$42,$U$36:$U$42) * (_xlfn.XLOOKUP($D45,$D$36:$D$42,$L$36:$L$42) +_xlfn.XLOOKUP($D45,$D$36:$D$42,$M$36:$M$42)-1<=AV$24) * _xlfn.XLOOKUP($D45,$D$36:$D$42,$P$36:$P$42))), (SUM( INDIRECT(ADDRESS(_xlfn.XLOOKUP($D45,$D$36:$D$42,$Y$36:$Y$42),COLUMN($AB$24))): INDIRECT(ADDRESS(_xlfn.XLOOKUP($D45,$D$36:$D$42,$Y$36:$Y$42),COLUMN(AV45)))) * _xlfn.XLOOKUP($D45,$D$36:$D$42,$P$36:$P$42))) -> 500 | AW45: =IF($F$12=$CH$1, (SUM((_xlfn.XLOOKUP($D45,$D$36:$D$42,$L$36:$L$42)<=AW$24) * (_xlfn.XLOOKUP($D45,$D$36:$D$42,$L$36:$L$42)+_xlfn.XLOOKUP($D45,$D$36:$D$42,$M$36:$M$42)-1>AW$24) * (AW$24+1-_xlfn.XLOOKUP($D45,$D$36:$D$42,$L$36:$L$42)) * _xlfn.XLOOKUP($D45,$D$36:$D$42,$P$36:$P$42) * _xlfn.XLOOKUP($D45,$D$36:$D$42,$W$36:$W$42)) + SUM(_xlfn.XLOOKUP($D45,$D$36:$D$42,$U$36:$U$42) * (_xlfn.XLOOKUP($D45,$D$36:$D$42,$L$36:$L$42) +_xlfn.XLOOKUP($D45,$D$36:$D$42,$M$36:$M$42)-1<=AW$24) * _xlfn.XLOOKUP($D45,$D$36:$D$42,$P$36:$P$42))), (SUM( INDIRECT(ADDRESS(_xlfn.XLOOKUP($D45,$D$36:$D$42,$Y$36:$Y$42),COLUMN($AB$24))): INDIRECT(ADDRESS(_xlfn.XLOOKUP($D45,$D$36:$D$42,$Y$36:$Y$42),COLUMN(AW45)))) * _xlfn.XLOOKUP($D45,$D$36:$D$42,$P$36:$P$42))) -> 500 | AX45: =IF($F$12=$CH$1, (SUM((_xlfn.XLOOKUP($D45,$D$36:$D$42,$L$36:$L$42)<=AX$24) * (_xlfn.XLOOKUP($D45,$D$36:$D$42,$L$36:$L$42)+_xlfn.XLOOKUP($D45,$D$36:$D$42,$M$36:$M$42)-1>AX$24) * (AX$24+1-_xlfn.XLOOKUP($D45,$D$36:$D$42,$L$36:$L$42)) * _xlfn.XLOOKUP($D45,$D$36:$D$42,$P$36:$P$42) * _xlfn.XLOOKUP($D45,$D$36:$D$42,$W$36:$W$42)) + SUM(_xlfn.XLOOKUP($D45,$D$36:$D$42,$U$36:$U$42) * (_xlfn.XLOOKUP($D45,$D$36:$D$42,$L$36:$L$42) +_xlfn.XLOOKUP($D45,$D$36:$D$42,$M$36:$M$42)-1<=AX$24) * _xlfn.XLOOKUP($D45,$D$36:$D$42,$P$36:$P$42))), (SUM( INDIRECT(ADDRESS(_xlfn.XLOOKUP($D45,$D$36:$D$42,$Y$36:$Y$42),COLUMN($AB$24))): INDIRECT(ADDRESS(_xlfn.XLOOKUP($D45,$D$36:$D$42,$Y$36:$Y$42),COLUMN(AX45)))) * _xlfn.XLOOKUP($D45,$D$36:$D$42,$P$36:$P$42))) -> 500 | AY45: =IF($F$12=$CH$1, (SUM((_xlfn.XLOOKUP($D45,$D$36:$D$42,$L$36:$L$42)<=AY$24) * (_xlfn.XLOOKUP($D45,$D$36:$D$42,$L$36:$L$42)+_xlfn.XLOOKUP($D45,$D$36:$D$42,$M$36:$M$42)-1>AY$24) * (AY$24+1-_xlfn.XLOOKUP($D45,$D$36:$D$42,$L$36:$L$42)) * _xlfn.XLOOKUP($D45,$D$36:$D$42,$P$36:$P$42) * _xlfn.XLOOKUP($D45,$D$36:$D$42,$W$36:$W$42)) + SUM(_xlfn.XLOOKUP($D45,$D$36:$D$42,$U$36:$U$42) * (_xlfn.XLOOKUP($D45,$D$36:$D$42,$L$36:$L$42) +_xlfn.XLOOKUP($D45,$D$36:$D$42,$M$36:$M$42)-1<=AY$24) * _xlfn.XLOOKUP($D45,$D$36:$D$42,$P$36:$P$42))), (SUM( INDIRECT(ADDRESS(_xlfn.XLOOKUP($D45,$D$36:$D$42,$Y$36:$Y$42),COLUMN($AB$24))): INDIRECT(ADDRESS(_xlfn.XLOOKUP($D45,$D$36:$D$42,$Y$36:$Y$42),COLUMN(AY45)))) * _xlfn.XLOOKUP($D45,$D$36:$D$42,$P$36:$P$42))) -> 500 | AZ45: =IF($F$12=$CH$1, (SUM((_xlfn.XLOOKUP($D45,$D$36:$D$42,$L$36:$L$42)<=AZ$24) * (_xlfn.XLOOKUP($D45,$D$36:$D$42,$L$36:$L$42)+_xlfn.XLOOKUP($D45,$D$36:$D$42,$M$36:$M$42)-1>AZ$24) * (AZ$24+1-_xlfn.XLOOKUP($D45,$D$36:$D$42,$L$36:$L$42)) * _xlfn.XLOOKUP($D45,$D$36:$D$42,$P$36:$P$42) * _xlfn.XLOOKUP($D45,$D$36:$D$42,$W$36:$W$42)) + SUM(_xlfn.XLOOKUP($D45,$D$36:$D$42,$U$36:$U$42) * (_xlfn.XLOOKUP($D45,$D$36:$D$42,$L$36:$L$42) +_xlfn.XLOOKUP($D45,$D$36:$D$42,$M$36:$M$42)-1<=AZ$24) * _xlfn.XLOOKUP($D45,$D$36:$D$42,$P$36:$P$42))), (SUM( INDIRECT(ADDRESS(_xlfn.XLOOKUP($D45,$D$36:$D$42,$Y$36:$Y$42),COLUMN($AB$24))): INDIRECT(ADDRESS(_xlfn.XLOOKUP($D45,$D$36:$D$42,$Y$36:$Y$42),COLUMN(AZ45)))) * _xlfn.XLOOKUP($D45,$D$36:$D$42,$P$36:$P$42))) -> 500 | BA45: =IF($F$12=$CH$1, (SUM((_xlfn.XLOOKUP($D45,$D$36:$D$42,$L$36:$L$42)<=BA$24) * (_xlfn.XLOOKUP($D45,$D$36:$D$42,$L$36:$L$42)+_xlfn.XLOOKUP($D45,$D$36:$D$42,$M$36:$M$42)-1>BA$24) * (BA$24+1-_xlfn.XLOOKUP($D45,$D$36:$D$42,$L$36:$L$42)) * _xlfn.XLOOKUP($D45,$D$36:$D$42,$P$36:$P$42) * _xlfn.XLOOKUP($D45,$D$36:$D$42,$W$36:$W$42)) + SUM(_xlfn.XLOOKUP($D45,$D$36:$D$42,$U$36:$U$42) * (_xlfn.XLOOKUP($D45,$D$36:$D$42,$L$36:$L$42) +_xlfn.XLOOKUP($D45,$D$36:$D$42,$M$36:$M$42)-1<=BA$24) * _xlfn.XLOOKUP($D45,$D$36:$D$42,$P$36:$P$42))), (SUM( INDIRECT(ADDRESS(_xlfn.XLOOKUP($D45,$D$36:$D$42,$Y$36:$Y$42),COLUMN($AB$24))): INDIRECT(ADDRESS(_xlfn.XLOOKUP($D45,$D$36:$D$42,$Y$36:$Y$42),COLUMN(BA45)))) * _xlfn.XLOOKUP($D45,$D$36:$D$42,$P$36:$P$42))) -> 500 | BB45: =IF($F$12=$CH$1, (SUM((_xlfn.XLOOKUP($D45,$D$36:$D$42,$L$36:$L$42)<=BB$24) * (_xlfn.XLOOKUP($D45,$D$36:$D$42,$L$36:$L$42)+_xlfn.XLOOKUP($D45,$D$36:$D$42,$M$36:$M$42)-1>BB$24) * (BB$24+1-_xlfn.XLOOKUP($D45,$D$36:$D$42,$L$36:$L$42)) * _xlfn.XLOOKUP($D45,$D$36:$D$42,$P$36:$P$42) * _xlfn.XLOOKUP($D45,$D$36:$D$42,$W$36:$W$42)) + SUM(_xlfn.XLOOKUP($D45,$D$36:$D$42,$U$36:$U$42) * (_xlfn.XLOOKUP($D45,$D$36:$D$42,$L$36:$L$42) +_xlfn.XLOOKUP($D45,$D$36:$D$42,$M$36:$M$42)-1<=BB$24) * _xlfn.XLOOKUP($D45,$D$36:$D$42,$P$36:$P$42))), (SUM( INDIRECT(ADDRESS(_xlfn.XLOOKUP($D45,$D$36:$D$42,$Y$36:$Y$42),COLUMN($AB$24))): INDIRECT(ADDRESS(_xlfn.XLOOKUP($D45,$D$36:$D$42,$Y$36:$Y$42),COLUMN(BB45)))) * _xlfn.XLOOKUP($D45,$D$36:$D$42,$P$36:$P$42))) -> 500 | BC45: =IF($F$12=$CH$1, (SUM((_xlfn.XLOOKUP($D45,$D$36:$D$42,$L$36:$L$42)<=BC$24) * (_xlfn.XLOOKUP($D45,$D$36:$D$42,$L$36:$L$42)+_xlfn.XLOOKUP($D45,$D$36:$D$42,$M$36:$M$42)-1>BC$24) * (BC$24+1-_xlfn.XLOOKUP($D45,$D$36:$D$42,$L$36:$L$42)) * _xlfn.XLOOKUP($D45,$D$36:$D$42,$P$36:$P$42) * _xlfn.XLOOKUP($D45,$D$36:$D$42,$W$36:$W$42)) + SUM(_xlfn.XLOOKUP($D45,$D$36:$D$42,$U$36:$U$42) * (_xlfn.XLOOKUP($D45,$D$36:$D$42,$L$36:$L$42) +_xlfn.XLOOKUP($D45,$D$36:$D$42,$M$36:$M$42)-1<=BC$24) * _xlfn.XLOOKUP($D45,$D$36:$D$42,$P$36:$P$42))), (SUM( INDIRECT(ADDRESS(_xlfn.XLOOKUP($D45,$D$36:$D$42,$Y$36:$Y$42),COLUMN($AB$24))): INDIRECT(ADDRESS(_xlfn.XLOOKUP($D45,$D$36:$D$42,$Y$36:$Y$42),COLUMN(BC45)))) * _xlfn.XLOOKUP($D45,$D$36:$D$42,$P$36:$P$42))) -> 500 | BD45: =IF($F$12=$CH$1, (SUM((_xlfn.XLOOKUP($D45,$D$36:$D$42,$L$36:$L$42)<=BD$24) * (_xlfn.XLOOKUP($D45,$D$36:$D$42,$L$36:$L$42)+_xlfn.XLOOKUP($D45,$D$36:$D$42,$M$36:$M$42)-1>BD$24) * (BD$24+1-_xlfn.XLOOKUP($D45,$D$36:$D$42,$L$36:$L$42)) * _xlfn.XLOOKUP($D45,$D$36:$D$42,$P$36:$P$42) * _xlfn.XLOOKUP($D45,$D$36:$D$42,$W$36:$W$42)) + SUM(_xlfn.XLOOKUP($D45,$D$36:$D$42,$U$36:$U$42) * (_xlfn.XLOOKUP($D45,$D$36:$D$42,$L$36:$L$42) +_xlfn.XLOOKUP($D45,$D$36:$D$42,$M$36:$M$42)-1<=BD$24) * _xlfn.XLOOKUP($D45,$D$36:$D$42,$P$36:$P$42))), (SUM( INDIRECT(ADDRESS(_xlfn.XLOOKUP($D45,$D$36:$D$42,$Y$36:$Y$42),COLUMN($AB$24))): INDIRECT(ADDRESS(_xlfn.XLOOKUP($D45,$D$36:$D$42,$Y$36:$Y$42),COLUMN(BD45)))) * _xlfn.XLOOKUP($D45,$D$36:$D$42,$P$36:$P$42))) -> 500 | BE45: =IF($F$12=$CH$1, (SUM((_xlfn.XLOOKUP($D45,$D$36:$D$42,$L$36:$L$42)<=BE$24) * (_xlfn.XLOOKUP($D45,$D$36:$D$42,$L$36:$L$42)+_xlfn.XLOOKUP($D45,$D$36:$D$42,$M$36:$M$42)-1>BE$24) * (BE$24+1-_xlfn.XLOOKUP($D45,$D$36:$D$42,$L$36:$L$42)) * _xlfn.XLOOKUP($D45,$D$36:$D$42,$P$36:$P$42) * _xlfn.XLOOKUP($D45,$D$36:$D$42,$W$36:$W$42)) + SUM(_xlfn.XLOOKUP($D45,$D$36:$D$42,$U$36:$U$42) * (_xlfn.XLOOKUP($D45,$D$36:$D$42,$L$36:$L$42) +_xlfn.XLOOKUP($D45,$D$36:$D$42,$M$36:$M$42)-1<=BE$24) * _xlfn.XLOOKUP($D45,$D$36:$D$42,$P$36:$P$42))), (SUM( INDIRECT(ADDRESS(_xlfn.XLOOKUP($D45,$D$36:$D$42,$Y$36:$Y$42),COLUMN($AB$24))): INDIRECT(ADDRESS(_xlfn.XLOOKUP($D45,$D$36:$D$42,$Y$36:$Y$42),COLUMN(BE45)))) * _xlfn.XLOOKUP($D45,$D$36:$D$42,$P$36:$P$42))) -> 500 | BF45: =IF($F$12=$CH$1, (SUM((_xlfn.XLOOKUP($D45,$D$36:$D$42,$L$36:$L$42)<=BF$24) * (_xlfn.XLOOKUP($D45,$D$36:$D$42,$L$36:$L$42)+_xlfn.XLOOKUP($D45,$D$36:$D$42,$M$36:$M$42)-1>BF$24) * (BF$24+1-_xlfn.XLOOKUP($D45,$D$36:$D$42,$L$36:$L$42)) * _xlfn.XLOOKUP($D45,$D$36:$D$42,$P$36:$P$42) * _xlfn.XLOOKUP($D45,$D$36:$D$42,$W$36:$W$42)) + SUM(_xlfn.XLOOKUP($D45,$D$36:$D$42,$U$36:$U$42) * (_xlfn.XLOOKUP($D45,$D$36:$D$42,$L$36:$L$42) +_xlfn.XLOOKUP($D45,$D$36:$D$42,$M$36:$M$42)-1<=BF$24) * _xlfn.XLOOKUP($D45,$D$36:$D$42,$P$36:$P$42))), (SUM( INDIRECT(ADDRESS(_xlfn.XLOOKUP($D45,$D$36:$D$42,$Y$36:$Y$42),COLUMN($AB$24))): INDIRECT(ADDRESS(_xlfn.XLOOKUP($D45,$D$36:$D$42,$Y$36:$Y$42),COLUMN(BF45)))) * _xlfn.XLOOKUP($D45,$D$36:$D$42,$P$36:$P$42))) -> 500 | BG45: =IF($F$12=$CH$1, (SUM((_xlfn.XLOOKUP($D45,$D$36:$D$42,$L$36:$L$42)<=BG$24) * (_xlfn.XLOOKUP($D45,$D$36:$D$42,$L$36:$L$42)+_xlfn.XLOOKUP($D45,$D$36:$D$42,$M$36:$M$42)-1>BG$24) * (BG$24+1-_xlfn.XLOOKUP($D45,$D$36:$D$42,$L$36:$L$42)) * _xlfn.XLOOKUP($D45,$D$36:$D$42,$P$36:$P$42) * _xlfn.XLOOKUP($D45,$D$36:$D$42,$W$36:$W$42)) + SUM(_xlfn.XLOOKUP($D45,$D$36:$D$42,$U$36:$U$42) * (_xlfn.XLOOKUP($D45,$D$36:$D$42,$L$36:$L$42) +_xlfn.XLOOKUP($D45,$D$36:$D$42,$M$36:$M$42)-1<=BG$24) * _xlfn.XLOOKUP($D45,$D$36:$D$42,$P$36:$P$42))), (SUM( INDIRECT(ADDRESS(_xlfn.XLOOKUP($D45,$D$36:$D$42,$Y$36:$Y$42),COLUMN($AB$24))): INDIRECT(ADDRESS(_xlfn.XLOOKUP($D45,$D$36:$D$42,$Y$36:$Y$42),COLUMN(BG45)))) * _xlfn.XLOOKUP($D45,$D$36:$D$42,$P$36:$P$42))) -> 500 | BH45: =IF($F$12=$CH$1, (SUM((_xlfn.XLOOKUP($D45,$D$36:$D$42,$L$36:$L$42)<=BH$24) * (_xlfn.XLOOKUP($D45,$D$36:$D$42,$L$36:$L$42)+_xlfn.XLOOKUP($D45,$D$36:$D$42,$M$36:$M$42)-1>BH$24) * (BH$24+1-_xlfn.XLOOKUP($D45,$D$36:$D$42,$L$36:$L$42)) * _xlfn.XLOOKUP($D45,$D$36:$D$42,$P$36:$P$42) * _xlfn.XLOOKUP($D45,$D$36:$D$42,$W$36:$W$42)) + SUM(_xlfn.XLOOKUP($D45,$D$36:$D$42,$U$36:$U$42) * (_xlfn.XLOOKUP($D45,$D$36:$D$42,$L$36:$L$42) +_xlfn.XLOOKUP($D45,$D$36:$D$42,$M$36:$M$42)-1<=BH$24) * _xlfn.XLOOKUP($D45,$D$36:$D$42,$P$36:$P$42))), (SUM( INDIRECT(ADDRESS(_xlfn.XLOOKUP($D45,$D$36:$D$42,$Y$36:$Y$42),COLUMN($AB$24))): INDIRECT(ADDRESS(_xlfn.XLOOKUP($D45,$D$36:$D$42,$Y$36:$Y$42),COLUMN(BH45)))) * _xlfn.XLOOKUP($D45,$D$36:$D$42,$P$36:$P$42))) -> 500 | BI45: =IF($F$12=$CH$1, (SUM((_xlfn.XLOOKUP($D45,$D$36:$D$42,$L$36:$L$42)<=BI$24) * (_xlfn.XLOOKUP($D45,$D$36:$D$42,$L$36:$L$42)+_xlfn.XLOOKUP($D45,$D$36:$D$42,$M$36:$M$42)-1>BI$24) * (BI$24+1-_xlfn.XLOOKUP($D45,$D$36:$D$42,$L$36:$L$42)) * _xlfn.XLOOKUP($D45,$D$36:$D$42,$P$36:$P$42) * _xlfn.XLOOKUP($D45,$D$36:$D$42,$W$36:$W$42)) + SUM(_xlfn.XLOOKUP($D45,$D$36:$D$42,$U$36:$U$42) * (_xlfn.XLOOKUP($D45,$D$36:$D$42,$L$36:$L$42) +_xlfn.XLOOKUP($D45,$D$36:$D$42,$M$36:$M$42)-1<=BI$24) * _xlfn.XLOOKUP($D45,$D$36:$D$42,$P$36:$P$42))), (SUM( INDIRECT(ADDRESS(_xlfn.XLOOKUP($D45,$D$36:$D$42,$Y$36:$Y$42),COLUMN($AB$24))): INDIRECT(ADDRESS(_xlfn.XLOOKUP($D45,$D$36:$D$42,$Y$36:$Y$42),COLUMN(BI45)))) * _xlfn.XLOOKUP($D45,$D$36:$D$42,$P$36:$P$42))) -> 500 | BJ45: =IF($F$12=$CH$1, (SUM((_xlfn.XLOOKUP($D45,$D$36:$D$42,$L$36:$L$42)<=BJ$24) * (_xlfn.XLOOKUP($D45,$D$36:$D$42,$L$36:$L$42)+_xlfn.XLOOKUP($D45,$D$36:$D$42,$M$36:$M$42)-1>BJ$24) * (BJ$24+1-_xlfn.XLOOKUP($D45,$D$36:$D$42,$L$36:$L$42)) * _xlfn.XLOOKUP($D45,$D$36:$D$42,$P$36:$P$42) * _xlfn.XLOOKUP($D45,$D$36:$D$42,$W$36:$W$42)) + SUM(_xlfn.XLOOKUP($D45,$D$36:$D$42,$U$36:$U$42) * (_xlfn.XLOOKUP($D45,$D$36:$D$42,$L$36:$L$42) +_xlfn.XLOOKUP($D45,$D$36:$D$42,$M$36:$M$42)-1<=BJ$24) * _xlfn.XLOOKUP($D45,$D$36:$D$42,$P$36:$P$42))), (SUM( INDIRECT(ADDRESS(_xlfn.XLOOKUP($D45,$D$36:$D$42,$Y$36:$Y$42),COLUMN($AB$24))): INDIRECT(ADDRESS(_xlfn.XLOOKUP($D45,$D$36:$D$42,$Y$36:$Y$42),COLUMN(BJ45)))) * _xlfn.XLOOKUP($D45,$D$36:$D$42,$P$36:$P$42))) -> 500 | BK45: =IF($F$12=$CH$1, (SUM((_xlfn.XLOOKUP($D45,$D$36:$D$42,$L$36:$L$42)<=BK$24) * (_xlfn.XLOOKUP($D45,$D$36:$D$42,$L$36:$L$42)+_xlfn.XLOOKUP($D45,$D$36:$D$42,$M$36:$M$42)-1>BK$24) * (BK$24+1-_xlfn.XLOOKUP($D45,$D$36:$D$42,$L$36:$L$42)) * _xlfn.XLOOKUP($D45,$D$36:$D$42,$P$36:$P$42) * _xlfn.XLOOKUP($D45,$D$36:$D$42,$W$36:$W$42)) + SUM(_xlfn.XLOOKUP($D45,$D$36:$D$42,$U$36:$U$42) * (_xlfn.XLOOKUP($D45,$D$36:$D$42,$L$36:$L$42) +_xlfn.XLOOKUP($D45,$D$36:$D$42,$M$36:$M$42)-1<=BK$24) * _xlfn.XLOOKUP($D45,$D$36:$D$42,$P$36:$P$42))), (SUM( INDIRECT(ADDRESS(_xlfn.XLOOKUP($D45,$D$36:$D$42,$Y$36:$Y$42),COLUMN($AB$24))): INDIRECT(ADDRESS(_xlfn.XLOOKUP($D45,$D$36:$D$42,$Y$36:$Y$42),COLUMN(BK45)))) * _xlfn.XLOOKUP($D45,$D$36:$D$42,$P$36:$P$42))) -> 500 | BL45: =IF($F$12=$CH$1, (SUM((_xlfn.XLOOKUP($D45,$D$36:$D$42,$L$36:$L$42)<=BL$24) * (_xlfn.XLOOKUP($D45,$D$36:$D$42,$L$36:$L$42)+_xlfn.XLOOKUP($D45,$D$36:$D$42,$M$36:$M$42)-1>BL$24) * (BL$24+1-_xlfn.XLOOKUP($D45,$D$36:$D$42,$L$36:$L$42)) * _xlfn.XLOOKUP($D45,$D$36:$D$42,$P$36:$P$42) * _xlfn.XLOOKUP($D45,$D$36:$D$42,$W$36:$W$42)) + SUM(_xlfn.XLOOKUP($D45,$D$36:$D$42,$U$36:$U$42) * (_xlfn.XLOOKUP($D45,$D$36:$D$42,$L$36:$L$42) +_xlfn.XLOOKUP($D45,$D$36:$D$42,$M$36:$M$42)-1<=BL$24) * _xlfn.XLOOKUP($D45,$D$36:$D$42,$P$36:$P$42))), (SUM( INDIRECT(ADDRESS(_xlfn.XLOOKUP($D45,$D$36:$D$42,$Y$36:$Y$42),COLUMN($AB$24))): INDIRECT(ADDRESS(_xlfn.XLOOKUP($D45,$D$36:$D$42,$Y$36:$Y$42),COLUMN(BL45)))) * _xlfn.XLOOKUP($D45,$D$36:$D$42,$P$36:$P$42))) -> 500 | BM45: =IF($F$12=$CH$1, (SUM((_xlfn.XLOOKUP($D45,$D$36:$D$42,$L$36:$L$42)<=BM$24) * (_xlfn.XLOOKUP($D45,$D$36:$D$42,$L$36:$L$42)+_xlfn.XLOOKUP($D45,$D$36:$D$42,$M$36:$M$42)-1>BM$24) * (BM$24+1-_xlfn.XLOOKUP($D45,$D$36:$D$42,$L$36:$L$42)) * _xlfn.XLOOKUP($D45,$D$36:$D$42,$P$36:$P$42) * _xlfn.XLOOKUP($D45,$D$36:$D$42,$W$36:$W$42)) + SUM(_xlfn.XLOOKUP($D45,$D$36:$D$42,$U$36:$U$42) * (_xlfn.XLOOKUP($D45,$D$36:$D$42,$L$36:$L$42) +_xlfn.XLOOKUP($D45,$D$36:$D$42,$M$36:$M$42)-1<=BM$24) * _xlfn.XLOOKUP($D45,$D$36:$D$42,$P$36:$P$42))), (SUM( INDIRECT(ADDRESS(_xlfn.XLOOKUP($D45,$D$36:$D$42,$Y$36:$Y$42),COLUMN($AB$24))): INDIRECT(ADDRESS(_xlfn.XLOOKUP($D45,$D$36:$D$42,$Y$36:$Y$42),COLUMN(BM45)))) * _xlfn.XLOOKUP($D45,$D$36:$D$42,$P$36:$P$42))) -> 500 | BN45: =IF($F$12=$CH$1, (SUM((_xlfn.XLOOKUP($D45,$D$36:$D$42,$L$36:$L$42)<=BN$24) * (_xlfn.XLOOKUP($D45,$D$36:$D$42,$L$36:$L$42)+_xlfn.XLOOKUP($D45,$D$36:$D$42,$M$36:$M$42)-1>BN$24) * (BN$24+1-_xlfn.XLOOKUP($D45,$D$36:$D$42,$L$36:$L$42)) * _xlfn.XLOOKUP($D45,$D$36:$D$42,$P$36:$P$42) * _xlfn.XLOOKUP($D45,$D$36:$D$42,$W$36:$W$42)) + SUM(_xlfn.XLOOKUP($D45,$D$36:$D$42,$U$36:$U$42) * (_xlfn.XLOOKUP($D45,$D$36:$D$42,$L$36:$L$42) +_xlfn.XLOOKUP($D45,$D$36:$D$42,$M$36:$M$42)-1<=BN$24) * _xlfn.XLOOKUP($D45,$D$36:$D$42,$P$36:$P$42))), (SUM( INDIRECT(ADDRESS(_xlfn.XLOOKUP($D45,$D$36:$D$42,$Y$36:$Y$42),COLUMN($AB$24))): INDIRECT(ADDRESS(_xlfn.XLOOKUP($D45,$D$36:$D$42,$Y$36:$Y$42),COLUMN(BN45)))) * _xlfn.XLOOKUP($D45,$D$36:$D$42,$P$36:$P$42))) -> 500 | BO45: =IF($F$12=$CH$1, (SUM((_xlfn.XLOOKUP($D45,$D$36:$D$42,$L$36:$L$42)<=BO$24) * (_xlfn.XLOOKUP($D45,$D$36:$D$42,$L$36:$L$42)+_xlfn.XLOOKUP($D45,$D$36:$D$42,$M$36:$M$42)-1>BO$24) * (BO$24+1-_xlfn.XLOOKUP($D45,$D$36:$D$42,$L$36:$L$42)) * _xlfn.XLOOKUP($D45,$D$36:$D$42,$P$36:$P$42) * _xlfn.XLOOKUP($D45,$D$36:$D$42,$W$36:$W$42)) + SUM(_xlfn.XLOOKUP($D45,$D$36:$D$42,$U$36:$U$42) * (_xlfn.XLOOKUP($D45,$D$36:$D$42,$L$36:$L$42) +_xlfn.XLOOKUP($D45,$D$36:$D$42,$M$36:$M$42)-1<=BO$24) * _xlfn.XLOOKUP($D45,$D$36:$D$42,$P$36:$P$42))), (SUM( INDIRECT(ADDRESS(_xlfn.XLOOKUP($D45,$D$36:$D$42,$Y$36:$Y$42),COLUMN($AB$24))): INDIRECT(ADDRESS(_xlfn.XLOOKUP($D45,$D$36:$D$42,$Y$36:$Y$42),COLUMN(BO45)))) * _xlfn.XLOOKUP($D45,$D$36:$D$42,$P$36:$P$42))) -> 500 | BP45: =IF($F$12=$CH$1, (SUM((_xlfn.XLOOKUP($D45,$D$36:$D$42,$L$36:$L$42)<=BP$24) * (_xlfn.XLOOKUP($D45,$D$36:$D$42,$L$36:$L$42)+_xlfn.XLOOKUP($D45,$D$36:$D$42,$M$36:$M$42)-1>BP$24) * (BP$24+1-_xlfn.XLOOKUP($D45,$D$36:$D$42,$L$36:$L$42)) * _xlfn.XLOOKUP($D45,$D$36:$D$42,$P$36:$P$42) * _xlfn.XLOOKUP($D45,$D$36:$D$42,$W$36:$W$42)) + SUM(_xlfn.XLOOKUP($D45,$D$36:$D$42,$U$36:$U$42) * (_xlfn.XLOOKUP($D45,$D$36:$D$42,$L$36:$L$42) +_xlfn.XLOOKUP($D45,$D$36:$D$42,$M$36:$M$42)-1<=BP$24) * _xlfn.XLOOKUP($D45,$D$36:$D$42,$P$36:$P$42))), (SUM( INDIRECT(ADDRESS(_xlfn.XLOOKUP($D45,$D$36:$D$42,$Y$36:$Y$42),COLUMN($AB$24))): INDIRECT(ADDRESS(_xlfn.XLOOKUP($D45,$D$36:$D$42,$Y$36:$Y$42),COLUMN(BP45)))) * _xlfn.XLOOKUP($D45,$D$36:$D$42,$P$36:$P$42))) -> 500 | BQ45: =IF($F$12=$CH$1, (SUM((_xlfn.XLOOKUP($D45,$D$36:$D$42,$L$36:$L$42)<=BQ$24) * (_xlfn.XLOOKUP($D45,$D$36:$D$42,$L$36:$L$42)+_xlfn.XLOOKUP($D45,$D$36:$D$42,$M$36:$M$42)-1>BQ$24) * (BQ$24+1-_xlfn.XLOOKUP($D45,$D$36:$D$42,$L$36:$L$42)) * _xlfn.XLOOKUP($D45,$D$36:$D$42,$P$36:$P$42) * _xlfn.XLOOKUP($D45,$D$36:$D$42,$W$36:$W$42)) + SUM(_xlfn.XLOOKUP($D45,$D$36:$D$42,$U$36:$U$42) * (_xlfn.XLOOKUP($D45,$D$36:$D$42,$L$36:$L$42) +_xlfn.XLOOKUP($D45,$D$36:$D$42,$M$36:$M$42)-1<=BQ$24) * _xlfn.XLOOKUP($D45,$D$36:$D$42,$P$36:$P$42))), (SUM( INDIRECT(ADDRESS(_xlfn.XLOOKUP($D45,$D$36:$D$42,$Y$36:$Y$42),COLUMN($AB$24))): INDIRECT(ADDRESS(_xlfn.XLOOKUP($D45,$D$36:$D$42,$Y$36:$Y$42),COLUMN(BQ45)))) * _xlfn.XLOOKUP($D45,$D$36:$D$42,$P$36:$P$42))) -> 500 | BR45: =IF($F$12=$CH$1, (SUM((_xlfn.XLOOKUP($D45,$D$36:$D$42,$L$36:$L$42)<=BR$24) * (_xlfn.XLOOKUP($D45,$D$36:$D$42,$L$36:$L$42)+_xlfn.XLOOKUP($D45,$D$36:$D$42,$M$36:$M$42)-1>BR$24) * (BR$24+1-_xlfn.XLOOKUP($D45,$D$36:$D$42,$L$36:$L$42)) * _xlfn.XLOOKUP($D45,$D$36:$D$42,$P$36:$P$42) * _xlfn.XLOOKUP($D45,$D$36:$D$42,$W$36:$W$42)) + SUM(_xlfn.XLOOKUP($D45,$D$36:$D$42,$U$36:$U$42) * (_xlfn.XLOOKUP($D45,$D$36:$D$42,$L$36:$L$42) +_xlfn.XLOOKUP($D45,$D$36:$D$42,$M$36:$M$42)-1<=BR$24) * _xlfn.XLOOKUP($D45,$D$36:$D$42,$P$36:$P$42))), (SUM( INDIRECT(ADDRESS(_xlfn.XLOOKUP($D45,$D$36:$D$42,$Y$36:$Y$42),COLUMN($AB$24))): INDIRECT(ADDRESS(_xlfn.XLOOKUP($D45,$D$36:$D$42,$Y$36:$Y$42),COLUMN(BR45)))) * _xlfn.XLOOKUP($D45,$D$36:$D$42,$P$36:$P$42))) -> 500 | BS45: =IF($F$12=$CH$1, (SUM((_xlfn.XLOOKUP($D45,$D$36:$D$42,$L$36:$L$42)<=BS$24) * (_xlfn.XLOOKUP($D45,$D$36:$D$42,$L$36:$L$42)+_xlfn.XLOOKUP($D45,$D$36:$D$42,$M$36:$M$42)-1>BS$24) * (BS$24+1-_xlfn.XLOOKUP($D45,$D$36:$D$42,$L$36:$L$42)) * _xlfn.XLOOKUP($D45,$D$36:$D$42,$P$36:$P$42) * _xlfn.XLOOKUP($D45,$D$36:$D$42,$W$36:$W$42)) + SUM(_xlfn.XLOOKUP($D45,$D$36:$D$42,$U$36:$U$42) * (_xlfn.XLOOKUP($D45,$D$36:$D$42,$L$36:$L$42) +_xlfn.XLOOKUP($D45,$D$36:$D$42,$M$36:$M$42)-1<=BS$24) * _xlfn.XLOOKUP($D45,$D$36:$D$42,$P$36:$P$42))), (SUM( INDIRECT(ADDRESS(_xlfn.XLOOKUP($D45,$D$36:$D$42,$Y$36:$Y$42),COLUMN($AB$24))): INDIRECT(ADDRESS(_xlfn.XLOOKUP($D45,$D$36:$D$42,$Y$36:$Y$42),COLUMN(BS45)))) * _xlfn.XLOOKUP($D45,$D$36:$D$42,$P$36:$P$42))) -> 500 | BT45: =IF($F$12=$CH$1, (SUM((_xlfn.XLOOKUP($D45,$D$36:$D$42,$L$36:$L$42)<=BT$24) * (_xlfn.XLOOKUP($D45,$D$36:$D$42,$L$36:$L$42)+_xlfn.XLOOKUP($D45,$D$36:$D$42,$M$36:$M$42)-1>BT$24) * (BT$24+1-_xlfn.XLOOKUP($D45,$D$36:$D$42,$L$36:$L$42)) * _xlfn.XLOOKUP($D45,$D$36:$D$42,$P$36:$P$42) * _xlfn.XLOOKUP($D45,$D$36:$D$42,$W$36:$W$42)) + SUM(_xlfn.XLOOKUP($D45,$D$36:$D$42,$U$36:$U$42) * (_xlfn.XLOOKUP($D45,$D$36:$D$42,$L$36:$L$42) +_xlfn.XLOOKUP($D45,$D$36:$D$42,$M$36:$M$42)-1<=BT$24) * _xlfn.XLOOKUP($D45,$D$36:$D$42,$P$36:$P$42))), (SUM( INDIRECT(ADDRESS(_xlfn.XLOOKUP($D45,$D$36:$D$42,$Y$36:$Y$42),COLUMN($AB$24))): INDIRECT(ADDRESS(_xlfn.XLOOKUP($D45,$D$36:$D$42,$Y$36:$Y$42),COLUMN(BT45)))) * _xlfn.XLOOKUP($D45,$D$36:$D$42,$P$36:$P$42))) -> 500 | BU45: =IF($F$12=$CH$1, (SUM((_xlfn.XLOOKUP($D45,$D$36:$D$42,$L$36:$L$42)<=BU$24) * (_xlfn.XLOOKUP($D45,$D$36:$D$42,$L$36:$L$42)+_xlfn.XLOOKUP($D45,$D$36:$D$42,$M$36:$M$42)-1>BU$24) * (BU$24+1-_xlfn.XLOOKUP($D45,$D$36:$D$42,$L$36:$L$42)) * _xlfn.XLOOKUP($D45,$D$36:$D$42,$P$36:$P$42) * _xlfn.XLOOKUP($D45,$D$36:$D$42,$W$36:$W$42)) + SUM(_xlfn.XLOOKUP($D45,$D$36:$D$42,$U$36:$U$42) * (_xlfn.XLOOKUP($D45,$D$36:$D$42,$L$36:$L$42) +_xlfn.XLOOKUP($D45,$D$36:$D$42,$M$36:$M$42)-1<=BU$24) * _xlfn.XLOOKUP($D45,$D$36:$D$42,$P$36:$P$42))), (SUM( INDIRECT(ADDRESS(_xlfn.XLOOKUP($D45,$D$36:$D$42,$Y$36:$Y$42),COLUMN($AB$24))): INDIRECT(ADDRESS(_xlfn.XLOOKUP($D45,$D$36:$D$42,$Y$36:$Y$42),COLUMN(BU45)))) * _xlfn.XLOOKUP($D45,$D$36:$D$42,$P$36:$P$42))) -> 500 | BV45: =IF($F$12=$CH$1, (SUM((_xlfn.XLOOKUP($D45,$D$36:$D$42,$L$36:$L$42)<=BV$24) * (_xlfn.XLOOKUP($D45,$D$36:$D$42,$L$36:$L$42)+_xlfn.XLOOKUP($D45,$D$36:$D$42,$M$36:$M$42)-1>BV$24) * (BV$24+1-_xlfn.XLOOKUP($D45,$D$36:$D$42,$L$36:$L$42)) * _xlfn.XLOOKUP($D45,$D$36:$D$42,$P$36:$P$42) * _xlfn.XLOOKUP($D45,$D$36:$D$42,$W$36:$W$42)) + SUM(_xlfn.XLOOKUP($D45,$D$36:$D$42,$U$36:$U$42) * (_xlfn.XLOOKUP($D45,$D$36:$D$42,$L$36:$L$42) +_xlfn.XLOOKUP($D45,$D$36:$D$42,$M$36:$M$42)-1<=BV$24) * _xlfn.XLOOKUP($D45,$D$36:$D$42,$P$36:$P$42))), (SUM( INDIRECT(ADDRESS(_xlfn.XLOOKUP($D45,$D$36:$D$42,$Y$36:$Y$42),COLUMN($AB$24))): INDIRECT(ADDRESS(_xlfn.XLOOKUP($D45,$D$36:$D$42,$Y$36:$Y$42),COLUMN(BV45)))) * _xlfn.XLOOKUP($D45,$D$36:$D$42,$P$36:$P$42))) -> 500 | BW45: =IF($F$12=$CH$1, (SUM((_xlfn.XLOOKUP($D45,$D$36:$D$42,$L$36:$L$42)<=BW$24) * (_xlfn.XLOOKUP($D45,$D$36:$D$42,$L$36:$L$42)+_xlfn.XLOOKUP($D45,$D$36:$D$42,$M$36:$M$42)-1>BW$24) * (BW$24+1-_xlfn.XLOOKUP($D45,$D$36:$D$42,$L$36:$L$42)) * _xlfn.XLOOKUP($D45,$D$36:$D$42,$P$36:$P$42) * _xlfn.XLOOKUP($D45,$D$36:$D$42,$W$36:$W$42)) + SUM(_xlfn.XLOOKUP($D45,$D$36:$D$42,$U$36:$U$42) * (_xlfn.XLOOKUP($D45,$D$36:$D$42,$L$36:$L$42) +_xlfn.XLOOKUP($D45,$D$36:$D$42,$M$36:$M$42)-1<=BW$24) * _xlfn.XLOOKUP($D45,$D$36:$D$42,$P$36:$P$42))), (SUM( INDIRECT(ADDRESS(_xlfn.XLOOKUP($D45,$D$36:$D$42,$Y$36:$Y$42),COLUMN($AB$24))): INDIRECT(ADDRESS(_xlfn.XLOOKUP($D45,$D$36:$D$42,$Y$36:$Y$42),COLUMN(BW45)))) * _xlfn.XLOOKUP($D45,$D$36:$D$42,$P$36:$P$42))) -> 500 | BX45: =IF($F$12=$CH$1, (SUM((_xlfn.XLOOKUP($D45,$D$36:$D$42,$L$36:$L$42)<=BX$24) * (_xlfn.XLOOKUP($D45,$D$36:$D$42,$L$36:$L$42)+_xlfn.XLOOKUP($D45,$D$36:$D$42,$M$36:$M$42)-1>BX$24) * (BX$24+1-_xlfn.XLOOKUP($D45,$D$36:$D$42,$L$36:$L$42)) * _xlfn.XLOOKUP($D45,$D$36:$D$42,$P$36:$P$42) * _xlfn.XLOOKUP($D45,$D$36:$D$42,$W$36:$W$42)) + SUM(_xlfn.XLOOKUP($D45,$D$36:$D$42,$U$36:$U$42) * (_xlfn.XLOOKUP($D45,$D$36:$D$42,$L$36:$L$42) +_xlfn.XLOOKUP($D45,$D$36:$D$42,$M$36:$M$42)-1<=BX$24) * _xlfn.XLOOKUP($D45,$D$36:$D$42,$P$36:$P$42))), (SUM( INDIRECT(ADDRESS(_xlfn.XLOOKUP($D45,$D$36:$D$42,$Y$36:$Y$42),COLUMN($AB$24))): INDIRECT(ADDRESS(_xlfn.XLOOKUP($D45,$D$36:$D$42,$Y$36:$Y$42),COLUMN(BX45)))) * _xlfn.XLOOKUP($D45,$D$36:$D$42,$P$36:$P$42))) -> 500 | BY45: =IF($F$12=$CH$1, (SUM((_xlfn.XLOOKUP($D45,$D$36:$D$42,$L$36:$L$42)<=BY$24) * (_xlfn.XLOOKUP($D45,$D$36:$D$42,$L$36:$L$42)+_xlfn.XLOOKUP($D45,$D$36:$D$42,$M$36:$M$42)-1>BY$24) * (BY$24+1-_xlfn.XLOOKUP($D45,$D$36:$D$42,$L$36:$L$42)) * _xlfn.XLOOKUP($D45,$D$36:$D$42,$P$36:$P$42) * _xlfn.XLOOKUP($D45,$D$36:$D$42,$W$36:$W$42)) + SUM(_xlfn.XLOOKUP($D45,$D$36:$D$42,$U$36:$U$42) * (_xlfn.XLOOKUP($D45,$D$36:$D$42,$L$36:$L$42) +_xlfn.XLOOKUP($D45,$D$36:$D$42,$M$36:$M$42)-1<=BY$24) * _xlfn.XLOOKUP($D45,$D$36:$D$42,$P$36:$P$42))), (SUM( INDIRECT(ADDRESS(_xlfn.XLOOKUP($D45,$D$36:$D$42,$Y$36:$Y$42),COLUMN($AB$24))): INDIRECT(ADDRESS(_xlfn.XLOOKUP($D45,$D$36:$D$42,$Y$36:$Y$42),COLUMN(BY45)))) * _xlfn.XLOOKUP($D45,$D$36:$D$42,$P$36:$P$42))) -> 500 | BZ45: =IF($F$12=$CH$1, (SUM((_xlfn.XLOOKUP($D45,$D$36:$D$42,$L$36:$L$42)<=BZ$24) * (_xlfn.XLOOKUP($D45,$D$36:$D$42,$L$36:$L$42)+_xlfn.XLOOKUP($D45,$D$36:$D$42,$M$36:$M$42)-1>BZ$24) * (BZ$24+1-_xlfn.XLOOKUP($D45,$D$36:$D$42,$L$36:$L$42)) * _xlfn.XLOOKUP($D45,$D$36:$D$42,$P$36:$P$42) * _xlfn.XLOOKUP($D45,$D$36:$D$42,$W$36:$W$42)) + SUM(_xlfn.XLOOKUP($D45,$D$36:$D$42,$U$36:$U$42) * (_xlfn.XLOOKUP($D45,$D$36:$D$42,$L$36:$L$42) +_xlfn.XLOOKUP($D45,$D$36:$D$42,$M$36:$M$42)-1<=BZ$24) * _xlfn.XLOOKUP($D45,$D$36:$D$42,$P$36:$P$42))), (SUM( INDIRECT(ADDRESS(_xlfn.XLOOKUP($D45,$D$36:$D$42,$Y$36:$Y$42),COLUMN($AB$24))): INDIRECT(ADDRESS(_xlfn.XLOOKUP($D45,$D$36:$D$42,$Y$36:$Y$42),COLUMN(BZ45)))) * _xlfn.XLOOKUP($D45,$D$36:$D$42,$P$36:$P$42))) -> 500 | CA45: =IF($F$12=$CH$1, (SUM((_xlfn.XLOOKUP($D45,$D$36:$D$42,$L$36:$L$42)<=CA$24) * (_xlfn.XLOOKUP($D45,$D$36:$D$42,$L$36:$L$42)+_xlfn.XLOOKUP($D45,$D$36:$D$42,$M$36:$M$42)-1>CA$24) * (CA$24+1-_xlfn.XLOOKUP($D45,$D$36:$D$42,$L$36:$L$42)) * _xlfn.XLOOKUP($D45,$D$36:$D$42,$P$36:$P$42) * _xlfn.XLOOKUP($D45,$D$36:$D$42,$W$36:$W$42)) + SUM(_xlfn.XLOOKUP($D45,$D$36:$D$42,$U$36:$U$42) * (_xlfn.XLOOKUP($D45,$D$36:$D$42,$L$36:$L$42) +_xlfn.XLOOKUP($D45,$D$36:$D$42,$M$36:$M$42)-1<=CA$24) * _xlfn.XLOOKUP($D45,$D$36:$D$42,$P$36:$P$42))), (SUM( INDIRECT(ADDRESS(_xlfn.XLOOKUP($D45,$D$36:$D$42,$Y$36:$Y$42),COLUMN($AB$24))): INDIRECT(ADDRESS(_xlfn.XLOOKUP($D45,$D$36:$D$42,$Y$36:$Y$42),COLUMN(CA45)))) * _xlfn.XLOOKUP($D45,$D$36:$D$42,$P$36:$P$42))) -> 500 | CB45: =IF($F$12=$CH$1, (SUM((_xlfn.XLOOKUP($D45,$D$36:$D$42,$L$36:$L$42)<=CB$24) * (_xlfn.XLOOKUP($D45,$D$36:$D$42,$L$36:$L$42)+_xlfn.XLOOKUP($D45,$D$36:$D$42,$M$36:$M$42)-1>CB$24) * (CB$24+1-_xlfn.XLOOKUP($D45,$D$36:$D$42,$L$36:$L$42)) * _xlfn.XLOOKUP($D45,$D$36:$D$42,$P$36:$P$42) * _xlfn.XLOOKUP($D45,$D$36:$D$42,$W$36:$W$42)) + SUM(_xlfn.XLOOKUP($D45,$D$36:$D$42,$U$36:$U$42) * (_xlfn.XLOOKUP($D45,$D$36:$D$42,$L$36:$L$42) +_xlfn.XLOOKUP($D45,$D$36:$D$42,$M$36:$M$42)-1<=CB$24) * _xlfn.XLOOKUP($D45,$D$36:$D$42,$P$36:$P$42))), (SUM( INDIRECT(ADDRESS(_xlfn.XLOOKUP($D45,$D$36:$D$42,$Y$36:$Y$42),COLUMN($AB$24))): INDIRECT(ADDRESS(_xlfn.XLOOKUP($D45,$D$36:$D$42,$Y$36:$Y$42),COLUMN(CB45)))) * _xlfn.XLOOKUP($D45,$D$36:$D$42,$P$36:$P$42))) -> 500 | CC45: =IF($F$12=$CH$1, (SUM((_xlfn.XLOOKUP($D45,$D$36:$D$42,$L$36:$L$42)<=CC$24) * (_xlfn.XLOOKUP($D45,$D$36:$D$42,$L$36:$L$42)+_xlfn.XLOOKUP($D45,$D$36:$D$42,$M$36:$M$42)-1>CC$24) * (CC$24+1-_xlfn.XLOOKUP($D45,$D$36:$D$42,$L$36:$L$42)) * _xlfn.XLOOKUP($D45,$D$36:$D$42,$P$36:$P$42) * _xlfn.XLOOKUP($D45,$D$36:$D$42,$W$36:$W$42)) + SUM(_xlfn.XLOOKUP($D45,$D$36:$D$42,$U$36:$U$42) * (_xlfn.XLOOKUP($D45,$D$36:$D$42,$L$36:$L$42) +_xlfn.XLOOKUP($D45,$D$36:$D$42,$M$36:$M$42)-1<=CC$24) * _xlfn.XLOOKUP($D45,$D$36:$D$42,$P$36:$P$42))), (SUM( INDIRECT(ADDRESS(_xlfn.XLOOKUP($D45,$D$36:$D$42,$Y$36:$Y$42),COLUMN($AB$24))): INDIRECT(ADDRESS(_xlfn.XLOOKUP($D45,$D$36:$D$42,$Y$36:$Y$42),COLUMN(CC45)))) * _xlfn.XLOOKUP($D45,$D$36:$D$42,$P$36:$P$42))) -> 500 | CD45: =IF($F$12=$CH$1, (SUM((_xlfn.XLOOKUP($D45,$D$36:$D$42,$L$36:$L$42)<=CD$24) * (_xlfn.XLOOKUP($D45,$D$36:$D$42,$L$36:$L$42)+_xlfn.XLOOKUP($D45,$D$36:$D$42,$M$36:$M$42)-1>CD$24) * (CD$24+1-_xlfn.XLOOKUP($D45,$D$36:$D$42,$L$36:$L$42)) * _xlfn.XLOOKUP($D45,$D$36:$D$42,$P$36:$P$42) * _xlfn.XLOOKUP($D45,$D$36:$D$42,$W$36:$W$42)) + SUM(_xlfn.XLOOKUP($D45,$D$36:$D$42,$U$36:$U$42) * (_xlfn.XLOOKUP($D45,$D$36:$D$42,$L$36:$L$42) +_xlfn.XLOOKUP($D45,$D$36:$D$42,$M$36:$M$42)-1<=CD$24) * _xlfn.XLOOKUP($D45,$D$36:$D$42,$P$36:$P$42))), (SUM( INDIRECT(ADDRESS(_xlfn.XLOOKUP($D45,$D$36:$D$42,$Y$36:$Y$42),COLUMN($AB$24))): INDIRECT(ADDRESS(_xlfn.XLOOKUP($D45,$D$36:$D$42,$Y$36:$Y$42),COLUMN(CD45)))) * _xlfn.XLOOKUP($D45,$D$36:$D$42,$P$36:$P$42))) -> 500 | CE45: =IF($F$12=$CH$1, (SUM((_xlfn.XLOOKUP($D45,$D$36:$D$42,$L$36:$L$42)<=CE$24) * (_xlfn.XLOOKUP($D45,$D$36:$D$42,$L$36:$L$42)+_xlfn.XLOOKUP($D45,$D$36:$D$42,$M$36:$M$42)-1>CE$24) * (CE$24+1-_xlfn.XLOOKUP($D45,$D$36:$D$42,$L$36:$L$42)) * _xlfn.XLOOKUP($D45,$D$36:$D$42,$P$36:$P$42) * _xlfn.XLOOKUP($D45,$D$36:$D$42,$W$36:$W$42)) + SUM(_xlfn.XLOOKUP($D45,$D$36:$D$42,$U$36:$U$42) * (_xlfn.XLOOKUP($D45,$D$36:$D$42,$L$36:$L$42) +_xlfn.XLOOKUP($D45,$D$36:$D$42,$M$36:$M$42)-1<=CE$24) * _xlfn.XLOOKUP($D45,$D$36:$D$42,$P$36:$P$42))), (SUM( INDIRECT(ADDRESS(_xlfn.XLOOKUP($D45,$D$36:$D$42,$Y$36:$Y$42),COLUMN($AB$24))): INDIRECT(ADDRESS(_xlfn.XLOOKUP($D45,$D$36:$D$42,$Y$36:$Y$42),COLUMN(CE45)))) * _xlfn.XLOOKUP($D45,$D$36:$D$42,$P$36:$P$42))) -> 500 | CF45: =IF($F$12=$CH$1, (SUM((_xlfn.XLOOKUP($D45,$D$36:$D$42,$L$36:$L$42)<=CF$24) * (_xlfn.XLOOKUP($D45,$D$36:$D$42,$L$36:$L$42)+_xlfn.XLOOKUP($D45,$D$36:$D$42,$M$36:$M$42)-1>CF$24) * (CF$24+1-_xlfn.XLOOKUP($D45,$D$36:$D$42,$L$36:$L$42)) * _xlfn.XLOOKUP($D45,$D$36:$D$42,$P$36:$P$42) * _xlfn.XLOOKUP($D45,$D$36:$D$42,$W$36:$W$42)) + SUM(_xlfn.XLOOKUP($D45,$D$36:$D$42,$U$36:$U$42) * (_xlfn.XLOOKUP($D45,$D$36:$D$42,$L$36:$L$42) +_xlfn.XLOOKUP($D45,$D$36:$D$42,$M$36:$M$42)-1<=CF$24) * _xlfn.XLOOKUP($D45,$D$36:$D$42,$P$36:$P$42))), (SUM( INDIRECT(ADDRESS(_xlfn.XLOOKUP($D45,$D$36:$D$42,$Y$36:$Y$42),COLUMN($AB$24))): INDIRECT(ADDRESS(_xlfn.XLOOKUP($D45,$D$36:$D$42,$Y$36:$Y$42),COLUMN(CF45)))) * _xlfn.XLOOKUP($D45,$D$36:$D$42,$P$36:$P$42))) -> 500 | CG45: =IF($F$12=$CH$1, (SUM((_xlfn.XLOOKUP($D45,$D$36:$D$42,$L$36:$L$42)<=CG$24) * (_xlfn.XLOOKUP($D45,$D$36:$D$42,$L$36:$L$42)+_xlfn.XLOOKUP($D45,$D$36:$D$42,$M$36:$M$42)-1>CG$24) * (CG$24+1-_xlfn.XLOOKUP($D45,$D$36:$D$42,$L$36:$L$42)) * _xlfn.XLOOKUP($D45,$D$36:$D$42,$P$36:$P$42) * _xlfn.XLOOKUP($D45,$D$36:$D$42,$W$36:$W$42)) + SUM(_xlfn.XLOOKUP($D45,$D$36:$D$42,$U$36:$U$42) * (_xlfn.XLOOKUP($D45,$D$36:$D$42,$L$36:$L$42) +_xlfn.XLOOKUP($D45,$D$36:$D$42,$M$36:$M$42)-1<=CG$24) * _xlfn.XLOOKUP($D45,$D$36:$D$42,$P$36:$P$42))), (SUM( INDIRECT(ADDRESS(_xlfn.XLOOKUP($D45,$D$36:$D$42,$Y$36:$Y$42),COLUMN($AB$24))): INDIRECT(ADDRESS(_xlfn.XLOOKUP($D45,$D$36:$D$42,$Y$36:$Y$42),COLUMN(CG45)))) * _xlfn.XLOOKUP($D45,$D$36:$D$42,$P$36:$P$42))) -> 500 | CH45: =IF($F$12=$CH$1, (SUM((_xlfn.XLOOKUP($D45,$D$36:$D$42,$L$36:$L$42)<=CH$24) * (_xlfn.XLOOKUP($D45,$D$36:$D$42,$L$36:$L$42)+_xlfn.XLOOKUP($D45,$D$36:$D$42,$M$36:$M$42)-1>CH$24) * (CH$24+1-_xlfn.XLOOKUP($D45,$D$36:$D$42,$L$36:$L$42)) * _xlfn.XLOOKUP($D45,$D$36:$D$42,$P$36:$P$42) * _xlfn.XLOOKUP($D45,$D$36:$D$42,$W$36:$W$42)) + SUM(_xlfn.XLOOKUP($D45,$D$36:$D$42,$U$36:$U$42) * (_xlfn.XLOOKUP($D45,$D$36:$D$42,$L$36:$L$42) +_xlfn.XLOOKUP($D45,$D$36:$D$42,$M$36:$M$42)-1<=CH$24) * _xlfn.XLOOKUP($D45,$D$36:$D$42,$P$36:$P$42))), (SUM( INDIRECT(ADDRESS(_xlfn.XLOOKUP($D45,$D$36:$D$42,$Y$36:$Y$42),COLUMN($AB$24))): INDIRECT(ADDRESS(_xlfn.XLOOKUP($D45,$D$36:$D$42,$Y$36:$Y$42),COLUMN(CH45)))) * _xlfn.XLOOKUP($D45,$D$36:$D$42,$P$36:$P$42))) -> 500 | CI45: =IF($F$12=$CH$1, (SUM((_xlfn.XLOOKUP($D45,$D$36:$D$42,$L$36:$L$42)<=CI$24) * (_xlfn.XLOOKUP($D45,$D$36:$D$42,$L$36:$L$42)+_xlfn.XLOOKUP($D45,$D$36:$D$42,$M$36:$M$42)-1>CI$24) * (CI$24+1-_xlfn.XLOOKUP($D45,$D$36:$D$42,$L$36:$L$42)) * _xlfn.XLOOKUP($D45,$D$36:$D$42,$P$36:$P$42) * _xlfn.XLOOKUP($D45,$D$36:$D$42,$W$36:$W$42)) + SUM(_xlfn.XLOOKUP($D45,$D$36:$D$42,$U$36:$U$42) * (_xlfn.XLOOKUP($D45,$D$36:$D$42,$L$36:$L$42) +_xlfn.XLOOKUP($D45,$D$36:$D$42,$M$36:$M$42)-1<=CI$24) * _xlfn.XLOOKUP($D45,$D$36:$D$42,$P$36:$P$42))), (SUM( INDIRECT(ADDRESS(_xlfn.XLOOKUP($D45,$D$36:$D$42,$Y$36:$Y$42),COLUMN($AB$24))): INDIRECT(ADDRESS(_xlfn.XLOOKUP($D45,$D$36:$D$42,$Y$36:$Y$42),COLUMN(CI45)))) * _xlfn.XLOOKUP($D45,$D$36:$D$42,$P$36:$P$42))) -> 500
D46: B.1 | E46: Individueel gestapeld | O46: =O45 -> 1 | AB46: =IF($F$12=$CH$1, (SUM((_xlfn.XLOOKUP($D46,$D$36:$D$42,$L$36:$L$42)<=AB$24) * (_xlfn.XLOOKUP($D46,$D$36:$D$42,$L$36:$L$42)+_xlfn.XLOOKUP($D46,$D$36:$D$42,$M$36:$M$42)-1>AB$24) * (AB$24+1-_xlfn.XLOOKUP($D46,$D$36:$D$42,$L$36:$L$42)) * _xlfn.XLOOKUP($D46,$D$36:$D$42,$P$36:$P$42) * _xlfn.XLOOKUP($D46,$D$36:$D$42,$W$36:$W$42)) + SUM(_xlfn.XLOOKUP($D46,$D$36:$D$42,$U$36:$U$42) * (_xlfn.XLOOKUP($D46,$D$36:$D$42,$L$36:$L$42) +_xlfn.XLOOKUP($D46,$D$36:$D$42,$M$36:$M$42)-1<=AB$24) * _xlfn.XLOOKUP($D46,$D$36:$D$42,$P$36:$P$42))), (SUM( INDIRECT(ADDRESS(_xlfn.XLOOKUP($D46,$D$36:$D$42,$Y$36:$Y$42),COLUMN($AB$24))): INDIRECT(ADDRESS(_xlfn.XLOOKUP($D46,$D$36:$D$42,$Y$36:$Y$42),COLUMN(AB46)))) * _xlfn.XLOOKUP($D46,$D$36:$D$42,$P$36:$P$42))) -> 100 | AC46: =IF($F$12=$CH$1, (SUM((_xlfn.XLOOKUP($D46,$D$36:$D$42,$L$36:$L$42)<=AC$24) * (_xlfn.XLOOKUP($D46,$D$36:$D$42,$L$36:$L$42)+_xlfn.XLOOKUP($D46,$D$36:$D$42,$M$36:$M$42)-1>AC$24) * (AC$24+1-_xlfn.XLOOKUP($D46,$D$36:$D$42,$L$36:$L$42)) * _xlfn.XLOOKUP($D46,$D$36:$D$42,$P$36:$P$42) * _xlfn.XLOOKUP($D46,$D$36:$D$42,$W$36:$W$42)) + SUM(_xlfn.XLOOKUP($D46,$D$36:$D$42,$U$36:$U$42) * (_xlfn.XLOOKUP($D46,$D$36:$D$42,$L$36:$L$42) +_xlfn.XLOOKUP($D46,$D$36:$D$42,$M$36:$M$42)-1<=AC$24) * _xlfn.XLOOKUP($D46,$D$36:$D$42,$P$36:$P$42))), (SUM( INDIRECT(ADDRESS(_xlfn.XLOOKUP($D46,$D$36:$D$42,$Y$36:$Y$42),COLUMN($AB$24))): INDIRECT(ADDRESS(_xlfn.XLOOKUP($D46,$D$36:$D$42,$Y$36:$Y$42),COLUMN(AC46)))) * _xlfn.XLOOKUP($D46,$D$36:$D$42,$P$36:$P$42))) -> 200 | AD46: =IF($F$12=$CH$1, (SUM((_xlfn.XLOOKUP($D46,$D$36:$D$42,$L$36:$L$42)<=AD$24) * (_xlfn.XLOOKUP($D46,$D$36:$D$42,$L$36:$L$42)+_xlfn.XLOOKUP($D46,$D$36:$D$42,$M$36:$M$42)-1>AD$24) * (AD$24+1-_xlfn.XLOOKUP($D46,$D$36:$D$42,$L$36:$L$42)) * _xlfn.XLOOKUP($D46,$D$36:$D$42,$P$36:$P$42) * _xlfn.XLOOKUP($D46,$D$36:$D$42,$W$36:$W$42)) + SUM(_xlfn.XLOOKUP($D46,$D$36:$D$42,$U$36:$U$42) * (_xlfn.XLOOKUP($D46,$D$36:$D$42,$L$36:$L$42) +_xlfn.XLOOKUP($D46,$D$36:$D$42,$M$36:$M$42)-1<=AD$24) * _xlfn.XLOOKUP($D46,$D$36:$D$42,$P$36:$P$42))), (SUM( INDIRECT(ADDRESS(_xlfn.XLOOKUP($D46,$D$36:$D$42,$Y$36:$Y$42),COLUMN($AB$24))): INDIRECT(ADDRESS(_xlfn.XLOOKUP($D46,$D$36:$D$42,$Y$36:$Y$42),COLUMN(AD46)))) * _xlfn.XLOOKUP($D46,$D$36:$D$42,$P$36:$P$42))) -> 300 | AE46: =IF($F$12=$CH$1, (SUM((_xlfn.XLOOKUP($D46,$D$36:$D$42,$L$36:$L$42)<=AE$24) * (_xlfn.XLOOKUP($D46,$D$36:$D$42,$L$36:$L$42)+_xlfn.XLOOKUP($D46,$D$36:$D$42,$M$36:$M$42)-1>AE$24) * (AE$24+1-_xlfn.XLOOKUP($D46,$D$36:$D$42,$L$36:$L$42)) * _xlfn.XLOOKUP($D46,$D$36:$D$42,$P$36:$P$42) * _xlfn.XLOOKUP($D46,$D$36:$D$42,$W$36:$W$42)) + SUM(_xlfn.XLOOKUP($D46,$D$36:$D$42,$U$36:$U$42) * (_xlfn.XLOOKUP($D46,$D$36:$D$42,$L$36:$L$42) +_xlfn.XLOOKUP($D46,$D$36:$D$42,$M$36:$M$42)-1<=AE$24) * _xlfn.XLOOKUP($D46,$D$36:$D$42,$P$36:$P$42))), (SUM( INDIRECT(ADDRESS(_xlfn.XLOOKUP($D46,$D$36:$D$42,$Y$36:$Y$42),COLUMN($AB$24))): INDIRECT(ADDRESS(_xlfn.XLOOKUP($D46,$D$36:$D$42,$Y$36:$Y$42),COLUMN(AE46)))) * _xlfn.XLOOKUP($D46,$D$36:$D$42,$P$36:$P$42))) -> 400 | AF46: =IF($F$12=$CH$1, (SUM((_xlfn.XLOOKUP($D46,$D$36:$D$42,$L$36:$L$42)<=AF$24) * (_xlfn.XLOOKUP($D46,$D$36:$D$42,$L$36:$L$42)+_xlfn.XLOOKUP($D46,$D$36:$D$42,$M$36:$M$42)-1>AF$24) * (AF$24+1-_xlfn.XLOOKUP($D46,$D$36:$D$42,$L$36:$L$42)) * _xlfn.XLOOKUP($D46,$D$36:$D$42,$P$36:$P$42) * _xlfn.XLOOKUP($D46,$D$36:$D$42,$W$36:$W$42)) + SUM(_xlfn.XLOOKUP($D46,$D$36:$D$42,$U$36:$U$42) * (_xlfn.XLOOKUP($D46,$D$36:$D$42,$L$36:$L$42) +_xlfn.XLOOKUP($D46,$D$36:$D$42,$M$36:$M$42)-1<=AF$24) * _xlfn.XLOOKUP($D46,$D$36:$D$42,$P$36:$P$42))), (SUM( INDIRECT(ADDRESS(_xlfn.XLOOKUP($D46,$D$36:$D$42,$Y$36:$Y$42),COLUMN($AB$24))): INDIRECT(ADDRESS(_xlfn.XLOOKUP($D46,$D$36:$D$42,$Y$36:$Y$42),COLUMN(AF46)))) * _xlfn.XLOOKUP($D46,$D$36:$D$42,$P$36:$P$42))) -> 500 | AG46: =IF($F$12=$CH$1, (SUM((_xlfn.XLOOKUP($D46,$D$36:$D$42,$L$36:$L$42)<=AG$24) * (_xlfn.XLOOKUP($D46,$D$36:$D$42,$L$36:$L$42)+_xlfn.XLOOKUP($D46,$D$36:$D$42,$M$36:$M$42)-1>AG$24) * (AG$24+1-_xlfn.XLOOKUP($D46,$D$36:$D$42,$L$36:$L$42)) * _xlfn.XLOOKUP($D46,$D$36:$D$42,$P$36:$P$42) * _xlfn.XLOOKUP($D46,$D$36:$D$42,$W$36:$W$42)) + SUM(_xlfn.XLOOKUP($D46,$D$36:$D$42,$U$36:$U$42) * (_xlfn.XLOOKUP($D46,$D$36:$D$42,$L$36:$L$42) +_xlfn.XLOOKUP($D46,$D$36:$D$42,$M$36:$M$42)-1<=AG$24) * _xlfn.XLOOKUP($D46,$D$36:$D$42,$P$36:$P$42))), (SUM( INDIRECT(ADDRESS(_xlfn.XLOOKUP($D46,$D$36:$D$42,$Y$36:$Y$42),COLUMN($AB$24))): INDIRECT(ADDRESS(_xlfn.XLOOKUP($D46,$D$36:$D$42,$Y$36:$Y$42),COLUMN(AG46)))) * _xlfn.XLOOKUP($D46,$D$36:$D$42,$P$36:$P$42))) -> 500 | AH46: =IF($F$12=$CH$1, (SUM((_xlfn.XLOOKUP($D46,$D$36:$D$42,$L$36:$L$42)<=AH$24) * (_xlfn.XLOOKUP($D46,$D$36:$D$42,$L$36:$L$42)+_xlfn.XLOOKUP($D46,$D$36:$D$42,$M$36:$M$42)-1>AH$24) * (AH$24+1-_xlfn.XLOOKUP($D46,$D$36:$D$42,$L$36:$L$42)) * _xlfn.XLOOKUP($D46,$D$36:$D$42,$P$36:$P$42) * _xlfn.XLOOKUP($D46,$D$36:$D$42,$W$36:$W$42)) + SUM(_xlfn.XLOOKUP($D46,$D$36:$D$42,$U$36:$U$42) * (_xlfn.XLOOKUP($D46,$D$36:$D$42,$L$36:$L$42) +_xlfn.XLOOKUP($D46,$D$36:$D$42,$M$36:$M$42)-1<=AH$24) * _xlfn.XLOOKUP($D46,$D$36:$D$42,$P$36:$P$42))), (SUM( INDIRECT(ADDRESS(_xlfn.XLOOKUP($D46,$D$36:$D$42,$Y$36:$Y$42),COLUMN($AB$24))): INDIRECT(ADDRESS(_xlfn.XLOOKUP($D46,$D$36:$D$42,$Y$36:$Y$42),COLUMN(AH46)))) * _xlfn.XLOOKUP($D46,$D$36:$D$42,$P$36:$P$42))) -> 500 | AI46: =IF($F$12=$CH$1, (SUM((_xlfn.XLOOKUP($D46,$D$36:$D$42,$L$36:$L$42)<=AI$24) * (_xlfn.XLOOKUP($D46,$D$36:$D$42,$L$36:$L$42)+_xlfn.XLOOKUP($D46,$D$36:$D$42,$M$36:$M$42)-1>AI$24) * (AI$24+1-_xlfn.XLOOKUP($D46,$D$36:$D$42,$L$36:$L$42)) * _xlfn.XLOOKUP($D46,$D$36:$D$42,$P$36:$P$42) * _xlfn.XLOOKUP($D46,$D$36:$D$42,$W$36:$W$42)) + SUM(_xlfn.XLOOKUP($D46,$D$36:$D$42,$U$36:$U$42) * (_xlfn.XLOOKUP($D46,$D$36:$D$42,$L$36:$L$42) +_xlfn.XLOOKUP($D46,$D$36:$D$42,$M$36:$M$42)-1<=AI$24) * _xlfn.XLOOKUP($D46,$D$36:$D$42,$P$36:$P$42))), (SUM( INDIRECT(ADDRESS(_xlfn.XLOOKUP($D46,$D$36:$D$42,$Y$36:$Y$42),COLUMN($AB$24))): INDIRECT(ADDRESS(_xlfn.XLOOKUP($D46,$D$36:$D$42,$Y$36:$Y$42),COLUMN(AI46)))) * _xlfn.XLOOKUP($D46,$D$36:$D$42,$P$36:$P$42))) -> 500 | AJ46: =IF($F$12=$CH$1, (SUM((_xlfn.XLOOKUP($D46,$D$36:$D$42,$L$36:$L$42)<=AJ$24) * (_xlfn.XLOOKUP($D46,$D$36:$D$42,$L$36:$L$42)+_xlfn.XLOOKUP($D46,$D$36:$D$42,$M$36:$M$42)-1>AJ$24) * (AJ$24+1-_xlfn.XLOOKUP($D46,$D$36:$D$42,$L$36:$L$42)) * _xlfn.XLOOKUP($D46,$D$36:$D$42,$P$36:$P$42) * _xlfn.XLOOKUP($D46,$D$36:$D$42,$W$36:$W$42)) + SUM(_xlfn.XLOOKUP($D46,$D$36:$D$42,$U$36:$U$42) * (_xlfn.XLOOKUP($D46,$D$36:$D$42,$L$36:$L$42) +_xlfn.XLOOKUP($D46,$D$36:$D$42,$M$36:$M$42)-1<=AJ$24) * _xlfn.XLOOKUP($D46,$D$36:$D$42,$P$36:$P$42))), (SUM( INDIRECT(ADDRESS(_xlfn.XLOOKUP($D46,$D$36:$D$42,$Y$36:$Y$42),COLUMN($AB$24))): INDIRECT(ADDRESS(_xlfn.XLOOKUP($D46,$D$36:$D$42,$Y$36:$Y$42),COLUMN(AJ46)))) * _xlfn.XLOOKUP($D46,$D$36:$D$42,$P$36:$P$42))) -> 500 | AK46: =IF($F$12=$CH$1, (SUM((_xlfn.XLOOKUP($D46,$D$36:$D$42,$L$36:$L$42)<=AK$24) * (_xlfn.XLOOKUP($D46,$D$36:$D$42,$L$36:$L$42)+_xlfn.XLOOKUP($D46,$D$36:$D$42,$M$36:$M$42)-1>AK$24) * (AK$24+1-_xlfn.XLOOKUP($D46,$D$36:$D$42,$L$36:$L$42)) * _xlfn.XLOOKUP($D46,$D$36:$D$42,$P$36:$P$42) * _xlfn.XLOOKUP($D46,$D$36:$D$42,$W$36:$W$42)) + SUM(_xlfn.XLOOKUP($D46,$D$36:$D$42,$U$36:$U$42) * (_xlfn.XLOOKUP($D46,$D$36:$D$42,$L$36:$L$42) +_xlfn.XLOOKUP($D46,$D$36:$D$42,$M$36:$M$42)-1<=AK$24) * _xlfn.XLOOKUP($D46,$D$36:$D$42,$P$36:$P$42))), (SUM( INDIRECT(ADDRESS(_xlfn.XLOOKUP($D46,$D$36:$D$42,$Y$36:$Y$42),COLUMN($AB$24))): INDIRECT(ADDRESS(_xlfn.XLOOKUP($D46,$D$36:$D$42,$Y$36:$Y$42),COLUMN(AK46)))) * _xlfn.XLOOKUP($D46,$D$36:$D$42,$P$36:$P$42))) -> 500 | AL46: =IF($F$12=$CH$1, (SUM((_xlfn.XLOOKUP($D46,$D$36:$D$42,$L$36:$L$42)<=AL$24) * (_xlfn.XLOOKUP($D46,$D$36:$D$42,$L$36:$L$42)+_xlfn.XLOOKUP($D46,$D$36:$D$42,$M$36:$M$42)-1>AL$24) * (AL$24+1-_xlfn.XLOOKUP($D46,$D$36:$D$42,$L$36:$L$42)) * _xlfn.XLOOKUP($D46,$D$36:$D$42,$P$36:$P$42) * _xlfn.XLOOKUP($D46,$D$36:$D$42,$W$36:$W$42)) + SUM(_xlfn.XLOOKUP($D46,$D$36:$D$42,$U$36:$U$42) * (_xlfn.XLOOKUP($D46,$D$36:$D$42,$L$36:$L$42) +_xlfn.XLOOKUP($D46,$D$36:$D$42,$M$36:$M$42)-1<=AL$24) * _xlfn.XLOOKUP($D46,$D$36:$D$42,$P$36:$P$42))), (SUM( INDIRECT(ADDRESS(_xlfn.XLOOKUP($D46,$D$36:$D$42,$Y$36:$Y$42),COLUMN($AB$24))): INDIRECT(ADDRESS(_xlfn.XLOOKUP($D46,$D$36:$D$42,$Y$36:$Y$42),COLUMN(AL46)))) * _xlfn.XLOOKUP($D46,$D$36:$D$42,$P$36:$P$42))) -> 500 | AM46: =IF($F$12=$CH$1, (SUM((_xlfn.XLOOKUP($D46,$D$36:$D$42,$L$36:$L$42)<=AM$24) * (_xlfn.XLOOKUP($D46,$D$36:$D$42,$L$36:$L$42)+_xlfn.XLOOKUP($D46,$D$36:$D$42,$M$36:$M$42)-1>AM$24) * (AM$24+1-_xlfn.XLOOKUP($D46,$D$36:$D$42,$L$36:$L$42)) * _xlfn.XLOOKUP($D46,$D$36:$D$42,$P$36:$P$42) * _xlfn.XLOOKUP($D46,$D$36:$D$42,$W$36:$W$42)) + SUM(_xlfn.XLOOKUP($D46,$D$36:$D$42,$U$36:$U$42) * (_xlfn.XLOOKUP($D46,$D$36:$D$42,$L$36:$L$42) +_xlfn.XLOOKUP($D46,$D$36:$D$42,$M$36:$M$42)-1<=AM$24) * _xlfn.XLOOKUP($D46,$D$36:$D$42,$P$36:$P$42))), (SUM( INDIRECT(ADDRESS(_xlfn.XLOOKUP($D46,$D$36:$D$42,$Y$36:$Y$42),COLUMN($AB$24))): INDIRECT(ADDRESS(_xlfn.XLOOKUP($D46,$D$36:$D$42,$Y$36:$Y$42),COLUMN(AM46)))) * _xlfn.XLOOKUP($D46,$D$36:$D$42,$P$36:$P$42))) -> 500 | AN46: =IF($F$12=$CH$1, (SUM((_xlfn.XLOOKUP($D46,$D$36:$D$42,$L$36:$L$42)<=AN$24) * (_xlfn.XLOOKUP($D46,$D$36:$D$42,$L$36:$L$42)+_xlfn.XLOOKUP($D46,$D$36:$D$42,$M$36:$M$42)-1>AN$24) * (AN$24+1-_xlfn.XLOOKUP($D46,$D$36:$D$42,$L$36:$L$42)) * _xlfn.XLOOKUP($D46,$D$36:$D$42,$P$36:$P$42) * _xlfn.XLOOKUP($D46,$D$36:$D$42,$W$36:$W$42)) + SUM(_xlfn.XLOOKUP($D46,$D$36:$D$42,$U$36:$U$42) * (_xlfn.XLOOKUP($D46,$D$36:$D$42,$L$36:$L$42) +_xlfn.XLOOKUP($D46,$D$36:$D$42,$M$36:$M$42)-1<=AN$24) * _xlfn.XLOOKUP($D46,$D$36:$D$42,$P$36:$P$42))), (SUM( INDIRECT(ADDRESS(_xlfn.XLOOKUP($D46,$D$36:$D$42,$Y$36:$Y$42),COLUMN($AB$24))): INDIRECT(ADDRESS(_xlfn.XLOOKUP($D46,$D$36:$D$42,$Y$36:$Y$42),COLUMN(AN46)))) * _xlfn.XLOOKUP($D46,$D$36:$D$42,$P$36:$P$42))) -> 500 | AO46: =IF($F$12=$CH$1, (SUM((_xlfn.XLOOKUP($D46,$D$36:$D$42,$L$36:$L$42)<=AO$24) * (_xlfn.XLOOKUP($D46,$D$36:$D$42,$L$36:$L$42)+_xlfn.XLOOKUP($D46,$D$36:$D$42,$M$36:$M$42)-1>AO$24) * (AO$24+1-_xlfn.XLOOKUP($D46,$D$36:$D$42,$L$36:$L$42)) * _xlfn.XLOOKUP($D46,$D$36:$D$42,$P$36:$P$42) * _xlfn.XLOOKUP($D46,$D$36:$D$42,$W$36:$W$42)) + SUM(_xlfn.XLOOKUP($D46,$D$36:$D$42,$U$36:$U$42) * (_xlfn.XLOOKUP($D46,$D$36:$D$42,$L$36:$L$42) +_xlfn.XLOOKUP($D46,$D$36:$D$42,$M$36:$M$42)-1<=AO$24) * _xlfn.XLOOKUP($D46,$D$36:$D$42,$P$36:$P$42))), (SUM( INDIRECT(ADDRESS(_xlfn.XLOOKUP($D46,$D$36:$D$42,$Y$36:$Y$42),COLUMN($AB$24))): INDIRECT(ADDRESS(_xlfn.XLOOKUP($D46,$D$36:$D$42,$Y$36:$Y$42),COLUMN(AO46)))) * _xlfn.XLOOKUP($D46,$D$36:$D$42,$P$36:$P$42))) -> 500 | AP46: =IF($F$12=$CH$1, (SUM((_xlfn.XLOOKUP($D46,$D$36:$D$42,$L$36:$L$42)<=AP$24) * (_xlfn.XLOOKUP($D46,$D$36:$D$42,$L$36:$L$42)+_xlfn.XLOOKUP($D46,$D$36:$D$42,$M$36:$M$42)-1>AP$24) * (AP$24+1-_xlfn.XLOOKUP($D46,$D$36:$D$42,$L$36:$L$42)) * _xlfn.XLOOKUP($D46,$D$36:$D$42,$P$36:$P$42) * _xlfn.XLOOKUP($D46,$D$36:$D$42,$W$36:$W$42)) + SUM(_xlfn.XLOOKUP($D46,$D$36:$D$42,$U$36:$U$42) * (_xlfn.XLOOKUP($D46,$D$36:$D$42,$L$36:$L$42) +_xlfn.XLOOKUP($D46,$D$36:$D$42,$M$36:$M$42)-1<=AP$24) * _xlfn.XLOOKUP($D46,$D$36:$D$42,$P$36:$P$42))), (SUM( INDIRECT(ADDRESS(_xlfn.XLOOKUP($D46,$D$36:$D$42,$Y$36:$Y$42),COLUMN($AB$24))): INDIRECT(ADDRESS(_xlfn.XLOOKUP($D46,$D$36:$D$42,$Y$36:$Y$42),COLUMN(AP46)))) * _xlfn.XLOOKUP($D46,$D$36:$D$42,$P$36:$P$42))) -> 500 | AQ46: =IF($F$12=$CH$1, (SUM((_xlfn.XLOOKUP($D46,$D$36:$D$42,$L$36:$L$42)<=AQ$24) * (_xlfn.XLOOKUP($D46,$D$36:$D$42,$L$36:$L$42)+_xlfn.XLOOKUP($D46,$D$36:$D$42,$M$36:$M$42)-1>AQ$24) * (AQ$24+1-_xlfn.XLOOKUP($D46,$D$36:$D$42,$L$36:$L$42)) * _xlfn.XLOOKUP($D46,$D$36:$D$42,$P$36:$P$42) * _xlfn.XLOOKUP($D46,$D$36:$D$42,$W$36:$W$42)) + SUM(_xlfn.XLOOKUP($D46,$D$36:$D$42,$U$36:$U$42) * (_xlfn.XLOOKUP($D46,$D$36:$D$42,$L$36:$L$42) +_xlfn.XLOOKUP($D46,$D$36:$D$42,$M$36:$M$42)-1<=AQ$24) * _xlfn.XLOOKUP($D46,$D$36:$D$42,$P$36:$P$42))), (SUM( INDIRECT(ADDRESS(_xlfn.XLOOKUP($D46,$D$36:$D$42,$Y$36:$Y$42),COLUMN($AB$24))): INDIRECT(ADDRESS(_xlfn.XLOOKUP($D46,$D$36:$D$42,$Y$36:$Y$42),COLUMN(AQ46)))) * _xlfn.XLOOKUP($D46,$D$36:$D$42,$P$36:$P$42))) -> 500 | AR46: =IF($F$12=$CH$1, (SUM((_xlfn.XLOOKUP($D46,$D$36:$D$42,$L$36:$L$42)<=AR$24) * (_xlfn.XLOOKUP($D46,$D$36:$D$42,$L$36:$L$42)+_xlfn.XLOOKUP($D46,$D$36:$D$42,$M$36:$M$42)-1>AR$24) * (AR$24+1-_xlfn.XLOOKUP($D46,$D$36:$D$42,$L$36:$L$42)) * _xlfn.XLOOKUP($D46,$D$36:$D$42,$P$36:$P$42) * _xlfn.XLOOKUP($D46,$D$36:$D$42,$W$36:$W$42)) + SUM(_xlfn.XLOOKUP($D46,$D$36:$D$42,$U$36:$U$42) * (_xlfn.XLOOKUP($D46,$D$36:$D$42,$L$36:$L$42) +_xlfn.XLOOKUP($D46,$D$36:$D$42,$M$36:$M$42)-1<=AR$24) * _xlfn.XLOOKUP($D46,$D$36:$D$42,$P$36:$P$42))), (SUM( INDIRECT(ADDRESS(_xlfn.XLOOKUP($D46,$D$36:$D$42,$Y$36:$Y$42),COLUMN($AB$24))): INDIRECT(ADDRESS(_xlfn.XLOOKUP($D46,$D$36:$D$42,$Y$36:$Y$42),COLUMN(AR46)))) * _xlfn.XLOOKUP($D46,$D$36:$D$42,$P$36:$P$42))) -> 500 | AS46: =IF($F$12=$CH$1, (SUM((_xlfn.XLOOKUP($D46,$D$36:$D$42,$L$36:$L$42)<=AS$24) * (_xlfn.XLOOKUP($D46,$D$36:$D$42,$L$36:$L$42)+_xlfn.XLOOKUP($D46,$D$36:$D$42,$M$36:$M$42)-1>AS$24) * (AS$24+1-_xlfn.XLOOKUP($D46,$D$36:$D$42,$L$36:$L$42)) * _xlfn.XLOOKUP($D46,$D$36:$D$42,$P$36:$P$42) * _xlfn.XLOOKUP($D46,$D$36:$D$42,$W$36:$W$42)) + SUM(_xlfn.XLOOKUP($D46,$D$36:$D$42,$U$36:$U$42) * (_xlfn.XLOOKUP($D46,$D$36:$D$42,$L$36:$L$42) +_xlfn.XLOOKUP($D46,$D$36:$D$42,$M$36:$M$42)-1<=AS$24) * _xlfn.XLOOKUP($D46,$D$36:$D$42,$P$36:$P$42))), (SUM( INDIRECT(ADDRESS(_xlfn.XLOOKUP($D46,$D$36:$D$42,$Y$36:$Y$42),COLUMN($AB$24))): INDIRECT(ADDRESS(_xlfn.XLOOKUP($D46,$D$36:$D$42,$Y$36:$Y$42),COLUMN(AS46)))) * _xlfn.XLOOKUP($D46,$D$36:$D$42,$P$36:$P$42))) -> 500 | AT46: =IF($F$12=$CH$1, (SUM((_xlfn.XLOOKUP($D46,$D$36:$D$42,$L$36:$L$42)<=AT$24) * (_xlfn.XLOOKUP($D46,$D$36:$D$42,$L$36:$L$42)+_xlfn.XLOOKUP($D46,$D$36:$D$42,$M$36:$M$42)-1>AT$24) * (AT$24+1-_xlfn.XLOOKUP($D46,$D$36:$D$42,$L$36:$L$42)) * _xlfn.XLOOKUP($D46,$D$36:$D$42,$P$36:$P$42) * _xlfn.XLOOKUP($D46,$D$36:$D$42,$W$36:$W$42)) + SUM(_xlfn.XLOOKUP($D46,$D$36:$D$42,$U$36:$U$42) * (_xlfn.XLOOKUP($D46,$D$36:$D$42,$L$36:$L$42) +_xlfn.XLOOKUP($D46,$D$36:$D$42,$M$36:$M$42)-1<=AT$24) * _xlfn.XLOOKUP($D46,$D$36:$D$42,$P$36:$P$42))), (SUM( INDIRECT(ADDRESS(_xlfn.XLOOKUP($D46,$D$36:$D$42,$Y$36:$Y$42),COLUMN($AB$24))): INDIRECT(ADDRESS(_xlfn.XLOOKUP($D46,$D$36:$D$42,$Y$36:$Y$42),COLUMN(AT46)))) * _xlfn.XLOOKUP($D46,$D$36:$D$42,$P$36:$P$42))) -> 500 | AU46: =IF($F$12=$CH$1, (SUM((_xlfn.XLOOKUP($D46,$D$36:$D$42,$L$36:$L$42)<=AU$24) * (_xlfn.XLOOKUP($D46,$D$36:$D$42,$L$36:$L$42)+_xlfn.XLOOKUP($D46,$D$36:$D$42,$M$36:$M$42)-1>AU$24) * (AU$24+1-_xlfn.XLOOKUP($D46,$D$36:$D$42,$L$36:$L$42)) * _xlfn.XLOOKUP($D46,$D$36:$D$42,$P$36:$P$42) * _xlfn.XLOOKUP($D46,$D$36:$D$42,$W$36:$W$42)) + SUM(_xlfn.XLOOKUP($D46,$D$36:$D$42,$U$36:$U$42) * (_xlfn.XLOOKUP($D46,$D$36:$D$42,$L$36:$L$42) +_xlfn.XLOOKUP($D46,$D$36:$D$42,$M$36:$M$42)-1<=AU$24) * _xlfn.XLOOKUP($D46,$D$36:$D$42,$P$36:$P$42))), (SUM( INDIRECT(ADDRESS(_xlfn.XLOOKUP($D46,$D$36:$D$42,$Y$36:$Y$42),COLUMN($AB$24))): INDIRECT(ADDRESS(_xlfn.XLOOKUP($D46,$D$36:$D$42,$Y$36:$Y$42),COLUMN(AU46)))) * _xlfn.XLOOKUP($D46,$D$36:$D$42,$P$36:$P$42))) -> 500 | AV46: =IF($F$12=$CH$1, (SUM((_xlfn.XLOOKUP($D46,$D$36:$D$42,$L$36:$L$42)<=AV$24) * (_xlfn.XLOOKUP($D46,$D$36:$D$42,$L$36:$L$42)+_xlfn.XLOOKUP($D46,$D$36:$D$42,$M$36:$M$42)-1>AV$24) * (AV$24+1-_xlfn.XLOOKUP($D46,$D$36:$D$42,$L$36:$L$42)) * _xlfn.XLOOKUP($D46,$D$36:$D$42,$P$36:$P$42) * _xlfn.XLOOKUP($D46,$D$36:$D$42,$W$36:$W$42)) + SUM(_xlfn.XLOOKUP($D46,$D$36:$D$42,$U$36:$U$42) * (_xlfn.XLOOKUP($D46,$D$36:$D$42,$L$36:$L$42) +_xlfn.XLOOKUP($D46,$D$36:$D$42,$M$36:$M$42)-1<=AV$24) * _xlfn.XLOOKUP($D46,$D$36:$D$42,$P$36:$P$42))), (SUM( INDIRECT(ADDRESS(_xlfn.XLOOKUP($D46,$D$36:$D$42,$Y$36:$Y$42),COLUMN($AB$24))): INDIRECT(ADDRESS(_xlfn.XLOOKUP($D46,$D$36:$D$42,$Y$36:$Y$42),COLUMN(AV46)))) * _xlfn.XLOOKUP($D46,$D$36:$D$42,$P$36:$P$42))) -> 500 | AW46: =IF($F$12=$CH$1, (SUM((_xlfn.XLOOKUP($D46,$D$36:$D$42,$L$36:$L$42)<=AW$24) * (_xlfn.XLOOKUP($D46,$D$36:$D$42,$L$36:$L$42)+_xlfn.XLOOKUP($D46,$D$36:$D$42,$M$36:$M$42)-1>AW$24) * (AW$24+1-_xlfn.XLOOKUP($D46,$D$36:$D$42,$L$36:$L$42)) * _xlfn.XLOOKUP($D46,$D$36:$D$42,$P$36:$P$42) * _xlfn.XLOOKUP($D46,$D$36:$D$42,$W$36:$W$42)) + SUM(_xlfn.XLOOKUP($D46,$D$36:$D$42,$U$36:$U$42) * (_xlfn.XLOOKUP($D46,$D$36:$D$42,$L$36:$L$42) +_xlfn.XLOOKUP($D46,$D$36:$D$42,$M$36:$M$42)-1<=AW$24) * _xlfn.XLOOKUP($D46,$D$36:$D$42,$P$36:$P$42))), (SUM( INDIRECT(ADDRESS(_xlfn.XLOOKUP($D46,$D$36:$D$42,$Y$36:$Y$42),COLUMN($AB$24))): INDIRECT(ADDRESS(_xlfn.XLOOKUP($D46,$D$36:$D$42,$Y$36:$Y$42),COLUMN(AW46)))) * _xlfn.XLOOKUP($D46,$D$36:$D$42,$P$36:$P$42))) -> 500 | AX46: =IF($F$12=$CH$1, (SUM((_xlfn.XLOOKUP($D46,$D$36:$D$42,$L$36:$L$42)<=AX$24) * (_xlfn.XLOOKUP($D46,$D$36:$D$42,$L$36:$L$42)+_xlfn.XLOOKUP($D46,$D$36:$D$42,$M$36:$M$42)-1>AX$24) * (AX$24+1-_xlfn.XLOOKUP($D46,$D$36:$D$42,$L$36:$L$42)) * _xlfn.XLOOKUP($D46,$D$36:$D$42,$P$36:$P$42) * _xlfn.XLOOKUP($D46,$D$36:$D$42,$W$36:$W$42)) + SUM(_xlfn.XLOOKUP($D46,$D$36:$D$42,$U$36:$U$42) * (_xlfn.XLOOKUP($D46,$D$36:$D$42,$L$36:$L$42) +_xlfn.XLOOKUP($D46,$D$36:$D$42,$M$36:$M$42)-1<=AX$24) * _xlfn.XLOOKUP($D46,$D$36:$D$42,$P$36:$P$42))), (SUM( INDIRECT(ADDRESS(_xlfn.XLOOKUP($D46,$D$36:$D$42,$Y$36:$Y$42),COLUMN($AB$24))): INDIRECT(ADDRESS(_xlfn.XLOOKUP($D46,$D$36:$D$42,$Y$36:$Y$42),COLUMN(AX46)))) * _xlfn.XLOOKUP($D46,$D$36:$D$42,$P$36:$P$42))) -> 500 | AY46: =IF($F$12=$CH$1, (SUM((_xlfn.XLOOKUP($D46,$D$36:$D$42,$L$36:$L$42)<=AY$24) * (_xlfn.XLOOKUP($D46,$D$36:$D$42,$L$36:$L$42)+_xlfn.XLOOKUP($D46,$D$36:$D$42,$M$36:$M$42)-1>AY$24) * (AY$24+1-_xlfn.XLOOKUP($D46,$D$36:$D$42,$L$36:$L$42)) * _xlfn.XLOOKUP($D46,$D$36:$D$42,$P$36:$P$42) * _xlfn.XLOOKUP($D46,$D$36:$D$42,$W$36:$W$42)) + SUM(_xlfn.XLOOKUP($D46,$D$36:$D$42,$U$36:$U$42) * (_xlfn.XLOOKUP($D46,$D$36:$D$42,$L$36:$L$42) +_xlfn.XLOOKUP($D46,$D$36:$D$42,$M$36:$M$42)-1<=AY$24) * _xlfn.XLOOKUP($D46,$D$36:$D$42,$P$36:$P$42))), (SUM( INDIRECT(ADDRESS(_xlfn.XLOOKUP($D46,$D$36:$D$42,$Y$36:$Y$42),COLUMN($AB$24))): INDIRECT(ADDRESS(_xlfn.XLOOKUP($D46,$D$36:$D$42,$Y$36:$Y$42),COLUMN(AY46)))) * _xlfn.XLOOKUP($D46,$D$36:$D$42,$P$36:$P$42))) -> 500 | AZ46: =IF($F$12=$CH$1, (SUM((_xlfn.XLOOKUP($D46,$D$36:$D$42,$L$36:$L$42)<=AZ$24) * (_xlfn.XLOOKUP($D46,$D$36:$D$42,$L$36:$L$42)+_xlfn.XLOOKUP($D46,$D$36:$D$42,$M$36:$M$42)-1>AZ$24) * (AZ$24+1-_xlfn.XLOOKUP($D46,$D$36:$D$42,$L$36:$L$42)) * _xlfn.XLOOKUP($D46,$D$36:$D$42,$P$36:$P$42) * _xlfn.XLOOKUP($D46,$D$36:$D$42,$W$36:$W$42)) + SUM(_xlfn.XLOOKUP($D46,$D$36:$D$42,$U$36:$U$42) * (_xlfn.XLOOKUP($D46,$D$36:$D$42,$L$36:$L$42) +_xlfn.XLOOKUP($D46,$D$36:$D$42,$M$36:$M$42)-1<=AZ$24) * _xlfn.XLOOKUP($D46,$D$36:$D$42,$P$36:$P$42))), (SUM( INDIRECT(ADDRESS(_xlfn.XLOOKUP($D46,$D$36:$D$42,$Y$36:$Y$42),COLUMN($AB$24))): INDIRECT(ADDRESS(_xlfn.XLOOKUP($D46,$D$36:$D$42,$Y$36:$Y$42),COLUMN(AZ46)))) * _xlfn.XLOOKUP($D46,$D$36:$D$42,$P$36:$P$42))) -> 500 | BA46: =IF($F$12=$CH$1, (SUM((_xlfn.XLOOKUP($D46,$D$36:$D$42,$L$36:$L$42)<=BA$24) * (_xlfn.XLOOKUP($D46,$D$36:$D$42,$L$36:$L$42)+_xlfn.XLOOKUP($D46,$D$36:$D$42,$M$36:$M$42)-1>BA$24) * (BA$24+1-_xlfn.XLOOKUP($D46,$D$36:$D$42,$L$36:$L$42)) * _xlfn.XLOOKUP($D46,$D$36:$D$42,$P$36:$P$42) * _xlfn.XLOOKUP($D46,$D$36:$D$42,$W$36:$W$42)) + SUM(_xlfn.XLOOKUP($D46,$D$36:$D$42,$U$36:$U$42) * (_xlfn.XLOOKUP($D46,$D$36:$D$42,$L$36:$L$42) +_xlfn.XLOOKUP($D46,$D$36:$D$42,$M$36:$M$42)-1<=BA$24) * _xlfn.XLOOKUP($D46,$D$36:$D$42,$P$36:$P$42))), (SUM( INDIRECT(ADDRESS(_xlfn.XLOOKUP($D46,$D$36:$D$42,$Y$36:$Y$42),COLUMN($AB$24))): INDIRECT(ADDRESS(_xlfn.XLOOKUP($D46,$D$36:$D$42,$Y$36:$Y$42),COLUMN(BA46)))) * _xlfn.XLOOKUP($D46,$D$36:$D$42,$P$36:$P$42))) -> 500 | BB46: =IF($F$12=$CH$1, (SUM((_xlfn.XLOOKUP($D46,$D$36:$D$42,$L$36:$L$42)<=BB$24) * (_xlfn.XLOOKUP($D46,$D$36:$D$42,$L$36:$L$42)+_xlfn.XLOOKUP($D46,$D$36:$D$42,$M$36:$M$42)-1>BB$24) * (BB$24+1-_xlfn.XLOOKUP($D46,$D$36:$D$42,$L$36:$L$42)) * _xlfn.XLOOKUP($D46,$D$36:$D$42,$P$36:$P$42) * _xlfn.XLOOKUP($D46,$D$36:$D$42,$W$36:$W$42)) + SUM(_xlfn.XLOOKUP($D46,$D$36:$D$42,$U$36:$U$42) * (_xlfn.XLOOKUP($D46,$D$36:$D$42,$L$36:$L$42) +_xlfn.XLOOKUP($D46,$D$36:$D$42,$M$36:$M$42)-1<=BB$24) * _xlfn.XLOOKUP($D46,$D$36:$D$42,$P$36:$P$42))), (SUM( INDIRECT(ADDRESS(_xlfn.XLOOKUP($D46,$D$36:$D$42,$Y$36:$Y$42),COLUMN($AB$24))): INDIRECT(ADDRESS(_xlfn.XLOOKUP($D46,$D$36:$D$42,$Y$36:$Y$42),COLUMN(BB46)))) * _xlfn.XLOOKUP($D46,$D$36:$D$42,$P$36:$P$42))) -> 500 | BC46: =IF($F$12=$CH$1, (SUM((_xlfn.XLOOKUP($D46,$D$36:$D$42,$L$36:$L$42)<=BC$24) * (_xlfn.XLOOKUP($D46,$D$36:$D$42,$L$36:$L$42)+_xlfn.XLOOKUP($D46,$D$36:$D$42,$M$36:$M$42)-1>BC$24) * (BC$24+1-_xlfn.XLOOKUP($D46,$D$36:$D$42,$L$36:$L$42)) * _xlfn.XLOOKUP($D46,$D$36:$D$42,$P$36:$P$42) * _xlfn.XLOOKUP($D46,$D$36:$D$42,$W$36:$W$42)) + SUM(_xlfn.XLOOKUP($D46,$D$36:$D$42,$U$36:$U$42) * (_xlfn.XLOOKUP($D46,$D$36:$D$42,$L$36:$L$42) +_xlfn.XLOOKUP($D46,$D$36:$D$42,$M$36:$M$42)-1<=BC$24) * _xlfn.XLOOKUP($D46,$D$36:$D$42,$P$36:$P$42))), (SUM( INDIRECT(ADDRESS(_xlfn.XLOOKUP($D46,$D$36:$D$42,$Y$36:$Y$42),COLUMN($AB$24))): INDIRECT(ADDRESS(_xlfn.XLOOKUP($D46,$D$36:$D$42,$Y$36:$Y$42),COLUMN(BC46)))) * _xlfn.XLOOKUP($D46,$D$36:$D$42,$P$36:$P$42))) -> 500 | BD46: =IF($F$12=$CH$1, (SUM((_xlfn.XLOOKUP($D46,$D$36:$D$42,$L$36:$L$42)<=BD$24) * (_xlfn.XLOOKUP($D46,$D$36:$D$42,$L$36:$L$42)+_xlfn.XLOOKUP($D46,$D$36:$D$42,$M$36:$M$42)-1>BD$24) * (BD$24+1-_xlfn.XLOOKUP($D46,$D$36:$D$42,$L$36:$L$42)) * _xlfn.XLOOKUP($D46,$D$36:$D$42,$P$36:$P$42) * _xlfn.XLOOKUP($D46,$D$36:$D$42,$W$36:$W$42)) + SUM(_xlfn.XLOOKUP($D46,$D$36:$D$42,$U$36:$U$42) * (_xlfn.XLOOKUP($D46,$D$36:$D$42,$L$36:$L$42) +_xlfn.XLOOKUP($D46,$D$36:$D$42,$M$36:$M$42)-1<=BD$24) * _xlfn.XLOOKUP($D46,$D$36:$D$42,$P$36:$P$42))), (SUM( INDIRECT(ADDRESS(_xlfn.XLOOKUP($D46,$D$36:$D$42,$Y$36:$Y$42),COLUMN($AB$24))): INDIRECT(ADDRESS(_xlfn.XLOOKUP($D46,$D$36:$D$42,$Y$36:$Y$42),COLUMN(BD46)))) * _xlfn.XLOOKUP($D46,$D$36:$D$42,$P$36:$P$42))) -> 500 | BE46: =IF($F$12=$CH$1, (SUM((_xlfn.XLOOKUP($D46,$D$36:$D$42,$L$36:$L$42)<=BE$24) * (_xlfn.XLOOKUP($D46,$D$36:$D$42,$L$36:$L$42)+_xlfn.XLOOKUP($D46,$D$36:$D$42,$M$36:$M$42)-1>BE$24) * (BE$24+1-_xlfn.XLOOKUP($D46,$D$36:$D$42,$L$36:$L$42)) * _xlfn.XLOOKUP($D46,$D$36:$D$42,$P$36:$P$42) * _xlfn.XLOOKUP($D46,$D$36:$D$42,$W$36:$W$42)) + SUM(_xlfn.XLOOKUP($D46,$D$36:$D$42,$U$36:$U$42) * (_xlfn.XLOOKUP($D46,$D$36:$D$42,$L$36:$L$42) +_xlfn.XLOOKUP($D46,$D$36:$D$42,$M$36:$M$42)-1<=BE$24) * _xlfn.XLOOKUP($D46,$D$36:$D$42,$P$36:$P$42))), (SUM( INDIRECT(ADDRESS(_xlfn.XLOOKUP($D46,$D$36:$D$42,$Y$36:$Y$42),COLUMN($AB$24))): INDIRECT(ADDRESS(_xlfn.XLOOKUP($D46,$D$36:$D$42,$Y$36:$Y$42),COLUMN(BE46)))) * _xlfn.XLOOKUP($D46,$D$36:$D$42,$P$36:$P$42))) -> 500 | BF46: =IF($F$12=$CH$1, (SUM((_xlfn.XLOOKUP($D46,$D$36:$D$42,$L$36:$L$42)<=BF$24) * (_xlfn.XLOOKUP($D46,$D$36:$D$42,$L$36:$L$42)+_xlfn.XLOOKUP($D46,$D$36:$D$42,$M$36:$M$42)-1>BF$24) * (BF$24+1-_xlfn.XLOOKUP($D46,$D$36:$D$42,$L$36:$L$42)) * _xlfn.XLOOKUP($D46,$D$36:$D$42,$P$36:$P$42) * _xlfn.XLOOKUP($D46,$D$36:$D$42,$W$36:$W$42)) + SUM(_xlfn.XLOOKUP($D46,$D$36:$D$42,$U$36:$U$42) * (_xlfn.XLOOKUP($D46,$D$36:$D$42,$L$36:$L$42) +_xlfn.XLOOKUP($D46,$D$36:$D$42,$M$36:$M$42)-1<=BF$24) * _xlfn.XLOOKUP($D46,$D$36:$D$42,$P$36:$P$42))), (SUM( INDIRECT(ADDRESS(_xlfn.XLOOKUP($D46,$D$36:$D$42,$Y$36:$Y$42),COLUMN($AB$24))): INDIRECT(ADDRESS(_xlfn.XLOOKUP($D46,$D$36:$D$42,$Y$36:$Y$42),COLUMN(BF46)))) * _xlfn.XLOOKUP($D46,$D$36:$D$42,$P$36:$P$42))) -> 500 | BG46: =IF($F$12=$CH$1, (SUM((_xlfn.XLOOKUP($D46,$D$36:$D$42,$L$36:$L$42)<=BG$24) * (_xlfn.XLOOKUP($D46,$D$36:$D$42,$L$36:$L$42)+_xlfn.XLOOKUP($D46,$D$36:$D$42,$M$36:$M$42)-1>BG$24) * (BG$24+1-_xlfn.XLOOKUP($D46,$D$36:$D$42,$L$36:$L$42)) * _xlfn.XLOOKUP($D46,$D$36:$D$42,$P$36:$P$42) * _xlfn.XLOOKUP($D46,$D$36:$D$42,$W$36:$W$42)) + SUM(_xlfn.XLOOKUP($D46,$D$36:$D$42,$U$36:$U$42) * (_xlfn.XLOOKUP($D46,$D$36:$D$42,$L$36:$L$42) +_xlfn.XLOOKUP($D46,$D$36:$D$42,$M$36:$M$42)-1<=BG$24) * _xlfn.XLOOKUP($D46,$D$36:$D$42,$P$36:$P$42))), (SUM( INDIRECT(ADDRESS(_xlfn.XLOOKUP($D46,$D$36:$D$42,$Y$36:$Y$42),COLUMN($AB$24))): INDIRECT(ADDRESS(_xlfn.XLOOKUP($D46,$D$36:$D$42,$Y$36:$Y$42),COLUMN(BG46)))) * _xlfn.XLOOKUP($D46,$D$36:$D$42,$P$36:$P$42))) -> 500 | BH46: =IF($F$12=$CH$1, (SUM((_xlfn.XLOOKUP($D46,$D$36:$D$42,$L$36:$L$42)<=BH$24) * (_xlfn.XLOOKUP($D46,$D$36:$D$42,$L$36:$L$42)+_xlfn.XLOOKUP($D46,$D$36:$D$42,$M$36:$M$42)-1>BH$24) * (BH$24+1-_xlfn.XLOOKUP($D46,$D$36:$D$42,$L$36:$L$42)) * _xlfn.XLOOKUP($D46,$D$36:$D$42,$P$36:$P$42) * _xlfn.XLOOKUP($D46,$D$36:$D$42,$W$36:$W$42)) + SUM(_xlfn.XLOOKUP($D46,$D$36:$D$42,$U$36:$U$42) * (_xlfn.XLOOKUP($D46,$D$36:$D$42,$L$36:$L$42) +_xlfn.XLOOKUP($D46,$D$36:$D$42,$M$36:$M$42)-1<=BH$24) * _xlfn.XLOOKUP($D46,$D$36:$D$42,$P$36:$P$42))), (SUM( INDIRECT(ADDRESS(_xlfn.XLOOKUP($D46,$D$36:$D$42,$Y$36:$Y$42),COLUMN($AB$24))): INDIRECT(ADDRESS(_xlfn.XLOOKUP($D46,$D$36:$D$42,$Y$36:$Y$42),COLUMN(BH46)))) * _xlfn.XLOOKUP($D46,$D$36:$D$42,$P$36:$P$42))) -> 500 | BI46: =IF($F$12=$CH$1, (SUM((_xlfn.XLOOKUP($D46,$D$36:$D$42,$L$36:$L$42)<=BI$24) * (_xlfn.XLOOKUP($D46,$D$36:$D$42,$L$36:$L$42)+_xlfn.XLOOKUP($D46,$D$36:$D$42,$M$36:$M$42)-1>BI$24) * (BI$24+1-_xlfn.XLOOKUP($D46,$D$36:$D$42,$L$36:$L$42)) * _xlfn.XLOOKUP($D46,$D$36:$D$42,$P$36:$P$42) * _xlfn.XLOOKUP($D46,$D$36:$D$42,$W$36:$W$42)) + SUM(_xlfn.XLOOKUP($D46,$D$36:$D$42,$U$36:$U$42) * (_xlfn.XLOOKUP($D46,$D$36:$D$42,$L$36:$L$42) +_xlfn.XLOOKUP($D46,$D$36:$D$42,$M$36:$M$42)-1<=BI$24) * _xlfn.XLOOKUP($D46,$D$36:$D$42,$P$36:$P$42))), (SUM( INDIRECT(ADDRESS(_xlfn.XLOOKUP($D46,$D$36:$D$42,$Y$36:$Y$42),COLUMN($AB$24))): INDIRECT(ADDRESS(_xlfn.XLOOKUP($D46,$D$36:$D$42,$Y$36:$Y$42),COLUMN(BI46)))) * _xlfn.XLOOKUP($D46,$D$36:$D$42,$P$36:$P$42))) -> 500 | BJ46: =IF($F$12=$CH$1, (SUM((_xlfn.XLOOKUP($D46,$D$36:$D$42,$L$36:$L$42)<=BJ$24) * (_xlfn.XLOOKUP($D46,$D$36:$D$42,$L$36:$L$42)+_xlfn.XLOOKUP($D46,$D$36:$D$42,$M$36:$M$42)-1>BJ$24) * (BJ$24+1-_xlfn.XLOOKUP($D46,$D$36:$D$42,$L$36:$L$42)) * _xlfn.XLOOKUP($D46,$D$36:$D$42,$P$36:$P$42) * _xlfn.XLOOKUP($D46,$D$36:$D$42,$W$36:$W$42)) + SUM(_xlfn.XLOOKUP($D46,$D$36:$D$42,$U$36:$U$42) * (_xlfn.XLOOKUP($D46,$D$36:$D$42,$L$36:$L$42) +_xlfn.XLOOKUP($D46,$D$36:$D$42,$M$36:$M$42)-1<=BJ$24) * _xlfn.XLOOKUP($D46,$D$36:$D$42,$P$36:$P$42))), (SUM( INDIRECT(ADDRESS(_xlfn.XLOOKUP($D46,$D$36:$D$42,$Y$36:$Y$42),COLUMN($AB$24))): INDIRECT(ADDRESS(_xlfn.XLOOKUP($D46,$D$36:$D$42,$Y$36:$Y$42),COLUMN(BJ46)))) * _xlfn.XLOOKUP($D46,$D$36:$D$42,$P$36:$P$42))) -> 500 | BK46: =IF($F$12=$CH$1, (SUM((_xlfn.XLOOKUP($D46,$D$36:$D$42,$L$36:$L$42)<=BK$24) * (_xlfn.XLOOKUP($D46,$D$36:$D$42,$L$36:$L$42)+_xlfn.XLOOKUP($D46,$D$36:$D$42,$M$36:$M$42)-1>BK$24) * (BK$24+1-_xlfn.XLOOKUP($D46,$D$36:$D$42,$L$36:$L$42)) * _xlfn.XLOOKUP($D46,$D$36:$D$42,$P$36:$P$42) * _xlfn.XLOOKUP($D46,$D$36:$D$42,$W$36:$W$42)) + SUM(_xlfn.XLOOKUP($D46,$D$36:$D$42,$U$36:$U$42) * (_xlfn.XLOOKUP($D46,$D$36:$D$42,$L$36:$L$42) +_xlfn.XLOOKUP($D46,$D$36:$D$42,$M$36:$M$42)-1<=BK$24) * _xlfn.XLOOKUP($D46,$D$36:$D$42,$P$36:$P$42))), (SUM( INDIRECT(ADDRESS(_xlfn.XLOOKUP($D46,$D$36:$D$42,$Y$36:$Y$42),COLUMN($AB$24))): INDIRECT(ADDRESS(_xlfn.XLOOKUP($D46,$D$36:$D$42,$Y$36:$Y$42),COLUMN(BK46)))) * _xlfn.XLOOKUP($D46,$D$36:$D$42,$P$36:$P$42))) -> 500 | BL46: =IF($F$12=$CH$1, (SUM((_xlfn.XLOOKUP($D46,$D$36:$D$42,$L$36:$L$42)<=BL$24) * (_xlfn.XLOOKUP($D46,$D$36:$D$42,$L$36:$L$42)+_xlfn.XLOOKUP($D46,$D$36:$D$42,$M$36:$M$42)-1>BL$24) * (BL$24+1-_xlfn.XLOOKUP($D46,$D$36:$D$42,$L$36:$L$42)) * _xlfn.XLOOKUP($D46,$D$36:$D$42,$P$36:$P$42) * _xlfn.XLOOKUP($D46,$D$36:$D$42,$W$36:$W$42)) + SUM(_xlfn.XLOOKUP($D46,$D$36:$D$42,$U$36:$U$42) * (_xlfn.XLOOKUP($D46,$D$36:$D$42,$L$36:$L$42) +_xlfn.XLOOKUP($D46,$D$36:$D$42,$M$36:$M$42)-1<=BL$24) * _xlfn.XLOOKUP($D46,$D$36:$D$42,$P$36:$P$42))), (SUM( INDIRECT(ADDRESS(_xlfn.XLOOKUP($D46,$D$36:$D$42,$Y$36:$Y$42),COLUMN($AB$24))): INDIRECT(ADDRESS(_xlfn.XLOOKUP($D46,$D$36:$D$42,$Y$36:$Y$42),COLUMN(BL46)))) * _xlfn.XLOOKUP($D46,$D$36:$D$42,$P$36:$P$42))) -> 500 | BM46: =IF($F$12=$CH$1, (SUM((_xlfn.XLOOKUP($D46,$D$36:$D$42,$L$36:$L$42)<=BM$24) * (_xlfn.XLOOKUP($D46,$D$36:$D$42,$L$36:$L$42)+_xlfn.XLOOKUP($D46,$D$36:$D$42,$M$36:$M$42)-1>BM$24) * (BM$24+1-_xlfn.XLOOKUP($D46,$D$36:$D$42,$L$36:$L$42)) * _xlfn.XLOOKUP($D46,$D$36:$D$42,$P$36:$P$42) * _xlfn.XLOOKUP($D46,$D$36:$D$42,$W$36:$W$42)) + SUM(_xlfn.XLOOKUP($D46,$D$36:$D$42,$U$36:$U$42) * (_xlfn.XLOOKUP($D46,$D$36:$D$42,$L$36:$L$42) +_xlfn.XLOOKUP($D46,$D$36:$D$42,$M$36:$M$42)-1<=BM$24) * _xlfn.XLOOKUP($D46,$D$36:$D$42,$P$36:$P$42))), (SUM( INDIRECT(ADDRESS(_xlfn.XLOOKUP($D46,$D$36:$D$42,$Y$36:$Y$42),COLUMN($AB$24))): INDIRECT(ADDRESS(_xlfn.XLOOKUP($D46,$D$36:$D$42,$Y$36:$Y$42),COLUMN(BM46)))) * _xlfn.XLOOKUP($D46,$D$36:$D$42,$P$36:$P$42))) -> 500 | BN46: =IF($F$12=$CH$1, (SUM((_xlfn.XLOOKUP($D46,$D$36:$D$42,$L$36:$L$42)<=BN$24) * (_xlfn.XLOOKUP($D46,$D$36:$D$42,$L$36:$L$42)+_xlfn.XLOOKUP($D46,$D$36:$D$42,$M$36:$M$42)-1>BN$24) * (BN$24+1-_xlfn.XLOOKUP($D46,$D$36:$D$42,$L$36:$L$42)) * _xlfn.XLOOKUP($D46,$D$36:$D$42,$P$36:$P$42) * _xlfn.XLOOKUP($D46,$D$36:$D$42,$W$36:$W$42)) + SUM(_xlfn.XLOOKUP($D46,$D$36:$D$42,$U$36:$U$42) * (_xlfn.XLOOKUP($D46,$D$36:$D$42,$L$36:$L$42) +_xlfn.XLOOKUP($D46,$D$36:$D$42,$M$36:$M$42)-1<=BN$24) * _xlfn.XLOOKUP($D46,$D$36:$D$42,$P$36:$P$42))), (SUM( INDIRECT(ADDRESS(_xlfn.XLOOKUP($D46,$D$36:$D$42,$Y$36:$Y$42),COLUMN($AB$24))): INDIRECT(ADDRESS(_xlfn.XLOOKUP($D46,$D$36:$D$42,$Y$36:$Y$42),COLUMN(BN46)))) * _xlfn.XLOOKUP($D46,$D$36:$D$42,$P$36:$P$42))) -> 500 | BO46: =IF($F$12=$CH$1, (SUM((_xlfn.XLOOKUP($D46,$D$36:$D$42,$L$36:$L$42)<=BO$24) * (_xlfn.XLOOKUP($D46,$D$36:$D$42,$L$36:$L$42)+_xlfn.XLOOKUP($D46,$D$36:$D$42,$M$36:$M$42)-1>BO$24) * (BO$24+1-_xlfn.XLOOKUP($D46,$D$36:$D$42,$L$36:$L$42)) * _xlfn.XLOOKUP($D46,$D$36:$D$42,$P$36:$P$42) * _xlfn.XLOOKUP($D46,$D$36:$D$42,$W$36:$W$42)) + SUM(_xlfn.XLOOKUP($D46,$D$36:$D$42,$U$36:$U$42) * (_xlfn.XLOOKUP($D46,$D$36:$D$42,$L$36:$L$42) +_xlfn.XLOOKUP($D46,$D$36:$D$42,$M$36:$M$42)-1<=BO$24) * _xlfn.XLOOKUP($D46,$D$36:$D$42,$P$36:$P$42))), (SUM( INDIRECT(ADDRESS(_xlfn.XLOOKUP($D46,$D$36:$D$42,$Y$36:$Y$42),COLUMN($AB$24))): INDIRECT(ADDRESS(_xlfn.XLOOKUP($D46,$D$36:$D$42,$Y$36:$Y$42),COLUMN(BO46)))) * _xlfn.XLOOKUP($D46,$D$36:$D$42,$P$36:$P$42))) -> 500 | BP46: =IF($F$12=$CH$1, (SUM((_xlfn.XLOOKUP($D46,$D$36:$D$42,$L$36:$L$42)<=BP$24) * (_xlfn.XLOOKUP($D46,$D$36:$D$42,$L$36:$L$42)+_xlfn.XLOOKUP($D46,$D$36:$D$42,$M$36:$M$42)-1>BP$24) * (BP$24+1-_xlfn.XLOOKUP($D46,$D$36:$D$42,$L$36:$L$42)) * _xlfn.XLOOKUP($D46,$D$36:$D$42,$P$36:$P$42) * _xlfn.XLOOKUP($D46,$D$36:$D$42,$W$36:$W$42)) + SUM(_xlfn.XLOOKUP($D46,$D$36:$D$42,$U$36:$U$42) * (_xlfn.XLOOKUP($D46,$D$36:$D$42,$L$36:$L$42) +_xlfn.XLOOKUP($D46,$D$36:$D$42,$M$36:$M$42)-1<=BP$24) * _xlfn.XLOOKUP($D46,$D$36:$D$42,$P$36:$P$42))), (SUM( INDIRECT(ADDRESS(_xlfn.XLOOKUP($D46,$D$36:$D$42,$Y$36:$Y$42),COLUMN($AB$24))): INDIRECT(ADDRESS(_xlfn.XLOOKUP($D46,$D$36:$D$42,$Y$36:$Y$42),COLUMN(BP46)))) * _xlfn.XLOOKUP($D46,$D$36:$D$42,$P$36:$P$42))) -> 500 | BQ46: =IF($F$12=$CH$1, (SUM((_xlfn.XLOOKUP($D46,$D$36:$D$42,$L$36:$L$42)<=BQ$24) * (_xlfn.XLOOKUP($D46,$D$36:$D$42,$L$36:$L$42)+_xlfn.XLOOKUP($D46,$D$36:$D$42,$M$36:$M$42)-1>BQ$24) * (BQ$24+1-_xlfn.XLOOKUP($D46,$D$36:$D$42,$L$36:$L$42)) * _xlfn.XLOOKUP($D46,$D$36:$D$42,$P$36:$P$42) * _xlfn.XLOOKUP($D46,$D$36:$D$42,$W$36:$W$42)) + SUM(_xlfn.XLOOKUP($D46,$D$36:$D$42,$U$36:$U$42) * (_xlfn.XLOOKUP($D46,$D$36:$D$42,$L$36:$L$42) +_xlfn.XLOOKUP($D46,$D$36:$D$42,$M$36:$M$42)-1<=BQ$24) * _xlfn.XLOOKUP($D46,$D$36:$D$42,$P$36:$P$42))), (SUM( INDIRECT(ADDRESS(_xlfn.XLOOKUP($D46,$D$36:$D$42,$Y$36:$Y$42),COLUMN($AB$24))): INDIRECT(ADDRESS(_xlfn.XLOOKUP($D46,$D$36:$D$42,$Y$36:$Y$42),COLUMN(BQ46)))) * _xlfn.XLOOKUP($D46,$D$36:$D$42,$P$36:$P$42))) -> 500 | BR46: =IF($F$12=$CH$1, (SUM((_xlfn.XLOOKUP($D46,$D$36:$D$42,$L$36:$L$42)<=BR$24) * (_xlfn.XLOOKUP($D46,$D$36:$D$42,$L$36:$L$42)+_xlfn.XLOOKUP($D46,$D$36:$D$42,$M$36:$M$42)-1>BR$24) * (BR$24+1-_xlfn.XLOOKUP($D46,$D$36:$D$42,$L$36:$L$42)) * _xlfn.XLOOKUP($D46,$D$36:$D$42,$P$36:$P$42) * _xlfn.XLOOKUP($D46,$D$36:$D$42,$W$36:$W$42)) + SUM(_xlfn.XLOOKUP($D46,$D$36:$D$42,$U$36:$U$42) * (_xlfn.XLOOKUP($D46,$D$36:$D$42,$L$36:$L$42) +_xlfn.XLOOKUP($D46,$D$36:$D$42,$M$36:$M$42)-1<=BR$24) * _xlfn.XLOOKUP($D46,$D$36:$D$42,$P$36:$P$42))), (SUM( INDIRECT(ADDRESS(_xlfn.XLOOKUP($D46,$D$36:$D$42,$Y$36:$Y$42),COLUMN($AB$24))): INDIRECT(ADDRESS(_xlfn.XLOOKUP($D46,$D$36:$D$42,$Y$36:$Y$42),COLUMN(BR46)))) * _xlfn.XLOOKUP($D46,$D$36:$D$42,$P$36:$P$42))) -> 500 | BS46: =IF($F$12=$CH$1, (SUM((_xlfn.XLOOKUP($D46,$D$36:$D$42,$L$36:$L$42)<=BS$24) * (_xlfn.XLOOKUP($D46,$D$36:$D$42,$L$36:$L$42)+_xlfn.XLOOKUP($D46,$D$36:$D$42,$M$36:$M$42)-1>BS$24) * (BS$24+1-_xlfn.XLOOKUP($D46,$D$36:$D$42,$L$36:$L$42)) * _xlfn.XLOOKUP($D46,$D$36:$D$42,$P$36:$P$42) * _xlfn.XLOOKUP($D46,$D$36:$D$42,$W$36:$W$42)) + SUM(_xlfn.XLOOKUP($D46,$D$36:$D$42,$U$36:$U$42) * (_xlfn.XLOOKUP($D46,$D$36:$D$42,$L$36:$L$42) +_xlfn.XLOOKUP($D46,$D$36:$D$42,$M$36:$M$42)-1<=BS$24) * _xlfn.XLOOKUP($D46,$D$36:$D$42,$P$36:$P$42))), (SUM( INDIRECT(ADDRESS(_xlfn.XLOOKUP($D46,$D$36:$D$42,$Y$36:$Y$42),COLUMN($AB$24))): INDIRECT(ADDRESS(_xlfn.XLOOKUP($D46,$D$36:$D$42,$Y$36:$Y$42),COLUMN(BS46)))) * _xlfn.XLOOKUP($D46,$D$36:$D$42,$P$36:$P$42))) -> 500 | BT46: =IF($F$12=$CH$1, (SUM((_xlfn.XLOOKUP($D46,$D$36:$D$42,$L$36:$L$42)<=BT$24) * (_xlfn.XLOOKUP($D46,$D$36:$D$42,$L$36:$L$42)+_xlfn.XLOOKUP($D46,$D$36:$D$42,$M$36:$M$42)-1>BT$24) * (BT$24+1-_xlfn.XLOOKUP($D46,$D$36:$D$42,$L$36:$L$42)) * _xlfn.XLOOKUP($D46,$D$36:$D$42,$P$36:$P$42) * _xlfn.XLOOKUP($D46,$D$36:$D$42,$W$36:$W$42)) + SUM(_xlfn.XLOOKUP($D46,$D$36:$D$42,$U$36:$U$42) * (_xlfn.XLOOKUP($D46,$D$36:$D$42,$L$36:$L$42) +_xlfn.XLOOKUP($D46,$D$36:$D$42,$M$36:$M$42)-1<=BT$24) * _xlfn.XLOOKUP($D46,$D$36:$D$42,$P$36:$P$42))), (SUM( INDIRECT(ADDRESS(_xlfn.XLOOKUP($D46,$D$36:$D$42,$Y$36:$Y$42),COLUMN($AB$24))): INDIRECT(ADDRESS(_xlfn.XLOOKUP($D46,$D$36:$D$42,$Y$36:$Y$42),COLUMN(BT46)))) * _xlfn.XLOOKUP($D46,$D$36:$D$42,$P$36:$P$42))) -> 500 | BU46: =IF($F$12=$CH$1, (SUM((_xlfn.XLOOKUP($D46,$D$36:$D$42,$L$36:$L$42)<=BU$24) * (_xlfn.XLOOKUP($D46,$D$36:$D$42,$L$36:$L$42)+_xlfn.XLOOKUP($D46,$D$36:$D$42,$M$36:$M$42)-1>BU$24) * (BU$24+1-_xlfn.XLOOKUP($D46,$D$36:$D$42,$L$36:$L$42)) * _xlfn.XLOOKUP($D46,$D$36:$D$42,$P$36:$P$42) * _xlfn.XLOOKUP($D46,$D$36:$D$42,$W$36:$W$42)) + SUM(_xlfn.XLOOKUP($D46,$D$36:$D$42,$U$36:$U$42) * (_xlfn.XLOOKUP($D46,$D$36:$D$42,$L$36:$L$42) +_xlfn.XLOOKUP($D46,$D$36:$D$42,$M$36:$M$42)-1<=BU$24) * _xlfn.XLOOKUP($D46,$D$36:$D$42,$P$36:$P$42))), (SUM( INDIRECT(ADDRESS(_xlfn.XLOOKUP($D46,$D$36:$D$42,$Y$36:$Y$42),COLUMN($AB$24))): INDIRECT(ADDRESS(_xlfn.XLOOKUP($D46,$D$36:$D$42,$Y$36:$Y$42),COLUMN(BU46)))) * _xlfn.XLOOKUP($D46,$D$36:$D$42,$P$36:$P$42))) -> 500 | BV46: =IF($F$12=$CH$1, (SUM((_xlfn.XLOOKUP($D46,$D$36:$D$42,$L$36:$L$42)<=BV$24) * (_xlfn.XLOOKUP($D46,$D$36:$D$42,$L$36:$L$42)+_xlfn.XLOOKUP($D46,$D$36:$D$42,$M$36:$M$42)-1>BV$24) * (BV$24+1-_xlfn.XLOOKUP($D46,$D$36:$D$42,$L$36:$L$42)) * _xlfn.XLOOKUP($D46,$D$36:$D$42,$P$36:$P$42) * _xlfn.XLOOKUP($D46,$D$36:$D$42,$W$36:$W$42)) + SUM(_xlfn.XLOOKUP($D46,$D$36:$D$42,$U$36:$U$42) * (_xlfn.XLOOKUP($D46,$D$36:$D$42,$L$36:$L$42) +_xlfn.XLOOKUP($D46,$D$36:$D$42,$M$36:$M$42)-1<=BV$24) * _xlfn.XLOOKUP($D46,$D$36:$D$42,$P$36:$P$42))), (SUM( INDIRECT(ADDRESS(_xlfn.XLOOKUP($D46,$D$36:$D$42,$Y$36:$Y$42),COLUMN($AB$24))): INDIRECT(ADDRESS(_xlfn.XLOOKUP($D46,$D$36:$D$42,$Y$36:$Y$42),COLUMN(BV46)))) * _xlfn.XLOOKUP($D46,$D$36:$D$42,$P$36:$P$42))) -> 500 | BW46: =IF($F$12=$CH$1, (SUM((_xlfn.XLOOKUP($D46,$D$36:$D$42,$L$36:$L$42)<=BW$24) * (_xlfn.XLOOKUP($D46,$D$36:$D$42,$L$36:$L$42)+_xlfn.XLOOKUP($D46,$D$36:$D$42,$M$36:$M$42)-1>BW$24) * (BW$24+1-_xlfn.XLOOKUP($D46,$D$36:$D$42,$L$36:$L$42)) * _xlfn.XLOOKUP($D46,$D$36:$D$42,$P$36:$P$42) * _xlfn.XLOOKUP($D46,$D$36:$D$42,$W$36:$W$42)) + SUM(_xlfn.XLOOKUP($D46,$D$36:$D$42,$U$36:$U$42) * (_xlfn.XLOOKUP($D46,$D$36:$D$42,$L$36:$L$42) +_xlfn.XLOOKUP($D46,$D$36:$D$42,$M$36:$M$42)-1<=BW$24) * _xlfn.XLOOKUP($D46,$D$36:$D$42,$P$36:$P$42))), (SUM( INDIRECT(ADDRESS(_xlfn.XLOOKUP($D46,$D$36:$D$42,$Y$36:$Y$42),COLUMN($AB$24))): INDIRECT(ADDRESS(_xlfn.XLOOKUP($D46,$D$36:$D$42,$Y$36:$Y$42),COLUMN(BW46)))) * _xlfn.XLOOKUP($D46,$D$36:$D$42,$P$36:$P$42))) -> 500 | BX46: =IF($F$12=$CH$1, (SUM((_xlfn.XLOOKUP($D46,$D$36:$D$42,$L$36:$L$42)<=BX$24) * (_xlfn.XLOOKUP($D46,$D$36:$D$42,$L$36:$L$42)+_xlfn.XLOOKUP($D46,$D$36:$D$42,$M$36:$M$42)-1>BX$24) * (BX$24+1-_xlfn.XLOOKUP($D46,$D$36:$D$42,$L$36:$L$42)) * _xlfn.XLOOKUP($D46,$D$36:$D$42,$P$36:$P$42) * _xlfn.XLOOKUP($D46,$D$36:$D$42,$W$36:$W$42)) + SUM(_xlfn.XLOOKUP($D46,$D$36:$D$42,$U$36:$U$42) * (_xlfn.XLOOKUP($D46,$D$36:$D$42,$L$36:$L$42) +_xlfn.XLOOKUP($D46,$D$36:$D$42,$M$36:$M$42)-1<=BX$24) * _xlfn.XLOOKUP($D46,$D$36:$D$42,$P$36:$P$42))), (SUM( INDIRECT(ADDRESS(_xlfn.XLOOKUP($D46,$D$36:$D$42,$Y$36:$Y$42),COLUMN($AB$24))): INDIRECT(ADDRESS(_xlfn.XLOOKUP($D46,$D$36:$D$42,$Y$36:$Y$42),COLUMN(BX46)))) * _xlfn.XLOOKUP($D46,$D$36:$D$42,$P$36:$P$42))) -> 500 | BY46: =IF($F$12=$CH$1, (SUM((_xlfn.XLOOKUP($D46,$D$36:$D$42,$L$36:$L$42)<=BY$24) * (_xlfn.XLOOKUP($D46,$D$36:$D$42,$L$36:$L$42)+_xlfn.XLOOKUP($D46,$D$36:$D$42,$M$36:$M$42)-1>BY$24) * (BY$24+1-_xlfn.XLOOKUP($D46,$D$36:$D$42,$L$36:$L$42)) * _xlfn.XLOOKUP($D46,$D$36:$D$42,$P$36:$P$42) * _xlfn.XLOOKUP($D46,$D$36:$D$42,$W$36:$W$42)) + SUM(_xlfn.XLOOKUP($D46,$D$36:$D$42,$U$36:$U$42) * (_xlfn.XLOOKUP($D46,$D$36:$D$42,$L$36:$L$42) +_xlfn.XLOOKUP($D46,$D$36:$D$42,$M$36:$M$42)-1<=BY$24) * _xlfn.XLOOKUP($D46,$D$36:$D$42,$P$36:$P$42))), (SUM( INDIRECT(ADDRESS(_xlfn.XLOOKUP($D46,$D$36:$D$42,$Y$36:$Y$42),COLUMN($AB$24))): INDIRECT(ADDRESS(_xlfn.XLOOKUP($D46,$D$36:$D$42,$Y$36:$Y$42),COLUMN(BY46)))) * _xlfn.XLOOKUP($D46,$D$36:$D$42,$P$36:$P$42))) -> 500 | BZ46: =IF($F$12=$CH$1, (SUM((_xlfn.XLOOKUP($D46,$D$36:$D$42,$L$36:$L$42)<=BZ$24) * (_xlfn.XLOOKUP($D46,$D$36:$D$42,$L$36:$L$42)+_xlfn.XLOOKUP($D46,$D$36:$D$42,$M$36:$M$42)-1>BZ$24) * (BZ$24+1-_xlfn.XLOOKUP($D46,$D$36:$D$42,$L$36:$L$42)) * _xlfn.XLOOKUP($D46,$D$36:$D$42,$P$36:$P$42) * _xlfn.XLOOKUP($D46,$D$36:$D$42,$W$36:$W$42)) + SUM(_xlfn.XLOOKUP($D46,$D$36:$D$42,$U$36:$U$42) * (_xlfn.XLOOKUP($D46,$D$36:$D$42,$L$36:$L$42) +_xlfn.XLOOKUP($D46,$D$36:$D$42,$M$36:$M$42)-1<=BZ$24) * _xlfn.XLOOKUP($D46,$D$36:$D$42,$P$36:$P$42))), (SUM( INDIRECT(ADDRESS(_xlfn.XLOOKUP($D46,$D$36:$D$42,$Y$36:$Y$42),COLUMN($AB$24))): INDIRECT(ADDRESS(_xlfn.XLOOKUP($D46,$D$36:$D$42,$Y$36:$Y$42),COLUMN(BZ46)))) * _xlfn.XLOOKUP($D46,$D$36:$D$42,$P$36:$P$42))) -> 500 | CA46: =IF($F$12=$CH$1, (SUM((_xlfn.XLOOKUP($D46,$D$36:$D$42,$L$36:$L$42)<=CA$24) * (_xlfn.XLOOKUP($D46,$D$36:$D$42,$L$36:$L$42)+_xlfn.XLOOKUP($D46,$D$36:$D$42,$M$36:$M$42)-1>CA$24) * (CA$24+1-_xlfn.XLOOKUP($D46,$D$36:$D$42,$L$36:$L$42)) * _xlfn.XLOOKUP($D46,$D$36:$D$42,$P$36:$P$42) * _xlfn.XLOOKUP($D46,$D$36:$D$42,$W$36:$W$42)) + SUM(_xlfn.XLOOKUP($D46,$D$36:$D$42,$U$36:$U$42) * (_xlfn.XLOOKUP($D46,$D$36:$D$42,$L$36:$L$42) +_xlfn.XLOOKUP($D46,$D$36:$D$42,$M$36:$M$42)-1<=CA$24) * _xlfn.XLOOKUP($D46,$D$36:$D$42,$P$36:$P$42))), (SUM( INDIRECT(ADDRESS(_xlfn.XLOOKUP($D46,$D$36:$D$42,$Y$36:$Y$42),COLUMN($AB$24))): INDIRECT(ADDRESS(_xlfn.XLOOKUP($D46,$D$36:$D$42,$Y$36:$Y$42),COLUMN(CA46)))) * _xlfn.XLOOKUP($D46,$D$36:$D$42,$P$36:$P$42))) -> 500 | CB46: =IF($F$12=$CH$1, (SUM((_xlfn.XLOOKUP($D46,$D$36:$D$42,$L$36:$L$42)<=CB$24) * (_xlfn.XLOOKUP($D46,$D$36:$D$42,$L$36:$L$42)+_xlfn.XLOOKUP($D46,$D$36:$D$42,$M$36:$M$42)-1>CB$24) * (CB$24+1-_xlfn.XLOOKUP($D46,$D$36:$D$42,$L$36:$L$42)) * _xlfn.XLOOKUP($D46,$D$36:$D$42,$P$36:$P$42) * _xlfn.XLOOKUP($D46,$D$36:$D$42,$W$36:$W$42)) + SUM(_xlfn.XLOOKUP($D46,$D$36:$D$42,$U$36:$U$42) * (_xlfn.XLOOKUP($D46,$D$36:$D$42,$L$36:$L$42) +_xlfn.XLOOKUP($D46,$D$36:$D$42,$M$36:$M$42)-1<=CB$24) * _xlfn.XLOOKUP($D46,$D$36:$D$42,$P$36:$P$42))), (SUM( INDIRECT(ADDRESS(_xlfn.XLOOKUP($D46,$D$36:$D$42,$Y$36:$Y$42),COLUMN($AB$24))): INDIRECT(ADDRESS(_xlfn.XLOOKUP($D46,$D$36:$D$42,$Y$36:$Y$42),COLUMN(CB46)))) * _xlfn.XLOOKUP($D46,$D$36:$D$42,$P$36:$P$42))) -> 500 | CC46: =IF($F$12=$CH$1, (SUM((_xlfn.XLOOKUP($D46,$D$36:$D$42,$L$36:$L$42)<=CC$24) * (_xlfn.XLOOKUP($D46,$D$36:$D$42,$L$36:$L$42)+_xlfn.XLOOKUP($D46,$D$36:$D$42,$M$36:$M$42)-1>CC$24) * (CC$24+1-_xlfn.XLOOKUP($D46,$D$36:$D$42,$L$36:$L$42)) * _xlfn.XLOOKUP($D46,$D$36:$D$42,$P$36:$P$42) * _xlfn.XLOOKUP($D46,$D$36:$D$42,$W$36:$W$42)) + SUM(_xlfn.XLOOKUP($D46,$D$36:$D$42,$U$36:$U$42) * (_xlfn.XLOOKUP($D46,$D$36:$D$42,$L$36:$L$42) +_xlfn.XLOOKUP($D46,$D$36:$D$42,$M$36:$M$42)-1<=CC$24) * _xlfn.XLOOKUP($D46,$D$36:$D$42,$P$36:$P$42))), (SUM( INDIRECT(ADDRESS(_xlfn.XLOOKUP($D46,$D$36:$D$42,$Y$36:$Y$42),COLUMN($AB$24))): INDIRECT(ADDRESS(_xlfn.XLOOKUP($D46,$D$36:$D$42,$Y$36:$Y$42),COLUMN(CC46)))) * _xlfn.XLOOKUP($D46,$D$36:$D$42,$P$36:$P$42))) -> 500 | CD46: =IF($F$12=$CH$1, (SUM((_xlfn.XLOOKUP($D46,$D$36:$D$42,$L$36:$L$42)<=CD$24) * (_xlfn.XLOOKUP($D46,$D$36:$D$42,$L$36:$L$42)+_xlfn.XLOOKUP($D46,$D$36:$D$42,$M$36:$M$42)-1>CD$24) * (CD$24+1-_xlfn.XLOOKUP($D46,$D$36:$D$42,$L$36:$L$42)) * _xlfn.XLOOKUP($D46,$D$36:$D$42,$P$36:$P$42) * _xlfn.XLOOKUP($D46,$D$36:$D$42,$W$36:$W$42)) + SUM(_xlfn.XLOOKUP($D46,$D$36:$D$42,$U$36:$U$42) * (_xlfn.XLOOKUP($D46,$D$36:$D$42,$L$36:$L$42) +_xlfn.XLOOKUP($D46,$D$36:$D$42,$M$36:$M$42)-1<=CD$24) * _xlfn.XLOOKUP($D46,$D$36:$D$42,$P$36:$P$42))), (SUM( INDIRECT(ADDRESS(_xlfn.XLOOKUP($D46,$D$36:$D$42,$Y$36:$Y$42),COLUMN($AB$24))): INDIRECT(ADDRESS(_xlfn.XLOOKUP($D46,$D$36:$D$42,$Y$36:$Y$42),COLUMN(CD46)))) * _xlfn.XLOOKUP($D46,$D$36:$D$42,$P$36:$P$42))) -> 500 | CE46: =IF($F$12=$CH$1, (SUM((_xlfn.XLOOKUP($D46,$D$36:$D$42,$L$36:$L$42)<=CE$24) * (_xlfn.XLOOKUP($D46,$D$36:$D$42,$L$36:$L$42)+_xlfn.XLOOKUP($D46,$D$36:$D$42,$M$36:$M$42)-1>CE$24) * (CE$24+1-_xlfn.XLOOKUP($D46,$D$36:$D$42,$L$36:$L$42)) * _xlfn.XLOOKUP($D46,$D$36:$D$42,$P$36:$P$42) * _xlfn.XLOOKUP($D46,$D$36:$D$42,$W$36:$W$42)) + SUM(_xlfn.XLOOKUP($D46,$D$36:$D$42,$U$36:$U$42) * (_xlfn.XLOOKUP($D46,$D$36:$D$42,$L$36:$L$42) +_xlfn.XLOOKUP($D46,$D$36:$D$42,$M$36:$M$42)-1<=CE$24) * _xlfn.XLOOKUP($D46,$D$36:$D$42,$P$36:$P$42))), (SUM( INDIRECT(ADDRESS(_xlfn.XLOOKUP($D46,$D$36:$D$42,$Y$36:$Y$42),COLUMN($AB$24))): INDIRECT(ADDRESS(_xlfn.XLOOKUP($D46,$D$36:$D$42,$Y$36:$Y$42),COLUMN(CE46)))) * _xlfn.XLOOKUP($D46,$D$36:$D$42,$P$36:$P$42))) -> 500 | CF46: =IF($F$12=$CH$1, (SUM((_xlfn.XLOOKUP($D46,$D$36:$D$42,$L$36:$L$42)<=CF$24) * (_xlfn.XLOOKUP($D46,$D$36:$D$42,$L$36:$L$42)+_xlfn.XLOOKUP($D46,$D$36:$D$42,$M$36:$M$42)-1>CF$24) * (CF$24+1-_xlfn.XLOOKUP($D46,$D$36:$D$42,$L$36:$L$42)) * _xlfn.XLOOKUP($D46,$D$36:$D$42,$P$36:$P$42) * _xlfn.XLOOKUP($D46,$D$36:$D$42,$W$36:$W$42)) + SUM(_xlfn.XLOOKUP($D46,$D$36:$D$42,$U$36:$U$42) * (_xlfn.XLOOKUP($D46,$D$36:$D$42,$L$36:$L$42) +_xlfn.XLOOKUP($D46,$D$36:$D$42,$M$36:$M$42)-1<=CF$24) * _xlfn.XLOOKUP($D46,$D$36:$D$42,$P$36:$P$42))), (SUM( INDIRECT(ADDRESS(_xlfn.XLOOKUP($D46,$D$36:$D$42,$Y$36:$Y$42),COLUMN($AB$24))): INDIRECT(ADDRESS(_xlfn.XLOOKUP($D46,$D$36:$D$42,$Y$36:$Y$42),COLUMN(CF46)))) * _xlfn.XLOOKUP($D46,$D$36:$D$42,$P$36:$P$42))) -> 500 | CG46: =IF($F$12=$CH$1, (SUM((_xlfn.XLOOKUP($D46,$D$36:$D$42,$L$36:$L$42)<=CG$24) * (_xlfn.XLOOKUP($D46,$D$36:$D$42,$L$36:$L$42)+_xlfn.XLOOKUP($D46,$D$36:$D$42,$M$36:$M$42)-1>CG$24) * (CG$24+1-_xlfn.XLOOKUP($D46,$D$36:$D$42,$L$36:$L$42)) * _xlfn.XLOOKUP($D46,$D$36:$D$42,$P$36:$P$42) * _xlfn.XLOOKUP($D46,$D$36:$D$42,$W$36:$W$42)) + SUM(_xlfn.XLOOKUP($D46,$D$36:$D$42,$U$36:$U$42) * (_xlfn.XLOOKUP($D46,$D$36:$D$42,$L$36:$L$42) +_xlfn.XLOOKUP($D46,$D$36:$D$42,$M$36:$M$42)-1<=CG$24) * _xlfn.XLOOKUP($D46,$D$36:$D$42,$P$36:$P$42))), (SUM( INDIRECT(ADDRESS(_xlfn.XLOOKUP($D46,$D$36:$D$42,$Y$36:$Y$42),COLUMN($AB$24))): INDIRECT(ADDRESS(_xlfn.XLOOKUP($D46,$D$36:$D$42,$Y$36:$Y$42),COLUMN(CG46)))) * _xlfn.XLOOKUP($D46,$D$36:$D$42,$P$36:$P$42))) -> 500 | CH46: =IF($F$12=$CH$1, (SUM((_xlfn.XLOOKUP($D46,$D$36:$D$42,$L$36:$L$42)<=CH$24) * (_xlfn.XLOOKUP($D46,$D$36:$D$42,$L$36:$L$42)+_xlfn.XLOOKUP($D46,$D$36:$D$42,$M$36:$M$42)-1>CH$24) * (CH$24+1-_xlfn.XLOOKUP($D46,$D$36:$D$42,$L$36:$L$42)) * _xlfn.XLOOKUP($D46,$D$36:$D$42,$P$36:$P$42) * _xlfn.XLOOKUP($D46,$D$36:$D$42,$W$36:$W$42)) + SUM(_xlfn.XLOOKUP($D46,$D$36:$D$42,$U$36:$U$42) * (_xlfn.XLOOKUP($D46,$D$36:$D$42,$L$36:$L$42) +_xlfn.XLOOKUP($D46,$D$36:$D$42,$M$36:$M$42)-1<=CH$24) * _xlfn.XLOOKUP($D46,$D$36:$D$42,$P$36:$P$42))), (SUM( INDIRECT(ADDRESS(_xlfn.XLOOKUP($D46,$D$36:$D$42,$Y$36:$Y$42),COLUMN($AB$24))): INDIRECT(ADDRESS(_xlfn.XLOOKUP($D46,$D$36:$D$42,$Y$36:$Y$42),COLUMN(CH46)))) * _xlfn.XLOOKUP($D46,$D$36:$D$42,$P$36:$P$42))) -> 500 | CI46: =IF($F$12=$CH$1, (SUM((_xlfn.XLOOKUP($D46,$D$36:$D$42,$L$36:$L$42)<=CI$24) * (_xlfn.XLOOKUP($D46,$D$36:$D$42,$L$36:$L$42)+_xlfn.XLOOKUP($D46,$D$36:$D$42,$M$36:$M$42)-1>CI$24) * (CI$24+1-_xlfn.XLOOKUP($D46,$D$36:$D$42,$L$36:$L$42)) * _xlfn.XLOOKUP($D46,$D$36:$D$42,$P$36:$P$42) * _xlfn.XLOOKUP($D46,$D$36:$D$42,$W$36:$W$42)) + SUM(_xlfn.XLOOKUP($D46,$D$36:$D$42,$U$36:$U$42) * (_xlfn.XLOOKUP($D46,$D$36:$D$42,$L$36:$L$42) +_xlfn.XLOOKUP($D46,$D$36:$D$42,$M$36:$M$42)-1<=CI$24) * _xlfn.XLOOKUP($D46,$D$36:$D$42,$P$36:$P$42))), (SUM( INDIRECT(ADDRESS(_xlfn.XLOOKUP($D46,$D$36:$D$42,$Y$36:$Y$42),COLUMN($AB$24))): INDIRECT(ADDRESS(_xlfn.XLOOKUP($D46,$D$36:$D$42,$Y$36:$Y$42),COLUMN(CI46)))) * _xlfn.XLOOKUP($D46,$D$36:$D$42,$P$36:$P$42))) -> 500
O47: =IFERROR(INDEX(O$36:O$42,MATCH($D31,$D$36:$D$42,0)),) -> 0
